Workbook

Sheet Main
B5: Version Number | E5: 1.701 | F5: Locked
M6: TMP6x FAQ | N6: FAQ's for the TMP6x series of thermistors
A20: Version History | B20: Version | C20: Change List Description
N21: Device | Q21: Max Operating Temperature
M22: Select the TI device to model >>>> | N22: TMP6131DECR | P22: q | Q22: =VLOOKUP('NTC Thermistor Comparison'!$B$26,Coefficients!$E$2:$H$28,4,FALSE) -> 125 | R22: ℃
N24: =Coefficients!J35 -> VBias (0.3Vdc - 6.5Vdc)
M25: Enter VBias Voltage >>>> | N25: 3.3 | P25: Vdc
N27: ADC Bits (8 - 32 bits)
M28: Enter ADC Bit value >>>> | N28: 12 | P28: Bits
N30: RBias
M31: RBias >>>> | N31: =VLOOKUP('NTC Thermistor Comparison'!$B$26,Coefficients!$E$2:$F$28,2,FALSE) -> 10000 | P31: Ohms
N32: The top resister is a fixed value.
N33: Preferred resistor tolerance should be 1% or better.
K36: Useful Data
K37: Device Resistance Tables | N37: Provides the resistance to temperature tables
K38: NTC Thermistor Comparison | N38: Compare some of the differences between the TI device chosen and an NTC thermistor (user inputted)
K40: Temperature Conversion Methods
K41: 4th Order Polynomial TMP vs Res | N41: Preferred method to calculate the temperature values from the resistance
K42: 4th Order Polynomial TMP vs Vdc | N42: Preferred method to calculate the temperature values from the Vsense voltage
K43: Steinhart-Hart | N43: Steinhart-Hart coefficients and model solved
K44: Lookup Table | N44: Pre-calculated values stored in a lookup table for quick and easy indexing
K45: Interpolation from Lookup Table | N45: Highly accurate, full range interpolation from a small lookup table
K46: Threshold Detection | N46: Calculate at 2 points for limit or threshold based designs
K48: Helpful formula worksheets
K49: Averaging | N49: Averaging and oversampling techniques
K50: Low Pass Filter | N50: Firmware based Low Pass Filter
K51: Basic Formulas | N51: Quick computations to help during design
K52: RBias TCR_PPM | N52: Calculate the bias resistor tolerances, PPM values, and more
K55: 0402 Footprint | R55: 0603 Footprint

Sheet Coefficients (hidden)
A1: Coefficients | E1: Part List | F1: Resistance @25C | H1: Max Temperature | I1: Min Temperature | J1: Min Vbias | K1: Max Vbias | N1: Hide this page before locking the worksheet with a password | R1: Password: | S1: THS_Apps_01 | T1: Use this password to lock and unlock each tab | W1: THS_apps_0 | X1: Old Password
A2: 1 | E2: TMP6131DECR | F2: 10000 | G2: Ohms | H2: 125 | I2: -40 | J2: 0.3 | K2: 6.5
A3: 2 | E3: TMP6131DECT | F3: 10000 | G3: Ohms | H3: 125 | I3: -40 | J3: 0.3 | K3: 6.5
A4: 3 | E4: TMP6131QDECRQ1 | F4: 10000 | G4: Ohms | H4: 125 | I4: -40 | J4: 0.3 | K4: 6.5 | N4: Version | O4: Date | P4: Edits | Q4: Description
A5: 4 | E5: TMP6131QDECTQ1 | F5: 10000 | G5: Ohms | H5: 125 | I5: -40 | J5: 0.3 | K5: 6.5 | N5: 1 | O5: 2019-12-04 | Q5: Released Version - to TI.com
A6: 5 | E6: TMP6131DYAR | F6: 10000 | G6: Ohms | H6: 150 | I6: -40 | J6: 0.3 | K6: 6.5 | N6: 1.01 | O6: 2019-12-11 | P6: 1 | Q6: updated the NTC resistance table to 1%
A7: 6 | E7: TMP6131QDYARQ1 | F7: 10000 | G7: Ohms | H7: 150 | I7: -40 | J7: 0.3 | K7: 6.5 | P7: 2 | Q7: Changed the resistance tolerance to 1.5% from 71C and above
A8: 7 | E8: TMP6131DYAT | F8: 10000 | G8: Ohms | H8: 150 | I8: -40 | J8: 0.3 | K8: 6.5 | P8: 3 | Q8: Added new worksheet “Averaging” to the tool
A9: 8 | E9: TMP6131QDYATQ1 | F9: 10000 | G9: Ohms | H9: 150 | I9: -40 | J9: 0.3 | K9: 6.5 | N9: 1.02 | O9: 2019-12-17 | P9: 1 | Q9: Added new plot for tolerance error to the “NTC compare worksheet”
A10: 9 | E10: TMP6131LPGM | F10: 10000 | G10: Ohms | H10: 150 | I10: -40 | J10: 0.3 | K10: 6.5 | P10: 2 | Q10: Changed the plot labels “NTC compare worksheet” to show the corresponding TI device part number instead of PTC
A11: 10 | E11: TMP6131QLPGMQ1 | F11: 10000 | G11: Ohms | H11: 150 | I11: -40 | J11: 0.3 | K11: 6.5 | P11: 3 | Q11: Increased the scale range for the calculated regression error “4th order poly worksheet” to minimize the appearance of the error
A12: 11 | E12: TMP6131ELPGMQ1 | F12: 10000 | G12: Ohms | H12: 170 | I12: -40 | J12: 0.8 | K12: 5.5 | P12: 4 | Q12: Corrected range bugs for entered data across some sheets
A13: 12 | E13: TMP6331DECR | F13: 100000 | G13: Ohms | H13: 125 | I13: -40 | J13: 0.8 | K13: 5.5 | N13: 1.03 | O13: 2019-12-18 | P13: 1 | Q13: Changed the data images to include the step size info in the image in the "Averaging" worksheet
A14: 13 | E14: TMP6331QDECRQ1 | F14: 100000 | G14: Ohms | H14: 125 | I14: -40 | J14: 0.8 | K14: 5.5 | P14: 2 | Q14: Added a note about sample size for resolution changes to the "Averaging" worksheet
A15: 14 | E15: TMP6331DECT | F15: 100000 | G15: Ohms | H15: 125 | I15: -40 | J15: 0.8 | K15: 5.5 | N15: 1.1 | O15: 2019-12-18 | P15: 1 | Q15: Changed the revision to V1.100 because we added the "Averaging" worksheet
A16: 15 | E16: TMP6331QDECTQ1 | F16: 100000 | G16: Ohms | H16: 125 | I16: -40 | J16: 0.8 | K16: 5.5 | N16: 1.11 | O16: 2020-01-09 | P16: 1 | Q16: Including in the tool new APL parts to the drop down menu and using existing polynomials
A17: 16 | E17: TMP6331DYAR | F17: 100000 | G17: Ohms | H17: 150 | I17: -40 | J17: 0.8 | K17: 5.5 | N17: 1.12 | O17: 2020-01-10 | P17: 1 | Q17: corrected part numbers for new additional parts
A18: 17 | E18: TMP6331DYAT | F18: 100000 | G18: Ohms | H18: 150 | I18: -40 | J18: 0.8 | K18: 5.5 | N18: 1.13 | O18: 2020-01-13 | P18: 1 | Q18: Corrected the max and min tolerances in the 5% resistance tables
A19: 18 | E19: TMP6331QDYARQ1 | F19: 100000 | G19: Ohms | H19: 150 | I19: -40 | J19: 0.8 | K19: 5.5 | N19: 1.2 | O19: 2020-01-20 | P19: 1 | Q19: Extended temperature range for all sheets to 175
A20: 19 | E20: TMP6331QDYATQ1 | F20: 100000 | G20: Ohms | H20: 150 | I20: -40 | J20: 0.8 | K20: 5.5 | P20: 2 | Q20: Added min temp to coefficients
A21: 20 | E21: TMP6431DECR | F21: 47000 | G21: Ohms | H21: 125 | I21: -40 | J21: 0.8 | K21: 5.5 | P21: 3 | Q21: Made corrections to a few of the sheets
A22: 21 | E22: TMP6431DECT | F22: 47000 | G22: Ohms | H22: 125 | I22: -40 | J22: 0.8 | K22: 5.5 | P22: 4 | Q22: updated the ELPG coefficients for 175C
A23: 22 | E23: TMP6431DYAR | F23: 47000 | G23: Ohms | H23: 150 | I23: -40 | J23: 0.8 | K23: 5.5 | N23: 1.3 | O23: 2020-02-12 | P23: 1 | Q23: Bryan's updated text edits
A24: 23 | E24: TMP6431DYAT | F24: 47000 | G24: Ohms | H24: 150 | I24: -40 | J24: 0.8 | K24: 5.5 | P24: 2 | Q24: Replaced all "PTC" with "THRM"
A25: 24 | E25: TMP6431QDYARQ1 | F25: 47000 | G25: Ohms | H25: 150 | I25: -40 | J25: 0.8 | K25: 5.5 | N25: 1.31 | O25: 2020-02-14 | P25: 1 | Q25: Updated the Plots for extended temperature
A26: 25 | E26: TMP6431QDYATQ1 | F26: 47000 | G26: Ohms | H26: 150 | I26: -40 | J26: 0.8 | K26: 5.5 | N26: 1.4 | O26: 2020-11-12 | P26: 1 | Q26: Added 8 new part numbers and coefficients
A27: 26 | E27: TMP6431QDECRQ1 | F27: 47000 | G27: Ohms | H27: 125 | I27: -40 | J27: 0.8 | K27: 5.5 | P27: 2 | Q27: aligned and sized plots to be more aesthetic
A28: 27 | E28: TMP6431QDECTQ1 | F28: 47000 | G28: Ohms | H28: 125 | I28: -40 | J28: 0.8 | K28: 5.5 | P28: 3 | Q28: Updated all coefficients to the newest and most accurate coefficients
J29: To add new products insert the part number and data before the last line | N29: 1.401 | O29: 2020-11-27 | P29: 1 | Q29: Increased Rbias to 6.5Vdc maximum input value. This keeps the Vdiv below 5.5V and the current at -40C below 400uA.
J30: Adding before this line will insert the new data and all sheets will be | N30: 1.5 | O30: 2021-02-24 | P30: 1 | Q30: increased DYA temperature high limit to 150C
J31: updated automatically. Adding after this line will mean that you will have | P31: 2 | Q31: Added Temperature vs Vtemp (VDC) tab
J32: manually go to every sheet and update the new table ranges | P32: 3 | Q32: Corrected typo errors throughout the worksheet
P33: 4 | Q33: Updated copyright dates
I34: Do not change this label | P34: 5 | Q34: Added Firmware LPF tab
I35: VBias Voltage Label | J35: ="VBias ("&CELL("contents",$J$36)&"Vdc"&" - "&" "&CELL("contents",$J$37)&"Vdc)" -> VBias (0.3Vdc - 6.5Vdc) | P35: 6 | Q35: extended the VBias down to 0.3V and up to 6.5V
I36: Min VBias Lookup | J36: =VLOOKUP('NTC Thermistor Comparison'!$B$26,Coefficients!$E$2:$K$28,6,FALSE) -> 0.3 | P36: 7 | Q36: added max temp for part to main page
I37: Max VBias Lookup | J37: =VLOOKUP('NTC Thermistor Comparison'!$B$26,Coefficients!$E$2:$K$28,7,FALSE) -> 6.5 | N37: 1.51 | O37: 2021-04-26 | P37: 1 | Q37: Added VBA to reset voltage on part number change
N38: 1.6 | O38: 2021-12-02 | P38: 1 | Q38: Corrected missing link on the basic formulas tab to carry forward the VBias
P39: 2 | Q39: Added Worst Case tab (VBias, RBias, ADC, TCR, Beta, Arhenius)
P40: 3 | Q40: Removed main link to Worst Case and hide tab for release. Show tab for apps, marketing and select customers.
P41: 4 | Q41: Corrected ppm error calculation in RBias tab
N42: 1.7 | O42: 2022-05-31 | P42: 1 | Q42: Created A version with WCA and Drift. Created non A version with WCA and Drift hidden
P43: 2 | Q43: Changed the password to unlock this document
N44: 1.701 | O44: 2022-06-13 | P44: 1 | Q44: TMP64 coefficients are incorrect. Changed back to v1.4 coefficients until it's figured out.
G48: Coefficients are created from real data of 5 test points and t offset for accuracy
B49: use to verify order | F49: Vlookup tables
B50: Indexed to list | D50: The part number must match this
A51: Row | B51: Coefficient number | C51: Part number | D51: lookup table wit A0/A4 added | F51: COEFFICENT | G51: X0 | H51: X1 | I51: X2 | J51: X3 | K51: X4 | L51: STD Vbias | M51: TMP6131DECR | S51: ext Vbias | T51: TMP6131DECR | U51: X0 | V51: X1 | W51: X2 | X51: X3 | Y51: X4
A52: 1 | B52: =INDEX($A$2:$A$28,MATCH(C52,$E$2:$E$28,0)) -> 1 | C52: TMP6131DECR | E52: TMP6131DECRA0 | F52: A0 | G52: 8339.925195 | H52: 54.15471569 | I52: -5.786160614 | J52: 1.471112384 | K52: -0.1158763334 | L52: 0.3V-6.5V | M52: 8339.925195 | N52: 54.15471569 | O52: -5.786160614 | P52: 1.471112384 | Q52: -0.1158763334 | S52: 0.3V-6.5V | T52: A0 | U52: 8339.925195 | V52: 54.15471569 | W52: -5.786160614 | X52: 1.471112384 | Y52: -0.1158763334
B53: =INDEX($F$2:$F$28,MATCH(C52,$E$2:$E$28,0)) -> 10000 | E53: TMP6131DECRA1 | F53: A1 | G53: 53.51943917 | H53: 0.1119301613 | I53: 0.1898744222 | J53: -0.04605071452 | K53: 0.003768197644 | M53: 53.51943917 | N53: 0.1119301613 | O53: 0.1898744222 | P53: -0.04605071452 | Q53: 0.003768197644 | T53: A1 | U53: 53.51943917 | V53: 0.1119301613 | W53: 0.1898744222 | X53: -0.04605071452 | Y53: 0.003768197644
B54: =INDEX($H$2:$H$28,MATCH(C52,$E$2:$E$28,0)) -> 125 | E54: TMP6131DECRA2 | F54: A2 | G54: 0.149626939 | H54: -0.005483052487 | I54: 0.003800392751 | J54: -0.0008046893237 | K54: 5.842681152e-05 | M54: 0.149626939 | N54: -0.005483052487 | O54: 0.003800392751 | P54: -0.0008046893237 | Q54: 5.842681152e-05 | T54: A2 | U54: 0.149626939 | V54: -0.005483052487 | W54: 0.003800392751 | X54: -0.0008046893237 | Y54: 5.842681152e-05
B55: =INDEX($I$2:$I$28,MATCH(C52,$E$2:$E$28,0)) -> -40 | E55: TMP6131DECRA3 | F55: A3 | G55: 7.776436672e-06 | H55: 0.0001014601034 | I55: -5.834066541e-05 | J55: 1.340151369e-05 | K55: -1.094192125e-06 | M55: 7.776436672e-06 | N55: 0.0001014601034 | O55: -5.834066541e-05 | P55: 1.340151369e-05 | Q55: -1.094192125e-06 | T55: A3 | U55: 7.776436672e-06 | V55: 0.0001014601034 | W55: -5.834066541e-05 | X55: 1.340151369e-05 | Y55: -1.094192125e-06
E56: TMP6131DECRA4 | F56: A4 | G56: 3.523968299e-07 | H56: -4.151595823e-07 | I56: 2.755293751e-07 | J56: -6.711119768e-08 | K56: 5.741379087e-09 | M56: 3.523968299e-07 | N56: -4.151595823e-07 | O56: 2.755293751e-07 | P56: -6.711119768e-08 | Q56: 5.741379087e-09 | T56: A4 | U56: 3.523968299e-07 | V56: -4.151595823e-07 | W56: 2.755293751e-07 | X56: -6.711119768e-08 | Y56: 5.741379087e-09
A58: 2 | B58: =INDEX($A$2:$A$28,MATCH(C58,$E$2:$E$28,0)) -> 2 | C58: TMP6131DECT | E58: TMP6131DECTA0 | F58: A0 | G58: 8339.925195 | H58: 54.15471569 | I58: -5.786160614 | J58: 1.471112384 | K58: -0.1158763334 | M58: TMP6131DYAR | S58: ext Vbias | T58: TMP6131DYAR
B59: =INDEX($F$2:$F$28,MATCH(C58,$E$2:$E$28,0)) -> 10000 | E59: TMP6131DECTA1 | F59: A1 | G59: 53.51943917 | H59: 0.1119301613 | I59: 0.1898744222 | J59: -0.04605071452 | K59: 0.003768197644 | L59: 0.3V-6.5V | M59: 8361.032491 | N59: 48.33734087 | O59: -1.654801316 | P59: 0.6477794137 | Q59: -0.07739994437 | S59: 0.3V-6.5V | T59: A0 | U59: 8361.032491 | V59: 48.33734087 | W59: -1.654801316 | X59: 0.6477794137 | Y59: -0.07739994437
B60: =INDEX($H$2:$H$28,MATCH(C58,$E$2:$E$28,0)) -> 125 | E60: TMP6131DECTA2 | F60: A2 | G60: 0.149626939 | H60: -0.005483052487 | I60: 0.003800392751 | J60: -0.0008046893237 | K60: 5.842681152e-05 | M60: 52.35440394 | N60: 0.5738253377 | O60: 0.0693781643 | P60: -0.0420793965 | Q60: 0.004658539554 | T60: A1 | U60: 52.35440394 | V60: 0.5738253377 | W60: 0.0693781643 | X60: -0.0420793965 | Y60: 0.004658539554
B61: =INDEX($I$2:$I$28,MATCH(C58,$E$2:$E$28,0)) -> -40 | E61: TMP6131DECTA3 | F61: A3 | G61: 7.776436672e-06 | H61: 0.0001014601034 | I61: -5.834066541e-05 | J61: 1.340151369e-05 | K61: -1.094192125e-06 | M61: 0.1430530126 | N61: 0.002261738225 | O61: 0.0002427618742 | P61: -0.0001528680457 | Q61: 1.732031492e-05 | T61: A2 | U61: 0.1430530126 | V61: 0.002261738225 | W61: 0.0002427618742 | X61: -0.0001528680457 | Y61: 1.732031492e-05
E62: TMP6131DECTA4 | F62: A4 | G62: 3.523968299e-07 | H62: -4.151595823e-07 | I62: 2.755293751e-07 | J62: -6.711119768e-08 | K62: 5.741379087e-09 | M62: 4.737130357e-05 | N62: 4.243097231e-05 | O62: -0.0001059698404 | P62: 3.772863512e-05 | Q62: -3.762695276e-06 | T62: A3 | U62: 4.737130357e-05 | V62: 4.243097231e-05 | W62: -0.0001059698404 | X62: 3.772863512e-05 | Y62: -3.762695276e-06
M63: 9.606811422e-08 | N63: -2.485992434e-07 | O63: 6.457127079e-07 | P63: -2.284225902e-07 | Q63: 2.270968787e-08 | T63: A4 | U63: 9.606811422e-08 | V63: -2.485992434e-07 | W63: 6.457127079e-07 | X63: -2.284225902e-07 | Y63: 2.270968787e-08
A64: 2 | B64: =INDEX($A$2:$A$28,MATCH(C64,$E$2:$E$28,0)) -> 3 | C64: TMP6131QDECRQ1 | E64: TMP6131QDECRQ1A0 | F64: A0 | G64: 8339.925195 | H64: 54.15471569 | I64: -5.786160614 | J64: 1.471112384 | K64: -0.1158763334
B65: =INDEX($F$2:$F$28,MATCH(C64,$E$2:$E$28,0)) -> 10000 | E65: TMP6131QDECRQ1A1 | F65: A1 | G65: 53.51943917 | H65: 0.1119301613 | I65: 0.1898744222 | J65: -0.04605071452 | K65: 0.003768197644 | M65: TMP6131LPGM | S65: ext Vbias | T65: TMP6131LPGM | U65: X0 | V65: X1 | W65: X2 | X65: X3 | Y65: X4
B66: =INDEX($H$2:$H$28,MATCH(C64,$E$2:$E$28,0)) -> 125 | E66: TMP6131QDECRQ1A2 | F66: A2 | G66: 0.149626939 | H66: -0.005483052487 | I66: 0.003800392751 | J66: -0.0008046893237 | K66: 5.842681152e-05 | L66: 0.3V-6.5V | M66: 8372.361594 | N66: 50.99991333 | O66: -0.3981771331 | P66: -0.3547481892 | Q66: 0.02687100662 | S66: 0.3V-6.5V | T66: A0 | U66: 8372.361594 | V66: 50.99991333 | W66: -0.3981771331 | X66: -0.3547481892 | Y66: 0.02687100662
B67: =INDEX($I$2:$I$28,MATCH(C64,$E$2:$E$28,0)) -> -40 | E67: TMP6131QDECRQ1A3 | F67: A3 | G67: 7.776436672e-06 | H67: 0.0001014601034 | I67: -5.834066541e-05 | J67: 1.340151369e-05 | K67: -1.094192125e-06 | M67: 52.49591576 | N67: 0.5233104456 | O67: -0.04799916145 | P67: 0.007067895791 | Q67: -0.0004884156417 | T67: A1 | U67: 52.49591576 | V67: 0.5233104456 | W67: -0.04799916145 | X67: 0.007067895791 | Y67: -0.0004884156417
E68: TMP6131QDECRQ1A4 | F68: A4 | G68: 3.523968299e-07 | H68: -4.151595823e-07 | I68: 2.755293751e-07 | J68: -6.711119768e-08 | K68: 5.741379087e-09 | M68: 0.1363785944 | N68: 0.003962773584 | O68: -0.001843878189 | P68: 0.0004758238744 | Q68: -3.822414867e-05 | T68: A2 | U68: 0.1363785944 | V68: 0.003962773584 | W68: -0.001843878189 | X68: 0.0004758238744 | Y68: -3.822414867e-05
M69: 0.0001914471735 | N69: -5.677898277e-05 | O69: 3.917231809e-05 | P69: -9.747017789e-06 | Q69: 7.48386974e-07 | T69: A3 | U69: 0.0001914471735 | V69: -5.677898277e-05 | W69: 3.917231809e-05 | X69: -9.747017789e-06 | Y69: 7.48386974e-07
A70: 4 | B70: =INDEX($A$2:$A$28,MATCH(C70,$E$2:$E$28,0)) -> 4 | C70: TMP6131QDECTQ1 | E70: TMP6131QDECTQ1A0 | F70: A0 | G70: 8339.925195 | H70: 54.15471569 | I70: -5.786160614 | J70: 1.471112384 | K70: -0.1158763334 | M70: -4.289384506e-07 | N70: 6.398667367e-07 | O70: -3.670973896e-07 | P70: 8.442218435e-08 | Q70: -6.306557479e-09 | T70: A4 | U70: -4.289384506e-07 | V70: 6.398667367e-07 | W70: -3.670973896e-07 | X70: 8.442218435e-08 | Y70: -6.306557479e-09
B71: =INDEX($F$2:$F$28,MATCH(C70,$E$2:$E$28,0)) -> 10000 | E71: TMP6131QDECTQ1A1 | F71: A1 | G71: 53.51943917 | H71: 0.1119301613 | I71: 0.1898744222 | J71: -0.04605071452 | K71: 0.003768197644
B72: =INDEX($H$2:$H$28,MATCH(C70,$E$2:$E$28,0)) -> 125 | E72: TMP6131QDECTQ1A2 | F72: A2 | G72: 0.149626939 | H72: -0.005483052487 | I72: 0.003800392751 | J72: -0.0008046893237 | K72: 5.842681152e-05 | M72: TMP6131ELPGMQ1
B73: =INDEX($I$2:$I$28,MATCH(C70,$E$2:$E$28,0)) -> -40 | E73: TMP6131QDECTQ1A3 | F73: A3 | G73: 7.776436672e-06 | H73: 0.0001014601034 | I73: -5.834066541e-05 | J73: 1.340151369e-05 | K73: -1.094192125e-06 | L73: 0.8V-5.5V | M73: 8376.404779 | N73: 56.06739185 | O73: -6.417104266 | P73: 1.549242068 | Q73: -0.1515417069
E74: TMP6131QDECTQ1A4 | F74: A4 | G74: 3.523968299e-07 | H74: -4.151595823e-07 | I74: 2.755293751e-07 | J74: -6.711119768e-08 | K74: 5.741379087e-09 | M74: 52.17092784 | N74: 0.4894275437 | O74: 0.07812759038 | P74: -0.03579840898 | Q74: 0.003651417163
M75: 0.1330306946 | N75: 0.002093889765 | O75: 0.001421501685 | P75: -0.0005733428422 | Q75: 5.898469595e-05
A76: 5 | B76: =INDEX($A$2:$A$28,MATCH(C76,$E$2:$E$28,0)) -> 5 | C76: TMP6131DYAR | E76: TMP6131DYARA0 | F76: A0 | G76: 8361.032491 | H76: 48.33734087 | I76: -1.654801316 | J76: 0.6477794137 | K76: -0.07739994437 | M76: 0.0003688431603 | N76: -0.0002363794935 | O76: 0.0001034658997 | P76: -2.183025568e-05 | Q76: 1.726109838e-06
B77: =INDEX($F$2:$F$28,MATCH(C76,$E$2:$E$28,0)) -> 10000 | E77: TMP6131DYARA1 | F77: A1 | G77: 52.35440394 | H77: 0.5738253377 | I77: 0.0693781643 | J77: -0.0420793965 | K77: 0.004658539554 | M77: -1.213827527e-06 | N77: 1.226402726e-06 | O77: -5.160636412e-07 | P77: 1.071825934e-07 | Q77: -8.418626226e-09
B78: =INDEX($H$2:$H$28,MATCH(C76,$E$2:$E$28,0)) -> 150 | E78: TMP6131DYARA2 | F78: A2 | G78: 0.1430530126 | H78: 0.002261738225 | I78: 0.0002427618742 | J78: -0.0001528680457 | K78: 1.732031492e-05
B79: =INDEX($I$2:$I$28,MATCH(C76,$E$2:$E$28,0)) -> -40 | E79: TMP6131DYARA3 | F79: A3 | G79: 4.737130357e-05 | H79: 4.243097231e-05 | I79: -0.0001059698404 | J79: 3.772863512e-05 | K79: -3.762695276e-06 | M79: TMP6331DECR
E80: TMP6131DYARA4 | F80: A4 | G80: 9.606811422e-08 | H80: -2.485992434e-07 | I80: 6.457127079e-07 | J80: -2.284225902e-07 | K80: 2.270968787e-08 | L80: 0.8V-5.5V | M80: 82766.37143 | N80: 703.6268374 | O80: -31.81305026 | P80: 6.497997701 | Q80: -0.650043408
M81: 522.9922661 | N81: 9.061605557 | O81: -0.841594977 | P81: 0.058449747 | Q81: 0.000258504
A82: 6 | B82: =INDEX($A$2:$A$28,MATCH(C82,$E$2:$E$28,0)) -> 6 | C82: TMP6131QDYARQ1 | E82: TMP6131QDYARQ1A0 | F82: A0 | G82: 8361.032491 | H82: 48.33734087 | I82: -1.654801316 | J82: 0.6477794137 | K82: -0.07739994437 | M82: 1.47689113 | N82: -0.088166705 | O82: 0.06300523 | P82: -0.015223415 | Q82: 0.001319036
B83: =INDEX($F$2:$F$28,MATCH(C82,$E$2:$E$28,0)) -> 10000 | E83: TMP6131QDYARQ1A1 | F83: A1 | G83: 52.35440394 | H83: 0.5738253377 | I83: 0.0693781643 | J83: -0.0420793965 | K83: 0.004658539554 | M83: 0.000685641 | N83: 5.37599e-05 | O83: -0.000329188 | P83: 0.000125254 | Q83: -1.36064e-05
B84: =INDEX($H$2:$H$28,MATCH(C82,$E$2:$E$28,0)) -> 150 | E84: TMP6131QDYARQ1A2 | F84: A2 | G84: 0.1430530126 | H84: 0.002261738225 | I84: 0.0002427618742 | J84: -0.0001528680457 | K84: 1.732031492e-05 | M84: -6.31274e-06 | N84: 1.02255e-05 | O84: -3.10664e-06 | P84: 3.78267e-07 | Q84: -1.17567e-08
B85: =INDEX($I$2:$I$28,MATCH(C82,$E$2:$E$28,0)) -> -40 | E85: TMP6131QDYARQ1A3 | F85: A3 | G85: 4.737130357e-05 | H85: 4.243097231e-05 | I85: -0.0001059698404 | J85: 3.772863512e-05 | K85: -3.762695276e-06
E86: TMP6131QDYARQ1A4 | F86: A4 | G86: 9.606811422e-08 | H86: -2.485992434e-07 | I86: 6.457127079e-07 | J86: -2.284225902e-07 | K86: 2.270968787e-08 | M86: TMP6331DYAR
L87: 0.8V-5.5V | M87: 82978.37705 | N87: 646.1343239 | O87: 17.23151 | P87: -7.390340078 | Q87: 0.4842325793
A88: 7 | B88: =INDEX($A$2:$A$28,MATCH(C88,$E$2:$E$28,0)) -> 7 | C88: TMP6131DYAT | E88: TMP6131DYATA0 | F88: A0 | G88: 8361.032491 | H88: 48.33734087 | I88: -1.654801316 | J88: 0.6477794137 | K88: -0.07739994437 | M88: 510.9247601 | N88: 18.43522719 | O88: -5.819255079 | P88: 1.149659004 | Q88: -0.08578707688
B89: =INDEX($F$2:$F$28,MATCH(C88,$E$2:$E$28,0)) -> 10000 | E89: TMP6131DYATA1 | F89: A1 | G89: 52.35440394 | H89: 0.5738253377 | I89: 0.0693781643 | J89: -0.0420793965 | K89: 0.004658539554 | M89: 1.49471949 | N89: -0.1234014316 | O89: 0.07849769251 | P89: -0.01777584221 | Q89: 0.001413227399
B90: =INDEX($H$2:$H$28,MATCH(C88,$E$2:$E$28,0)) -> 150 | E90: TMP6131DYATA2 | F90: A2 | G90: 0.1430530126 | H90: 0.002261738225 | I90: 0.0002427618742 | J90: -0.0001528680457 | K90: 1.732031492e-05 | M90: 0.005985091005 | N90: -0.007763034924 | O90: 0.003843701357 | P90: -0.0008108418054 | Q90: 6.159436386e-05
B91: =INDEX($I$2:$I$28,MATCH(C88,$E$2:$E$28,0)) -> -40 | E91: TMP6131DYATA3 | F91: A3 | G91: 4.737130357e-05 | H91: 4.243097231e-05 | I91: -0.0001059698404 | J91: 3.772863512e-05 | K91: -3.762695276e-06 | M91: -4.319879575e-05 | N91: 5.929986112e-05 | O91: -2.925914361e-05 | P91: 6.192753758e-06 | Q91: -4.723350008e-07
E92: TMP6131DYATA4 | F92: A4 | G92: 9.606811422e-08 | H92: -2.485992434e-07 | I92: 6.457127079e-07 | J92: -2.284225902e-07 | K92: 2.270968787e-08 | S92: v1.4 | Y92: V1.7
M93: TMP6431DECR | S93: TMP6431DECR | Y93: TMP6431DECR
A94: 8 | B94: =INDEX($A$2:$A$28,MATCH(C94,$E$2:$E$28,0)) -> 8 | C94: TMP6131QDYATQ1 | E94: TMP6131QDYATQ1A0 | F94: A0 | G94: 8361.032491 | H94: 48.33734087 | I94: -1.654801316 | J94: 0.6477794137 | K94: -0.07739994437 | L94: 0.8V-5.5V | M94: 39073.5279 | N94: 18.8428838 | O94: 0.2558189721 | P94: -0.005350303628 | Q94: 2.965468304e-05 | S94: 39081.32107 | T94: 217.2204385 | U94: 35.36650305 | V94: -9.698243309 | W94: 0.808169247 | Y94: 39073.5279 | Z94: 18.8428838 | AA94: 0.2558189721 | AB94: -0.005350303628 | AC94: 2.965468304e-05
B95: =INDEX($F$2:$F$28,MATCH(C94,$E$2:$E$28,0)) -> 10000 | E95: TMP6131QDYATQ1A1 | F95: A1 | G95: 52.35440394 | H95: 0.5738253377 | I95: 0.0693781643 | J95: -0.0420793965 | K95: 0.004658539554 | M95: 246.6928282 | N95: 0.5896960036 | O95: -0.01502921586 | P95: 0.0002737098576 | Q95: -1.549745316e-06 | S95: 246.4370929 | T95: 4.781199625 | U95: -1.165300911 | V95: 0.247050022 | W95: -0.019717685 | Y95: 246.6928282 | Z95: 0.5896960036 | AA95: -0.01502921586 | AB95: 0.0002737098576 | AC95: -1.549745316e-06
B96: =INDEX($H$2:$H$28,MATCH(C94,$E$2:$E$28,0)) -> 150 | E96: TMP6131QDYATQ1A2 | F96: A2 | G96: 0.1430530126 | H96: 0.002261738225 | I96: 0.0002427618742 | J96: -0.0001528680457 | K96: 1.732031492e-05 | M96: 0.6610402148 | N96: 0.003311314767 | O96: -7.658411313e-05 | P96: 1.253440715e-06 | Q96: -6.708514818e-09 | S96: 0.665356692 | T96: 0.055007749 | U96: -0.027957012 | V96: 0.006882431 | W96: -0.000588874 | Y96: 0.6610402148 | Z96: 0.003311314767 | AA96: -7.658411313e-05 | AB96: 1.253440715e-06 | AC96: -6.708514818e-09
B97: =INDEX($I$2:$I$28,MATCH(C94,$E$2:$E$28,0)) -> -40 | E97: TMP6131QDYATQ1A3 | F97: A3 | G97: 4.737130357e-05 | H97: 4.243097231e-05 | I97: -0.0001059698404 | J97: 3.772863512e-05 | K97: -3.762695276e-06 | M97: 0.0009507985858 | N97: -0.0001544782999 | O97: 8.055036614e-06 | P97: -1.557326982e-07 | Q97: 8.925895561e-10 | S97: 0.0003325 | T97: -0.000281179 | U97: 6.37386e-05 | V97: -5.55424e-07 | W97: -8.02056e-07 | Y97: 0.0009507985858 | Z97: -0.0001544782999 | AA97: 8.055036614e-06 | AB97: -1.557326982e-07 | AC97: 8.925895561e-10
E98: TMP6131QDYATQ1A4 | F98: A4 | G98: 9.606811422e-08 | H98: -2.485992434e-07 | I98: 6.457127079e-07 | J98: -2.284225902e-07 | K98: 2.270968787e-08 | M98: -4.473287544e-06 | N98: 1.23708825e-06 | O98: -6.21834229e-08 | P98: 1.198724668e-09 | Q98: -6.86435601e-12 | S98: -5.96919e-07 | T98: 2.22867e-06 | U98: -4.40491e-07 | V98: -5.28157e-09 | W98: 6.58266e-09 | Y98: -4.473287544e-06 | Z98: 1.23708825e-06 | AA98: -6.21834229e-08 | AB98: 1.198724668e-09 | AC98: -6.86435601e-12
A100: 9 | B100: =INDEX($A$2:$A$28,MATCH(C100,$E$2:$E$28,0)) -> 9 | C100: TMP6131LPGM | E100: TMP6131LPGMA0 | F100: A0 | G100: 8372.361594 | H100: 50.99991333 | I100: -0.3981771331 | J100: -0.3547481892 | K100: 0.02687100662 | M100: TMP6431DYAR | S100: TMP6431DYAR | Y100: TMP6431DYAR
B101: =INDEX($F$2:$F$28,MATCH(C100,$E$2:$E$28,0)) -> 10000 | E101: TMP6131LPGMA1 | F101: A1 | G101: 52.49591576 | H101: 0.5233104456 | I101: -0.04799916145 | J101: 0.007067895791 | K101: -0.0004884156417 | L101: 0.8V-5.5V | M101: 39168.57499 | N101: 18.68458284 | O101: 0.2417320362 | P101: -0.004885384647 | Q101: 2.658157301e-05 | S101: 39168.57499 | T101: 18.68458284 | U101: 0.2417320362 | V101: -0.004885384647 | W101: 2.658157301e-05 | Y101: 39168.57499 | Z101: 18.68458284 | AA101: 0.2417320362 | AB101: -0.004885384647 | AC101: 2.658157301e-05
B102: =INDEX($H$2:$H$28,MATCH(C100,$E$2:$E$28,0)) -> 150 | E102: TMP6131LPGMA2 | F102: A2 | G102: 0.1363785944 | H102: 0.003962773584 | I102: -0.001843878189 | J102: 0.0004758238744 | K102: -3.822414867e-05 | M102: 243.5660042 | N102: 0.6124654469 | O102: -0.01627188487 | P102: 0.0002949771047 | Q102: -1.663582632e-06 | S102: 243.5660042 | T102: 0.6124654469 | U102: -0.01627188487 | V102: 0.0002949771047 | W102: -1.663582632e-06 | Y102: 243.5660042 | Z102: 0.6124654469 | AA102: -0.01627188487 | AB102: 0.0002949771047 | AC102: -1.663582632e-06
B103: =INDEX($I$2:$I$28,MATCH(C100,$E$2:$E$28,0)) -> -40 | E103: TMP6131LPGMA3 | F103: A3 | G103: 0.0001914471735 | H103: -5.677898277e-05 | I103: 3.917231809e-05 | J103: -9.747017789e-06 | K103: 7.48386974e-07 | M103: 0.6411418173 | N103: 0.003016492346 | O103: -6.351996347e-05 | P103: 1.019198906e-06 | Q103: -5.404843595e-09 | S103: 0.6411418173 | T103: 0.003016492346 | U103: -6.351996347e-05 | V103: 1.019198906e-06 | W103: -5.404843595e-09 | Y103: 0.6411418173 | Z103: 0.003016492346 | AA103: -6.351996347e-05 | AB103: 1.019198906e-06 | AC103: -5.404843595e-09
E104: TMP6131LPGMA4 | F104: A4 | G104: -4.289384506e-07 | H104: 6.398667367e-07 | I104: -3.670973896e-07 | J104: 8.442218435e-08 | K104: -6.306557479e-09 | M104: 0.001347545884 | N104: -0.0001695647057 | O104: 8.94663555e-06 | P104: -1.732175225e-07 | Q104: 9.942715119e-10 | S104: 0.001347545884 | T104: -0.0001695647057 | U104: 8.94663555e-06 | V104: -1.732175225e-07 | W104: 9.942715119e-10 | Y104: 0.001347545884 | Z104: -0.0001695647057 | AA104: 8.94663555e-06 | AB104: -1.732175225e-07 | AC104: 9.942715119e-10
M105: -7.209626059e-06 | N105: 1.377176093e-06 | O105: -7.034975271e-08 | P105: 1.358043433e-09 | Q105: -7.787279024e-12 | S105: -7.209626059e-06 | T105: 1.377176093e-06 | U105: -7.034975271e-08 | V105: 1.358043433e-09 | W105: -7.787279024e-12 | Y105: -7.209626059e-06 | Z105: 1.377176093e-06 | AA105: -7.034975271e-08 | AB105: 1.358043433e-09 | AC105: -7.787279024e-12
A106: 10 | B106: =INDEX($A$2:$A$28,MATCH(C106,$E$2:$E$28,0)) -> 10 | C106: TMP6131QLPGMQ1 | E106: TMP6131QLPGMQ1A0 | F106: A0 | G106: 8372.361594 | H106: 50.99991333 | I106: -0.3981771331 | J106: -0.3547481892 | K106: 0.02687100662
B107: =INDEX($F$2:$F$28,MATCH(C106,$E$2:$E$28,0)) -> 10000 | E107: TMP6131QLPGMQ1A1 | F107: A1 | G107: 52.49591576 | H107: 0.5233104456 | I107: -0.04799916145 | J107: 0.007067895791 | K107: -0.0004884156417
B108: =INDEX($H$2:$H$28,MATCH(C106,$E$2:$E$28,0)) -> 150 | E108: TMP6131QLPGMQ1A2 | F108: A2 | G108: 0.1363785944 | H108: 0.003962773584 | I108: -0.001843878189 | J108: 0.0004758238744 | K108: -3.822414867e-05
B109: =INDEX($I$2:$I$28,MATCH(C106,$E$2:$E$28,0)) -> -40 | E109: TMP6131QLPGMQ1A3 | F109: A3 | G109: 0.0001914471735 | H109: -5.677898277e-05 | I109: 3.917231809e-05 | J109: -9.747017789e-06 | K109: 7.48386974e-07
E110: TMP6131QLPGMQ1A4 | F110: A4 | G110: -4.289384506e-07 | H110: 6.398667367e-07 | I110: -3.670973896e-07 | J110: 8.442218435e-08 | K110: -6.306557479e-09
A112: 11 | B112: =INDEX($A$2:$A$28,MATCH(C112,$E$2:$E$28,0)) -> 11 | C112: TMP6131ELPGMQ1 | E112: TMP6131ELPGMQ1A0 | F112: A0 | G112: 8376.404779 | H112: 56.06739185 | I112: -6.417104266 | J112: 1.549242068 | K112: -0.1515417069
B113: =INDEX($F$2:$F$28,MATCH(C112,$E$2:$E$28,0)) -> 10000 | E113: TMP6131ELPGMQ1A1 | F113: A1 | G113: 52.17092784 | H113: 0.4894275437 | I113: 0.07812759038 | J113: -0.03579840898 | K113: 0.003651417163
B114: =INDEX($H$2:$H$28,MATCH(C112,$E$2:$E$28,0)) -> 170 | E114: TMP6131ELPGMQ1A2 | F114: A2 | G114: 0.1330306946 | H114: 0.002093889765 | I114: 0.001421501685 | J114: -0.0005733428422 | K114: 5.898469595e-05
B115: =INDEX($I$2:$I$28,MATCH(C112,$E$2:$E$28,0)) -> -40 | E115: TMP6131ELPGMQ1A3 | F115: A3 | G115: 0.0003688431603 | H115: -0.0002363794935 | I115: 0.0001034658997 | J115: -2.183025568e-05 | K115: 1.726109838e-06
E116: TMP6131ELPGMQ1A4 | F116: A4 | G116: -1.213827527e-06 | H116: 1.226402726e-06 | I116: -5.160636412e-07 | J116: 1.071825934e-07 | K116: -8.418626226e-09
A118: 12 | B118: =INDEX($A$2:$A$28,MATCH(C118,$E$2:$E$28,0)) -> 12 | C118: TMP6331DECR | E118: TMP6331DECRA0 | F118: A0 | G118: 82766.37143 | H118: 703.6268374 | I118: -31.81305026 | J118: 6.497997701 | K118: -0.6500434077
B119: =INDEX($F$2:$F$28,MATCH(C118,$E$2:$E$28,0)) -> 100000 | E119: TMP6331DECRA1 | F119: A1 | G119: 522.9922661 | H119: 9.061605557 | I119: -0.8415949775 | J119: 0.0584497465 | K119: 0.0002585042903
B120: =INDEX($H$2:$H$28,MATCH(C118,$E$2:$E$28,0)) -> 125 | E120: TMP6331DECRA2 | F120: A2 | G120: 1.47689113 | H120: -0.08816670542 | I120: 0.06300523004 | J120: -0.01522341495 | K120: 0.001319036365
B121: =INDEX($I$2:$I$28,MATCH(C118,$E$2:$E$28,0)) -> -40 | E121: TMP6331DECRA3 | F121: A3 | G121: 0.0006856410011 | H121: 5.375986463e-05 | I121: -0.000329187831 | J121: 0.0001252537878 | K121: -1.360635164e-05
E122: TMP6331DECRA4 | F122: A4 | G122: -6.312737175e-06 | H122: 1.022547904e-05 | I122: -3.10664069e-06 | J122: 3.782672573e-07 | K122: -1.175673294e-08
A124: 13 | B124: =INDEX($A$2:$A$28,MATCH(C124,$E$2:$E$28,0)) -> 13 | C124: TMP6331QDECRQ1 | E124: TMP6331QDECRQ1A0 | F124: A0 | G124: 82766.37143 | H124: 703.6268374 | I124: -31.81305026 | J124: 6.497997701 | K124: -0.6500434077
B125: =INDEX($F$2:$F$28,MATCH(C124,$E$2:$E$28,0)) -> 100000 | E125: TMP6331QDECRQ1A1 | F125: A1 | G125: 522.9922661 | H125: 9.061605557 | I125: -0.8415949775 | J125: 0.0584497465 | K125: 0.0002585042903
B126: =INDEX($H$2:$H$28,MATCH(C124,$E$2:$E$28,0)) -> 125 | E126: TMP6331QDECRQ1A2 | F126: A2 | G126: 1.47689113 | H126: -0.08816670542 | I126: 0.06300523004 | J126: -0.01522341495 | K126: 0.001319036365
B127: =INDEX($I$2:$I$28,MATCH(C124,$E$2:$E$28,0)) -> -40 | E127: TMP6331QDECRQ1A3 | F127: A3 | G127: 0.0006856410011 | H127: 5.375986463e-05 | I127: -0.000329187831 | J127: 0.0001252537878 | K127: -1.360635164e-05
E128: TMP6331QDECRQ1A4 | F128: A4 | G128: -6.312737175e-06 | H128: 1.022547904e-05 | I128: -3.10664069e-06 | J128: 3.782672573e-07 | K128: -1.175673294e-08
A130: 14 | B130: =INDEX($A$2:$A$28,MATCH(C130,$E$2:$E$28,0)) -> 14 | C130: TMP6331DECT | E130: TMP6331DECTA0 | F130: A0 | G130: 82766.37143 | H130: 703.6268374 | I130: -31.81305026 | J130: 6.497997701 | K130: -0.6500434077
B131: =INDEX($F$2:$F$28,MATCH(C130,$E$2:$E$28,0)) -> 100000 | E131: TMP6331DECTA1 | F131: A1 | G131: 522.9922661 | H131: 9.061605557 | I131: -0.8415949775 | J131: 0.0584497465 | K131: 0.0002585042903
B132: =INDEX($H$2:$H$28,MATCH(C130,$E$2:$E$28,0)) -> 125 | E132: TMP6331DECTA2 | F132: A2 | G132: 1.47689113 | H132: -0.08816670542 | I132: 0.06300523004 | J132: -0.01522341495 | K132: 0.001319036365
B133: =INDEX($I$2:$I$28,MATCH(C130,$E$2:$E$28,0)) -> -40 | E133: TMP6331DECTA3 | F133: A3 | G133: 0.0006856410011 | H133: 5.375986463e-05 | I133: -0.000329187831 | J133: 0.0001252537878 | K133: -1.360635164e-05
E134: TMP6331DECTA4 | F134: A4 | G134: -6.312737175e-06 | H134: 1.022547904e-05 | I134: -3.10664069e-06 | J134: 3.782672573e-07 | K134: -1.175673294e-08
A136: 15 | B136: =INDEX($A$2:$A$28,MATCH(C136,$E$2:$E$28,0)) -> 15 | C136: TMP6331QDECTQ1 | E136: TMP6331QDECTQ1A0 | F136: A0 | G136: 82766.37143 | H136: 703.6268374 | I136: -31.81305026 | J136: 6.497997701 | K136: -0.6500434077
B137: =INDEX($F$2:$F$28,MATCH(C136,$E$2:$E$28,0)) -> 100000 | E137: TMP6331QDECTQ1A1 | F137: A1 | G137: 522.9922661 | H137: 9.061605557 | I137: -0.8415949775 | J137: 0.0584497465 | K137: 0.0002585042903
B138: =INDEX($H$2:$H$28,MATCH(C136,$E$2:$E$28,0)) -> 125 | E138: TMP6331QDECTQ1A2 | F138: A2 | G138: 1.47689113 | H138: -0.08816670542 | I138: 0.06300523004 | J138: -0.01522341495 | K138: 0.001319036365
B139: =INDEX($I$2:$I$28,MATCH(C136,$E$2:$E$28,0)) -> -40 | E139: TMP6331QDECTQ1A3 | F139: A3 | G139: 0.0006856410011 | H139: 5.375986463e-05 | I139: -0.000329187831 | J139: 0.0001252537878 | K139: -1.360635164e-05
E140: TMP6331QDECTQ1A4 | F140: A4 | G140: -6.312737175e-06 | H140: 1.022547904e-05 | I140: -3.10664069e-06 | J140: 3.782672573e-07 | K140: -1.175673294e-08
A142: 16 | B142: =INDEX($A$2:$A$28,MATCH(C142,$E$2:$E$28,0)) -> 16 | C142: TMP6331DYAR | E142: TMP6331DYARA0 | F142: A0 | G142: 82978.37705 | H142: 646.1343239 | I142: 17.23151 | J142: -7.390340078 | K142: 0.4842325793
B143: =INDEX($F$2:$F$28,MATCH(C142,$E$2:$E$28,0)) -> 100000 | E143: TMP6331DYARA1 | F143: A1 | G143: 510.9247601 | H143: 18.43522719 | I143: -5.819255079 | J143: 1.149659004 | K143: -0.08578707688
B144: =INDEX($H$2:$H$28,MATCH(C142,$E$2:$E$28,0)) -> 150 | E144: TMP6331DYARA2 | F144: A2 | G144: 1.49471949 | H144: -0.1234014316 | I144: 0.07849769251 | J144: -0.01777584221 | K144: 0.001413227399
B145: =INDEX($I$2:$I$28,MATCH(C142,$E$2:$E$28,0)) -> -40 | E145: TMP6331DYARA3 | F145: A3 | G145: 0.005985091005 | H145: -0.007763034924 | I145: 0.003843701357 | J145: -0.0008108418054 | K145: 6.159436386e-05
E146: TMP6331DYARA4 | F146: A4 | G146: -4.319879575e-05 | H146: 5.929986112e-05 | I146: -2.925914361e-05 | J146: 6.192753758e-06 | K146: -4.723350008e-07
A148: 17 | B148: =INDEX($A$2:$A$28,MATCH(C148,$E$2:$E$28,0)) -> 17 | C148: TMP6331DYAT | E148: TMP6331DYATA0 | F148: A0 | G148: 82978.37705 | H148: 646.1343239 | I148: 17.23151 | J148: -7.390340078 | K148: 0.4842325793
B149: =INDEX($F$2:$F$28,MATCH(C148,$E$2:$E$28,0)) -> 100000 | E149: TMP6331DYATA1 | F149: A1 | G149: 510.9247601 | H149: 18.43522719 | I149: -5.819255079 | J149: 1.149659004 | K149: -0.08578707688
B150: =INDEX($H$2:$H$28,MATCH(C148,$E$2:$E$28,0)) -> 150 | E150: TMP6331DYATA2 | F150: A2 | G150: 1.49471949 | H150: -0.1234014316 | I150: 0.07849769251 | J150: -0.01777584221 | K150: 0.001413227399
B151: =INDEX($I$2:$I$28,MATCH(C148,$E$2:$E$28,0)) -> -40 | E151: TMP6331DYATA3 | F151: A3 | G151: 0.005985091005 | H151: -0.007763034924 | I151: 0.003843701357 | J151: -0.0008108418054 | K151: 6.159436386e-05
E152: TMP6331DYATA4 | F152: A4 | G152: -4.319879575e-05 | H152: 5.929986112e-05 | I152: -2.925914361e-05 | J152: 6.192753758e-06 | K152: -4.723350008e-07
A154: 18 | B154: =INDEX($A$2:$A$28,MATCH(C154,$E$2:$E$28,0)) -> 18 | C154: TMP6331QDYARQ1 | E154: TMP6331QDYARQ1A0 | F154: A0 | G154: 82978.37705 | H154: 646.1343239 | I154: 17.23151 | J154: -7.390340078 | K154: 0.4842325793
B155: =INDEX($F$2:$F$28,MATCH(C154,$E$2:$E$28,0)) -> 100000 | E155: TMP6331QDYARQ1A1 | F155: A1 | G155: 510.9247601 | H155: 18.43522719 | I155: -5.819255079 | J155: 1.149659004 | K155: -0.08578707688
B156: =INDEX($H$2:$H$28,MATCH(C154,$E$2:$E$28,0)) -> 150 | E156: TMP6331QDYARQ1A2 | F156: A2 | G156: 1.49471949 | H156: -0.1234014316 | I156: 0.07849769251 | J156: -0.01777584221 | K156: 0.001413227399
B157: =INDEX($I$2:$I$28,MATCH(C154,$E$2:$E$28,0)) -> -40 | E157: TMP6331QDYARQ1A3 | F157: A3 | G157: 0.005985091005 | H157: -0.007763034924 | I157: 0.003843701357 | J157: -0.0008108418054 | K157: 6.159436386e-05
E158: TMP6331QDYARQ1A4 | F158: A4 | G158: -4.319879575e-05 | H158: 5.929986112e-05 | I158: -2.925914361e-05 | J158: 6.192753758e-06 | K158: -4.723350008e-07
A160: 19 | B160: =INDEX($A$2:$A$28,MATCH(C160,$E$2:$E$28,0)) -> 19 | C160: TMP6331QDYATQ1 | E160: TMP6331QDYATQ1A0 | F160: A0 | G160: 82978.37705 | H160: 646.1343239 | I160: 17.23151 | J160: -7.390340078 | K160: 0.4842325793
B161: =INDEX($F$2:$F$28,MATCH(C160,$E$2:$E$28,0)) -> 100000 | E161: TMP6331QDYATQ1A1 | F161: A1 | G161: 510.9247601 | H161: 18.43522719 | I161: -5.819255079 | J161: 1.149659004 | K161: -0.08578707688
B162: =INDEX($H$2:$H$28,MATCH(C160,$E$2:$E$28,0)) -> 150 | E162: TMP6331QDYATQ1A2 | F162: A2 | G162: 1.49471949 | H162: -0.1234014316 | I162: 0.07849769251 | J162: -0.01777584221 | K162: 0.001413227399
B163: =INDEX($I$2:$I$28,MATCH(C160,$E$2:$E$28,0)) -> -40 | E163: TMP6331QDYATQ1A3 | F163: A3 | G163: 0.005985091005 | H163: -0.007763034924 | I163: 0.003843701357 | J163: -0.0008108418054 | K163: 6.159436386e-05
E164: TMP6331QDYATQ1A4 | F164: A4 | G164: -4.319879575e-05 | H164: 5.929986112e-05 | I164: -2.925914361e-05 | J164: 6.192753758e-06 | K164: -4.723350008e-07
A166: 20 | B166: =INDEX($A$2:$A$28,MATCH(C166,$E$2:$E$28,0)) -> 20 | C166: TMP6431DECR | E166: TMP6431DECRA0 | F166: A0 | G166: 39081.32107 | H166: 217.2204385 | I166: 35.36650305 | J166: -9.698243309 | K166: 0.808169247
B167: =INDEX($F$2:$F$28,MATCH(C166,$E$2:$E$28,0)) -> 47000 | E167: TMP6431DECRA1 | F167: A1 | G167: 246.4370929 | H167: 4.781199625 | I167: -1.165300911 | J167: 0.247050022 | K167: -0.019717685
B168: =INDEX($H$2:$H$28,MATCH(C166,$E$2:$E$28,0)) -> 125 | E168: TMP6431DECRA2 | F168: A2 | G168: 0.665356692 | H168: 0.055007749 | I168: -0.027957012 | J168: 0.006882431 | K168: -0.000588874
B169: =INDEX($I$2:$I$28,MATCH(C166,$E$2:$E$28,0)) -> -40 | E169: TMP6431DECRA3 | F169: A3 | G169: 0.0003325 | H169: -0.000281179 | I169: 6.37386e-05 | J169: -5.55424e-07 | K169: -8.02056e-07
E170: TMP6431DECRA4 | F170: A4 | G170: -5.96919e-07 | H170: 2.22867e-06 | I170: -4.40491e-07 | J170: -5.28157e-09 | K170: 6.58266e-09
A172: 21 | B172: =INDEX($A$2:$A$28,MATCH(C172,$E$2:$E$28,0)) -> 21 | C172: TMP6431DECT | E172: TMP6431DECTA0 | F172: A0 | G172: 39081.32107 | H172: 217.2204385 | I172: 35.36650305 | J172: -9.698243309 | K172: 0.808169247
B173: =INDEX($F$2:$F$28,MATCH(C172,$E$2:$E$28,0)) -> 47000 | E173: TMP6431DECTA1 | F173: A1 | G173: 246.4370929 | H173: 4.781199625 | I173: -1.165300911 | J173: 0.247050022 | K173: -0.019717685
B174: =INDEX($H$2:$H$28,MATCH(C172,$E$2:$E$28,0)) -> 125 | E174: TMP6431DECTA2 | F174: A2 | G174: 0.665356692 | H174: 0.055007749 | I174: -0.027957012 | J174: 0.006882431 | K174: -0.000588874
B175: =INDEX($I$2:$I$28,MATCH(C172,$E$2:$E$28,0)) -> -40 | E175: TMP6431DECTA3 | F175: A3 | G175: 0.0003325 | H175: -0.000281179 | I175: 6.37386e-05 | J175: -5.55424e-07 | K175: -8.02056e-07
E176: TMP6431DECTA4 | F176: A4 | G176: -5.96919e-07 | H176: 2.22867e-06 | I176: -4.40491e-07 | J176: -5.28157e-09 | K176: 6.58266e-09
A178: 22 | B178: =INDEX($A$2:$A$28,MATCH(C178,$E$2:$E$28,0)) -> 22 | C178: TMP6431DYAR | E178: TMP6431DYARA0 | F178: A0 | G178: 39168.57499 | H178: 18.68458284 | I178: 0.2417320362 | J178: -0.004885384647 | K178: 2.658157301e-05
B179: =INDEX($F$2:$F$28,MATCH(C178,$E$2:$E$28,0)) -> 47000 | E179: TMP6431DYARA1 | F179: A1 | G179: 243.5660042 | H179: 0.6124654469 | I179: -0.01627188487 | J179: 0.0002949771047 | K179: -1.663582632e-06
B180: =INDEX($H$2:$H$28,MATCH(C178,$E$2:$E$28,0)) -> 150 | E180: TMP6431DYARA2 | F180: A2 | G180: 0.6411418173 | H180: 0.003016492346 | I180: -6.351996347e-05 | J180: 1.019198906e-06 | K180: -5.404843595e-09
B181: =INDEX($I$2:$I$28,MATCH(C178,$E$2:$E$28,0)) -> -40 | E181: TMP6431DYARA3 | F181: A3 | G181: 0.001347545884 | H181: -0.0001695647057 | I181: 8.94663555e-06 | J181: -1.732175225e-07 | K181: 9.942715119e-10
E182: TMP6431DYARA4 | F182: A4 | G182: -7.209626059e-06 | H182: 1.377176093e-06 | I182: -7.034975271e-08 | J182: 1.358043433e-09 | K182: -7.787279024e-12
A184: 23 | B184: =INDEX($A$2:$A$28,MATCH(C184,$E$2:$E$28,0)) -> 23 | C184: TMP6431DYAT | E184: TMP6431DYATA0 | F184: A0 | G184: 39168.57499 | H184: 18.68458284 | I184: 0.2417320362 | J184: -0.004885384647 | K184: 2.658157301e-05
B185: =INDEX($F$2:$F$28,MATCH(C184,$E$2:$E$28,0)) -> 47000 | E185: TMP6431DYATA1 | F185: A1 | G185: 243.5660042 | H185: 0.6124654469 | I185: -0.01627188487 | J185: 0.0002949771047 | K185: -1.663582632e-06
B186: =INDEX($H$2:$H$28,MATCH(C184,$E$2:$E$28,0)) -> 150 | E186: TMP6431DYATA2 | F186: A2 | G186: 0.6411418173 | H186: 0.003016492346 | I186: -6.351996347e-05 | J186: 1.019198906e-06 | K186: -5.404843595e-09
B187: =INDEX($I$2:$I$28,MATCH(C184,$E$2:$E$28,0)) -> -40 | E187: TMP6431DYATA3 | F187: A3 | G187: 0.001347545884 | H187: -0.0001695647057 | I187: 8.94663555e-06 | J187: -1.732175225e-07 | K187: 9.942715119e-10
E188: TMP6431DYATA4 | F188: A4 | G188: -7.209626059e-06 | H188: 1.377176093e-06 | I188: -7.034975271e-08 | J188: 1.358043433e-09 | K188: -7.787279024e-12
A190: 24 | B190: =INDEX($A$2:$A$28,MATCH(C190,$E$2:$E$28,0)) -> 24 | C190: TMP6431QDYARQ1 | E190: TMP6431QDYARQ1A0 | F190: A0 | G190: 39168.57499 | H190: 18.68458284 | I190: 0.2417320362 | J190: -0.004885384647 | K190: 2.658157301e-05
B191: =INDEX($F$2:$F$28,MATCH(C190,$E$2:$E$28,0)) -> 47000 | E191: TMP6431QDYARQ1A1 | F191: A1 | G191: 243.5660042 | H191: 0.6124654469 | I191: -0.01627188487 | J191: 0.0002949771047 | K191: -1.663582632e-06
B192: =INDEX($H$2:$H$28,MATCH(C190,$E$2:$E$28,0)) -> 150 | E192: TMP6431QDYARQ1A2 | F192: A2 | G192: 0.6411418173 | H192: 0.003016492346 | I192: -6.351996347e-05 | J192: 1.019198906e-06 | K192: -5.404843595e-09
B193: =INDEX($I$2:$I$28,MATCH(C190,$E$2:$E$28,0)) -> -40 | E193: TMP6431QDYARQ1A3 | F193: A3 | G193: 0.001347545884 | H193: -0.0001695647057 | I193: 8.94663555e-06 | J193: -1.732175225e-07 | K193: 9.942715119e-10
E194: TMP6431QDYARQ1A4 | F194: A4 | G194: -7.209626059e-06 | H194: 1.377176093e-06 | I194: -7.034975271e-08 | J194: 1.358043433e-09 | K194: -7.787279024e-12
A196: 25 | B196: =INDEX($A$2:$A$28,MATCH(C196,$E$2:$E$28,0)) -> 25 | C196: TMP6431QDYATQ1 | E196: TMP6431QDYATQ1A0 | F196: A0 | G196: 39168.57499 | H196: 18.68458284 | I196: 0.2417320362 | J196: -0.004885384647 | K196: 2.658157301e-05
B197: =INDEX($F$2:$F$28,MATCH(C196,$E$2:$E$28,0)) -> 47000 | E197: TMP6431QDYATQ1A1 | F197: A1 | G197: 243.5660042 | H197: 0.6124654469 | I197: -0.01627188487 | J197: 0.0002949771047 | K197: -1.663582632e-06
B198: =INDEX($H$2:$H$28,MATCH(C196,$E$2:$E$28,0)) -> 150 | E198: TMP6431QDYATQ1A2 | F198: A2 | G198: 0.6411418173 | H198: 0.003016492346 | I198: -6.351996347e-05 | J198: 1.019198906e-06 | K198: -5.404843595e-09
B199: =INDEX($I$2:$I$28,MATCH(C196,$E$2:$E$28,0)) -> -40 | E199: TMP6431QDYATQ1A3 | F199: A3 | G199: 0.001347545884 | H199: -0.0001695647057 | I199: 8.94663555e-06 | J199: -1.732175225e-07 | K199: 9.942715119e-10
E200: TMP6431QDYATQ1A4 | F200: A4 | G200: -7.209626059e-06 | H200: 1.377176093e-06 | I200: -7.034975271e-08 | J200: 1.358043433e-09 | K200: -7.787279024e-12
A202: 26 | B202: =INDEX($A$2:$A$28,MATCH(C202,$E$2:$E$28,0)) -> 26 | C202: TMP6431QDECRQ1 | E202: TMP6431QDECRQ1A0 | F202: A0 | G202: 39081.32107 | H202: 217.2204385 | I202: 35.36650305 | J202: -9.698243309 | K202: 0.808169247
B203: =INDEX($F$2:$F$28,MATCH(C202,$E$2:$E$28,0)) -> 47000 | E203: TMP6431QDECRQ1A1 | F203: A1 | G203: 246.4370929 | H203: 4.781199625 | I203: -1.165300911 | J203: 0.247050022 | K203: -0.019717685
B204: =INDEX($H$2:$H$28,MATCH(C202,$E$2:$E$28,0)) -> 125 | E204: TMP6431QDECRQ1A2 | F204: A2 | G204: 0.665356692 | H204: 0.055007749 | I204: -0.027957012 | J204: 0.006882431 | K204: -0.000588874
B205: =INDEX($I$2:$I$28,MATCH(C202,$E$2:$E$28,0)) -> -40 | E205: TMP6431QDECRQ1A3 | F205: A3 | G205: 0.0003325 | H205: -0.000281179 | I205: 6.37386e-05 | J205: -5.55424e-07 | K205: -8.02056e-07
E206: TMP6431QDECRQ1A4 | F206: A4 | G206: -5.96919e-07 | H206: 2.22867e-06 | I206: -4.40491e-07 | J206: -5.28157e-09 | K206: 6.58266e-09
A208: 27 | B208: =INDEX($A$2:$A$28,MATCH(C208,$E$2:$E$28,0)) -> 27 | C208: TMP6431QDECTQ1 | E208: TMP6431QDECTQ1A0 | F208: A0 | G208: 39081.32107 | H208: 217.2204385 | I208: 35.36650305 | J208: -9.698243309 | K208: 0.808169247 | M208: To add new coefficients for new part numbers insert before this line
B209: =INDEX($F$2:$F$28,MATCH(C208,$E$2:$E$28,0)) -> 47000 | E209: TMP6431QDECTQ1A1 | F209: A1 | G209: 246.4370929 | H209: 4.781199625 | I209: -1.165300911 | J209: 0.247050022 | K209: -0.019717685 | M209: Adding before this line will insert the new data and all sheet will be
B210: =INDEX($H$2:$H$28,MATCH(C208,$E$2:$E$28,0)) -> 125 | E210: TMP6431QDECTQ1A2 | F210: A2 | G210: 0.665356692 | H210: 0.055007749 | I210: -0.027957012 | J210: 0.006882431 | K210: -0.000588874 | M210: updated automatically. Adding after this line will mean that you will have
B211: =INDEX($I$2:$I$28,MATCH(C208,$E$2:$E$28,0)) -> -40 | E211: TMP6431QDECTQ1A3 | F211: A3 | G211: 0.0003325 | H211: -0.000281179 | I211: 6.37386e-05 | J211: -5.55424e-07 | K211: -8.02056e-07 | M211: manually go to every sheet and update the new table ranges
E212: TMP6431QDECTQ1A4 | F212: A4 | G212: -5.96919e-07 | H212: 2.22867e-06 | I212: -4.40491e-07 | J212: -5.28157e-09 | K212: 6.58266e-09

Sheet Device Resistance Tables
A5: Return to Menu
A13: TI Device | B13: =Main!$N$22 -> TMP6131DECR
A14: VBias | B14: =Main!$N$25 -> 3.3 | C14: Vdc
A15: RBias | B15: =Main!$N$31 -> 10000 | C15: Ohms
A17: 1 °C Steps | B17: Example Code | M17: 5 °C Steps | N17: Example Code
E18: hide column
A19: Line # | B19: Temperature (°C) | C19: Min Resistance (Ω) | D19: Typical Resistance (Ω) | E19: Calculated Resistance (Ω) | F19: Max Resistance (Ω) | J19: Regression | K19: Regression Error (°C) | M19: Line # | N19: Temperature (°C) | O19: Min Resistance (Ω) | P19: Typical Resistance (Ω) | Q19: Max Resistance (Ω)
A20: 1 | B20: -40 | C20: =IFERROR(D20*0.985,NA()) -> 6445.012477 | D20: =IF(B20 <= VLOOKUP(Main!$N$22,Coefficients!$E$2:$H$28,4,FALSE),E20,NA()) -> 6543.159875 | E20: ='4th Order Polynomial TMP vs Res'!$B$41+'4th Order Polynomial TMP vs Res'!$C$41*POWER(B20,1)+'4th Order Polynomial TMP vs Res'!$D$41*POWER(B20,2)+'4th Order Polynomial TMP vs Res'!$E$41*POWER(B20,3)+'4th Order Polynomial TMP vs Res'!$F$41*POWER(B20,4) -> 6543.159875 | F20: =IFERROR(D20*1.015,NA()) -> 6641.307273 | J20: ='4th Order Polynomial TMP vs Res'!$I$41*E20^4 + '4th Order Polynomial TMP vs Res'!$J$41*E20^3 + '4th Order Polynomial TMP vs Res'!$K$41*E20^2 + '4th Order Polynomial TMP vs Res'!$L$41*E20 + '4th Order Polynomial TMP vs Res'!$M$41 -> -39.82998227 | K20: =B20-J20 -> -0.1700177251 | M20: 1 | N20: -40 | O20: =IFERROR(P20*0.985,NA()) -> 6445.012477 | P20: =IFERROR(OFFSET($D$20,(ROW(D1)-1)*5,0),NA()) -> 6543.159875 | Q20: =IFERROR(P20*1.015,NA()) -> 6641.307273
A21: 2 | B21: =B20+1 -> -39 | C21: =IFERROR(D21*0.985,NA()) -> 6487.406484 | D21: =IF(B21 <= VLOOKUP(Main!$N$22,Coefficients!$E$2:$H$28,4,FALSE),E21,NA()) -> 6586.199476 | E21: ='4th Order Polynomial TMP vs Res'!$B$41+'4th Order Polynomial TMP vs Res'!$C$41*POWER(B21,1)+'4th Order Polynomial TMP vs Res'!$D$41*POWER(B21,2)+'4th Order Polynomial TMP vs Res'!$E$41*POWER(B21,3)+'4th Order Polynomial TMP vs Res'!$F$41*POWER(B21,4) -> 6586.199476 | F21: =IFERROR(D21*1.015,NA()) -> 6684.992469 | J21: ='4th Order Polynomial TMP vs Res'!$I$41*E21^4 + '4th Order Polynomial TMP vs Res'!$J$41*E21^3 + '4th Order Polynomial TMP vs Res'!$K$41*E21^2 + '4th Order Polynomial TMP vs Res'!$L$41*E21 + '4th Order Polynomial TMP vs Res'!$M$41 -> -38.85468567 | K21: -0.1453143293 | M21: 2 | N21: -35 | O21: =IFERROR(P21*0.985,NA()) -> 6659.866126 | P21: 6761.285407 | Q21: =IFERROR(P21*1.015,NA()) -> 6862.704688
A22: 3 | B22: =B21+1 -> -38 | C22: 6530.08873 | D22: =IF(B22 <= VLOOKUP(Main!$N$22,Coefficients!$E$2:$H$28,4,FALSE),E22,NA()) -> 6629.531706 | E22: ='4th Order Polynomial TMP vs Res'!$B$41+'4th Order Polynomial TMP vs Res'!$C$41*POWER(B22,1)+'4th Order Polynomial TMP vs Res'!$D$41*POWER(B22,2)+'4th Order Polynomial TMP vs Res'!$E$41*POWER(B22,3)+'4th Order Polynomial TMP vs Res'!$F$41*POWER(B22,4) -> 6629.531706 | F22: 6728.974681 | J22: ='4th Order Polynomial TMP vs Res'!$I$41*E22^4 + '4th Order Polynomial TMP vs Res'!$J$41*E22^3 + '4th Order Polynomial TMP vs Res'!$K$41*E22^2 + '4th Order Polynomial TMP vs Res'!$L$41*E22 + '4th Order Polynomial TMP vs Res'!$M$41 -> -37.87772319 | K22: -0.1222768059 | M22: 3 | N22: -30 | O22: 6881.938918 | P22: 6986.740019 | Q22: 7091.541119
A23: 4 | B23: -37 | C23: 6573.059334 | D23: =IF(B23 <= VLOOKUP(Main!$N$22,Coefficients!$E$2:$H$28,4,FALSE),E23,NA()) -> 6673.156684 | E23: ='4th Order Polynomial TMP vs Res'!$B$41+'4th Order Polynomial TMP vs Res'!$C$41*POWER(B23,1)+'4th Order Polynomial TMP vs Res'!$D$41*POWER(B23,2)+'4th Order Polynomial TMP vs Res'!$E$41*POWER(B23,3)+'4th Order Polynomial TMP vs Res'!$F$41*POWER(B23,4) -> 6673.156684 | F23: 6773.254034 | J23: ='4th Order Polynomial TMP vs Res'!$I$41*E23^4 + '4th Order Polynomial TMP vs Res'!$J$41*E23^3 + '4th Order Polynomial TMP vs Res'!$K$41*E23^2 + '4th Order Polynomial TMP vs Res'!$L$41*E23 + '4th Order Polynomial TMP vs Res'!$M$41 -> -36.89915373 | K23: -0.1008462672 | M23: 4 | N23: -25 | O23: 7111.250324 | P23: 7219.543476 | Q23: 7327.836628
A24: 5 | B24: -36 | C24: 6616.318422 | D24: =IF(B24 <= VLOOKUP(Main!$N$22,Coefficients!$E$2:$H$28,4,FALSE),E24,NA()) -> 6717.07454 | E24: ='4th Order Polynomial TMP vs Res'!$B$41+'4th Order Polynomial TMP vs Res'!$C$41*POWER(B24,1)+'4th Order Polynomial TMP vs Res'!$D$41*POWER(B24,2)+'4th Order Polynomial TMP vs Res'!$E$41*POWER(B24,3)+'4th Order Polynomial TMP vs Res'!$F$41*POWER(B24,4) -> 6717.07454 | F24: 6817.830658 | J24: ='4th Order Polynomial TMP vs Res'!$I$41*E24^4 + '4th Order Polynomial TMP vs Res'!$J$41*E24^3 + '4th Order Polynomial TMP vs Res'!$K$41*E24^2 + '4th Order Polynomial TMP vs Res'!$L$41*E24 + '4th Order Polynomial TMP vs Res'!$M$41 -> -35.91903539 | K24: -0.08096461454 | M24: 5 | N24: -20 | O24: 7347.823534 | P24: 7459.719324 | Q24: 7571.615113
A25: 6 | B25: -35 | C25: 6659.866126 | D25: =IF(B25 <= VLOOKUP(Main!$N$22,Coefficients!$E$2:$H$28,4,FALSE),E25,NA()) -> 6761.285407 | E25: ='4th Order Polynomial TMP vs Res'!$B$41+'4th Order Polynomial TMP vs Res'!$C$41*POWER(B25,1)+'4th Order Polynomial TMP vs Res'!$D$41*POWER(B25,2)+'4th Order Polynomial TMP vs Res'!$E$41*POWER(B25,3)+'4th Order Polynomial TMP vs Res'!$F$41*POWER(B25,4) -> 6761.285407 | F25: 6862.704688 | J25: ='4th Order Polynomial TMP vs Res'!$I$41*E25^4 + '4th Order Polynomial TMP vs Res'!$J$41*E25^3 + '4th Order Polynomial TMP vs Res'!$K$41*E25^2 + '4th Order Polynomial TMP vs Res'!$L$41*E25 + '4th Order Polynomial TMP vs Res'!$M$41 -> -34.93742545 | K25: -0.06257454871 | M25: 6 | N25: -15 | O25: 7591.685463 | P25: 7707.294886 | Q25: 7822.90431
A26: 7 | B26: -34 | C26: 6703.702583 | D26: =IF(B26 <= VLOOKUP(Main!$N$22,Coefficients!$E$2:$H$28,4,FALSE),E26,NA()) -> 6805.789425 | E26: ='4th Order Polynomial TMP vs Res'!$B$41+'4th Order Polynomial TMP vs Res'!$C$41*POWER(B26,1)+'4th Order Polynomial TMP vs Res'!$D$41*POWER(B26,2)+'4th Order Polynomial TMP vs Res'!$E$41*POWER(B26,3)+'4th Order Polynomial TMP vs Res'!$F$41*POWER(B26,4) -> 6805.789425 | F26: 6907.876266 | J26: ='4th Order Polynomial TMP vs Res'!$I$41*E26^4 + '4th Order Polynomial TMP vs Res'!$J$41*E26^3 + '4th Order Polynomial TMP vs Res'!$K$41*E26^2 + '4th Order Polynomial TMP vs Res'!$L$41*E26 + '4th Order Polynomial TMP vs Res'!$M$41 -> -33.95438042 | K26: -0.04561957945 | M26: 7 | N26: -10 | O26: 7842.866751 | P26: 7962.30127 | Q26: 8081.735789
A27: 8 | B27: -33 | C27: 6747.827939 | D27: =IF(B27 <= VLOOKUP(Main!$N$22,Coefficients!$E$2:$H$28,4,FALSE),E27,NA()) -> 6850.58674 | E27: ='4th Order Polynomial TMP vs Res'!$B$41+'4th Order Polynomial TMP vs Res'!$C$41*POWER(B27,1)+'4th Order Polynomial TMP vs Res'!$D$41*POWER(B27,2)+'4th Order Polynomial TMP vs Res'!$E$41*POWER(B27,3)+'4th Order Polynomial TMP vs Res'!$F$41*POWER(B27,4) -> 6850.58674 | F27: 6953.345541 | J27: ='4th Order Polynomial TMP vs Res'!$I$41*E27^4 + '4th Order Polynomial TMP vs Res'!$J$41*E27^3 + '4th Order Polynomial TMP vs Res'!$K$41*E27^2 + '4th Order Polynomial TMP vs Res'!$L$41*E27 + '4th Order Polynomial TMP vs Res'!$M$41 -> -32.96995596 | K27: -0.03004403526 | M27: 8 | N27: -5 | O27: 8101.401757 | P27: 8224.773358 | Q27: 8348.144958
A28: 9 | B28: -32 | C28: 6792.242341 | D28: =IF(B28 <= VLOOKUP(Main!$N$22,Coefficients!$E$2:$H$28,4,FALSE),E28,NA()) -> 6895.677504 | E28: ='4th Order Polynomial TMP vs Res'!$B$41+'4th Order Polynomial TMP vs Res'!$C$41*POWER(B28,1)+'4th Order Polynomial TMP vs Res'!$D$41*POWER(B28,2)+'4th Order Polynomial TMP vs Res'!$E$41*POWER(B28,3)+'4th Order Polynomial TMP vs Res'!$F$41*POWER(B28,4) -> 6895.677504 | F28: 6999.112667 | J28: ='4th Order Polynomial TMP vs Res'!$I$41*E28^4 + '4th Order Polynomial TMP vs Res'!$J$41*E28^3 + '4th Order Polynomial TMP vs Res'!$K$41*E28^2 + '4th Order Polynomial TMP vs Res'!$L$41*E28 + '4th Order Polynomial TMP vs Res'!$M$41 -> -31.98420693 | K28: -0.0157930728 | M28: 9 | N28: 0 | O28: =IFERROR(P28*0.99,NA()) -> 8409.802317 | P28: 8494.749815 | Q28: =IFERROR(P28*1.01,NA()) -> 8579.697313
A29: 10 | B29: -31 | C29: 6836.945947 | D29: =IF(B29 <= VLOOKUP(Main!$N$22,Coefficients!$E$2:$H$28,4,FALSE),E29,NA()) -> 6941.061876 | E29: ='4th Order Polynomial TMP vs Res'!$B$41+'4th Order Polynomial TMP vs Res'!$C$41*POWER(B29,1)+'4th Order Polynomial TMP vs Res'!$D$41*POWER(B29,2)+'4th Order Polynomial TMP vs Res'!$E$41*POWER(B29,3)+'4th Order Polynomial TMP vs Res'!$F$41*POWER(B29,4) -> 6941.061876 | F29: 7045.177804 | J29: ='4th Order Polynomial TMP vs Res'!$I$41*E29^4 + '4th Order Polynomial TMP vs Res'!$J$41*E29^3 + '4th Order Polynomial TMP vs Res'!$K$41*E29^2 + '4th Order Polynomial TMP vs Res'!$L$41*E29 + '4th Order Polynomial TMP vs Res'!$M$41 -> -30.99718731 | K29: -0.002812686154 | M29: 10 | N29: 5 | O29: =IFERROR(P29*0.99,NA()) -> 8684.550356 | P29: 8772.273087 | Q29: 8859.995818
A30: 11 | B30: -30 | C30: 6881.938918 | D30: =IF(B30 <= VLOOKUP(Main!$N$22,Coefficients!$E$2:$H$28,4,FALSE),E30,NA()) -> 6986.740019 | E30: ='4th Order Polynomial TMP vs Res'!$B$41+'4th Order Polynomial TMP vs Res'!$C$41*POWER(B30,1)+'4th Order Polynomial TMP vs Res'!$D$41*POWER(B30,2)+'4th Order Polynomial TMP vs Res'!$E$41*POWER(B30,3)+'4th Order Polynomial TMP vs Res'!$F$41*POWER(B30,4) -> 6986.740019 | F30: 7091.541119 | J30: ='4th Order Polynomial TMP vs Res'!$I$41*E30^4 + '4th Order Polynomial TMP vs Res'!$J$41*E30^3 + '4th Order Polynomial TMP vs Res'!$K$41*E30^2 + '4th Order Polynomial TMP vs Res'!$L$41*E30 + '4th Order Polynomial TMP vs Res'!$M$41 -> -30.00895028 | K30: 0.008950284111 | M30: 11 | N30: 10 | O30: 8966.815503 | P30: 9057.389397 | Q30: 9147.963291
A31: 12 | B31: -29 | C31: 6927.221422 | D31: =IF(B31 <= VLOOKUP(Main!$N$22,Coefficients!$E$2:$H$28,4,FALSE),E31,NA()) -> 7032.712103 | E31: ='4th Order Polynomial TMP vs Res'!$B$41+'4th Order Polynomial TMP vs Res'!$C$41*POWER(B31,1)+'4th Order Polynomial TMP vs Res'!$D$41*POWER(B31,2)+'4th Order Polynomial TMP vs Res'!$E$41*POWER(B31,3)+'4th Order Polynomial TMP vs Res'!$F$41*POWER(B31,4) -> 7032.712103 | F31: 7138.202785 | J31: ='4th Order Polynomial TMP vs Res'!$I$41*E31^4 + '4th Order Polynomial TMP vs Res'!$J$41*E31^3 + '4th Order Polynomial TMP vs Res'!$K$41*E31^2 + '4th Order Polynomial TMP vs Res'!$L$41*E31 + '4th Order Polynomial TMP vs Res'!$M$41 -> -29.01954814 | K31: 0.01954814208 | M31: 12 | N31: 15 | O31: 9256.647262 | P31: 9350.14875 | Q31: 9443.650237
A32: 13 | B32: -28 | C32: 6972.793632 | D32: =IF(B32 <= VLOOKUP(Main!$N$22,Coefficients!$E$2:$H$28,4,FALSE),E32,NA()) -> 7078.978306 | E32: ='4th Order Polynomial TMP vs Res'!$B$41+'4th Order Polynomial TMP vs Res'!$C$41*POWER(B32,1)+'4th Order Polynomial TMP vs Res'!$D$41*POWER(B32,2)+'4th Order Polynomial TMP vs Res'!$E$41*POWER(B32,3)+'4th Order Polynomial TMP vs Res'!$F$41*POWER(B32,4) -> 7078.978306 | F32: 7185.162981 | J32: ='4th Order Polynomial TMP vs Res'!$I$41*E32^4 + '4th Order Polynomial TMP vs Res'!$J$41*E32^3 + '4th Order Polynomial TMP vs Res'!$K$41*E32^2 + '4th Order Polynomial TMP vs Res'!$L$41*E32 + '4th Order Polynomial TMP vs Res'!$M$41 -> -28.02903233 | K32: 0.02903232783 | M32: 13 | N32: 20 | O32: 9554.09888 | P32: 9650.604929 | Q32: 9747.110978
A33: 14 | B33: -27 | C33: 7018.655727 | D33: =IF(B33 <= VLOOKUP(Main!$N$22,Coefficients!$E$2:$H$28,4,FALSE),E33,NA()) -> 7125.538809 | E33: ='4th Order Polynomial TMP vs Res'!$B$41+'4th Order Polynomial TMP vs Res'!$C$41*POWER(B33,1)+'4th Order Polynomial TMP vs Res'!$D$41*POWER(B33,2)+'4th Order Polynomial TMP vs Res'!$E$41*POWER(B33,3)+'4th Order Polynomial TMP vs Res'!$F$41*POWER(B33,4) -> 7125.538809 | F33: 7232.421891 | J33: ='4th Order Polynomial TMP vs Res'!$I$41*E33^4 + '4th Order Polynomial TMP vs Res'!$J$41*E33^3 + '4th Order Polynomial TMP vs Res'!$K$41*E33^2 + '4th Order Polynomial TMP vs Res'!$L$41*E33 + '4th Order Polynomial TMP vs Res'!$M$41 -> -27.03745341 | K33: 0.03745340901 | M33: 14 | N33: 25 | O33: 9859.227345 | P33: 9958.8155 | Q33: =IFERROR(P33*1.01,NA()) -> 10058.40365
A34: 15 | B34: -26 | C34: 7064.807894 | D34: =IF(B34 <= VLOOKUP(Main!$N$22,Coefficients!$E$2:$H$28,4,FALSE),E34,NA()) -> 7172.393801 | E34: ='4th Order Polynomial TMP vs Res'!$B$41+'4th Order Polynomial TMP vs Res'!$C$41*POWER(B34,1)+'4th Order Polynomial TMP vs Res'!$D$41*POWER(B34,2)+'4th Order Polynomial TMP vs Res'!$E$41*POWER(B34,3)+'4th Order Polynomial TMP vs Res'!$F$41*POWER(B34,4) -> 7172.393801 | F34: 7279.979708 | J34: ='4th Order Polynomial TMP vs Res'!$I$41*E34^4 + '4th Order Polynomial TMP vs Res'!$J$41*E34^3 + '4th Order Polynomial TMP vs Res'!$K$41*E34^2 + '4th Order Polynomial TMP vs Res'!$L$41*E34 + '4th Order Polynomial TMP vs Res'!$M$41 -> -26.04486107 | K34: 0.04486107259 | M34: 15 | N34: 30 | O34: 10172.09339 | P34: 10274.8418 | Q34: =IFERROR(P34*1.01,NA()) -> 10377.59022
A35: 16 | B35: -25 | C35: 7111.250324 | D35: =IF(B35 <= VLOOKUP(Main!$N$22,Coefficients!$E$2:$H$28,4,FALSE),E35,NA()) -> 7219.543476 | E35: ='4th Order Polynomial TMP vs Res'!$B$41+'4th Order Polynomial TMP vs Res'!$C$41*POWER(B35,1)+'4th Order Polynomial TMP vs Res'!$D$41*POWER(B35,2)+'4th Order Polynomial TMP vs Res'!$E$41*POWER(B35,3)+'4th Order Polynomial TMP vs Res'!$F$41*POWER(B35,4) -> 7219.543476 | F35: 7327.836628 | J35: ='4th Order Polynomial TMP vs Res'!$I$41*E35^4 + '4th Order Polynomial TMP vs Res'!$J$41*E35^3 + '4th Order Polynomial TMP vs Res'!$K$41*E35^2 + '4th Order Polynomial TMP vs Res'!$L$41*E35 + '4th Order Polynomial TMP vs Res'!$M$41 -> -25.05130412 | K35: 0.05130411683 | M35: 16 | N35: 35 | O35: 10492.76148 | P35: 10598.74897 | Q35: 10704.73646
A36: 17 | B36: -24 | C36: 7157.983214 | D36: =IF(B36 <= VLOOKUP(Main!$N$22,Coefficients!$E$2:$H$28,4,FALSE),E36,NA()) -> 7266.988034 | E36: ='4th Order Polynomial TMP vs Res'!$B$41+'4th Order Polynomial TMP vs Res'!$C$41*POWER(B36,1)+'4th Order Polynomial TMP vs Res'!$D$41*POWER(B36,2)+'4th Order Polynomial TMP vs Res'!$E$41*POWER(B36,3)+'4th Order Polynomial TMP vs Res'!$F$41*POWER(B36,4) -> 7266.988034 | F36: 7375.992855 | J36: ='4th Order Polynomial TMP vs Res'!$I$41*E36^4 + '4th Order Polynomial TMP vs Res'!$J$41*E36^3 + '4th Order Polynomial TMP vs Res'!$K$41*E36^2 + '4th Order Polynomial TMP vs Res'!$L$41*E36 + '4th Order Polynomial TMP vs Res'!$M$41 -> -24.05683044 | K36: 0.05683044356 | M36: 17 | N36: 40 | O36: 10821.29984 | P36: 10930.60589 | Q36: 11039.91195
A37: 18 | B37: -23 | C37: 7205.006767 | D37: =IF(B37 <= VLOOKUP(Main!$N$22,Coefficients!$E$2:$H$28,4,FALSE),E37,NA()) -> 7314.727683 | E37: ='4th Order Polynomial TMP vs Res'!$B$41+'4th Order Polynomial TMP vs Res'!$C$41*POWER(B37,1)+'4th Order Polynomial TMP vs Res'!$D$41*POWER(B37,2)+'4th Order Polynomial TMP vs Res'!$E$41*POWER(B37,3)+'4th Order Polynomial TMP vs Res'!$F$41*POWER(B37,4) -> 7314.727683 | F37: 7424.448598 | J37: ='4th Order Polynomial TMP vs Res'!$I$41*E37^4 + '4th Order Polynomial TMP vs Res'!$J$41*E37^3 + '4th Order Polynomial TMP vs Res'!$K$41*E37^2 + '4th Order Polynomial TMP vs Res'!$L$41*E37 + '4th Order Polynomial TMP vs Res'!$M$41 -> -23.06148705 | K37: 0.06148705055 | M37: 18 | N37: 45 | O37: 11157.78041 | P37: 11270.48527 | Q37: 11383.19012
A38: 19 | B38: -22 | C38: 7252.321194 | D38: =IF(B38 <= VLOOKUP(Main!$N$22,Coefficients!$E$2:$H$28,4,FALSE),E38,NA()) -> 7362.762633 | E38: ='4th Order Polynomial TMP vs Res'!$B$41+'4th Order Polynomial TMP vs Res'!$C$41*POWER(B38,1)+'4th Order Polynomial TMP vs Res'!$D$41*POWER(B38,2)+'4th Order Polynomial TMP vs Res'!$E$41*POWER(B38,3)+'4th Order Polynomial TMP vs Res'!$F$41*POWER(B38,4) -> 7362.762633 | F38: 7473.204073 | J38: ='4th Order Polynomial TMP vs Res'!$I$41*E38^4 + '4th Order Polynomial TMP vs Res'!$J$41*E38^3 + '4th Order Polynomial TMP vs Res'!$K$41*E38^2 + '4th Order Polynomial TMP vs Res'!$L$41*E38 + '4th Order Polynomial TMP vs Res'!$M$41 -> -22.06532002 | K38: 0.06532002422 | M38: 19 | N38: 50 | O38: 11502.27891 | P38: 11618.46355 | Q38: 11734.64818
A39: 20 | B39: -21 | C39: 7299.926709 | D39: =IF(B39 <= VLOOKUP(Main!$N$22,Coefficients!$E$2:$H$28,4,FALSE),E39,NA()) -> 7411.093106 | E39: ='4th Order Polynomial TMP vs Res'!$B$41+'4th Order Polynomial TMP vs Res'!$C$41*POWER(B39,1)+'4th Order Polynomial TMP vs Res'!$D$41*POWER(B39,2)+'4th Order Polynomial TMP vs Res'!$E$41*POWER(B39,3)+'4th Order Polynomial TMP vs Res'!$F$41*POWER(B39,4) -> 7411.093106 | F39: 7522.259502 | J39: ='4th Order Polynomial TMP vs Res'!$I$41*E39^4 + '4th Order Polynomial TMP vs Res'!$J$41*E39^3 + '4th Order Polynomial TMP vs Res'!$K$41*E39^2 + '4th Order Polynomial TMP vs Res'!$L$41*E39 + '4th Order Polynomial TMP vs Res'!$M$41 -> -21.06837453 | K39: 0.06837453258 | M39: 20 | N39: 55 | O39: 11854.87477 | P39: 11974.62098 | Q39: 12094.36719
A40: 21 | B40: -20 | C40: 7347.823534 | D40: =IF(B40 <= VLOOKUP(Main!$N$22,Coefficients!$E$2:$H$28,4,FALSE),E40,NA()) -> 7459.719324 | E40: ='4th Order Polynomial TMP vs Res'!$B$41+'4th Order Polynomial TMP vs Res'!$C$41*POWER(B40,1)+'4th Order Polynomial TMP vs Res'!$D$41*POWER(B40,2)+'4th Order Polynomial TMP vs Res'!$E$41*POWER(B40,3)+'4th Order Polynomial TMP vs Res'!$F$41*POWER(B40,4) -> 7459.719324 | F40: 7571.615113 | J40: ='4th Order Polynomial TMP vs Res'!$I$41*E40^4 + '4th Order Polynomial TMP vs Res'!$J$41*E40^3 + '4th Order Polynomial TMP vs Res'!$K$41*E40^2 + '4th Order Polynomial TMP vs Res'!$L$41*E40 + '4th Order Polynomial TMP vs Res'!$M$41 -> -20.07069482 | K40: 0.07069481835 | M40: 21 | N40: 60 | O40: 12215.65117 | P40: 12339.04159 | Q40: 12462.43201
A41: 22 | B41: -19 | C41: 7396.011895 | D41: =IF(B41 <= VLOOKUP(Main!$N$22,Coefficients!$E$2:$H$28,4,FALSE),E41,NA()) -> 7508.641518 | E41: ='4th Order Polynomial TMP vs Res'!$B$41+'4th Order Polynomial TMP vs Res'!$C$41*POWER(B41,1)+'4th Order Polynomial TMP vs Res'!$D$41*POWER(B41,2)+'4th Order Polynomial TMP vs Res'!$E$41*POWER(B41,3)+'4th Order Polynomial TMP vs Res'!$F$41*POWER(B41,4) -> 7508.641518 | F41: 7621.271141 | J41: ='4th Order Polynomial TMP vs Res'!$I$41*E41^4 + '4th Order Polynomial TMP vs Res'!$J$41*E41^3 + '4th Order Polynomial TMP vs Res'!$K$41*E41^2 + '4th Order Polynomial TMP vs Res'!$L$41*E41 + '4th Order Polynomial TMP vs Res'!$M$41 -> -19.07232419 | K41: 0.07232419236 | M41: 22 | N41: 65 | O41: 12584.69505 | P41: 12711.81318 | Q41: 12838.93131
A42: 23 | B42: -18 | C42: 7444.492027 | D42: =IF(B42 <= VLOOKUP(Main!$N$22,Coefficients!$E$2:$H$28,4,FALSE),E42,NA()) -> 7557.859926 | E42: ='4th Order Polynomial TMP vs Res'!$B$41+'4th Order Polynomial TMP vs Res'!$C$41*POWER(B42,1)+'4th Order Polynomial TMP vs Res'!$D$41*POWER(B42,2)+'4th Order Polynomial TMP vs Res'!$E$41*POWER(B42,3)+'4th Order Polynomial TMP vs Res'!$F$41*POWER(B42,4) -> 7557.859926 | F42: 7671.227825 | J42: ='4th Order Polynomial TMP vs Res'!$I$41*E42^4 + '4th Order Polynomial TMP vs Res'!$J$41*E42^3 + '4th Order Polynomial TMP vs Res'!$K$41*E42^2 + '4th Order Polynomial TMP vs Res'!$L$41*E42 + '4th Order Polynomial TMP vs Res'!$M$41 -> -18.07330503 | K42: 0.07330502728 | M42: 23 | N42: 70 | O42: 12962.09706 | P42: 13093.02733 | Q42: 13223.9576
A43: 24 | B43: -17 | C43: 7493.264168 | D43: =IF(B43 <= VLOOKUP(Main!$N$22,Coefficients!$E$2:$H$28,4,FALSE),E43,NA()) -> 7607.374789 | E43: ='4th Order Polynomial TMP vs Res'!$B$41+'4th Order Polynomial TMP vs Res'!$C$41*POWER(B43,1)+'4th Order Polynomial TMP vs Res'!$D$41*POWER(B43,2)+'4th Order Polynomial TMP vs Res'!$E$41*POWER(B43,3)+'4th Order Polynomial TMP vs Res'!$F$41*POWER(B43,4) -> 7607.374789 | F43: 7721.485411 | J43: ='4th Order Polynomial TMP vs Res'!$I$41*E43^4 + '4th Order Polynomial TMP vs Res'!$J$41*E43^3 + '4th Order Polynomial TMP vs Res'!$K$41*E43^2 + '4th Order Polynomial TMP vs Res'!$L$41*E43 + '4th Order Polynomial TMP vs Res'!$M$41 -> -17.07367875 | K43: 0.07367875148 | M43: 24 | N43: 75 | O43: 13280.53771 | P43: 13482.7794 | Q43: 13685.02109
A44: 25 | B44: -16 | C44: 7542.328563 | D44: =IF(B44 <= VLOOKUP(Main!$N$22,Coefficients!$E$2:$H$28,4,FALSE),E44,NA()) -> 7657.186358 | E44: ='4th Order Polynomial TMP vs Res'!$B$41+'4th Order Polynomial TMP vs Res'!$C$41*POWER(B44,1)+'4th Order Polynomial TMP vs Res'!$D$41*POWER(B44,2)+'4th Order Polynomial TMP vs Res'!$E$41*POWER(B44,3)+'4th Order Polynomial TMP vs Res'!$F$41*POWER(B44,4) -> 7657.186358 | F44: 7772.044153 | J44: ='4th Order Polynomial TMP vs Res'!$I$41*E44^4 + '4th Order Polynomial TMP vs Res'!$J$41*E44^3 + '4th Order Polynomial TMP vs Res'!$K$41*E44^2 + '4th Order Polynomial TMP vs Res'!$L$41*E44 + '4th Order Polynomial TMP vs Res'!$M$41 -> -16.07348584 | K44: 0.07348584328 | M44: 25 | N44: 80 | O44: 13672.95102 | P44: 13881.16855 | Q44: 14089.38607
A45: 26 | B45: -15 | C45: 7591.685463 | D45: =IF(B45 <= VLOOKUP(Main!$N$22,Coefficients!$E$2:$H$28,4,FALSE),E45,NA()) -> 7707.294886 | E45: ='4th Order Polynomial TMP vs Res'!$B$41+'4th Order Polynomial TMP vs Res'!$C$41*POWER(B45,1)+'4th Order Polynomial TMP vs Res'!$D$41*POWER(B45,2)+'4th Order Polynomial TMP vs Res'!$E$41*POWER(B45,3)+'4th Order Polynomial TMP vs Res'!$F$41*POWER(B45,4) -> 7707.294886 | F45: 7822.90431 | J45: ='4th Order Polynomial TMP vs Res'!$I$41*E45^4 + '4th Order Polynomial TMP vs Res'!$J$41*E45^3 + '4th Order Polynomial TMP vs Res'!$K$41*E45^2 + '4th Order Polynomial TMP vs Res'!$L$41*E45 + '4th Order Polynomial TMP vs Res'!$M$41 -> -15.07276583 | K45: 0.07276582535 | M45: 26 | N45: 85 | O45: 14073.97321 | P45: 14288.29768 | Q45: 14502.62214
A46: 27 | B46: -14 | C46: 7641.335126 | D46: =IF(B46 <= VLOOKUP(Main!$N$22,Coefficients!$E$2:$H$28,4,FALSE),E46,NA()) -> 7757.700636 | E46: ='4th Order Polynomial TMP vs Res'!$B$41+'4th Order Polynomial TMP vs Res'!$C$41*POWER(B46,1)+'4th Order Polynomial TMP vs Res'!$D$41*POWER(B46,2)+'4th Order Polynomial TMP vs Res'!$E$41*POWER(B46,3)+'4th Order Polynomial TMP vs Res'!$F$41*POWER(B46,4) -> 7757.700636 | F46: 7874.066145 | J46: ='4th Order Polynomial TMP vs Res'!$I$41*E46^4 + '4th Order Polynomial TMP vs Res'!$J$41*E46^3 + '4th Order Polynomial TMP vs Res'!$K$41*E46^2 + '4th Order Polynomial TMP vs Res'!$L$41*E46 + '4th Order Polynomial TMP vs Res'!$M$41 -> -14.07155726 | K46: 0.07155725954 | M46: 27 | N46: 90 | O46: 14483.7094 | P46: 14704.2735 | Q46: 14924.83761
A47: 28 | B47: -13 | C47: 7691.277814 | D47: =IF(B47 <= VLOOKUP(Main!$N$22,Coefficients!$E$2:$H$28,4,FALSE),E47,NA()) -> 7808.403872 | E47: ='4th Order Polynomial TMP vs Res'!$B$41+'4th Order Polynomial TMP vs Res'!$C$41*POWER(B47,1)+'4th Order Polynomial TMP vs Res'!$D$41*POWER(B47,2)+'4th Order Polynomial TMP vs Res'!$E$41*POWER(B47,3)+'4th Order Polynomial TMP vs Res'!$F$41*POWER(B47,4) -> 7808.403872 | F47: 7925.529931 | J47: ='4th Order Polynomial TMP vs Res'!$I$41*E47^4 + '4th Order Polynomial TMP vs Res'!$J$41*E47^3 + '4th Order Polynomial TMP vs Res'!$K$41*E47^2 + '4th Order Polynomial TMP vs Res'!$L$41*E47 + '4th Order Polynomial TMP vs Res'!$M$41 -> -13.06989774 | K47: 0.06989774181 | M47: 28 | N47: 95 | O47: 14902.26841 | P47: 15129.2065 | Q47: 15356.1446
A48: 29 | B48: -12 | C48: 7741.513797 | D48: =IF(B48 <= VLOOKUP(Main!$N$22,Coefficients!$E$2:$H$28,4,FALSE),E48,NA()) -> 7859.40487 | E48: ='4th Order Polynomial TMP vs Res'!$B$41+'4th Order Polynomial TMP vs Res'!$C$41*POWER(B48,1)+'4th Order Polynomial TMP vs Res'!$D$41*POWER(B48,2)+'4th Order Polynomial TMP vs Res'!$E$41*POWER(B48,3)+'4th Order Polynomial TMP vs Res'!$F$41*POWER(B48,4) -> 7859.40487 | F48: 7977.295943 | J48: ='4th Order Polynomial TMP vs Res'!$I$41*E48^4 + '4th Order Polynomial TMP vs Res'!$J$41*E48^3 + '4th Order Polynomial TMP vs Res'!$K$41*E48^2 + '4th Order Polynomial TMP vs Res'!$L$41*E48 + '4th Order Polynomial TMP vs Res'!$M$41 -> -12.0678239 | K48: 0.06782389767 | M48: 29 | N48: 100 | O48: 15329.76278 | P48: 15563.21094 | Q48: 15796.65911
A49: 30 | B49: -11 | C49: 7792.043349 | D49: =IF(B49 <= VLOOKUP(Main!$N$22,Coefficients!$E$2:$H$28,4,FALSE),E49,NA()) -> 7910.703907 | E49: ='4th Order Polynomial TMP vs Res'!$B$41+'4th Order Polynomial TMP vs Res'!$C$41*POWER(B49,1)+'4th Order Polynomial TMP vs Res'!$D$41*POWER(B49,2)+'4th Order Polynomial TMP vs Res'!$E$41*POWER(B49,3)+'4th Order Polynomial TMP vs Res'!$F$41*POWER(B49,4) -> 7910.703907 | F49: 8029.364466 | J49: ='4th Order Polynomial TMP vs Res'!$I$41*E49^4 + '4th Order Polynomial TMP vs Res'!$J$41*E49^3 + '4th Order Polynomial TMP vs Res'!$K$41*E49^2 + '4th Order Polynomial TMP vs Res'!$L$41*E49 + '4th Order Polynomial TMP vs Res'!$M$41 -> -11.06537138 | K49: 0.06537137769 | M49: 30 | N49: 105 | O49: 15766.30878 | P49: 16006.40486 | Q49: 16246.50093
A50: 31 | B50: -10 | C50: 7842.866751 | D50: =IF(B50 <= VLOOKUP(Main!$N$22,Coefficients!$E$2:$H$28,4,FALSE),E50,NA()) -> 7962.30127 | E50: ='4th Order Polynomial TMP vs Res'!$B$41+'4th Order Polynomial TMP vs Res'!$C$41*POWER(B50,1)+'4th Order Polynomial TMP vs Res'!$D$41*POWER(B50,2)+'4th Order Polynomial TMP vs Res'!$E$41*POWER(B50,3)+'4th Order Polynomial TMP vs Res'!$F$41*POWER(B50,4) -> 7962.30127 | F50: 8081.735789 | J50: ='4th Order Polynomial TMP vs Res'!$I$41*E50^4 + '4th Order Polynomial TMP vs Res'!$J$41*E50^3 + '4th Order Polynomial TMP vs Res'!$K$41*E50^2 + '4th Order Polynomial TMP vs Res'!$L$41*E50 + '4th Order Polynomial TMP vs Res'!$M$41 -> -10.06257485 | K50: 0.0625748535 | M50: 31 | N50: 110 | O50: 16212.02642 | P50: 16458.91008 | Q50: 16705.79373
A51: 32 | B51: -9 | C51: 7893.984289 | D51: =IF(B51 <= VLOOKUP(Main!$N$22,Coefficients!$E$2:$H$28,4,FALSE),E51,NA()) -> 8014.197248 | E51: ='4th Order Polynomial TMP vs Res'!$B$41+'4th Order Polynomial TMP vs Res'!$C$41*POWER(B51,1)+'4th Order Polynomial TMP vs Res'!$D$41*POWER(B51,2)+'4th Order Polynomial TMP vs Res'!$E$41*POWER(B51,3)+'4th Order Polynomial TMP vs Res'!$F$41*POWER(B51,4) -> 8014.197248 | F51: 8134.410207 | J51: ='4th Order Polynomial TMP vs Res'!$I$41*E51^4 + '4th Order Polynomial TMP vs Res'!$J$41*E51^3 + '4th Order Polynomial TMP vs Res'!$K$41*E51^2 + '4th Order Polynomial TMP vs Res'!$L$41*E51 + '4th Order Polynomial TMP vs Res'!$M$41 -> -9.059468014 | K51: 0.05946801399 | M51: 32 | N51: 115 | O51: 16667.03941 | P51: 16920.8522 | Q51: 17174.66498
A52: 33 | B52: -8 | C52: 7945.396258 | D52: =IF(B52 <= VLOOKUP(Main!$N$22,Coefficients!$E$2:$H$28,4,FALSE),E52,NA()) -> 8066.39214 | E52: ='4th Order Polynomial TMP vs Res'!$B$41+'4th Order Polynomial TMP vs Res'!$C$41*POWER(B52,1)+'4th Order Polynomial TMP vs Res'!$D$41*POWER(B52,2)+'4th Order Polynomial TMP vs Res'!$E$41*POWER(B52,3)+'4th Order Polynomial TMP vs Res'!$F$41*POWER(B52,4) -> 8066.39214 | F52: 8187.388022 | J52: ='4th Order Polynomial TMP vs Res'!$I$41*E52^4 + '4th Order Polynomial TMP vs Res'!$J$41*E52^3 + '4th Order Polynomial TMP vs Res'!$K$41*E52^2 + '4th Order Polynomial TMP vs Res'!$L$41*E52 + '4th Order Polynomial TMP vs Res'!$M$41 -> -8.056083562 | K52: =B52-J52 -> 0.05608356188 | M52: 33 | N52: 120 | O52: 17131.4752 | P52: 17392.3606 | Q52: 17653.24601
A53: 34 | B53: -7 | C53: 7997.102954 | D53: =IF(B53 <= VLOOKUP(Main!$N$22,Coefficients!$E$2:$H$28,4,FALSE),E53,NA()) -> 8118.886248 | E53: ='4th Order Polynomial TMP vs Res'!$B$41+'4th Order Polynomial TMP vs Res'!$C$41*POWER(B53,1)+'4th Order Polynomial TMP vs Res'!$D$41*POWER(B53,2)+'4th Order Polynomial TMP vs Res'!$E$41*POWER(B53,3)+'4th Order Polynomial TMP vs Res'!$F$41*POWER(B53,4) -> 8118.886248 | F53: 8240.669542 | J53: ='4th Order Polynomial TMP vs Res'!$I$41*E53^4 + '4th Order Polynomial TMP vs Res'!$J$41*E53^3 + '4th Order Polynomial TMP vs Res'!$K$41*E53^2 + '4th Order Polynomial TMP vs Res'!$L$41*E53 + '4th Order Polynomial TMP vs Res'!$M$41 -> -7.052453211 | K53: 0.05245321062 | M53: 34 | N53: 125 | O53: 17605.46493 | P53: 17873.56846 | Q53: 18141.67198
A54: 35 | B54: -6 | C54: 8049.104684 | D54: =IF(B54 <= VLOOKUP(Main!$N$22,Coefficients!$E$2:$H$28,4,FALSE),E54,NA()) -> 8171.679882 | E54: ='4th Order Polynomial TMP vs Res'!$B$41+'4th Order Polynomial TMP vs Res'!$C$41*POWER(B54,1)+'4th Order Polynomial TMP vs Res'!$D$41*POWER(B54,2)+'4th Order Polynomial TMP vs Res'!$E$41*POWER(B54,3)+'4th Order Polynomial TMP vs Res'!$F$41*POWER(B54,4) -> 8171.679882 | F54: 8294.25508 | J54: ='4th Order Polynomial TMP vs Res'!$I$41*E54^4 + '4th Order Polynomial TMP vs Res'!$J$41*E54^3 + '4th Order Polynomial TMP vs Res'!$K$41*E54^2 + '4th Order Polynomial TMP vs Res'!$L$41*E54 + '4th Order Polynomial TMP vs Res'!$M$41 -> -6.048607682 | K54: 0.04860768155 | M54: 35 | N54: 130
A55: 36 | B55: -5 | C55: 8101.401757 | D55: =IF(B55 <= VLOOKUP(Main!$N$22,Coefficients!$E$2:$H$28,4,FALSE),E55,NA()) -> 8224.773358 | E55: ='4th Order Polynomial TMP vs Res'!$B$41+'4th Order Polynomial TMP vs Res'!$C$41*POWER(B55,1)+'4th Order Polynomial TMP vs Res'!$D$41*POWER(B55,2)+'4th Order Polynomial TMP vs Res'!$E$41*POWER(B55,3)+'4th Order Polynomial TMP vs Res'!$F$41*POWER(B55,4) -> 8224.773358 | F55: 8348.144958 | J55: ='4th Order Polynomial TMP vs Res'!$I$41*E55^4 + '4th Order Polynomial TMP vs Res'!$J$41*E55^3 + '4th Order Polynomial TMP vs Res'!$K$41*E55^2 + '4th Order Polynomial TMP vs Res'!$L$41*E55 + '4th Order Polynomial TMP vs Res'!$M$41 -> -5.044576702 | K55: 0.04457670151 | M55: 36 | N55: 135
A56: 37 | B56: -4 | C56: 8153.994491 | D56: =IF(B56 <= VLOOKUP(Main!$N$22,Coefficients!$E$2:$H$28,4,FALSE),E56,NA()) -> 8278.166996 | E56: ='4th Order Polynomial TMP vs Res'!$B$41+'4th Order Polynomial TMP vs Res'!$C$41*POWER(B56,1)+'4th Order Polynomial TMP vs Res'!$D$41*POWER(B56,2)+'4th Order Polynomial TMP vs Res'!$E$41*POWER(B56,3)+'4th Order Polynomial TMP vs Res'!$F$41*POWER(B56,4) -> 8278.166996 | F56: 8402.339501 | J56: ='4th Order Polynomial TMP vs Res'!$I$41*E56^4 + '4th Order Polynomial TMP vs Res'!$J$41*E56^3 + '4th Order Polynomial TMP vs Res'!$K$41*E56^2 + '4th Order Polynomial TMP vs Res'!$L$41*E56 + '4th Order Polynomial TMP vs Res'!$M$41 -> -4.040389001 | K56: 0.04038900073 | M56: 37 | N56: 140
A57: 38 | B57: -3 | C57: 8206.883207 | D57: =IF(B57 <= VLOOKUP(Main!$N$22,Coefficients!$E$2:$H$28,4,FALSE),E57,NA()) -> 8331.861124 | E57: ='4th Order Polynomial TMP vs Res'!$B$41+'4th Order Polynomial TMP vs Res'!$C$41*POWER(B57,1)+'4th Order Polynomial TMP vs Res'!$D$41*POWER(B57,2)+'4th Order Polynomial TMP vs Res'!$E$41*POWER(B57,3)+'4th Order Polynomial TMP vs Res'!$F$41*POWER(B57,4) -> 8331.861124 | F57: 8456.839041 | J57: ='4th Order Polynomial TMP vs Res'!$I$41*E57^4 + '4th Order Polynomial TMP vs Res'!$J$41*E57^3 + '4th Order Polynomial TMP vs Res'!$K$41*E57^2 + '4th Order Polynomial TMP vs Res'!$L$41*E57 + '4th Order Polynomial TMP vs Res'!$M$41 -> -3.036072311 | K57: 0.03607231107 | M57: 38 | N57: 145
A58: 39 | B58: -2 | C58: 8260.068235 | D58: =IF(B58 <= VLOOKUP(Main!$N$22,Coefficients!$E$2:$H$28,4,FALSE),E58,NA()) -> 8385.856076 | E58: ='4th Order Polynomial TMP vs Res'!$B$41+'4th Order Polynomial TMP vs Res'!$C$41*POWER(B58,1)+'4th Order Polynomial TMP vs Res'!$D$41*POWER(B58,2)+'4th Order Polynomial TMP vs Res'!$E$41*POWER(B58,3)+'4th Order Polynomial TMP vs Res'!$F$41*POWER(B58,4) -> 8385.856076 | F58: 8511.643917 | J58: ='4th Order Polynomial TMP vs Res'!$I$41*E58^4 + '4th Order Polynomial TMP vs Res'!$J$41*E58^3 + '4th Order Polynomial TMP vs Res'!$K$41*E58^2 + '4th Order Polynomial TMP vs Res'!$L$41*E58 + '4th Order Polynomial TMP vs Res'!$M$41 -> -2.031653365 | K58: 0.03165336468 | M58: 39 | N58: 150
A59: 40 | B59: -1 | C59: 8313.549908 | D59: =IF(B59 <= VLOOKUP(Main!$N$22,Coefficients!$E$2:$H$28,4,FALSE),E59,NA()) -> 8440.152191 | E59: ='4th Order Polynomial TMP vs Res'!$B$41+'4th Order Polynomial TMP vs Res'!$C$41*POWER(B59,1)+'4th Order Polynomial TMP vs Res'!$D$41*POWER(B59,2)+'4th Order Polynomial TMP vs Res'!$E$41*POWER(B59,3)+'4th Order Polynomial TMP vs Res'!$F$41*POWER(B59,4) -> 8440.152191 | F59: 8566.754474 | J59: ='4th Order Polynomial TMP vs Res'!$I$41*E59^4 + '4th Order Polynomial TMP vs Res'!$J$41*E59^3 + '4th Order Polynomial TMP vs Res'!$K$41*E59^2 + '4th Order Polynomial TMP vs Res'!$L$41*E59 + '4th Order Polynomial TMP vs Res'!$M$41 -> -1.027157893 | K59: 0.02715789297 | M59: 40 | N59: 155 | O59: =IFERROR(P59*0.985,NA()) ->  | P59: =IFERROR(OFFSET($D$20,(ROW(D40)-1)*5,0),NA()) ->  | Q59: =IFERROR(P59*1.015,NA()) -> 
A60: 41 | B60: 0 | C60: =IFERROR(D60*0.99,NA()) -> 8409.802317 | D60: =IF(B60 <= VLOOKUP(Main!$N$22,Coefficients!$E$2:$H$28,4,FALSE),E60,NA()) -> 8494.749815 | E60: ='4th Order Polynomial TMP vs Res'!$B$41+'4th Order Polynomial TMP vs Res'!$C$41*POWER(B60,1)+'4th Order Polynomial TMP vs Res'!$D$41*POWER(B60,2)+'4th Order Polynomial TMP vs Res'!$E$41*POWER(B60,3)+'4th Order Polynomial TMP vs Res'!$F$41*POWER(B60,4) -> 8494.749815 | F60: =IFERROR(D60*1.01,NA()) -> 8579.697313 | J60: ='4th Order Polynomial TMP vs Res'!$I$41*E60^4 + '4th Order Polynomial TMP vs Res'!$J$41*E60^3 + '4th Order Polynomial TMP vs Res'!$K$41*E60^2 + '4th Order Polynomial TMP vs Res'!$L$41*E60 + '4th Order Polynomial TMP vs Res'!$M$41 -> -0.02261062597 | K60: 0.02261062597 | M60: 41 | N60: 160
A61: 42 | B61: 1 | C61: =IFERROR(D61*0.99,NA()) -> 8464.152807 | D61: =IF(B61 <= VLOOKUP(Main!$N$22,Coefficients!$E$2:$H$28,4,FALSE),E61,NA()) -> 8549.6493 | E61: ='4th Order Polynomial TMP vs Res'!$B$41+'4th Order Polynomial TMP vs Res'!$C$41*POWER(B61,1)+'4th Order Polynomial TMP vs Res'!$D$41*POWER(B61,2)+'4th Order Polynomial TMP vs Res'!$E$41*POWER(B61,3)+'4th Order Polynomial TMP vs Res'!$F$41*POWER(B61,4) -> 8549.6493 | F61: =IFERROR(D61*1.01,NA()) -> 8635.145793 | J61: ='4th Order Polynomial TMP vs Res'!$I$41*E61^4 + '4th Order Polynomial TMP vs Res'!$J$41*E61^3 + '4th Order Polynomial TMP vs Res'!$K$41*E61^2 + '4th Order Polynomial TMP vs Res'!$L$41*E61 + '4th Order Polynomial TMP vs Res'!$M$41 -> 0.9819647078 | K61: 0.01803529217 | M61: 42 | N61: 165
A62: 43 | B62: 2 | C62: 8518.802492 | D62: =IF(B62 <= VLOOKUP(Main!$N$22,Coefficients!$E$2:$H$28,4,FALSE),E62,NA()) -> 8604.851002 | E62: ='4th Order Polynomial TMP vs Res'!$B$41+'4th Order Polynomial TMP vs Res'!$C$41*POWER(B62,1)+'4th Order Polynomial TMP vs Res'!$D$41*POWER(B62,2)+'4th Order Polynomial TMP vs Res'!$E$41*POWER(B62,3)+'4th Order Polynomial TMP vs Res'!$F$41*POWER(B62,4) -> 8604.851002 | F62: 8690.899512 | J62: ='4th Order Polynomial TMP vs Res'!$I$41*E62^4 + '4th Order Polynomial TMP vs Res'!$J$41*E62^3 + '4th Order Polynomial TMP vs Res'!$K$41*E62^2 + '4th Order Polynomial TMP vs Res'!$L$41*E62 + '4th Order Polynomial TMP vs Res'!$M$41 -> 1.986545381 | K62: 0.01345461862 | M62: 43 | N62: 170
A63: 44 | B63: 3 | C63: 8573.751734 | D63: =IF(B63 <= VLOOKUP(Main!$N$22,Coefficients!$E$2:$H$28,4,FALSE),E63,NA()) -> 8660.355287 | E63: ='4th Order Polynomial TMP vs Res'!$B$41+'4th Order Polynomial TMP vs Res'!$C$41*POWER(B63,1)+'4th Order Polynomial TMP vs Res'!$D$41*POWER(B63,2)+'4th Order Polynomial TMP vs Res'!$E$41*POWER(B63,3)+'4th Order Polynomial TMP vs Res'!$F$41*POWER(B63,4) -> 8660.355287 | F63: 8746.95884 | J63: ='4th Order Polynomial TMP vs Res'!$I$41*E63^4 + '4th Order Polynomial TMP vs Res'!$J$41*E63^3 + '4th Order Polynomial TMP vs Res'!$K$41*E63^2 + '4th Order Polynomial TMP vs Res'!$L$41*E63 + '4th Order Polynomial TMP vs Res'!$M$41 -> 2.991109668 | K63: 0.008890331506
A64: 45 | B64: 4 | C64: 8629.000898 | D64: =IF(B64 <= VLOOKUP(Main!$N$22,Coefficients!$E$2:$H$28,4,FALSE),E64,NA()) -> 8716.162523 | E64: ='4th Order Polynomial TMP vs Res'!$B$41+'4th Order Polynomial TMP vs Res'!$C$41*POWER(B64,1)+'4th Order Polynomial TMP vs Res'!$D$41*POWER(B64,2)+'4th Order Polynomial TMP vs Res'!$E$41*POWER(B64,3)+'4th Order Polynomial TMP vs Res'!$F$41*POWER(B64,4) -> 8716.162523 | F64: 8803.324148 | J64: ='4th Order Polynomial TMP vs Res'!$I$41*E64^4 + '4th Order Polynomial TMP vs Res'!$J$41*E64^3 + '4th Order Polynomial TMP vs Res'!$K$41*E64^2 + '4th Order Polynomial TMP vs Res'!$L$41*E64 + '4th Order Polynomial TMP vs Res'!$M$41 -> 3.995636843 | K64: 0.004363157192
A65: 46 | B65: 5 | C65: 8684.550356 | D65: =IF(B65 <= VLOOKUP(Main!$N$22,Coefficients!$E$2:$H$28,4,FALSE),E65,NA()) -> 8772.273087 | E65: ='4th Order Polynomial TMP vs Res'!$B$41+'4th Order Polynomial TMP vs Res'!$C$41*POWER(B65,1)+'4th Order Polynomial TMP vs Res'!$D$41*POWER(B65,2)+'4th Order Polynomial TMP vs Res'!$E$41*POWER(B65,3)+'4th Order Polynomial TMP vs Res'!$F$41*POWER(B65,4) -> 8772.273087 | F65: 8859.995818 | J65: ='4th Order Polynomial TMP vs Res'!$I$41*E65^4 + '4th Order Polynomial TMP vs Res'!$J$41*E65^3 + '4th Order Polynomial TMP vs Res'!$K$41*E65^2 + '4th Order Polynomial TMP vs Res'!$L$41*E65 + '4th Order Polynomial TMP vs Res'!$M$41 -> 5.000107176 | K65: -0.000107176412
A66: 47 | B66: 6 | C66: 8740.400486 | D66: =IF(B66 <= VLOOKUP(Main!$N$22,Coefficients!$E$2:$H$28,4,FALSE),E66,NA()) -> 8828.68736 | E66: ='4th Order Polynomial TMP vs Res'!$B$41+'4th Order Polynomial TMP vs Res'!$C$41*POWER(B66,1)+'4th Order Polynomial TMP vs Res'!$D$41*POWER(B66,2)+'4th Order Polynomial TMP vs Res'!$E$41*POWER(B66,3)+'4th Order Polynomial TMP vs Res'!$F$41*POWER(B66,4) -> 8828.68736 | F66: 8916.974234 | J66: ='4th Order Polynomial TMP vs Res'!$I$41*E66^4 + '4th Order Polynomial TMP vs Res'!$J$41*E66^3 + '4th Order Polynomial TMP vs Res'!$K$41*E66^2 + '4th Order Polynomial TMP vs Res'!$L$41*E66 + '4th Order Polynomial TMP vs Res'!$M$41 -> 6.004501938 | K66: -0.004501937978
A67: 48 | B67: 7 | C67: 8796.551673 | D67: =IF(B67 <= VLOOKUP(Main!$N$22,Coefficients!$E$2:$H$28,4,FALSE),E67,NA()) -> 8885.405731 | E67: ='4th Order Polynomial TMP vs Res'!$B$41+'4th Order Polynomial TMP vs Res'!$C$41*POWER(B67,1)+'4th Order Polynomial TMP vs Res'!$D$41*POWER(B67,2)+'4th Order Polynomial TMP vs Res'!$E$41*POWER(B67,3)+'4th Order Polynomial TMP vs Res'!$F$41*POWER(B67,4) -> 8885.405731 | F67: 8974.259788 | J67: ='4th Order Polynomial TMP vs Res'!$I$41*E67^4 + '4th Order Polynomial TMP vs Res'!$J$41*E67^3 + '4th Order Polynomial TMP vs Res'!$K$41*E67^2 + '4th Order Polynomial TMP vs Res'!$L$41*E67 + '4th Order Polynomial TMP vs Res'!$M$41 -> 7.00880339 | K67: -0.008803390464
A68: 49 | B68: 8 | C68: 8853.004307 | D68: =IF(B68 <= VLOOKUP(Main!$N$22,Coefficients!$E$2:$H$28,4,FALSE),E68,NA()) -> 8942.428593 | E68: ='4th Order Polynomial TMP vs Res'!$B$41+'4th Order Polynomial TMP vs Res'!$C$41*POWER(B68,1)+'4th Order Polynomial TMP vs Res'!$D$41*POWER(B68,2)+'4th Order Polynomial TMP vs Res'!$E$41*POWER(B68,3)+'4th Order Polynomial TMP vs Res'!$F$41*POWER(B68,4) -> 8942.428593 | F68: 9031.852879 | J68: ='4th Order Polynomial TMP vs Res'!$I$41*E68^4 + '4th Order Polynomial TMP vs Res'!$J$41*E68^3 + '4th Order Polynomial TMP vs Res'!$K$41*E68^2 + '4th Order Polynomial TMP vs Res'!$L$41*E68 + '4th Order Polynomial TMP vs Res'!$M$41 -> 8.012994788 | K68: -0.01299478836
A69: 50 | B69: 9 | C69: 8909.758783 | D69: =IF(B69 <= VLOOKUP(Main!$N$22,Coefficients!$E$2:$H$28,4,FALSE),E69,NA()) -> 8999.756346 | E69: ='4th Order Polynomial TMP vs Res'!$B$41+'4th Order Polynomial TMP vs Res'!$C$41*POWER(B69,1)+'4th Order Polynomial TMP vs Res'!$D$41*POWER(B69,2)+'4th Order Polynomial TMP vs Res'!$E$41*POWER(B69,3)+'4th Order Polynomial TMP vs Res'!$F$41*POWER(B69,4) -> 8999.756346 | F69: 9089.75391 | J69: ='4th Order Polynomial TMP vs Res'!$I$41*E69^4 + '4th Order Polynomial TMP vs Res'!$J$41*E69^3 + '4th Order Polynomial TMP vs Res'!$K$41*E69^2 + '4th Order Polynomial TMP vs Res'!$L$41*E69 + '4th Order Polynomial TMP vs Res'!$M$41 -> 9.017060374 | K69: -0.01706037446
A70: 51 | B70: 10 | C70: 8966.815503 | D70: =IF(B70 <= VLOOKUP(Main!$N$22,Coefficients!$E$2:$H$28,4,FALSE),E70,NA()) -> 9057.389397 | E70: ='4th Order Polynomial TMP vs Res'!$B$41+'4th Order Polynomial TMP vs Res'!$C$41*POWER(B70,1)+'4th Order Polynomial TMP vs Res'!$D$41*POWER(B70,2)+'4th Order Polynomial TMP vs Res'!$E$41*POWER(B70,3)+'4th Order Polynomial TMP vs Res'!$F$41*POWER(B70,4) -> 9057.389397 | F70: 9147.963291 | J70: ='4th Order Polynomial TMP vs Res'!$I$41*E70^4 + '4th Order Polynomial TMP vs Res'!$J$41*E70^3 + '4th Order Polynomial TMP vs Res'!$K$41*E70^2 + '4th Order Polynomial TMP vs Res'!$L$41*E70 + '4th Order Polynomial TMP vs Res'!$M$41 -> 10.02098538 | K70: -0.0209853762
A71: 52 | B71: 11 | C71: 9024.174876 | D71: =IF(B71 <= VLOOKUP(Main!$N$22,Coefficients!$E$2:$H$28,4,FALSE),E71,NA()) -> 9115.328157 | E71: ='4th Order Polynomial TMP vs Res'!$B$41+'4th Order Polynomial TMP vs Res'!$C$41*POWER(B71,1)+'4th Order Polynomial TMP vs Res'!$D$41*POWER(B71,2)+'4th Order Polynomial TMP vs Res'!$E$41*POWER(B71,3)+'4th Order Polynomial TMP vs Res'!$F$41*POWER(B71,4) -> 9115.328157 | F71: 9206.481439 | J71: ='4th Order Polynomial TMP vs Res'!$I$41*E71^4 + '4th Order Polynomial TMP vs Res'!$J$41*E71^3 + '4th Order Polynomial TMP vs Res'!$K$41*E71^2 + '4th Order Polynomial TMP vs Res'!$L$41*E71 + '4th Order Polynomial TMP vs Res'!$M$41 -> 11.024756 | K71: -0.02475600141
A72: 53 | B72: 12 | C72: 9081.837315 | D72: =IF(B72 <= VLOOKUP(Main!$N$22,Coefficients!$E$2:$H$28,4,FALSE),E72,NA()) -> 9173.573046 | E72: ='4th Order Polynomial TMP vs Res'!$B$41+'4th Order Polynomial TMP vs Res'!$C$41*POWER(B72,1)+'4th Order Polynomial TMP vs Res'!$D$41*POWER(B72,2)+'4th Order Polynomial TMP vs Res'!$E$41*POWER(B72,3)+'4th Order Polynomial TMP vs Res'!$F$41*POWER(B72,4) -> 9173.573046 | F72: 9265.308776 | J72: ='4th Order Polynomial TMP vs Res'!$I$41*E72^4 + '4th Order Polynomial TMP vs Res'!$J$41*E72^3 + '4th Order Polynomial TMP vs Res'!$K$41*E72^2 + '4th Order Polynomial TMP vs Res'!$L$41*E72 + '4th Order Polynomial TMP vs Res'!$M$41 -> 12.02835943 | K72: -0.02835943368
A73: 54 | B73: 13 | C73: 9139.803241 | D73: =IF(B73 <= VLOOKUP(Main!$N$22,Coefficients!$E$2:$H$28,4,FALSE),E73,NA()) -> 9232.124486 | E73: ='4th Order Polynomial TMP vs Res'!$B$41+'4th Order Polynomial TMP vs Res'!$C$41*POWER(B73,1)+'4th Order Polynomial TMP vs Res'!$D$41*POWER(B73,2)+'4th Order Polynomial TMP vs Res'!$E$41*POWER(B73,3)+'4th Order Polynomial TMP vs Res'!$F$41*POWER(B73,4) -> 9232.124486 | F73: 9324.445731 | J73: ='4th Order Polynomial TMP vs Res'!$I$41*E73^4 + '4th Order Polynomial TMP vs Res'!$J$41*E73^3 + '4th Order Polynomial TMP vs Res'!$K$41*E73^2 + '4th Order Polynomial TMP vs Res'!$L$41*E73 + '4th Order Polynomial TMP vs Res'!$M$41 -> 13.03178383 | K73: -0.03178382719
A74: 55 | B74: 14 | C74: 9198.073079 | D74: =IF(B74 <= VLOOKUP(Main!$N$22,Coefficients!$E$2:$H$28,4,FALSE),E74,NA()) -> 9290.982908 | E74: ='4th Order Polynomial TMP vs Res'!$B$41+'4th Order Polynomial TMP vs Res'!$C$41*POWER(B74,1)+'4th Order Polynomial TMP vs Res'!$D$41*POWER(B74,2)+'4th Order Polynomial TMP vs Res'!$E$41*POWER(B74,3)+'4th Order Polynomial TMP vs Res'!$F$41*POWER(B74,4) -> 9290.982908 | F74: 9383.892738 | J74: ='4th Order Polynomial TMP vs Res'!$I$41*E74^4 + '4th Order Polynomial TMP vs Res'!$J$41*E74^3 + '4th Order Polynomial TMP vs Res'!$K$41*E74^2 + '4th Order Polynomial TMP vs Res'!$L$41*E74 + '4th Order Polynomial TMP vs Res'!$M$41 -> 14.0350183 | K74: -0.0350183009
A75: 56 | B75: 15 | C75: 9256.647262 | D75: =IF(B75 <= VLOOKUP(Main!$N$22,Coefficients!$E$2:$H$28,4,FALSE),E75,NA()) -> 9350.14875 | E75: ='4th Order Polynomial TMP vs Res'!$B$41+'4th Order Polynomial TMP vs Res'!$C$41*POWER(B75,1)+'4th Order Polynomial TMP vs Res'!$D$41*POWER(B75,2)+'4th Order Polynomial TMP vs Res'!$E$41*POWER(B75,3)+'4th Order Polynomial TMP vs Res'!$F$41*POWER(B75,4) -> 9350.14875 | F75: 9443.650237 | J75: ='4th Order Polynomial TMP vs Res'!$I$41*E75^4 + '4th Order Polynomial TMP vs Res'!$J$41*E75^3 + '4th Order Polynomial TMP vs Res'!$K$41*E75^2 + '4th Order Polynomial TMP vs Res'!$L$41*E75 + '4th Order Polynomial TMP vs Res'!$M$41 -> 15.03805293 | K75: -0.03805293243
A76: 57 | B76: 16 | C76: 9315.526227 | D76: =IF(B76 <= VLOOKUP(Main!$N$22,Coefficients!$E$2:$H$28,4,FALSE),E76,NA()) -> 9409.622452 | E76: ='4th Order Polynomial TMP vs Res'!$B$41+'4th Order Polynomial TMP vs Res'!$C$41*POWER(B76,1)+'4th Order Polynomial TMP vs Res'!$D$41*POWER(B76,2)+'4th Order Polynomial TMP vs Res'!$E$41*POWER(B76,3)+'4th Order Polynomial TMP vs Res'!$F$41*POWER(B76,4) -> 9409.622452 | F76: 9503.718676 | J76: ='4th Order Polynomial TMP vs Res'!$I$41*E76^4 + '4th Order Polynomial TMP vs Res'!$J$41*E76^3 + '4th Order Polynomial TMP vs Res'!$K$41*E76^2 + '4th Order Polynomial TMP vs Res'!$L$41*E76 + '4th Order Polynomial TMP vs Res'!$M$41 -> 16.04087875 | K76: -0.04087875115
A77: 58 | B77: 17 | C77: 9374.710419 | D77: =IF(B77 <= VLOOKUP(Main!$N$22,Coefficients!$E$2:$H$28,4,FALSE),E77,NA()) -> 9469.404463 | E77: ='4th Order Polynomial TMP vs Res'!$B$41+'4th Order Polynomial TMP vs Res'!$C$41*POWER(B77,1)+'4th Order Polynomial TMP vs Res'!$D$41*POWER(B77,2)+'4th Order Polynomial TMP vs Res'!$E$41*POWER(B77,3)+'4th Order Polynomial TMP vs Res'!$F$41*POWER(B77,4) -> 9469.404463 | F77: 9564.098508 | J77: ='4th Order Polynomial TMP vs Res'!$I$41*E77^4 + '4th Order Polynomial TMP vs Res'!$J$41*E77^3 + '4th Order Polynomial TMP vs Res'!$K$41*E77^2 + '4th Order Polynomial TMP vs Res'!$L$41*E77 + '4th Order Polynomial TMP vs Res'!$M$41 -> 17.04348773 | K77: -0.04348773093
A78: 59 | B78: 18 | C78: 9434.200286 | D78: =IF(B78 <= VLOOKUP(Main!$N$22,Coefficients!$E$2:$H$28,4,FALSE),E78,NA()) -> 9529.495239 | E78: ='4th Order Polynomial TMP vs Res'!$B$41+'4th Order Polynomial TMP vs Res'!$C$41*POWER(B78,1)+'4th Order Polynomial TMP vs Res'!$D$41*POWER(B78,2)+'4th Order Polynomial TMP vs Res'!$E$41*POWER(B78,3)+'4th Order Polynomial TMP vs Res'!$F$41*POWER(B78,4) -> 9529.495239 | F78: 9624.790191 | J78: ='4th Order Polynomial TMP vs Res'!$I$41*E78^4 + '4th Order Polynomial TMP vs Res'!$J$41*E78^3 + '4th Order Polynomial TMP vs Res'!$K$41*E78^2 + '4th Order Polynomial TMP vs Res'!$L$41*E78 + '4th Order Polynomial TMP vs Res'!$M$41 -> 18.04587278 | K78: -0.04587278215
A79: 60 | B79: 19 | C79: 9493.996286 | D79: =IF(B79 <= VLOOKUP(Main!$N$22,Coefficients!$E$2:$H$28,4,FALSE),E79,NA()) -> 9589.895238 | E79: ='4th Order Polynomial TMP vs Res'!$B$41+'4th Order Polynomial TMP vs Res'!$C$41*POWER(B79,1)+'4th Order Polynomial TMP vs Res'!$D$41*POWER(B79,2)+'4th Order Polynomial TMP vs Res'!$E$41*POWER(B79,3)+'4th Order Polynomial TMP vs Res'!$F$41*POWER(B79,4) -> 9589.895238 | F79: 9685.794191 | J79: ='4th Order Polynomial TMP vs Res'!$I$41*E79^4 + '4th Order Polynomial TMP vs Res'!$J$41*E79^3 + '4th Order Polynomial TMP vs Res'!$K$41*E79^2 + '4th Order Polynomial TMP vs Res'!$L$41*E79 + '4th Order Polynomial TMP vs Res'!$M$41 -> 19.04802774 | K79: -0.04802774322
A80: 61 | B80: 20 | C80: 9554.09888 | D80: =IF(B80 <= VLOOKUP(Main!$N$22,Coefficients!$E$2:$H$28,4,FALSE),E80,NA()) -> 9650.604929 | E80: ='4th Order Polynomial TMP vs Res'!$B$41+'4th Order Polynomial TMP vs Res'!$C$41*POWER(B80,1)+'4th Order Polynomial TMP vs Res'!$D$41*POWER(B80,2)+'4th Order Polynomial TMP vs Res'!$E$41*POWER(B80,3)+'4th Order Polynomial TMP vs Res'!$F$41*POWER(B80,4) -> 9650.604929 | F80: 9747.110978 | J80: ='4th Order Polynomial TMP vs Res'!$I$41*E80^4 + '4th Order Polynomial TMP vs Res'!$J$41*E80^3 + '4th Order Polynomial TMP vs Res'!$K$41*E80^2 + '4th Order Polynomial TMP vs Res'!$L$41*E80 + '4th Order Polynomial TMP vs Res'!$M$41 -> 20.04994737 | K80: -0.04994737152
A81: 62 | B81: 21 | C81: 9614.508536 | D81: =IF(B81 <= VLOOKUP(Main!$N$22,Coefficients!$E$2:$H$28,4,FALSE),E81,NA()) -> 9711.624783 | E81: ='4th Order Polynomial TMP vs Res'!$B$41+'4th Order Polynomial TMP vs Res'!$C$41*POWER(B81,1)+'4th Order Polynomial TMP vs Res'!$D$41*POWER(B81,2)+'4th Order Polynomial TMP vs Res'!$E$41*POWER(B81,3)+'4th Order Polynomial TMP vs Res'!$F$41*POWER(B81,4) -> 9711.624783 | F81: 9808.741031 | J81: ='4th Order Polynomial TMP vs Res'!$I$41*E81^4 + '4th Order Polynomial TMP vs Res'!$J$41*E81^3 + '4th Order Polynomial TMP vs Res'!$K$41*E81^2 + '4th Order Polynomial TMP vs Res'!$L$41*E81 + '4th Order Polynomial TMP vs Res'!$M$41 -> 21.05162733 | K81: -0.05162733363
A82: 63 | B82: 22 | C82: 9675.225727 | D82: =IF(B82 <= VLOOKUP(Main!$N$22,Coefficients!$E$2:$H$28,4,FALSE),E82,NA()) -> 9772.95528 | E82: ='4th Order Polynomial TMP vs Res'!$B$41+'4th Order Polynomial TMP vs Res'!$C$41*POWER(B82,1)+'4th Order Polynomial TMP vs Res'!$D$41*POWER(B82,2)+'4th Order Polynomial TMP vs Res'!$E$41*POWER(B82,3)+'4th Order Polynomial TMP vs Res'!$F$41*POWER(B82,4) -> 9772.95528 | F82: 9870.684833 | J82: ='4th Order Polynomial TMP vs Res'!$I$41*E82^4 + '4th Order Polynomial TMP vs Res'!$J$41*E82^3 + '4th Order Polynomial TMP vs Res'!$K$41*E82^2 + '4th Order Polynomial TMP vs Res'!$L$41*E82 + '4th Order Polynomial TMP vs Res'!$M$41 -> 22.0530642 | K82: -0.05306419506
A83: 64 | B83: 23 | C83: 9736.250934 | D83: =IF(B83 <= VLOOKUP(Main!$N$22,Coefficients!$E$2:$H$28,4,FALSE),E83,NA()) -> 9834.596903 | E83: ='4th Order Polynomial TMP vs Res'!$B$41+'4th Order Polynomial TMP vs Res'!$C$41*POWER(B83,1)+'4th Order Polynomial TMP vs Res'!$D$41*POWER(B83,2)+'4th Order Polynomial TMP vs Res'!$E$41*POWER(B83,3)+'4th Order Polynomial TMP vs Res'!$F$41*POWER(B83,4) -> 9834.596903 | F83: 9932.942872 | J83: ='4th Order Polynomial TMP vs Res'!$I$41*E83^4 + '4th Order Polynomial TMP vs Res'!$J$41*E83^3 + '4th Order Polynomial TMP vs Res'!$K$41*E83^2 + '4th Order Polynomial TMP vs Res'!$L$41*E83 + '4th Order Polynomial TMP vs Res'!$M$41 -> 23.05425541 | K83: -0.05425540922
A84: 65 | B84: 24 | C84: 9797.584643 | D84: =IF(B84 <= VLOOKUP(Main!$N$22,Coefficients!$E$2:$H$28,4,FALSE),E84,NA()) -> 9896.550144 | E84: ='4th Order Polynomial TMP vs Res'!$B$41+'4th Order Polynomial TMP vs Res'!$C$41*POWER(B84,1)+'4th Order Polynomial TMP vs Res'!$D$41*POWER(B84,2)+'4th Order Polynomial TMP vs Res'!$E$41*POWER(B84,3)+'4th Order Polynomial TMP vs Res'!$F$41*POWER(B84,4) -> 9896.550144 | F84: 9995.515646 | J84: ='4th Order Polynomial TMP vs Res'!$I$41*E84^4 + '4th Order Polynomial TMP vs Res'!$J$41*E84^3 + '4th Order Polynomial TMP vs Res'!$K$41*E84^2 + '4th Order Polynomial TMP vs Res'!$L$41*E84 + '4th Order Polynomial TMP vs Res'!$M$41 -> 24.05519931 | K84: =B84-J84 -> -0.05519930589
A85: 66 | B85: 25 | C85: 9859.227345 | D85: =IF(B85 <= VLOOKUP(Main!$N$22,Coefficients!$E$2:$H$28,4,FALSE),E85,NA()) -> 9958.8155 | E85: ='4th Order Polynomial TMP vs Res'!$B$41+'4th Order Polynomial TMP vs Res'!$C$41*POWER(B85,1)+'4th Order Polynomial TMP vs Res'!$D$41*POWER(B85,2)+'4th Order Polynomial TMP vs Res'!$E$41*POWER(B85,3)+'4th Order Polynomial TMP vs Res'!$F$41*POWER(B85,4) -> 9958.8155 | F85: 10058.40365 | J85: ='4th Order Polynomial TMP vs Res'!$I$41*E85^4 + '4th Order Polynomial TMP vs Res'!$J$41*E85^3 + '4th Order Polynomial TMP vs Res'!$K$41*E85^2 + '4th Order Polynomial TMP vs Res'!$L$41*E85 + '4th Order Polynomial TMP vs Res'!$M$41 -> 25.05589508 | K85: -0.05589507884
A86: 67 | B86: =B85+1 -> 26 | C86: 9921.179538 | D86: =IF(B86 <= VLOOKUP(Main!$N$22,Coefficients!$E$2:$H$28,4,FALSE),E86,NA()) -> 10021.39347 | E86: ='4th Order Polynomial TMP vs Res'!$B$41+'4th Order Polynomial TMP vs Res'!$C$41*POWER(B86,1)+'4th Order Polynomial TMP vs Res'!$D$41*POWER(B86,2)+'4th Order Polynomial TMP vs Res'!$E$41*POWER(B86,3)+'4th Order Polynomial TMP vs Res'!$F$41*POWER(B86,4) -> 10021.39347 | F86: 10121.60741 | J86: ='4th Order Polynomial TMP vs Res'!$I$41*E86^4 + '4th Order Polynomial TMP vs Res'!$J$41*E86^3 + '4th Order Polynomial TMP vs Res'!$K$41*E86^2 + '4th Order Polynomial TMP vs Res'!$L$41*E86 + '4th Order Polynomial TMP vs Res'!$M$41 -> 26.05634277 | K86: -0.05634277293
A87: 68 | B87: 27 | C87: 9983.441725 | D87: =IF(B87 <= VLOOKUP(Main!$N$22,Coefficients!$E$2:$H$28,4,FALSE),E87,NA()) -> 10084.28457 | E87: ='4th Order Polynomial TMP vs Res'!$B$41+'4th Order Polynomial TMP vs Res'!$C$41*POWER(B87,1)+'4th Order Polynomial TMP vs Res'!$D$41*POWER(B87,2)+'4th Order Polynomial TMP vs Res'!$E$41*POWER(B87,3)+'4th Order Polynomial TMP vs Res'!$F$41*POWER(B87,4) -> 10084.28457 | F87: 10185.12742 | J87: ='4th Order Polynomial TMP vs Res'!$I$41*E87^4 + '4th Order Polynomial TMP vs Res'!$J$41*E87^3 + '4th Order Polynomial TMP vs Res'!$K$41*E87^2 + '4th Order Polynomial TMP vs Res'!$L$41*E87 + '4th Order Polynomial TMP vs Res'!$M$41 -> 27.05654327 | K87: -0.05654327045
A88: 69 | B88: 28 | C88: 10046.01442 | D88: =IF(B88 <= VLOOKUP(Main!$N$22,Coefficients!$E$2:$H$28,4,FALSE),E88,NA()) -> 10147.48931 | E88: ='4th Order Polynomial TMP vs Res'!$B$41+'4th Order Polynomial TMP vs Res'!$C$41*POWER(B88,1)+'4th Order Polynomial TMP vs Res'!$D$41*POWER(B88,2)+'4th Order Polynomial TMP vs Res'!$E$41*POWER(B88,3)+'4th Order Polynomial TMP vs Res'!$F$41*POWER(B88,4) -> 10147.48931 | F88: 10248.9642 | J88: ='4th Order Polynomial TMP vs Res'!$I$41*E88^4 + '4th Order Polynomial TMP vs Res'!$J$41*E88^3 + '4th Order Polynomial TMP vs Res'!$K$41*E88^2 + '4th Order Polynomial TMP vs Res'!$L$41*E88 + '4th Order Polynomial TMP vs Res'!$M$41 -> 28.05649828 | K88: -0.05649827671
A89: 70 | B89: 29 | C89: 10108.89813 | D89: =IF(B89 <= VLOOKUP(Main!$N$22,Coefficients!$E$2:$H$28,4,FALSE),E89,NA()) -> 10211.00821 | E89: ='4th Order Polynomial TMP vs Res'!$B$41+'4th Order Polynomial TMP vs Res'!$C$41*POWER(B89,1)+'4th Order Polynomial TMP vs Res'!$D$41*POWER(B89,2)+'4th Order Polynomial TMP vs Res'!$E$41*POWER(B89,3)+'4th Order Polynomial TMP vs Res'!$F$41*POWER(B89,4) -> 10211.00821 | F89: 10313.1183 | J89: ='4th Order Polynomial TMP vs Res'!$I$41*E89^4 + '4th Order Polynomial TMP vs Res'!$J$41*E89^3 + '4th Order Polynomial TMP vs Res'!$K$41*E89^2 + '4th Order Polynomial TMP vs Res'!$L$41*E89 + '4th Order Polynomial TMP vs Res'!$M$41 -> 29.0562103 | K89: -0.05621030498
A90: 71 | B90: 30 | C90: 10172.09339 | D90: =IF(B90 <= VLOOKUP(Main!$N$22,Coefficients!$E$2:$H$28,4,FALSE),E90,NA()) -> 10274.8418 | E90: ='4th Order Polynomial TMP vs Res'!$B$41+'4th Order Polynomial TMP vs Res'!$C$41*POWER(B90,1)+'4th Order Polynomial TMP vs Res'!$D$41*POWER(B90,2)+'4th Order Polynomial TMP vs Res'!$E$41*POWER(B90,3)+'4th Order Polynomial TMP vs Res'!$F$41*POWER(B90,4) -> 10274.8418 | F90: 10377.59022 | J90: ='4th Order Polynomial TMP vs Res'!$I$41*E90^4 + '4th Order Polynomial TMP vs Res'!$J$41*E90^3 + '4th Order Polynomial TMP vs Res'!$K$41*E90^2 + '4th Order Polynomial TMP vs Res'!$L$41*E90 + '4th Order Polynomial TMP vs Res'!$M$41 -> 30.05568266 | K90: -0.05568266061
A91: 72 | B91: 31 | C91: 10235.60071 | D91: =IF(B91 <= VLOOKUP(Main!$N$22,Coefficients!$E$2:$H$28,4,FALSE),E91,NA()) -> 10338.99062 | E91: ='4th Order Polynomial TMP vs Res'!$B$41+'4th Order Polynomial TMP vs Res'!$C$41*POWER(B91,1)+'4th Order Polynomial TMP vs Res'!$D$41*POWER(B91,2)+'4th Order Polynomial TMP vs Res'!$E$41*POWER(B91,3)+'4th Order Polynomial TMP vs Res'!$F$41*POWER(B91,4) -> 10338.99062 | F91: 10442.38052 | J91: ='4th Order Polynomial TMP vs Res'!$I$41*E91^4 + '4th Order Polynomial TMP vs Res'!$J$41*E91^3 + '4th Order Polynomial TMP vs Res'!$K$41*E91^2 + '4th Order Polynomial TMP vs Res'!$L$41*E91 + '4th Order Polynomial TMP vs Res'!$M$41 -> 31.05491942 | K91: -0.05491942449
A92: 73 | B92: 32 | C92: 10299.42064 | D92: =IF(B92 <= VLOOKUP(Main!$N$22,Coefficients!$E$2:$H$28,4,FALSE),E92,NA()) -> 10403.45519 | E92: ='4th Order Polynomial TMP vs Res'!$B$41+'4th Order Polynomial TMP vs Res'!$C$41*POWER(B92,1)+'4th Order Polynomial TMP vs Res'!$D$41*POWER(B92,2)+'4th Order Polynomial TMP vs Res'!$E$41*POWER(B92,3)+'4th Order Polynomial TMP vs Res'!$F$41*POWER(B92,4) -> 10403.45519 | F92: 10507.48975 | J92: ='4th Order Polynomial TMP vs Res'!$I$41*E92^4 + '4th Order Polynomial TMP vs Res'!$J$41*E92^3 + '4th Order Polynomial TMP vs Res'!$K$41*E92^2 + '4th Order Polynomial TMP vs Res'!$L$41*E92 + '4th Order Polynomial TMP vs Res'!$M$41 -> 32.05392544 | K92: -0.05392543561
A93: 74 | B93: 33 | C93: 10363.55371 | D93: =IF(B93 <= VLOOKUP(Main!$N$22,Coefficients!$E$2:$H$28,4,FALSE),E93,NA()) -> 10468.23607 | E93: ='4th Order Polynomial TMP vs Res'!$B$41+'4th Order Polynomial TMP vs Res'!$C$41*POWER(B93,1)+'4th Order Polynomial TMP vs Res'!$D$41*POWER(B93,2)+'4th Order Polynomial TMP vs Res'!$E$41*POWER(B93,3)+'4th Order Polynomial TMP vs Res'!$F$41*POWER(B93,4) -> 10468.23607 | F93: 10572.91844 | J93: ='4th Order Polynomial TMP vs Res'!$I$41*E93^4 + '4th Order Polynomial TMP vs Res'!$J$41*E93^3 + '4th Order Polynomial TMP vs Res'!$K$41*E93^2 + '4th Order Polynomial TMP vs Res'!$L$41*E93 + '4th Order Polynomial TMP vs Res'!$M$41 -> 33.05270627 | K93: -0.0527062729
A94: 75 | B94: 34 | C94: 10428.00048 | D94: =IF(B94 <= VLOOKUP(Main!$N$22,Coefficients!$E$2:$H$28,4,FALSE),E94,NA()) -> 10533.33381 | E94: ='4th Order Polynomial TMP vs Res'!$B$41+'4th Order Polynomial TMP vs Res'!$C$41*POWER(B94,1)+'4th Order Polynomial TMP vs Res'!$D$41*POWER(B94,2)+'4th Order Polynomial TMP vs Res'!$E$41*POWER(B94,3)+'4th Order Polynomial TMP vs Res'!$F$41*POWER(B94,4) -> 10533.33381 | F94: 10638.66715 | J94: ='4th Order Polynomial TMP vs Res'!$I$41*E94^4 + '4th Order Polynomial TMP vs Res'!$J$41*E94^3 + '4th Order Polynomial TMP vs Res'!$K$41*E94^2 + '4th Order Polynomial TMP vs Res'!$L$41*E94 + '4th Order Polynomial TMP vs Res'!$M$41 -> 34.05126824 | K94: -0.0512682363
A95: 76 | B95: 35 | C95: 10492.76148 | D95: =IF(B95 <= VLOOKUP(Main!$N$22,Coefficients!$E$2:$H$28,4,FALSE),E95,NA()) -> 10598.74897 | E95: ='4th Order Polynomial TMP vs Res'!$B$41+'4th Order Polynomial TMP vs Res'!$C$41*POWER(B95,1)+'4th Order Polynomial TMP vs Res'!$D$41*POWER(B95,2)+'4th Order Polynomial TMP vs Res'!$E$41*POWER(B95,3)+'4th Order Polynomial TMP vs Res'!$F$41*POWER(B95,4) -> 10598.74897 | F95: 10704.73646 | J95: ='4th Order Polynomial TMP vs Res'!$I$41*E95^4 + '4th Order Polynomial TMP vs Res'!$J$41*E95^3 + '4th Order Polynomial TMP vs Res'!$K$41*E95^2 + '4th Order Polynomial TMP vs Res'!$L$41*E95 + '4th Order Polynomial TMP vs Res'!$M$41 -> 35.04961833 | K95: -0.04961832686
A96: 77 | B96: 36 | C96: 10557.83728 | D96: =IF(B96 <= VLOOKUP(Main!$N$22,Coefficients!$E$2:$H$28,4,FALSE),E96,NA()) -> 10664.4821 | E96: ='4th Order Polynomial TMP vs Res'!$B$41+'4th Order Polynomial TMP vs Res'!$C$41*POWER(B96,1)+'4th Order Polynomial TMP vs Res'!$D$41*POWER(B96,2)+'4th Order Polynomial TMP vs Res'!$E$41*POWER(B96,3)+'4th Order Polynomial TMP vs Res'!$F$41*POWER(B96,4) -> 10664.4821 | F96: 10771.12692 | J96: ='4th Order Polynomial TMP vs Res'!$I$41*E96^4 + '4th Order Polynomial TMP vs Res'!$J$41*E96^3 + '4th Order Polynomial TMP vs Res'!$K$41*E96^2 + '4th Order Polynomial TMP vs Res'!$L$41*E96 + '4th Order Polynomial TMP vs Res'!$M$41 -> 36.04776423 | K96: -0.04776422615
A97: 78 | B97: 37 | C97: 10623.22844 | D97: =IF(B97 <= VLOOKUP(Main!$N$22,Coefficients!$E$2:$H$28,4,FALSE),E97,NA()) -> 10730.53378 | E97: ='4th Order Polynomial TMP vs Res'!$B$41+'4th Order Polynomial TMP vs Res'!$C$41*POWER(B97,1)+'4th Order Polynomial TMP vs Res'!$D$41*POWER(B97,2)+'4th Order Polynomial TMP vs Res'!$E$41*POWER(B97,3)+'4th Order Polynomial TMP vs Res'!$F$41*POWER(B97,4) -> 10730.53378 | F97: 10837.83912 | J97: ='4th Order Polynomial TMP vs Res'!$I$41*E97^4 + '4th Order Polynomial TMP vs Res'!$J$41*E97^3 + '4th Order Polynomial TMP vs Res'!$K$41*E97^2 + '4th Order Polynomial TMP vs Res'!$L$41*E97 + '4th Order Polynomial TMP vs Res'!$M$41 -> 37.04571427 | K97: -0.04571427471
A98: 79 | B98: 38 | C98: 10688.93554 | D98: =IF(B98 <= VLOOKUP(Main!$N$22,Coefficients!$E$2:$H$28,4,FALSE),E98,NA()) -> 10796.90459 | E98: ='4th Order Polynomial TMP vs Res'!$B$41+'4th Order Polynomial TMP vs Res'!$C$41*POWER(B98,1)+'4th Order Polynomial TMP vs Res'!$D$41*POWER(B98,2)+'4th Order Polynomial TMP vs Res'!$E$41*POWER(B98,3)+'4th Order Polynomial TMP vs Res'!$F$41*POWER(B98,4) -> 10796.90459 | F98: 10904.87363 | J98: ='4th Order Polynomial TMP vs Res'!$I$41*E98^4 + '4th Order Polynomial TMP vs Res'!$J$41*E98^3 + '4th Order Polynomial TMP vs Res'!$K$41*E98^2 + '4th Order Polynomial TMP vs Res'!$L$41*E98 + '4th Order Polynomial TMP vs Res'!$M$41 -> 38.04347745 | K98: -0.04347744961
A99: 80 | B99: 39 | C99: 10754.95914 | D99: =IF(B99 <= VLOOKUP(Main!$N$22,Coefficients!$E$2:$H$28,4,FALSE),E99,NA()) -> 10863.59509 | E99: ='4th Order Polynomial TMP vs Res'!$B$41+'4th Order Polynomial TMP vs Res'!$C$41*POWER(B99,1)+'4th Order Polynomial TMP vs Res'!$D$41*POWER(B99,2)+'4th Order Polynomial TMP vs Res'!$E$41*POWER(B99,3)+'4th Order Polynomial TMP vs Res'!$F$41*POWER(B99,4) -> 10863.59509 | F99: 10972.23104 | J99: ='4th Order Polynomial TMP vs Res'!$I$41*E99^4 + '4th Order Polynomial TMP vs Res'!$J$41*E99^3 + '4th Order Polynomial TMP vs Res'!$K$41*E99^2 + '4th Order Polynomial TMP vs Res'!$L$41*E99 + '4th Order Polynomial TMP vs Res'!$M$41 -> 39.04106334 | K99: -0.04106334117
A100: 81 | B100: 40 | C100: 10821.29984 | D100: =IF(B100 <= VLOOKUP(Main!$N$22,Coefficients!$E$2:$H$28,4,FALSE),E100,NA()) -> 10930.60589 | E100: ='4th Order Polynomial TMP vs Res'!$B$41+'4th Order Polynomial TMP vs Res'!$C$41*POWER(B100,1)+'4th Order Polynomial TMP vs Res'!$D$41*POWER(B100,2)+'4th Order Polynomial TMP vs Res'!$E$41*POWER(B100,3)+'4th Order Polynomial TMP vs Res'!$F$41*POWER(B100,4) -> 10930.60589 | F100: 11039.91195 | J100: ='4th Order Polynomial TMP vs Res'!$I$41*E100^4 + '4th Order Polynomial TMP vs Res'!$J$41*E100^3 + '4th Order Polynomial TMP vs Res'!$K$41*E100^2 + '4th Order Polynomial TMP vs Res'!$L$41*E100 + '4th Order Polynomial TMP vs Res'!$M$41 -> 40.03848213 | K100: -0.03848212871
A101: 82 | B101: 41 | C101: 10887.9582 | D101: =IF(B101 <= VLOOKUP(Main!$N$22,Coefficients!$E$2:$H$28,4,FALSE),E101,NA()) -> 10997.93758 | E101: ='4th Order Polynomial TMP vs Res'!$B$41+'4th Order Polynomial TMP vs Res'!$C$41*POWER(B101,1)+'4th Order Polynomial TMP vs Res'!$D$41*POWER(B101,2)+'4th Order Polynomial TMP vs Res'!$E$41*POWER(B101,3)+'4th Order Polynomial TMP vs Res'!$F$41*POWER(B101,4) -> 10997.93758 | F101: 11107.91696 | J101: ='4th Order Polynomial TMP vs Res'!$I$41*E101^4 + '4th Order Polynomial TMP vs Res'!$J$41*E101^3 + '4th Order Polynomial TMP vs Res'!$K$41*E101^2 + '4th Order Polynomial TMP vs Res'!$L$41*E101 + '4th Order Polynomial TMP vs Res'!$M$41 -> 41.03574456 | K101: -0.03574455533
A102: 83 | B102: 42 | C102: 10954.93484 | D102: =IF(B102 <= VLOOKUP(Main!$N$22,Coefficients!$E$2:$H$28,4,FALSE),E102,NA()) -> 11065.59075 | E102: ='4th Order Polynomial TMP vs Res'!$B$41+'4th Order Polynomial TMP vs Res'!$C$41*POWER(B102,1)+'4th Order Polynomial TMP vs Res'!$D$41*POWER(B102,2)+'4th Order Polynomial TMP vs Res'!$E$41*POWER(B102,3)+'4th Order Polynomial TMP vs Res'!$F$41*POWER(B102,4) -> 11065.59075 | F102: 11176.24666 | J102: ='4th Order Polynomial TMP vs Res'!$I$41*E102^4 + '4th Order Polynomial TMP vs Res'!$J$41*E102^3 + '4th Order Polynomial TMP vs Res'!$K$41*E102^2 + '4th Order Polynomial TMP vs Res'!$L$41*E102 + '4th Order Polynomial TMP vs Res'!$M$41 -> 42.0328619 | K102: -0.03286190178
A103: 84 | B103: 43 | C103: 11022.23035 | D103: =IF(B103 <= VLOOKUP(Main!$N$22,Coefficients!$E$2:$H$28,4,FALSE),E103,NA()) -> 11133.56602 | E103: ='4th Order Polynomial TMP vs Res'!$B$41+'4th Order Polynomial TMP vs Res'!$C$41*POWER(B103,1)+'4th Order Polynomial TMP vs Res'!$D$41*POWER(B103,2)+'4th Order Polynomial TMP vs Res'!$E$41*POWER(B103,3)+'4th Order Polynomial TMP vs Res'!$F$41*POWER(B103,4) -> 11133.56602 | F103: 11244.90168 | J103: ='4th Order Polynomial TMP vs Res'!$I$41*E103^4 + '4th Order Polynomial TMP vs Res'!$J$41*E103^3 + '4th Order Polynomial TMP vs Res'!$K$41*E103^2 + '4th Order Polynomial TMP vs Res'!$L$41*E103 + '4th Order Polynomial TMP vs Res'!$M$41 -> 43.02984596 | K103: -0.02984595934
A104: 85 | B104: 44 | C104: 11089.84534 | D104: =IF(B104 <= VLOOKUP(Main!$N$22,Coefficients!$E$2:$H$28,4,FALSE),E104,NA()) -> 11201.86398 | E104: ='4th Order Polynomial TMP vs Res'!$B$41+'4th Order Polynomial TMP vs Res'!$C$41*POWER(B104,1)+'4th Order Polynomial TMP vs Res'!$D$41*POWER(B104,2)+'4th Order Polynomial TMP vs Res'!$E$41*POWER(B104,3)+'4th Order Polynomial TMP vs Res'!$F$41*POWER(B104,4) -> 11201.86398 | F104: 11313.88262 | J104: ='4th Order Polynomial TMP vs Res'!$I$41*E104^4 + '4th Order Polynomial TMP vs Res'!$J$41*E104^3 + '4th Order Polynomial TMP vs Res'!$K$41*E104^2 + '4th Order Polynomial TMP vs Res'!$L$41*E104 + '4th Order Polynomial TMP vs Res'!$M$41 -> 44.026709 | K104: -0.02670900161
A105: 86 | B105: 45 | C105: 11157.78041 | D105: =IF(B105 <= VLOOKUP(Main!$N$22,Coefficients!$E$2:$H$28,4,FALSE),E105,NA()) -> 11270.48527 | E105: ='4th Order Polynomial TMP vs Res'!$B$41+'4th Order Polynomial TMP vs Res'!$C$41*POWER(B105,1)+'4th Order Polynomial TMP vs Res'!$D$41*POWER(B105,2)+'4th Order Polynomial TMP vs Res'!$E$41*POWER(B105,3)+'4th Order Polynomial TMP vs Res'!$F$41*POWER(B105,4) -> 11270.48527 | F105: 11383.19012 | J105: ='4th Order Polynomial TMP vs Res'!$I$41*E105^4 + '4th Order Polynomial TMP vs Res'!$J$41*E105^3 + '4th Order Polynomial TMP vs Res'!$K$41*E105^2 + '4th Order Polynomial TMP vs Res'!$L$41*E105 + '4th Order Polynomial TMP vs Res'!$M$41 -> 45.02346376 | K105: -0.02346375539
A106: 87 | B106: 46 | C106: 11226.03619 | D106: =IF(B106 <= VLOOKUP(Main!$N$22,Coefficients!$E$2:$H$28,4,FALSE),E106,NA()) -> 11339.4305 | E106: ='4th Order Polynomial TMP vs Res'!$B$41+'4th Order Polynomial TMP vs Res'!$C$41*POWER(B106,1)+'4th Order Polynomial TMP vs Res'!$D$41*POWER(B106,2)+'4th Order Polynomial TMP vs Res'!$E$41*POWER(B106,3)+'4th Order Polynomial TMP vs Res'!$F$41*POWER(B106,4) -> 11339.4305 | F106: 11452.8248 | J106: ='4th Order Polynomial TMP vs Res'!$I$41*E106^4 + '4th Order Polynomial TMP vs Res'!$J$41*E106^3 + '4th Order Polynomial TMP vs Res'!$K$41*E106^2 + '4th Order Polynomial TMP vs Res'!$L$41*E106 + '4th Order Polynomial TMP vs Res'!$M$41 -> 46.02012337 | K106: -0.0201233704
A107: 88 | B107: 47 | C107: 11294.6133 | D107: =IF(B107 <= VLOOKUP(Main!$N$22,Coefficients!$E$2:$H$28,4,FALSE),E107,NA()) -> 11408.7003 | E107: ='4th Order Polynomial TMP vs Res'!$B$41+'4th Order Polynomial TMP vs Res'!$C$41*POWER(B107,1)+'4th Order Polynomial TMP vs Res'!$D$41*POWER(B107,2)+'4th Order Polynomial TMP vs Res'!$E$41*POWER(B107,3)+'4th Order Polynomial TMP vs Res'!$F$41*POWER(B107,4) -> 11408.7003 | F107: 11522.7873 | J107: ='4th Order Polynomial TMP vs Res'!$I$41*E107^4 + '4th Order Polynomial TMP vs Res'!$J$41*E107^3 + '4th Order Polynomial TMP vs Res'!$K$41*E107^2 + '4th Order Polynomial TMP vs Res'!$L$41*E107 + '4th Order Polynomial TMP vs Res'!$M$41 -> 47.01670139 | K107: -0.016701388
A108: 89 | B108: 48 | C108: 11363.51236 | D108: =IF(B108 <= VLOOKUP(Main!$N$22,Coefficients!$E$2:$H$28,4,FALSE),E108,NA()) -> 11478.29531 | E108: ='4th Order Polynomial TMP vs Res'!$B$41+'4th Order Polynomial TMP vs Res'!$C$41*POWER(B108,1)+'4th Order Polynomial TMP vs Res'!$D$41*POWER(B108,2)+'4th Order Polynomial TMP vs Res'!$E$41*POWER(B108,3)+'4th Order Polynomial TMP vs Res'!$F$41*POWER(B108,4) -> 11478.29531 | F108: 11593.07827 | J108: ='4th Order Polynomial TMP vs Res'!$I$41*E108^4 + '4th Order Polynomial TMP vs Res'!$J$41*E108^3 + '4th Order Polynomial TMP vs Res'!$K$41*E108^2 + '4th Order Polynomial TMP vs Res'!$L$41*E108 + '4th Order Polynomial TMP vs Res'!$M$41 -> 48.01321171 | K108: -0.01321170876
A109: 90 | B109: 49 | C109: 11432.73402 | D109: =IF(B109 <= VLOOKUP(Main!$N$22,Coefficients!$E$2:$H$28,4,FALSE),E109,NA()) -> 11548.21618 | E109: ='4th Order Polynomial TMP vs Res'!$B$41+'4th Order Polynomial TMP vs Res'!$C$41*POWER(B109,1)+'4th Order Polynomial TMP vs Res'!$D$41*POWER(B109,2)+'4th Order Polynomial TMP vs Res'!$E$41*POWER(B109,3)+'4th Order Polynomial TMP vs Res'!$F$41*POWER(B109,4) -> 11548.21618 | F109: 11663.69834 | J109: ='4th Order Polynomial TMP vs Res'!$I$41*E109^4 + '4th Order Polynomial TMP vs Res'!$J$41*E109^3 + '4th Order Polynomial TMP vs Res'!$K$41*E109^2 + '4th Order Polynomial TMP vs Res'!$L$41*E109 + '4th Order Polynomial TMP vs Res'!$M$41 -> 49.00966856 | K109: -0.009668558934
A110: 91 | B110: 50 | C110: 11502.27891 | D110: =IF(B110 <= VLOOKUP(Main!$N$22,Coefficients!$E$2:$H$28,4,FALSE),E110,NA()) -> 11618.46355 | E110: ='4th Order Polynomial TMP vs Res'!$B$41+'4th Order Polynomial TMP vs Res'!$C$41*POWER(B110,1)+'4th Order Polynomial TMP vs Res'!$D$41*POWER(B110,2)+'4th Order Polynomial TMP vs Res'!$E$41*POWER(B110,3)+'4th Order Polynomial TMP vs Res'!$F$41*POWER(B110,4) -> 11618.46355 | F110: 11734.64818 | J110: ='4th Order Polynomial TMP vs Res'!$I$41*E110^4 + '4th Order Polynomial TMP vs Res'!$J$41*E110^3 + '4th Order Polynomial TMP vs Res'!$K$41*E110^2 + '4th Order Polynomial TMP vs Res'!$L$41*E110 + '4th Order Polynomial TMP vs Res'!$M$41 -> 50.00608646 | K110: -0.006086455801
A111: 92 | B111: 51 | C111: 11572.14769 | D111: =IF(B111 <= VLOOKUP(Main!$N$22,Coefficients!$E$2:$H$28,4,FALSE),E111,NA()) -> 11689.03807 | E111: ='4th Order Polynomial TMP vs Res'!$B$41+'4th Order Polynomial TMP vs Res'!$C$41*POWER(B111,1)+'4th Order Polynomial TMP vs Res'!$D$41*POWER(B111,2)+'4th Order Polynomial TMP vs Res'!$E$41*POWER(B111,3)+'4th Order Polynomial TMP vs Res'!$F$41*POWER(B111,4) -> 11689.03807 | F111: 11805.92845 | J111: ='4th Order Polynomial TMP vs Res'!$I$41*E111^4 + '4th Order Polynomial TMP vs Res'!$J$41*E111^3 + '4th Order Polynomial TMP vs Res'!$K$41*E111^2 + '4th Order Polynomial TMP vs Res'!$L$41*E111 + '4th Order Polynomial TMP vs Res'!$M$41 -> 51.00248017 | K111: -0.002480171779
A112: 93 | B112: 52 | C112: 11642.341 | D112: =IF(B112 <= VLOOKUP(Main!$N$22,Coefficients!$E$2:$H$28,4,FALSE),E112,NA()) -> 11759.9404 | E112: ='4th Order Polynomial TMP vs Res'!$B$41+'4th Order Polynomial TMP vs Res'!$C$41*POWER(B112,1)+'4th Order Polynomial TMP vs Res'!$D$41*POWER(B112,2)+'4th Order Polynomial TMP vs Res'!$E$41*POWER(B112,3)+'4th Order Polynomial TMP vs Res'!$F$41*POWER(B112,4) -> 11759.9404 | F112: 11877.53981 | J112: ='4th Order Polynomial TMP vs Res'!$I$41*E112^4 + '4th Order Polynomial TMP vs Res'!$J$41*E112^3 + '4th Order Polynomial TMP vs Res'!$K$41*E112^2 + '4th Order Polynomial TMP vs Res'!$L$41*E112 + '4th Order Polynomial TMP vs Res'!$M$41 -> 51.9988647 | K112: 0.001135302603
A113: 94 | B113: 53 | C113: 11712.8595 | D113: =IF(B113 <= VLOOKUP(Main!$N$22,Coefficients!$E$2:$H$28,4,FALSE),E113,NA()) -> 11831.17122 | E113: ='4th Order Polynomial TMP vs Res'!$B$41+'4th Order Polynomial TMP vs Res'!$C$41*POWER(B113,1)+'4th Order Polynomial TMP vs Res'!$D$41*POWER(B113,2)+'4th Order Polynomial TMP vs Res'!$E$41*POWER(B113,3)+'4th Order Polynomial TMP vs Res'!$F$41*POWER(B113,4) -> 11831.17122 | F113: 11949.48293 | J113: ='4th Order Polynomial TMP vs Res'!$I$41*E113^4 + '4th Order Polynomial TMP vs Res'!$J$41*E113^3 + '4th Order Polynomial TMP vs Res'!$K$41*E113^2 + '4th Order Polynomial TMP vs Res'!$L$41*E113 + '4th Order Polynomial TMP vs Res'!$M$41 -> 52.9952552 | K113: 0.004744796982
A114: 95 | B114: 54 | C114: 11783.70387 | D114: =IF(B114 <= VLOOKUP(Main!$N$22,Coefficients!$E$2:$H$28,4,FALSE),E114,NA()) -> 11902.73118 | E114: ='4th Order Polynomial TMP vs Res'!$B$41+'4th Order Polynomial TMP vs Res'!$C$41*POWER(B114,1)+'4th Order Polynomial TMP vs Res'!$D$41*POWER(B114,2)+'4th Order Polynomial TMP vs Res'!$E$41*POWER(B114,3)+'4th Order Polynomial TMP vs Res'!$F$41*POWER(B114,4) -> 11902.73118 | F114: 12021.7585 | J114: ='4th Order Polynomial TMP vs Res'!$I$41*E114^4 + '4th Order Polynomial TMP vs Res'!$J$41*E114^3 + '4th Order Polynomial TMP vs Res'!$K$41*E114^2 + '4th Order Polynomial TMP vs Res'!$L$41*E114 + '4th Order Polynomial TMP vs Res'!$M$41 -> 53.991667 | K114: 0.008333000681
A115: 96 | B115: 55 | C115: 11854.87477 | D115: =IF(B115 <= VLOOKUP(Main!$N$22,Coefficients!$E$2:$H$28,4,FALSE),E115,NA()) -> 11974.62098 | E115: ='4th Order Polynomial TMP vs Res'!$B$41+'4th Order Polynomial TMP vs Res'!$C$41*POWER(B115,1)+'4th Order Polynomial TMP vs Res'!$D$41*POWER(B115,2)+'4th Order Polynomial TMP vs Res'!$E$41*POWER(B115,3)+'4th Order Polynomial TMP vs Res'!$F$41*POWER(B115,4) -> 11974.62098 | F115: 12094.36719 | J115: ='4th Order Polynomial TMP vs Res'!$I$41*E115^4 + '4th Order Polynomial TMP vs Res'!$J$41*E115^3 + '4th Order Polynomial TMP vs Res'!$K$41*E115^2 + '4th Order Polynomial TMP vs Res'!$L$41*E115 + '4th Order Polynomial TMP vs Res'!$M$41 -> 54.9881155 | K115: 0.01188450351
A116: 97 | B116: 56 | C116: 11926.37288 | D116: =IF(B116 <= VLOOKUP(Main!$N$22,Coefficients!$E$2:$H$28,4,FALSE),E116,NA()) -> 12046.84129 | E116: ='4th Order Polynomial TMP vs Res'!$B$41+'4th Order Polynomial TMP vs Res'!$C$41*POWER(B116,1)+'4th Order Polynomial TMP vs Res'!$D$41*POWER(B116,2)+'4th Order Polynomial TMP vs Res'!$E$41*POWER(B116,3)+'4th Order Polynomial TMP vs Res'!$F$41*POWER(B116,4) -> 12046.84129 | F116: 12167.30971 | J116: ='4th Order Polynomial TMP vs Res'!$I$41*E116^4 + '4th Order Polynomial TMP vs Res'!$J$41*E116^3 + '4th Order Polynomial TMP vs Res'!$K$41*E116^2 + '4th Order Polynomial TMP vs Res'!$L$41*E116 + '4th Order Polynomial TMP vs Res'!$M$41 -> 55.98461616 | K116: =B116-J116 -> 0.01538383785
A117: 98 | B117: 57 | C117: 11998.19888 | D117: =IF(B117 <= VLOOKUP(Main!$N$22,Coefficients!$E$2:$H$28,4,FALSE),E117,NA()) -> 12119.39281 | E117: ='4th Order Polynomial TMP vs Res'!$B$41+'4th Order Polynomial TMP vs Res'!$C$41*POWER(B117,1)+'4th Order Polynomial TMP vs Res'!$D$41*POWER(B117,2)+'4th Order Polynomial TMP vs Res'!$E$41*POWER(B117,3)+'4th Order Polynomial TMP vs Res'!$F$41*POWER(B117,4) -> 12119.39281 | F117: 12240.58674 | J117: ='4th Order Polynomial TMP vs Res'!$I$41*E117^4 + '4th Order Polynomial TMP vs Res'!$J$41*E117^3 + '4th Order Polynomial TMP vs Res'!$K$41*E117^2 + '4th Order Polynomial TMP vs Res'!$L$41*E117 + '4th Order Polynomial TMP vs Res'!$M$41 -> 56.98118448 | K117: 0.01881552211
A118: 99 | B118: 58 | C118: 12070.35347 | D118: =IF(B118 <= VLOOKUP(Main!$N$22,Coefficients!$E$2:$H$28,4,FALSE),E118,NA()) -> 12192.27623 | E118: ='4th Order Polynomial TMP vs Res'!$B$41+'4th Order Polynomial TMP vs Res'!$C$41*POWER(B118,1)+'4th Order Polynomial TMP vs Res'!$D$41*POWER(B118,2)+'4th Order Polynomial TMP vs Res'!$E$41*POWER(B118,3)+'4th Order Polynomial TMP vs Res'!$F$41*POWER(B118,4) -> 12192.27623 | F118: 12314.19899 | J118: ='4th Order Polynomial TMP vs Res'!$I$41*E118^4 + '4th Order Polynomial TMP vs Res'!$J$41*E118^3 + '4th Order Polynomial TMP vs Res'!$K$41*E118^2 + '4th Order Polynomial TMP vs Res'!$L$41*E118 + '4th Order Polynomial TMP vs Res'!$M$41 -> 57.97783589 | K118: 0.02216410549
A119: 100 | B119: 59 | C119: 12142.83733 | D119: =IF(B119 <= VLOOKUP(Main!$N$22,Coefficients!$E$2:$H$28,4,FALSE),E119,NA()) -> 12265.49225 | E119: ='4th Order Polynomial TMP vs Res'!$B$41+'4th Order Polynomial TMP vs Res'!$C$41*POWER(B119,1)+'4th Order Polynomial TMP vs Res'!$D$41*POWER(B119,2)+'4th Order Polynomial TMP vs Res'!$E$41*POWER(B119,3)+'4th Order Polynomial TMP vs Res'!$F$41*POWER(B119,4) -> 12265.49225 | F119: 12388.14718 | J119: ='4th Order Polynomial TMP vs Res'!$I$41*E119^4 + '4th Order Polynomial TMP vs Res'!$J$41*E119^3 + '4th Order Polynomial TMP vs Res'!$K$41*E119^2 + '4th Order Polynomial TMP vs Res'!$L$41*E119 + '4th Order Polynomial TMP vs Res'!$M$41 -> 58.97458579 | K119: 0.0254142142
A120: 101 | B120: 60 | C120: 12215.65117 | D120: =IF(B120 <= VLOOKUP(Main!$N$22,Coefficients!$E$2:$H$28,4,FALSE),E120,NA()) -> 12339.04159 | E120: ='4th Order Polynomial TMP vs Res'!$B$41+'4th Order Polynomial TMP vs Res'!$C$41*POWER(B120,1)+'4th Order Polynomial TMP vs Res'!$D$41*POWER(B120,2)+'4th Order Polynomial TMP vs Res'!$E$41*POWER(B120,3)+'4th Order Polynomial TMP vs Res'!$F$41*POWER(B120,4) -> 12339.04159 | F120: 12462.43201 | J120: ='4th Order Polynomial TMP vs Res'!$I$41*E120^4 + '4th Order Polynomial TMP vs Res'!$J$41*E120^3 + '4th Order Polynomial TMP vs Res'!$K$41*E120^2 + '4th Order Polynomial TMP vs Res'!$L$41*E120 + '4th Order Polynomial TMP vs Res'!$M$41 -> 59.9714494 | K120: 0.02855059899
A121: 102 | B121: 61 | C121: 12288.7957 | D121: =IF(B121 <= VLOOKUP(Main!$N$22,Coefficients!$E$2:$H$28,4,FALSE),E121,NA()) -> 12412.92495 | E121: ='4th Order Polynomial TMP vs Res'!$B$41+'4th Order Polynomial TMP vs Res'!$C$41*POWER(B121,1)+'4th Order Polynomial TMP vs Res'!$D$41*POWER(B121,2)+'4th Order Polynomial TMP vs Res'!$E$41*POWER(B121,3)+'4th Order Polynomial TMP vs Res'!$F$41*POWER(B121,4) -> 12412.92495 | F121: 12537.0542 | J121: ='4th Order Polynomial TMP vs Res'!$I$41*E121^4 + '4th Order Polynomial TMP vs Res'!$J$41*E121^3 + '4th Order Polynomial TMP vs Res'!$K$41*E121^2 + '4th Order Polynomial TMP vs Res'!$L$41*E121 + '4th Order Polynomial TMP vs Res'!$M$41 -> 60.96844182 | K121: 0.03155818427
A122: 103 | B122: 62 | C122: 12362.27163 | D122: =IF(B122 <= VLOOKUP(Main!$N$22,Coefficients!$E$2:$H$28,4,FALSE),E122,NA()) -> 12487.14306 | E122: ='4th Order Polynomial TMP vs Res'!$B$41+'4th Order Polynomial TMP vs Res'!$C$41*POWER(B122,1)+'4th Order Polynomial TMP vs Res'!$D$41*POWER(B122,2)+'4th Order Polynomial TMP vs Res'!$E$41*POWER(B122,3)+'4th Order Polynomial TMP vs Res'!$F$41*POWER(B122,4) -> 12487.14306 | F122: 12612.01449 | J122: ='4th Order Polynomial TMP vs Res'!$I$41*E122^4 + '4th Order Polynomial TMP vs Res'!$J$41*E122^3 + '4th Order Polynomial TMP vs Res'!$K$41*E122^2 + '4th Order Polynomial TMP vs Res'!$L$41*E122 + '4th Order Polynomial TMP vs Res'!$M$41 -> 61.96557788 | K122: 0.03442211858
A123: 104 | B123: 63 | C123: 12436.07968 | D123: =IF(B123 <= VLOOKUP(Main!$N$22,Coefficients!$E$2:$H$28,4,FALSE),E123,NA()) -> 12561.69665 | E123: ='4th Order Polynomial TMP vs Res'!$B$41+'4th Order Polynomial TMP vs Res'!$C$41*POWER(B123,1)+'4th Order Polynomial TMP vs Res'!$D$41*POWER(B123,2)+'4th Order Polynomial TMP vs Res'!$E$41*POWER(B123,3)+'4th Order Polynomial TMP vs Res'!$F$41*POWER(B123,4) -> 12561.69665 | F123: 12687.31362 | J123: ='4th Order Polynomial TMP vs Res'!$I$41*E123^4 + '4th Order Polynomial TMP vs Res'!$J$41*E123^3 + '4th Order Polynomial TMP vs Res'!$K$41*E123^2 + '4th Order Polynomial TMP vs Res'!$L$41*E123 + '4th Order Polynomial TMP vs Res'!$M$41 -> 62.96287217 | K123: 0.03712782662
A124: 105 | B124: 64 | C124: 12510.22058 | D124: =IF(B124 <= VLOOKUP(Main!$N$22,Coefficients!$E$2:$H$28,4,FALSE),E124,NA()) -> 12636.58644 | E124: ='4th Order Polynomial TMP vs Res'!$B$41+'4th Order Polynomial TMP vs Res'!$C$41*POWER(B124,1)+'4th Order Polynomial TMP vs Res'!$D$41*POWER(B124,2)+'4th Order Polynomial TMP vs Res'!$E$41*POWER(B124,3)+'4th Order Polynomial TMP vs Res'!$F$41*POWER(B124,4) -> 12636.58644 | F124: 12762.95231 | J124: ='4th Order Polynomial TMP vs Res'!$I$41*E124^4 + '4th Order Polynomial TMP vs Res'!$J$41*E124^3 + '4th Order Polynomial TMP vs Res'!$K$41*E124^2 + '4th Order Polynomial TMP vs Res'!$L$41*E124 + '4th Order Polynomial TMP vs Res'!$M$41 -> 63.96033894 | K124: 0.03966106288
A125: 106 | B125: 65 | C125: =IFERROR(D125*0.99,NA()) -> 12584.69505 | D125: =IF(B125 <= VLOOKUP(Main!$N$22,Coefficients!$E$2:$H$28,4,FALSE),E125,NA()) -> 12711.81318 | E125: ='4th Order Polynomial TMP vs Res'!$B$41+'4th Order Polynomial TMP vs Res'!$C$41*POWER(B125,1)+'4th Order Polynomial TMP vs Res'!$D$41*POWER(B125,2)+'4th Order Polynomial TMP vs Res'!$E$41*POWER(B125,3)+'4th Order Polynomial TMP vs Res'!$F$41*POWER(B125,4) -> 12711.81318 | F125: =IFERROR(D125*1.01,NA()) -> 12838.93131 | J125: ='4th Order Polynomial TMP vs Res'!$I$41*E125^4 + '4th Order Polynomial TMP vs Res'!$J$41*E125^3 + '4th Order Polynomial TMP vs Res'!$K$41*E125^2 + '4th Order Polynomial TMP vs Res'!$L$41*E125 + '4th Order Polynomial TMP vs Res'!$M$41 -> 64.95799203 | K125: 0.04200796671
A126: 107 | B126: 66 | C126: 12659.50383 | D126: =IF(B126 <= VLOOKUP(Main!$N$22,Coefficients!$E$2:$H$28,4,FALSE),E126,NA()) -> 12787.37761 | E126: ='4th Order Polynomial TMP vs Res'!$B$41+'4th Order Polynomial TMP vs Res'!$C$41*POWER(B126,1)+'4th Order Polynomial TMP vs Res'!$D$41*POWER(B126,2)+'4th Order Polynomial TMP vs Res'!$E$41*POWER(B126,3)+'4th Order Polynomial TMP vs Res'!$F$41*POWER(B126,4) -> 12787.37761 | F126: 12915.25138 | J126: ='4th Order Polynomial TMP vs Res'!$I$41*E126^4 + '4th Order Polynomial TMP vs Res'!$J$41*E126^3 + '4th Order Polynomial TMP vs Res'!$K$41*E126^2 + '4th Order Polynomial TMP vs Res'!$L$41*E126 + '4th Order Polynomial TMP vs Res'!$M$41 -> 65.95584488 | K126: 0.04415511913
A127: 108 | B127: 67 | C127: 12734.64767 | D127: =IF(B127 <= VLOOKUP(Main!$N$22,Coefficients!$E$2:$H$28,4,FALSE),E127,NA()) -> 12863.28048 | E127: ='4th Order Polynomial TMP vs Res'!$B$41+'4th Order Polynomial TMP vs Res'!$C$41*POWER(B127,1)+'4th Order Polynomial TMP vs Res'!$D$41*POWER(B127,2)+'4th Order Polynomial TMP vs Res'!$E$41*POWER(B127,3)+'4th Order Polynomial TMP vs Res'!$F$41*POWER(B127,4) -> 12863.28048 | F127: 12991.91328 | J127: ='4th Order Polynomial TMP vs Res'!$I$41*E127^4 + '4th Order Polynomial TMP vs Res'!$J$41*E127^3 + '4th Order Polynomial TMP vs Res'!$K$41*E127^2 + '4th Order Polynomial TMP vs Res'!$L$41*E127 + '4th Order Polynomial TMP vs Res'!$M$41 -> 66.9539104 | K127: 0.04608960121
A128: 109 | B128: 68 | C128: 12810.12732 | D128: =IF(B128 <= VLOOKUP(Main!$N$22,Coefficients!$E$2:$H$28,4,FALSE),E128,NA()) -> 12939.52254 | E128: ='4th Order Polynomial TMP vs Res'!$B$41+'4th Order Polynomial TMP vs Res'!$C$41*POWER(B128,1)+'4th Order Polynomial TMP vs Res'!$D$41*POWER(B128,2)+'4th Order Polynomial TMP vs Res'!$E$41*POWER(B128,3)+'4th Order Polynomial TMP vs Res'!$F$41*POWER(B128,4) -> 12939.52254 | F128: 13068.91777 | J128: ='4th Order Polynomial TMP vs Res'!$I$41*E128^4 + '4th Order Polynomial TMP vs Res'!$J$41*E128^3 + '4th Order Polynomial TMP vs Res'!$K$41*E128^2 + '4th Order Polynomial TMP vs Res'!$L$41*E128 + '4th Order Polynomial TMP vs Res'!$M$41 -> 67.95220095 | K128: 0.04779905412
A129: 110 | B129: 69 | C129: 12885.94353 | D129: =IF(B129 <= VLOOKUP(Main!$N$22,Coefficients!$E$2:$H$28,4,FALSE),E129,NA()) -> 13016.10457 | E129: ='4th Order Polynomial TMP vs Res'!$B$41+'4th Order Polynomial TMP vs Res'!$C$41*POWER(B129,1)+'4th Order Polynomial TMP vs Res'!$D$41*POWER(B129,2)+'4th Order Polynomial TMP vs Res'!$E$41*POWER(B129,3)+'4th Order Polynomial TMP vs Res'!$F$41*POWER(B129,4) -> 13016.10457 | F129: 13146.26562 | J129: ='4th Order Polynomial TMP vs Res'!$I$41*E129^4 + '4th Order Polynomial TMP vs Res'!$J$41*E129^3 + '4th Order Polynomial TMP vs Res'!$K$41*E129^2 + '4th Order Polynomial TMP vs Res'!$L$41*E129 + '4th Order Polynomial TMP vs Res'!$M$41 -> 68.95072826 | K129: 0.04927174093
A130: 111 | B130: 70 | C130: 12962.09706 | D130: =IF(B130 <= VLOOKUP(Main!$N$22,Coefficients!$E$2:$H$28,4,FALSE),E130,NA()) -> 13093.02733 | E130: ='4th Order Polynomial TMP vs Res'!$B$41+'4th Order Polynomial TMP vs Res'!$C$41*POWER(B130,1)+'4th Order Polynomial TMP vs Res'!$D$41*POWER(B130,2)+'4th Order Polynomial TMP vs Res'!$E$41*POWER(B130,3)+'4th Order Polynomial TMP vs Res'!$F$41*POWER(B130,4) -> 13093.02733 | F130: 13223.9576 | J130: ='4th Order Polynomial TMP vs Res'!$I$41*E130^4 + '4th Order Polynomial TMP vs Res'!$J$41*E130^3 + '4th Order Polynomial TMP vs Res'!$K$41*E130^2 + '4th Order Polynomial TMP vs Res'!$L$41*E130 + '4th Order Polynomial TMP vs Res'!$M$41 -> 69.94950339 | K130: 0.05049661012
A131: 112 | B131: 71 | C131: =IFERROR(D131*0.985,NA()) -> 12972.73722 | D131: =IF(B131 <= VLOOKUP(Main!$N$22,Coefficients!$E$2:$H$28,4,FALSE),E131,NA()) -> 13170.29159 | E131: ='4th Order Polynomial TMP vs Res'!$B$41+'4th Order Polynomial TMP vs Res'!$C$41*POWER(B131,1)+'4th Order Polynomial TMP vs Res'!$D$41*POWER(B131,2)+'4th Order Polynomial TMP vs Res'!$E$41*POWER(B131,3)+'4th Order Polynomial TMP vs Res'!$F$41*POWER(B131,4) -> 13170.29159 | F131: =IFERROR(D131*1.015,NA()) -> 13367.84597 | J131: ='4th Order Polynomial TMP vs Res'!$I$41*E131^4 + '4th Order Polynomial TMP vs Res'!$J$41*E131^3 + '4th Order Polynomial TMP vs Res'!$K$41*E131^2 + '4th Order Polynomial TMP vs Res'!$L$41*E131 + '4th Order Polynomial TMP vs Res'!$M$41 -> 70.94853664 | K131: 0.05146336089
A132: 113 | B132: 72 | C132: 13049.17967 | D132: =IF(B132 <= VLOOKUP(Main!$N$22,Coefficients!$E$2:$H$28,4,FALSE),E132,NA()) -> 13247.89814 | E132: ='4th Order Polynomial TMP vs Res'!$B$41+'4th Order Polynomial TMP vs Res'!$C$41*POWER(B132,1)+'4th Order Polynomial TMP vs Res'!$D$41*POWER(B132,2)+'4th Order Polynomial TMP vs Res'!$E$41*POWER(B132,3)+'4th Order Polynomial TMP vs Res'!$F$41*POWER(B132,4) -> 13247.89814 | F132: 13446.61661 | J132: ='4th Order Polynomial TMP vs Res'!$I$41*E132^4 + '4th Order Polynomial TMP vs Res'!$J$41*E132^3 + '4th Order Polynomial TMP vs Res'!$K$41*E132^2 + '4th Order Polynomial TMP vs Res'!$L$41*E132 + '4th Order Polynomial TMP vs Res'!$M$41 -> 71.94783749 | K132: 0.05216251029
A133: 114 | B133: 73 | C133: 13125.96005 | D133: =IF(B133 <= VLOOKUP(Main!$N$22,Coefficients!$E$2:$H$28,4,FALSE),E133,NA()) -> 13325.84776 | E133: ='4th Order Polynomial TMP vs Res'!$B$41+'4th Order Polynomial TMP vs Res'!$C$41*POWER(B133,1)+'4th Order Polynomial TMP vs Res'!$D$41*POWER(B133,2)+'4th Order Polynomial TMP vs Res'!$E$41*POWER(B133,3)+'4th Order Polynomial TMP vs Res'!$F$41*POWER(B133,4) -> 13325.84776 | F133: 13525.73548 | J133: ='4th Order Polynomial TMP vs Res'!$I$41*E133^4 + '4th Order Polynomial TMP vs Res'!$J$41*E133^3 + '4th Order Polynomial TMP vs Res'!$K$41*E133^2 + '4th Order Polynomial TMP vs Res'!$L$41*E133 + '4th Order Polynomial TMP vs Res'!$M$41 -> 72.94741454 | K133: 0.05258546219
A134: 115 | B134: 74 | C134: 13203.07913 | D134: =IF(B134 <= VLOOKUP(Main!$N$22,Coefficients!$E$2:$H$28,4,FALSE),E134,NA()) -> 13404.14125 | E134: ='4th Order Polynomial TMP vs Res'!$B$41+'4th Order Polynomial TMP vs Res'!$C$41*POWER(B134,1)+'4th Order Polynomial TMP vs Res'!$D$41*POWER(B134,2)+'4th Order Polynomial TMP vs Res'!$E$41*POWER(B134,3)+'4th Order Polynomial TMP vs Res'!$F$41*POWER(B134,4) -> 13404.14125 | F134: 13605.20337 | J134: ='4th Order Polynomial TMP vs Res'!$I$41*E134^4 + '4th Order Polynomial TMP vs Res'!$J$41*E134^3 + '4th Order Polynomial TMP vs Res'!$K$41*E134^2 + '4th Order Polynomial TMP vs Res'!$L$41*E134 + '4th Order Polynomial TMP vs Res'!$M$41 -> 73.94727542 | K134: 0.05272457816
A135: 116 | B135: 75 | C135: 13280.53771 | D135: =IF(B135 <= VLOOKUP(Main!$N$22,Coefficients!$E$2:$H$28,4,FALSE),E135,NA()) -> 13482.7794 | E135: ='4th Order Polynomial TMP vs Res'!$B$41+'4th Order Polynomial TMP vs Res'!$C$41*POWER(B135,1)+'4th Order Polynomial TMP vs Res'!$D$41*POWER(B135,2)+'4th Order Polynomial TMP vs Res'!$E$41*POWER(B135,3)+'4th Order Polynomial TMP vs Res'!$F$41*POWER(B135,4) -> 13482.7794 | F135: 13685.02109 | J135: ='4th Order Polynomial TMP vs Res'!$I$41*E135^4 + '4th Order Polynomial TMP vs Res'!$J$41*E135^3 + '4th Order Polynomial TMP vs Res'!$K$41*E135^2 + '4th Order Polynomial TMP vs Res'!$L$41*E135 + '4th Order Polynomial TMP vs Res'!$M$41 -> 74.94742675 | K135: 0.05257325027
A136: 117 | B136: 76 | C136: 13358.33658 | D136: =IF(B136 <= VLOOKUP(Main!$N$22,Coefficients!$E$2:$H$28,4,FALSE),E136,NA()) -> 13561.76303 | E136: ='4th Order Polynomial TMP vs Res'!$B$41+'4th Order Polynomial TMP vs Res'!$C$41*POWER(B136,1)+'4th Order Polynomial TMP vs Res'!$D$41*POWER(B136,2)+'4th Order Polynomial TMP vs Res'!$E$41*POWER(B136,3)+'4th Order Polynomial TMP vs Res'!$F$41*POWER(B136,4) -> 13561.76303 | F136: 13765.18947 | J136: ='4th Order Polynomial TMP vs Res'!$I$41*E136^4 + '4th Order Polynomial TMP vs Res'!$J$41*E136^3 + '4th Order Polynomial TMP vs Res'!$K$41*E136^2 + '4th Order Polynomial TMP vs Res'!$L$41*E136 + '4th Order Polynomial TMP vs Res'!$M$41 -> 75.94787402 | K136: 0.05212597589
A137: 118 | B137: 77 | C137: 13436.47654 | D137: =IF(B137 <= VLOOKUP(Main!$N$22,Coefficients!$E$2:$H$28,4,FALSE),E137,NA()) -> 13641.09293 | E137: ='4th Order Polynomial TMP vs Res'!$B$41+'4th Order Polynomial TMP vs Res'!$C$41*POWER(B137,1)+'4th Order Polynomial TMP vs Res'!$D$41*POWER(B137,2)+'4th Order Polynomial TMP vs Res'!$E$41*POWER(B137,3)+'4th Order Polynomial TMP vs Res'!$F$41*POWER(B137,4) -> 13641.09293 | F137: 13845.70933 | J137: ='4th Order Polynomial TMP vs Res'!$I$41*E137^4 + '4th Order Polynomial TMP vs Res'!$J$41*E137^3 + '4th Order Polynomial TMP vs Res'!$K$41*E137^2 + '4th Order Polynomial TMP vs Res'!$L$41*E137 + '4th Order Polynomial TMP vs Res'!$M$41 -> 76.94862157 | K137: 0.05137843445
A138: 119 | B138: 78 | C138: 13514.95839 | D138: =IF(B138 <= VLOOKUP(Main!$N$22,Coefficients!$E$2:$H$28,4,FALSE),E138,NA()) -> 13720.76994 | E138: ='4th Order Polynomial TMP vs Res'!$B$41+'4th Order Polynomial TMP vs Res'!$C$41*POWER(B138,1)+'4th Order Polynomial TMP vs Res'!$D$41*POWER(B138,2)+'4th Order Polynomial TMP vs Res'!$E$41*POWER(B138,3)+'4th Order Polynomial TMP vs Res'!$F$41*POWER(B138,4) -> 13720.76994 | F138: 13926.58149 | J138: ='4th Order Polynomial TMP vs Res'!$I$41*E138^4 + '4th Order Polynomial TMP vs Res'!$J$41*E138^3 + '4th Order Polynomial TMP vs Res'!$K$41*E138^2 + '4th Order Polynomial TMP vs Res'!$L$41*E138 + '4th Order Polynomial TMP vs Res'!$M$41 -> 77.94967243 | K138: 0.05032756633
A139: 120 | B139: 79 | C139: 13593.78294 | D139: =IF(B139 <= VLOOKUP(Main!$N$22,Coefficients!$E$2:$H$28,4,FALSE),E139,NA()) -> 13800.79487 | E139: ='4th Order Polynomial TMP vs Res'!$B$41+'4th Order Polynomial TMP vs Res'!$C$41*POWER(B139,1)+'4th Order Polynomial TMP vs Res'!$D$41*POWER(B139,2)+'4th Order Polynomial TMP vs Res'!$E$41*POWER(B139,3)+'4th Order Polynomial TMP vs Res'!$F$41*POWER(B139,4) -> 13800.79487 | F139: 14007.80679 | J139: ='4th Order Polynomial TMP vs Res'!$I$41*E139^4 + '4th Order Polynomial TMP vs Res'!$J$41*E139^3 + '4th Order Polynomial TMP vs Res'!$K$41*E139^2 + '4th Order Polynomial TMP vs Res'!$L$41*E139 + '4th Order Polynomial TMP vs Res'!$M$41 -> 78.95102835 | K139: 0.04897165378
A140: 121 | B140: 80 | C140: 13672.95102 | D140: =IF(B140 <= VLOOKUP(Main!$N$22,Coefficients!$E$2:$H$28,4,FALSE),E140,NA()) -> 13881.16855 | E140: ='4th Order Polynomial TMP vs Res'!$B$41+'4th Order Polynomial TMP vs Res'!$C$41*POWER(B140,1)+'4th Order Polynomial TMP vs Res'!$D$41*POWER(B140,2)+'4th Order Polynomial TMP vs Res'!$E$41*POWER(B140,3)+'4th Order Polynomial TMP vs Res'!$F$41*POWER(B140,4) -> 13881.16855 | F140: 14089.38607 | J140: ='4th Order Polynomial TMP vs Res'!$I$41*E140^4 + '4th Order Polynomial TMP vs Res'!$J$41*E140^3 + '4th Order Polynomial TMP vs Res'!$K$41*E140^2 + '4th Order Polynomial TMP vs Res'!$L$41*E140 + '4th Order Polynomial TMP vs Res'!$M$41 -> 79.9526896 | K140: 0.04731040403
A141: 122 | B141: 81 | C141: 13752.46344 | D141: =IF(B141 <= VLOOKUP(Main!$N$22,Coefficients!$E$2:$H$28,4,FALSE),E141,NA()) -> 13961.89181 | E141: ='4th Order Polynomial TMP vs Res'!$B$41+'4th Order Polynomial TMP vs Res'!$C$41*POWER(B141,1)+'4th Order Polynomial TMP vs Res'!$D$41*POWER(B141,2)+'4th Order Polynomial TMP vs Res'!$E$41*POWER(B141,3)+'4th Order Polynomial TMP vs Res'!$F$41*POWER(B141,4) -> 13961.89181 | F141: 14171.32019 | J141: ='4th Order Polynomial TMP vs Res'!$I$41*E141^4 + '4th Order Polynomial TMP vs Res'!$J$41*E141^3 + '4th Order Polynomial TMP vs Res'!$K$41*E141^2 + '4th Order Polynomial TMP vs Res'!$L$41*E141 + '4th Order Polynomial TMP vs Res'!$M$41 -> 80.95465497 | K141: 0.04534503453
A142: 123 | B142: 82 | C142: 13832.32103 | D142: =IF(B142 <= VLOOKUP(Main!$N$22,Coefficients!$E$2:$H$28,4,FALSE),E142,NA()) -> 14042.96551 | E142: ='4th Order Polynomial TMP vs Res'!$B$41+'4th Order Polynomial TMP vs Res'!$C$41*POWER(B142,1)+'4th Order Polynomial TMP vs Res'!$D$41*POWER(B142,2)+'4th Order Polynomial TMP vs Res'!$E$41*POWER(B142,3)+'4th Order Polynomial TMP vs Res'!$F$41*POWER(B142,4) -> 14042.96551 | F142: 14253.60999 | J142: ='4th Order Polynomial TMP vs Res'!$I$41*E142^4 + '4th Order Polynomial TMP vs Res'!$J$41*E142^3 + '4th Order Polynomial TMP vs Res'!$K$41*E142^2 + '4th Order Polynomial TMP vs Res'!$L$41*E142 + '4th Order Polynomial TMP vs Res'!$M$41 -> 81.95692164 | K142: 0.04307836048
A143: 124 | B143: 83 | C143: 13912.52463 | D143: =IF(B143 <= VLOOKUP(Main!$N$22,Coefficients!$E$2:$H$28,4,FALSE),E143,NA()) -> 14124.39048 | E143: ='4th Order Polynomial TMP vs Res'!$B$41+'4th Order Polynomial TMP vs Res'!$C$41*POWER(B143,1)+'4th Order Polynomial TMP vs Res'!$D$41*POWER(B143,2)+'4th Order Polynomial TMP vs Res'!$E$41*POWER(B143,3)+'4th Order Polynomial TMP vs Res'!$F$41*POWER(B143,4) -> 14124.39048 | F143: 14336.25634 | J143: ='4th Order Polynomial TMP vs Res'!$I$41*E143^4 + '4th Order Polynomial TMP vs Res'!$J$41*E143^3 + '4th Order Polynomial TMP vs Res'!$K$41*E143^2 + '4th Order Polynomial TMP vs Res'!$L$41*E143 + '4th Order Polynomial TMP vs Res'!$M$41 -> 82.95948512 | K143: 0.04051488461
A144: 125 | B144: 84 | C144: 13993.07507 | D144: =IF(B144 <= VLOOKUP(Main!$N$22,Coefficients!$E$2:$H$28,4,FALSE),E144,NA()) -> 14206.16759 | E144: ='4th Order Polynomial TMP vs Res'!$B$41+'4th Order Polynomial TMP vs Res'!$C$41*POWER(B144,1)+'4th Order Polynomial TMP vs Res'!$D$41*POWER(B144,2)+'4th Order Polynomial TMP vs Res'!$E$41*POWER(B144,3)+'4th Order Polynomial TMP vs Res'!$F$41*POWER(B144,4) -> 14206.16759 | F144: 14419.2601 | J144: ='4th Order Polynomial TMP vs Res'!$I$41*E144^4 + '4th Order Polynomial TMP vs Res'!$J$41*E144^3 + '4th Order Polynomial TMP vs Res'!$K$41*E144^2 + '4th Order Polynomial TMP vs Res'!$L$41*E144 + '4th Order Polynomial TMP vs Res'!$M$41 -> 83.96233911 | K144: 0.03766088923
A145: 126 | B145: 85 | C145: 14073.97321 | D145: =IF(B145 <= VLOOKUP(Main!$N$22,Coefficients!$E$2:$H$28,4,FALSE),E145,NA()) -> 14288.29768 | E145: ='4th Order Polynomial TMP vs Res'!$B$41+'4th Order Polynomial TMP vs Res'!$C$41*POWER(B145,1)+'4th Order Polynomial TMP vs Res'!$D$41*POWER(B145,2)+'4th Order Polynomial TMP vs Res'!$E$41*POWER(B145,3)+'4th Order Polynomial TMP vs Res'!$F$41*POWER(B145,4) -> 14288.29768 | F145: 14502.62214 | J145: ='4th Order Polynomial TMP vs Res'!$I$41*E145^4 + '4th Order Polynomial TMP vs Res'!$J$41*E145^3 + '4th Order Polynomial TMP vs Res'!$K$41*E145^2 + '4th Order Polynomial TMP vs Res'!$L$41*E145 + '4th Order Polynomial TMP vs Res'!$M$41 -> 84.96547547 | K145: 0.03452453073
A146: 127 | B146: 86 | C146: 14155.2199 | D146: =IF(B146 <= VLOOKUP(Main!$N$22,Coefficients!$E$2:$H$28,4,FALSE),E146,NA()) -> 14370.78163 | E146: ='4th Order Polynomial TMP vs Res'!$B$41+'4th Order Polynomial TMP vs Res'!$C$41*POWER(B146,1)+'4th Order Polynomial TMP vs Res'!$D$41*POWER(B146,2)+'4th Order Polynomial TMP vs Res'!$E$41*POWER(B146,3)+'4th Order Polynomial TMP vs Res'!$F$41*POWER(B146,4) -> 14370.78163 | F146: 14586.34335 | J146: ='4th Order Polynomial TMP vs Res'!$I$41*E146^4 + '4th Order Polynomial TMP vs Res'!$J$41*E146^3 + '4th Order Polynomial TMP vs Res'!$K$41*E146^2 + '4th Order Polynomial TMP vs Res'!$L$41*E146 + '4th Order Polynomial TMP vs Res'!$M$41 -> 85.96888406 | K146: 0.03111593645
A147: 128 | B147: 87 | C147: 14236.816 | D147: =IF(B147 <= VLOOKUP(Main!$N$22,Coefficients!$E$2:$H$28,4,FALSE),E147,NA()) -> 14453.6203 | E147: ='4th Order Polynomial TMP vs Res'!$B$41+'4th Order Polynomial TMP vs Res'!$C$41*POWER(B147,1)+'4th Order Polynomial TMP vs Res'!$D$41*POWER(B147,2)+'4th Order Polynomial TMP vs Res'!$E$41*POWER(B147,3)+'4th Order Polynomial TMP vs Res'!$F$41*POWER(B147,4) -> 14453.6203 | F147: 14670.42461 | J147: ='4th Order Polynomial TMP vs Res'!$I$41*E147^4 + '4th Order Polynomial TMP vs Res'!$J$41*E147^3 + '4th Order Polynomial TMP vs Res'!$K$41*E147^2 + '4th Order Polynomial TMP vs Res'!$L$41*E147 + '4th Order Polynomial TMP vs Res'!$M$41 -> 86.9725527 | K147: 0.02744730399
A148: 129 | B148: 88 | C148: 14318.76237 | D148: =IF(B148 <= VLOOKUP(Main!$N$22,Coefficients!$E$2:$H$28,4,FALSE),E148,NA()) -> 14536.81458 | E148: ='4th Order Polynomial TMP vs Res'!$B$41+'4th Order Polynomial TMP vs Res'!$C$41*POWER(B148,1)+'4th Order Polynomial TMP vs Res'!$D$41*POWER(B148,2)+'4th Order Polynomial TMP vs Res'!$E$41*POWER(B148,3)+'4th Order Polynomial TMP vs Res'!$F$41*POWER(B148,4) -> 14536.81458 | F148: 14754.8668 | J148: ='4th Order Polynomial TMP vs Res'!$I$41*E148^4 + '4th Order Polynomial TMP vs Res'!$J$41*E148^3 + '4th Order Polynomial TMP vs Res'!$K$41*E148^2 + '4th Order Polynomial TMP vs Res'!$L$41*E148 + '4th Order Polynomial TMP vs Res'!$M$41 -> 87.976467 | K148: =B148-J148 -> 0.0235330031
A149: 130 | B149: 89 | C149: 14401.05987 | D149: =IF(B149 <= VLOOKUP(Main!$N$22,Coefficients!$E$2:$H$28,4,FALSE),E149,NA()) -> 14620.36535 | E149: ='4th Order Polynomial TMP vs Res'!$B$41+'4th Order Polynomial TMP vs Res'!$C$41*POWER(B149,1)+'4th Order Polynomial TMP vs Res'!$D$41*POWER(B149,2)+'4th Order Polynomial TMP vs Res'!$E$41*POWER(B149,3)+'4th Order Polynomial TMP vs Res'!$F$41*POWER(B149,4) -> 14620.36535 | F149: 14839.67083 | J149: ='4th Order Polynomial TMP vs Res'!$I$41*E149^4 + '4th Order Polynomial TMP vs Res'!$J$41*E149^3 + '4th Order Polynomial TMP vs Res'!$K$41*E149^2 + '4th Order Polynomial TMP vs Res'!$L$41*E149 + '4th Order Polynomial TMP vs Res'!$M$41 -> 88.98061032 | K149: 0.01938968007
A150: 131 | B150: =B149+1 -> 90 | C150: 14483.7094 | D150: =IF(B150 <= VLOOKUP(Main!$N$22,Coefficients!$E$2:$H$28,4,FALSE),E150,NA()) -> 14704.2735 | E150: ='4th Order Polynomial TMP vs Res'!$B$41+'4th Order Polynomial TMP vs Res'!$C$41*POWER(B150,1)+'4th Order Polynomial TMP vs Res'!$D$41*POWER(B150,2)+'4th Order Polynomial TMP vs Res'!$E$41*POWER(B150,3)+'4th Order Polynomial TMP vs Res'!$F$41*POWER(B150,4) -> 14704.2735 | F150: 14924.83761 | J150: ='4th Order Polynomial TMP vs Res'!$I$41*E150^4 + '4th Order Polynomial TMP vs Res'!$J$41*E150^3 + '4th Order Polynomial TMP vs Res'!$K$41*E150^2 + '4th Order Polynomial TMP vs Res'!$L$41*E150 + '4th Order Polynomial TMP vs Res'!$M$41 -> 89.98496364 | K150: 0.01503636475
A151: 132 | B151: 91 | C151: 14566.71183 | D151: =IF(B151 <= VLOOKUP(Main!$N$22,Coefficients!$E$2:$H$28,4,FALSE),E151,NA()) -> 14788.53993 | E151: ='4th Order Polynomial TMP vs Res'!$B$41+'4th Order Polynomial TMP vs Res'!$C$41*POWER(B151,1)+'4th Order Polynomial TMP vs Res'!$D$41*POWER(B151,2)+'4th Order Polynomial TMP vs Res'!$E$41*POWER(B151,3)+'4th Order Polynomial TMP vs Res'!$F$41*POWER(B151,4) -> 14788.53993 | F151: 15010.36803 | J151: ='4th Order Polynomial TMP vs Res'!$I$41*E151^4 + '4th Order Polynomial TMP vs Res'!$J$41*E151^3 + '4th Order Polynomial TMP vs Res'!$K$41*E151^2 + '4th Order Polynomial TMP vs Res'!$L$41*E151 + '4th Order Polynomial TMP vs Res'!$M$41 -> 90.98950542 | K151: 0.01049458029
A152: 133 | B152: 92 | C152: 14650.06805 | D152: =IF(B152 <= VLOOKUP(Main!$N$22,Coefficients!$E$2:$H$28,4,FALSE),E152,NA()) -> 14873.16553 | E152: ='4th Order Polynomial TMP vs Res'!$B$41+'4th Order Polynomial TMP vs Res'!$C$41*POWER(B152,1)+'4th Order Polynomial TMP vs Res'!$D$41*POWER(B152,2)+'4th Order Polynomial TMP vs Res'!$E$41*POWER(B152,3)+'4th Order Polynomial TMP vs Res'!$F$41*POWER(B152,4) -> 14873.16553 | F152: 15096.26301 | J152: ='4th Order Polynomial TMP vs Res'!$I$41*E152^4 + '4th Order Polynomial TMP vs Res'!$J$41*E152^3 + '4th Order Polynomial TMP vs Res'!$K$41*E152^2 + '4th Order Polynomial TMP vs Res'!$L$41*E152 + '4th Order Polynomial TMP vs Res'!$M$41 -> 91.99421154 | K152: 0.005788455497
A153: 134 | B153: 93 | C153: 14733.77895 | D153: =IF(B153 <= VLOOKUP(Main!$N$22,Coefficients!$E$2:$H$28,4,FALSE),E153,NA()) -> 14958.15121 | E153: ='4th Order Polynomial TMP vs Res'!$B$41+'4th Order Polynomial TMP vs Res'!$C$41*POWER(B153,1)+'4th Order Polynomial TMP vs Res'!$D$41*POWER(B153,2)+'4th Order Polynomial TMP vs Res'!$E$41*POWER(B153,3)+'4th Order Polynomial TMP vs Res'!$F$41*POWER(B153,4) -> 14958.15121 | F153: 15182.52348 | J153: ='4th Order Polynomial TMP vs Res'!$I$41*E153^4 + '4th Order Polynomial TMP vs Res'!$J$41*E153^3 + '4th Order Polynomial TMP vs Res'!$K$41*E153^2 + '4th Order Polynomial TMP vs Res'!$L$41*E153 + '4th Order Polynomial TMP vs Res'!$M$41 -> 92.99905516 | K153: 0.0009448400645
A154: 135 | B154: 94 | C154: 14817.84543 | D154: =IF(B154 <= VLOOKUP(Main!$N$22,Coefficients!$E$2:$H$28,4,FALSE),E154,NA()) -> 15043.4979 | E154: ='4th Order Polynomial TMP vs Res'!$B$41+'4th Order Polynomial TMP vs Res'!$C$41*POWER(B154,1)+'4th Order Polynomial TMP vs Res'!$D$41*POWER(B154,2)+'4th Order Polynomial TMP vs Res'!$E$41*POWER(B154,3)+'4th Order Polynomial TMP vs Res'!$F$41*POWER(B154,4) -> 15043.4979 | F154: 15269.15037 | J154: ='4th Order Polynomial TMP vs Res'!$I$41*E154^4 + '4th Order Polynomial TMP vs Res'!$J$41*E154^3 + '4th Order Polynomial TMP vs Res'!$K$41*E154^2 + '4th Order Polynomial TMP vs Res'!$L$41*E154 + '4th Order Polynomial TMP vs Res'!$M$41 -> 94.00400658 | K154: -0.004006577416
A155: 136 | B155: 95 | C155: 14902.26841 | D155: =IF(B155 <= VLOOKUP(Main!$N$22,Coefficients!$E$2:$H$28,4,FALSE),E155,NA()) -> 15129.2065 | E155: ='4th Order Polynomial TMP vs Res'!$B$41+'4th Order Polynomial TMP vs Res'!$C$41*POWER(B155,1)+'4th Order Polynomial TMP vs Res'!$D$41*POWER(B155,2)+'4th Order Polynomial TMP vs Res'!$E$41*POWER(B155,3)+'4th Order Polynomial TMP vs Res'!$F$41*POWER(B155,4) -> 15129.2065 | F155: 15356.1446 | J155: ='4th Order Polynomial TMP vs Res'!$I$41*E155^4 + '4th Order Polynomial TMP vs Res'!$J$41*E155^3 + '4th Order Polynomial TMP vs Res'!$K$41*E155^2 + '4th Order Polynomial TMP vs Res'!$L$41*E155 + '4th Order Polynomial TMP vs Res'!$M$41 -> 95.00903315 | K155: -0.009033148553
A156: 137 | B156: 96 | C156: 14987.04878 | D156: =IF(B156 <= VLOOKUP(Main!$N$22,Coefficients!$E$2:$H$28,4,FALSE),E156,NA()) -> 15215.27795 | E156: ='4th Order Polynomial TMP vs Res'!$B$41+'4th Order Polynomial TMP vs Res'!$C$41*POWER(B156,1)+'4th Order Polynomial TMP vs Res'!$D$41*POWER(B156,2)+'4th Order Polynomial TMP vs Res'!$E$41*POWER(B156,3)+'4th Order Polynomial TMP vs Res'!$F$41*POWER(B156,4) -> 15215.27795 | F156: 15443.50712 | J156: ='4th Order Polynomial TMP vs Res'!$I$41*E156^4 + '4th Order Polynomial TMP vs Res'!$J$41*E156^3 + '4th Order Polynomial TMP vs Res'!$K$41*E156^2 + '4th Order Polynomial TMP vs Res'!$L$41*E156 + '4th Order Polynomial TMP vs Res'!$M$41 -> 96.01409914 | K156: -0.0140991413
A157: 138 | B157: 97 | C157: 15072.18748 | D157: =IF(B157 <= VLOOKUP(Main!$N$22,Coefficients!$E$2:$H$28,4,FALSE),E157,NA()) -> 15301.71318 | E157: ='4th Order Polynomial TMP vs Res'!$B$41+'4th Order Polynomial TMP vs Res'!$C$41*POWER(B157,1)+'4th Order Polynomial TMP vs Res'!$D$41*POWER(B157,2)+'4th Order Polynomial TMP vs Res'!$E$41*POWER(B157,3)+'4th Order Polynomial TMP vs Res'!$F$41*POWER(B157,4) -> 15301.71318 | F157: 15531.23888 | J157: ='4th Order Polynomial TMP vs Res'!$I$41*E157^4 + '4th Order Polynomial TMP vs Res'!$J$41*E157^3 + '4th Order Polynomial TMP vs Res'!$K$41*E157^2 + '4th Order Polynomial TMP vs Res'!$L$41*E157 + '4th Order Polynomial TMP vs Res'!$M$41 -> 97.01916561 | K157: -0.01916561311
A158: 139 | B158: 98 | C158: 15157.68543 | D158: =IF(B158 <= VLOOKUP(Main!$N$22,Coefficients!$E$2:$H$28,4,FALSE),E158,NA()) -> 15388.51312 | E158: ='4th Order Polynomial TMP vs Res'!$B$41+'4th Order Polynomial TMP vs Res'!$C$41*POWER(B158,1)+'4th Order Polynomial TMP vs Res'!$D$41*POWER(B158,2)+'4th Order Polynomial TMP vs Res'!$E$41*POWER(B158,3)+'4th Order Polynomial TMP vs Res'!$F$41*POWER(B158,4) -> 15388.51312 | F158: 15619.34082 | J158: ='4th Order Polynomial TMP vs Res'!$I$41*E158^4 + '4th Order Polynomial TMP vs Res'!$J$41*E158^3 + '4th Order Polynomial TMP vs Res'!$K$41*E158^2 + '4th Order Polynomial TMP vs Res'!$L$41*E158 + '4th Order Polynomial TMP vs Res'!$M$41 -> 98.02419028 | K158: -0.02419028103
A159: 140 | B159: 99 | C159: 15243.54355 | D159: =IF(B159 <= VLOOKUP(Main!$N$22,Coefficients!$E$2:$H$28,4,FALSE),E159,NA()) -> 15475.67873 | E159: ='4th Order Polynomial TMP vs Res'!$B$41+'4th Order Polynomial TMP vs Res'!$C$41*POWER(B159,1)+'4th Order Polynomial TMP vs Res'!$D$41*POWER(B159,2)+'4th Order Polynomial TMP vs Res'!$E$41*POWER(B159,3)+'4th Order Polynomial TMP vs Res'!$F$41*POWER(B159,4) -> 15475.67873 | F159: 15707.81391 | J159: ='4th Order Polynomial TMP vs Res'!$I$41*E159^4 + '4th Order Polynomial TMP vs Res'!$J$41*E159^3 + '4th Order Polynomial TMP vs Res'!$K$41*E159^2 + '4th Order Polynomial TMP vs Res'!$L$41*E159 + '4th Order Polynomial TMP vs Res'!$M$41 -> 99.02912739 | K159: -0.02912738864
A160: 141 | B160: 100 | C160: 15329.76278 | D160: =IF(B160 <= VLOOKUP(Main!$N$22,Coefficients!$E$2:$H$28,4,FALSE),E160,NA()) -> 15563.21094 | E160: ='4th Order Polynomial TMP vs Res'!$B$41+'4th Order Polynomial TMP vs Res'!$C$41*POWER(B160,1)+'4th Order Polynomial TMP vs Res'!$D$41*POWER(B160,2)+'4th Order Polynomial TMP vs Res'!$E$41*POWER(B160,3)+'4th Order Polynomial TMP vs Res'!$F$41*POWER(B160,4) -> 15563.21094 | F160: 15796.65911 | J160: ='4th Order Polynomial TMP vs Res'!$I$41*E160^4 + '4th Order Polynomial TMP vs Res'!$J$41*E160^3 + '4th Order Polynomial TMP vs Res'!$K$41*E160^2 + '4th Order Polynomial TMP vs Res'!$L$41*E160 + '4th Order Polynomial TMP vs Res'!$M$41 -> 100.0339276 | K160: -0.03392756987
A161: 142 | B161: 101 | C161: 15416.34406 | D161: =IF(B161 <= VLOOKUP(Main!$N$22,Coefficients!$E$2:$H$28,4,FALSE),E161,NA()) -> 15651.11072 | E161: ='4th Order Polynomial TMP vs Res'!$B$41+'4th Order Polynomial TMP vs Res'!$C$41*POWER(B161,1)+'4th Order Polynomial TMP vs Res'!$D$41*POWER(B161,2)+'4th Order Polynomial TMP vs Res'!$E$41*POWER(B161,3)+'4th Order Polynomial TMP vs Res'!$F$41*POWER(B161,4) -> 15651.11072 | F161: 15885.87738 | J161: ='4th Order Polynomial TMP vs Res'!$I$41*E161^4 + '4th Order Polynomial TMP vs Res'!$J$41*E161^3 + '4th Order Polynomial TMP vs Res'!$K$41*E161^2 + '4th Order Polynomial TMP vs Res'!$L$41*E161 + '4th Order Polynomial TMP vs Res'!$M$41 -> 101.0385377 | K161: -0.03853770953
A162: 143 | B162: 102 | C162: 15503.28835 | D162: =IF(B162 <= VLOOKUP(Main!$N$22,Coefficients!$E$2:$H$28,4,FALSE),E162,NA()) -> 15739.37903 | E162: ='4th Order Polynomial TMP vs Res'!$B$41+'4th Order Polynomial TMP vs Res'!$C$41*POWER(B162,1)+'4th Order Polynomial TMP vs Res'!$D$41*POWER(B162,2)+'4th Order Polynomial TMP vs Res'!$E$41*POWER(B162,3)+'4th Order Polynomial TMP vs Res'!$F$41*POWER(B162,4) -> 15739.37903 | F162: 15975.46972 | J162: ='4th Order Polynomial TMP vs Res'!$I$41*E162^4 + '4th Order Polynomial TMP vs Res'!$J$41*E162^3 + '4th Order Polynomial TMP vs Res'!$K$41*E162^2 + '4th Order Polynomial TMP vs Res'!$L$41*E162 + '4th Order Polynomial TMP vs Res'!$M$41 -> 102.0429008 | K162: -0.04290080053
A163: 144 | B163: 103 | C163: 15590.59659 | D163: =IF(B163 <= VLOOKUP(Main!$N$22,Coefficients!$E$2:$H$28,4,FALSE),E163,NA()) -> 15828.01684 | E163: ='4th Order Polynomial TMP vs Res'!$B$41+'4th Order Polynomial TMP vs Res'!$C$41*POWER(B163,1)+'4th Order Polynomial TMP vs Res'!$D$41*POWER(B163,2)+'4th Order Polynomial TMP vs Res'!$E$41*POWER(B163,3)+'4th Order Polynomial TMP vs Res'!$F$41*POWER(B163,4) -> 15828.01684 | F163: 16065.43709 | J163: ='4th Order Polynomial TMP vs Res'!$I$41*E163^4 + '4th Order Polynomial TMP vs Res'!$J$41*E163^3 + '4th Order Polynomial TMP vs Res'!$K$41*E163^2 + '4th Order Polynomial TMP vs Res'!$L$41*E163 + '4th Order Polynomial TMP vs Res'!$M$41 -> 103.0469558 | K163: -0.04695579777
A164: 145 | B164: 104 | C164: 15678.26975 | D164: =IF(B164 <= VLOOKUP(Main!$N$22,Coefficients!$E$2:$H$28,4,FALSE),E164,NA()) -> 15917.02512 | E164: ='4th Order Polynomial TMP vs Res'!$B$41+'4th Order Polynomial TMP vs Res'!$C$41*POWER(B164,1)+'4th Order Polynomial TMP vs Res'!$D$41*POWER(B164,2)+'4th Order Polynomial TMP vs Res'!$E$41*POWER(B164,3)+'4th Order Polynomial TMP vs Res'!$F$41*POWER(B164,4) -> 15917.02512 | F164: 16155.7805 | J164: ='4th Order Polynomial TMP vs Res'!$I$41*E164^4 + '4th Order Polynomial TMP vs Res'!$J$41*E164^3 + '4th Order Polynomial TMP vs Res'!$K$41*E164^2 + '4th Order Polynomial TMP vs Res'!$L$41*E164 + '4th Order Polynomial TMP vs Res'!$M$41 -> 104.0506375 | K164: -0.0506374685
A165: 146 | B165: 105 | C165: 15766.30878 | D165: =IF(B165 <= VLOOKUP(Main!$N$22,Coefficients!$E$2:$H$28,4,FALSE),E165,NA()) -> 16006.40486 | E165: ='4th Order Polynomial TMP vs Res'!$B$41+'4th Order Polynomial TMP vs Res'!$C$41*POWER(B165,1)+'4th Order Polynomial TMP vs Res'!$D$41*POWER(B165,2)+'4th Order Polynomial TMP vs Res'!$E$41*POWER(B165,3)+'4th Order Polynomial TMP vs Res'!$F$41*POWER(B165,4) -> 16006.40486 | F165: 16246.50093 | J165: ='4th Order Polynomial TMP vs Res'!$I$41*E165^4 + '4th Order Polynomial TMP vs Res'!$J$41*E165^3 + '4th Order Polynomial TMP vs Res'!$K$41*E165^2 + '4th Order Polynomial TMP vs Res'!$L$41*E165 + '4th Order Polynomial TMP vs Res'!$M$41 -> 105.0538762 | K165: -0.05387623929
A166: 147 | B166: 106 | C166: 15854.71468 | D166: =IF(B166 <= VLOOKUP(Main!$N$22,Coefficients!$E$2:$H$28,4,FALSE),E166,NA()) -> 16096.15703 | E166: ='4th Order Polynomial TMP vs Res'!$B$41+'4th Order Polynomial TMP vs Res'!$C$41*POWER(B166,1)+'4th Order Polynomial TMP vs Res'!$D$41*POWER(B166,2)+'4th Order Polynomial TMP vs Res'!$E$41*POWER(B166,3)+'4th Order Polynomial TMP vs Res'!$F$41*POWER(B166,4) -> 16096.15703 | F166: 16337.59939 | J166: ='4th Order Polynomial TMP vs Res'!$I$41*E166^4 + '4th Order Polynomial TMP vs Res'!$J$41*E166^3 + '4th Order Polynomial TMP vs Res'!$K$41*E166^2 + '4th Order Polynomial TMP vs Res'!$L$41*E166 + '4th Order Polynomial TMP vs Res'!$M$41 -> 106.056598 | K166: -0.05659803935
A167: 148 | B167: 107 | C167: 15943.4884 | D167: =IF(B167 <= VLOOKUP(Main!$N$22,Coefficients!$E$2:$H$28,4,FALSE),E167,NA()) -> 16186.28264 | E167: ='4th Order Polynomial TMP vs Res'!$B$41+'4th Order Polynomial TMP vs Res'!$C$41*POWER(B167,1)+'4th Order Polynomial TMP vs Res'!$D$41*POWER(B167,2)+'4th Order Polynomial TMP vs Res'!$E$41*POWER(B167,3)+'4th Order Polynomial TMP vs Res'!$F$41*POWER(B167,4) -> 16186.28264 | F167: 16429.07688 | J167: ='4th Order Polynomial TMP vs Res'!$I$41*E167^4 + '4th Order Polynomial TMP vs Res'!$J$41*E167^3 + '4th Order Polynomial TMP vs Res'!$K$41*E167^2 + '4th Order Polynomial TMP vs Res'!$L$41*E167 + '4th Order Polynomial TMP vs Res'!$M$41 -> 107.0587241 | K167: -0.05872414019
A168: 149 | B168: 108 | C168: 16032.63094 | D168: =IF(B168 <= VLOOKUP(Main!$N$22,Coefficients!$E$2:$H$28,4,FALSE),E168,NA()) -> 16276.78268 | E168: ='4th Order Polynomial TMP vs Res'!$B$41+'4th Order Polynomial TMP vs Res'!$C$41*POWER(B168,1)+'4th Order Polynomial TMP vs Res'!$D$41*POWER(B168,2)+'4th Order Polynomial TMP vs Res'!$E$41*POWER(B168,3)+'4th Order Polynomial TMP vs Res'!$F$41*POWER(B168,4) -> 16276.78268 | F168: 16520.93442 | J168: ='4th Order Polynomial TMP vs Res'!$I$41*E168^4 + '4th Order Polynomial TMP vs Res'!$J$41*E168^3 + '4th Order Polynomial TMP vs Res'!$K$41*E168^2 + '4th Order Polynomial TMP vs Res'!$L$41*E168 + '4th Order Polynomial TMP vs Res'!$M$41 -> 108.060171 | K168: -0.06017099167
A169: 150 | B169: 109 | C169: 16122.14328 | D169: =IF(B169 <= VLOOKUP(Main!$N$22,Coefficients!$E$2:$H$28,4,FALSE),E169,NA()) -> 16367.65815 | E169: ='4th Order Polynomial TMP vs Res'!$B$41+'4th Order Polynomial TMP vs Res'!$C$41*POWER(B169,1)+'4th Order Polynomial TMP vs Res'!$D$41*POWER(B169,2)+'4th Order Polynomial TMP vs Res'!$E$41*POWER(B169,3)+'4th Order Polynomial TMP vs Res'!$F$41*POWER(B169,4) -> 16367.65815 | F169: 16613.17303 | J169: ='4th Order Polynomial TMP vs Res'!$I$41*E169^4 + '4th Order Polynomial TMP vs Res'!$J$41*E169^3 + '4th Order Polynomial TMP vs Res'!$K$41*E169^2 + '4th Order Polynomial TMP vs Res'!$L$41*E169 + '4th Order Polynomial TMP vs Res'!$M$41 -> 109.0608501 | K169: -0.06085005411
A170: 151 | B170: 110 | C170: 16212.02642 | D170: =IF(B170 <= VLOOKUP(Main!$N$22,Coefficients!$E$2:$H$28,4,FALSE),E170,NA()) -> 16458.91008 | E170: ='4th Order Polynomial TMP vs Res'!$B$41+'4th Order Polynomial TMP vs Res'!$C$41*POWER(B170,1)+'4th Order Polynomial TMP vs Res'!$D$41*POWER(B170,2)+'4th Order Polynomial TMP vs Res'!$E$41*POWER(B170,3)+'4th Order Polynomial TMP vs Res'!$F$41*POWER(B170,4) -> 16458.91008 | F170: 16705.79373 | J170: ='4th Order Polynomial TMP vs Res'!$I$41*E170^4 + '4th Order Polynomial TMP vs Res'!$J$41*E170^3 + '4th Order Polynomial TMP vs Res'!$K$41*E170^2 + '4th Order Polynomial TMP vs Res'!$L$41*E170 + '4th Order Polynomial TMP vs Res'!$M$41 -> 110.0606676 | K170: -0.06066762668
A171: 152 | B171: 111 | C171: 16302.28137 | D171: =IF(B171 <= VLOOKUP(Main!$N$22,Coefficients!$E$2:$H$28,4,FALSE),E171,NA()) -> 16550.53946 | E171: ='4th Order Polynomial TMP vs Res'!$B$41+'4th Order Polynomial TMP vs Res'!$C$41*POWER(B171,1)+'4th Order Polynomial TMP vs Res'!$D$41*POWER(B171,2)+'4th Order Polynomial TMP vs Res'!$E$41*POWER(B171,3)+'4th Order Polynomial TMP vs Res'!$F$41*POWER(B171,4) -> 16550.53946 | F171: 16798.79755 | J171: ='4th Order Polynomial TMP vs Res'!$I$41*E171^4 + '4th Order Polynomial TMP vs Res'!$J$41*E171^3 + '4th Order Polynomial TMP vs Res'!$K$41*E171^2 + '4th Order Polynomial TMP vs Res'!$L$41*E171 + '4th Order Polynomial TMP vs Res'!$M$41 -> 111.0595247 | K171: -0.05952467179
A172: 153 | B172: 112 | C172: 16392.90913 | D172: =IF(B172 <= VLOOKUP(Main!$N$22,Coefficients!$E$2:$H$28,4,FALSE),E172,NA()) -> 16642.54734 | E172: ='4th Order Polynomial TMP vs Res'!$B$41+'4th Order Polynomial TMP vs Res'!$C$41*POWER(B172,1)+'4th Order Polynomial TMP vs Res'!$D$41*POWER(B172,2)+'4th Order Polynomial TMP vs Res'!$E$41*POWER(B172,3)+'4th Order Polynomial TMP vs Res'!$F$41*POWER(B172,4) -> 16642.54734 | F172: 16892.18555 | J172: ='4th Order Polynomial TMP vs Res'!$I$41*E172^4 + '4th Order Polynomial TMP vs Res'!$J$41*E172^3 + '4th Order Polynomial TMP vs Res'!$K$41*E172^2 + '4th Order Polynomial TMP vs Res'!$L$41*E172 + '4th Order Polynomial TMP vs Res'!$M$41 -> 112.0573166 | K172: -0.05731663544
A173: 154 | B173: 113 | C173: 16483.9107 | D173: =IF(B173 <= VLOOKUP(Main!$N$22,Coefficients!$E$2:$H$28,4,FALSE),E173,NA()) -> 16734.93472 | E173: ='4th Order Polynomial TMP vs Res'!$B$41+'4th Order Polynomial TMP vs Res'!$C$41*POWER(B173,1)+'4th Order Polynomial TMP vs Res'!$D$41*POWER(B173,2)+'4th Order Polynomial TMP vs Res'!$E$41*POWER(B173,3)+'4th Order Polynomial TMP vs Res'!$F$41*POWER(B173,4) -> 16734.93472 | F173: 16985.95875 | J173: ='4th Order Polynomial TMP vs Res'!$I$41*E173^4 + '4th Order Polynomial TMP vs Res'!$J$41*E173^3 + '4th Order Polynomial TMP vs Res'!$K$41*E173^2 + '4th Order Polynomial TMP vs Res'!$L$41*E173 + '4th Order Polynomial TMP vs Res'!$M$41 -> 113.0539333 | K173: -0.05393326357
A174: 155 | B174: 114 | C174: 16575.28713 | D174: =IF(B174 <= VLOOKUP(Main!$N$22,Coefficients!$E$2:$H$28,4,FALSE),E174,NA()) -> 16827.70267 | E174: ='4th Order Polynomial TMP vs Res'!$B$41+'4th Order Polynomial TMP vs Res'!$C$41*POWER(B174,1)+'4th Order Polynomial TMP vs Res'!$D$41*POWER(B174,2)+'4th Order Polynomial TMP vs Res'!$E$41*POWER(B174,3)+'4th Order Polynomial TMP vs Res'!$F$41*POWER(B174,4) -> 16827.70267 | F174: 17080.11821 | J174: ='4th Order Polynomial TMP vs Res'!$I$41*E174^4 + '4th Order Polynomial TMP vs Res'!$J$41*E174^3 + '4th Order Polynomial TMP vs Res'!$K$41*E174^2 + '4th Order Polynomial TMP vs Res'!$L$41*E174 + '4th Order Polynomial TMP vs Res'!$M$41 -> 114.0492584 | K174: -0.04925841417
A175: 156 | B175: 115 | C175: 16667.03941 | D175: =IF(B175 <= VLOOKUP(Main!$N$22,Coefficients!$E$2:$H$28,4,FALSE),E175,NA()) -> 16920.8522 | E175: ='4th Order Polynomial TMP vs Res'!$B$41+'4th Order Polynomial TMP vs Res'!$C$41*POWER(B175,1)+'4th Order Polynomial TMP vs Res'!$D$41*POWER(B175,2)+'4th Order Polynomial TMP vs Res'!$E$41*POWER(B175,3)+'4th Order Polynomial TMP vs Res'!$F$41*POWER(B175,4) -> 16920.8522 | F175: 17174.66498 | J175: ='4th Order Polynomial TMP vs Res'!$I$41*E175^4 + '4th Order Polynomial TMP vs Res'!$J$41*E175^3 + '4th Order Polynomial TMP vs Res'!$K$41*E175^2 + '4th Order Polynomial TMP vs Res'!$L$41*E175 + '4th Order Polynomial TMP vs Res'!$M$41 -> 115.0431699 | K175: -0.04316986517
A176: 157 | B176: 116 | C176: =IFERROR(D176*0.985,NA()) -> 16759.1686 | D176: =IF(B176 <= VLOOKUP(Main!$N$22,Coefficients!$E$2:$H$28,4,FALSE),E176,NA()) -> 17014.38437 | E176: ='4th Order Polynomial TMP vs Res'!$B$41+'4th Order Polynomial TMP vs Res'!$C$41*POWER(B176,1)+'4th Order Polynomial TMP vs Res'!$D$41*POWER(B176,2)+'4th Order Polynomial TMP vs Res'!$E$41*POWER(B176,3)+'4th Order Polynomial TMP vs Res'!$F$41*POWER(B176,4) -> 17014.38437 | F176: =IFERROR(D176*1.015,NA()) -> 17269.60013 | J176: ='4th Order Polynomial TMP vs Res'!$I$41*E176^4 + '4th Order Polynomial TMP vs Res'!$J$41*E176^3 + '4th Order Polynomial TMP vs Res'!$K$41*E176^2 + '4th Order Polynomial TMP vs Res'!$L$41*E176 + '4th Order Polynomial TMP vs Res'!$M$41 -> 116.0355391 | K176: -0.03553911801
A177: 158 | B177: 117 | C177: 16851.67573 | D177: =IF(B177 <= VLOOKUP(Main!$N$22,Coefficients!$E$2:$H$28,4,FALSE),E177,NA()) -> 17108.30023 | E177: ='4th Order Polynomial TMP vs Res'!$B$41+'4th Order Polynomial TMP vs Res'!$C$41*POWER(B177,1)+'4th Order Polynomial TMP vs Res'!$D$41*POWER(B177,2)+'4th Order Polynomial TMP vs Res'!$E$41*POWER(B177,3)+'4th Order Polynomial TMP vs Res'!$F$41*POWER(B177,4) -> 17108.30023 | F177: 17364.92474 | J177: ='4th Order Polynomial TMP vs Res'!$I$41*E177^4 + '4th Order Polynomial TMP vs Res'!$J$41*E177^3 + '4th Order Polynomial TMP vs Res'!$K$41*E177^2 + '4th Order Polynomial TMP vs Res'!$L$41*E177 + '4th Order Polynomial TMP vs Res'!$M$41 -> 117.0262312 | K177: -0.0262311968
A178: 159 | B178: 118 | C178: 16944.56184 | D178: =IF(B178 <= VLOOKUP(Main!$N$22,Coefficients!$E$2:$H$28,4,FALSE),E178,NA()) -> 17202.60085 | E178: ='4th Order Polynomial TMP vs Res'!$B$41+'4th Order Polynomial TMP vs Res'!$C$41*POWER(B178,1)+'4th Order Polynomial TMP vs Res'!$D$41*POWER(B178,2)+'4th Order Polynomial TMP vs Res'!$E$41*POWER(B178,3)+'4th Order Polynomial TMP vs Res'!$F$41*POWER(B178,4) -> 17202.60085 | F178: 17460.63986 | J178: ='4th Order Polynomial TMP vs Res'!$I$41*E178^4 + '4th Order Polynomial TMP vs Res'!$J$41*E178^3 + '4th Order Polynomial TMP vs Res'!$K$41*E178^2 + '4th Order Polynomial TMP vs Res'!$L$41*E178 + '4th Order Polynomial TMP vs Res'!$M$41 -> 118.0151044 | K178: -0.01510444295
A179: 160 | B179: 119 | C179: 17037.82797 | D179: =IF(B179 <= VLOOKUP(Main!$N$22,Coefficients!$E$2:$H$28,4,FALSE),E179,NA()) -> 17297.28728 | E179: ='4th Order Polynomial TMP vs Res'!$B$41+'4th Order Polynomial TMP vs Res'!$C$41*POWER(B179,1)+'4th Order Polynomial TMP vs Res'!$D$41*POWER(B179,2)+'4th Order Polynomial TMP vs Res'!$E$41*POWER(B179,3)+'4th Order Polynomial TMP vs Res'!$F$41*POWER(B179,4) -> 17297.28728 | F179: 17556.74659 | J179: ='4th Order Polynomial TMP vs Res'!$I$41*E179^4 + '4th Order Polynomial TMP vs Res'!$J$41*E179^3 + '4th Order Polynomial TMP vs Res'!$K$41*E179^2 + '4th Order Polynomial TMP vs Res'!$L$41*E179 + '4th Order Polynomial TMP vs Res'!$M$41 -> 119.0020103 | K179: -0.002010305305
A180: 161 | B180: 120 | C180: 17131.4752 | D180: =IF(B180 <= VLOOKUP(Main!$N$22,Coefficients!$E$2:$H$28,4,FALSE),E180,NA()) -> 17392.3606 | E180: ='4th Order Polynomial TMP vs Res'!$B$41+'4th Order Polynomial TMP vs Res'!$C$41*POWER(B180,1)+'4th Order Polynomial TMP vs Res'!$D$41*POWER(B180,2)+'4th Order Polynomial TMP vs Res'!$E$41*POWER(B180,3)+'4th Order Polynomial TMP vs Res'!$F$41*POWER(B180,4) -> 17392.3606 | F180: 17653.24601 | J180: ='4th Order Polynomial TMP vs Res'!$I$41*E180^4 + '4th Order Polynomial TMP vs Res'!$J$41*E180^3 + '4th Order Polynomial TMP vs Res'!$K$41*E180^2 + '4th Order Polynomial TMP vs Res'!$L$41*E180 + '4th Order Polynomial TMP vs Res'!$M$41 -> 119.9867931 | K180: =B180-J180 -> 0.01320687448
A181: 162 | B181: 121 | C181: 17225.50456 | D181: =IF(B181 <= VLOOKUP(Main!$N$22,Coefficients!$E$2:$H$28,4,FALSE),E181,NA()) -> 17487.82189 | E181: ='4th Order Polynomial TMP vs Res'!$B$41+'4th Order Polynomial TMP vs Res'!$C$41*POWER(B181,1)+'4th Order Polynomial TMP vs Res'!$D$41*POWER(B181,2)+'4th Order Polynomial TMP vs Res'!$E$41*POWER(B181,3)+'4th Order Polynomial TMP vs Res'!$F$41*POWER(B181,4) -> 17487.82189 | F181: 17750.13922 | J181: ='4th Order Polynomial TMP vs Res'!$I$41*E181^4 + '4th Order Polynomial TMP vs Res'!$J$41*E181^3 + '4th Order Polynomial TMP vs Res'!$K$41*E181^2 + '4th Order Polynomial TMP vs Res'!$L$41*E181 + '4th Order Polynomial TMP vs Res'!$M$41 -> 120.9692899 | K181: 0.03071008125
A182: 163 | B182: 122 | C182: 17319.91714 | D182: =IF(B182 <= VLOOKUP(Main!$N$22,Coefficients!$E$2:$H$28,4,FALSE),E182,NA()) -> 17583.67223 | E182: ='4th Order Polynomial TMP vs Res'!$B$41+'4th Order Polynomial TMP vs Res'!$C$41*POWER(B182,1)+'4th Order Polynomial TMP vs Res'!$D$41*POWER(B182,2)+'4th Order Polynomial TMP vs Res'!$E$41*POWER(B182,3)+'4th Order Polynomial TMP vs Res'!$F$41*POWER(B182,4) -> 17583.67223 | F182: 17847.42731 | J182: ='4th Order Polynomial TMP vs Res'!$I$41*E182^4 + '4th Order Polynomial TMP vs Res'!$J$41*E182^3 + '4th Order Polynomial TMP vs Res'!$K$41*E182^2 + '4th Order Polynomial TMP vs Res'!$L$41*E182 + '4th Order Polynomial TMP vs Res'!$M$41 -> 121.9493301 | K182: 0.05066985056
A183: 164 | B183: 123 | C183: 17414.71401 | D183: =IF(B183 <= VLOOKUP(Main!$N$22,Coefficients!$E$2:$H$28,4,FALSE),E183,NA()) -> 17679.9127 | E183: ='4th Order Polynomial TMP vs Res'!$B$41+'4th Order Polynomial TMP vs Res'!$C$41*POWER(B183,1)+'4th Order Polynomial TMP vs Res'!$D$41*POWER(B183,2)+'4th Order Polynomial TMP vs Res'!$E$41*POWER(B183,3)+'4th Order Polynomial TMP vs Res'!$F$41*POWER(B183,4) -> 17679.9127 | F183: 17945.11139 | J183: ='4th Order Polynomial TMP vs Res'!$I$41*E183^4 + '4th Order Polynomial TMP vs Res'!$J$41*E183^3 + '4th Order Polynomial TMP vs Res'!$K$41*E183^2 + '4th Order Polynomial TMP vs Res'!$L$41*E183 + '4th Order Polynomial TMP vs Res'!$M$41 -> 122.9267355 | K183: 0.07326449775
A184: 165 | B184: 124 | C184: 17509.89625 | D184: =IF(B184 <= VLOOKUP(Main!$N$22,Coefficients!$E$2:$H$28,4,FALSE),E184,NA()) -> 17776.54441 | E184: ='4th Order Polynomial TMP vs Res'!$B$41+'4th Order Polynomial TMP vs Res'!$C$41*POWER(B184,1)+'4th Order Polynomial TMP vs Res'!$D$41*POWER(B184,2)+'4th Order Polynomial TMP vs Res'!$E$41*POWER(B184,3)+'4th Order Polynomial TMP vs Res'!$F$41*POWER(B184,4) -> 17776.54441 | F184: 18043.19258 | J184: ='4th Order Polynomial TMP vs Res'!$I$41*E184^4 + '4th Order Polynomial TMP vs Res'!$J$41*E184^3 + '4th Order Polynomial TMP vs Res'!$K$41*E184^2 + '4th Order Polynomial TMP vs Res'!$L$41*E184 + '4th Order Polynomial TMP vs Res'!$M$41 -> 123.9013196 | K184: 0.09868035212
A185: 166 | B185: 125 | C185: 17605.46493 | D185: =IF(B185 <= VLOOKUP(Main!$N$22,Coefficients!$E$2:$H$28,4,FALSE),E185,NA()) -> 17873.56846 | E185: ='4th Order Polynomial TMP vs Res'!$B$41+'4th Order Polynomial TMP vs Res'!$C$41*POWER(B185,1)+'4th Order Polynomial TMP vs Res'!$D$41*POWER(B185,2)+'4th Order Polynomial TMP vs Res'!$E$41*POWER(B185,3)+'4th Order Polynomial TMP vs Res'!$F$41*POWER(B185,4) -> 17873.56846 | F185: 18141.67198 | J185: ='4th Order Polynomial TMP vs Res'!$I$41*E185^4 + '4th Order Polynomial TMP vs Res'!$J$41*E185^3 + '4th Order Polynomial TMP vs Res'!$K$41*E185^2 + '4th Order Polynomial TMP vs Res'!$L$41*E185 + '4th Order Polynomial TMP vs Res'!$M$41 -> 124.872888 | K185: 0.1271119962
A186: 167 | B186: 126 | D186: =IF(B186 <= VLOOKUP(Main!$N$22,Coefficients!$E$2:$H$28,4,FALSE),E186,NA()) ->  | E186: ='4th Order Polynomial TMP vs Res'!$B$41+'4th Order Polynomial TMP vs Res'!$C$41*POWER(B186,1)+'4th Order Polynomial TMP vs Res'!$D$41*POWER(B186,2)+'4th Order Polynomial TMP vs Res'!$E$41*POWER(B186,3)+'4th Order Polynomial TMP vs Res'!$F$41*POWER(B186,4) -> 17970.98595 | J186: ='4th Order Polynomial TMP vs Res'!$I$41*E186^4 + '4th Order Polynomial TMP vs Res'!$J$41*E186^3 + '4th Order Polynomial TMP vs Res'!$K$41*E186^2 + '4th Order Polynomial TMP vs Res'!$L$41*E186 + '4th Order Polynomial TMP vs Res'!$M$41 -> 125.8412375 | K186: =IF((VLOOKUP(Main!$N$22,Coefficients!$E$2:$H$28,4,FALSE)) = 125, NA(), B186-J186) -> 
A187: 168 | B187: 127 | D187: =IF(B187 <= VLOOKUP(Main!$N$22,Coefficients!$E$2:$H$28,4,FALSE),E187,NA()) ->  | E187: ='4th Order Polynomial TMP vs Res'!$B$41+'4th Order Polynomial TMP vs Res'!$C$41*POWER(B187,1)+'4th Order Polynomial TMP vs Res'!$D$41*POWER(B187,2)+'4th Order Polynomial TMP vs Res'!$E$41*POWER(B187,3)+'4th Order Polynomial TMP vs Res'!$F$41*POWER(B187,4) -> 18068.79799 | J187: ='4th Order Polynomial TMP vs Res'!$I$41*E187^4 + '4th Order Polynomial TMP vs Res'!$J$41*E187^3 + '4th Order Polynomial TMP vs Res'!$K$41*E187^2 + '4th Order Polynomial TMP vs Res'!$L$41*E187 + '4th Order Polynomial TMP vs Res'!$M$41 -> 126.8061563 | K187: =IF((VLOOKUP(Main!$N$22,Coefficients!$E$2:$H$28,4,FALSE)) = 125, NA(), B187-J187) -> 
A188: 169 | B188: 128 | D188: =IF(B188 <= VLOOKUP(Main!$N$22,Coefficients!$E$2:$H$28,4,FALSE),E188,NA()) ->  | E188: ='4th Order Polynomial TMP vs Res'!$B$41+'4th Order Polynomial TMP vs Res'!$C$41*POWER(B188,1)+'4th Order Polynomial TMP vs Res'!$D$41*POWER(B188,2)+'4th Order Polynomial TMP vs Res'!$E$41*POWER(B188,3)+'4th Order Polynomial TMP vs Res'!$F$41*POWER(B188,4) -> 18167.00572 | J188: ='4th Order Polynomial TMP vs Res'!$I$41*E188^4 + '4th Order Polynomial TMP vs Res'!$J$41*E188^3 + '4th Order Polynomial TMP vs Res'!$K$41*E188^2 + '4th Order Polynomial TMP vs Res'!$L$41*E188 + '4th Order Polynomial TMP vs Res'!$M$41 -> 127.7674235 | K188: =IF((VLOOKUP(Main!$N$22,Coefficients!$E$2:$H$28,4,FALSE)) = 125, NA(), B188-J188) -> 
A189: 170 | B189: 129 | D189: =IF(B189 <= VLOOKUP(Main!$N$22,Coefficients!$E$2:$H$28,4,FALSE),E189,NA()) ->  | E189: ='4th Order Polynomial TMP vs Res'!$B$41+'4th Order Polynomial TMP vs Res'!$C$41*POWER(B189,1)+'4th Order Polynomial TMP vs Res'!$D$41*POWER(B189,2)+'4th Order Polynomial TMP vs Res'!$E$41*POWER(B189,3)+'4th Order Polynomial TMP vs Res'!$F$41*POWER(B189,4) -> 18265.61024 | J189: ='4th Order Polynomial TMP vs Res'!$I$41*E189^4 + '4th Order Polynomial TMP vs Res'!$J$41*E189^3 + '4th Order Polynomial TMP vs Res'!$K$41*E189^2 + '4th Order Polynomial TMP vs Res'!$L$41*E189 + '4th Order Polynomial TMP vs Res'!$M$41 -> 128.7248092 | K189: =IF((VLOOKUP(Main!$N$22,Coefficients!$E$2:$H$28,4,FALSE)) = 125, NA(), B189-J189) -> 
A190: 171 | B190: 130 | D190: =IF(B190 <= VLOOKUP(Main!$N$22,Coefficients!$E$2:$H$28,4,FALSE),E190,NA()) ->  | E190: ='4th Order Polynomial TMP vs Res'!$B$41+'4th Order Polynomial TMP vs Res'!$C$41*POWER(B190,1)+'4th Order Polynomial TMP vs Res'!$D$41*POWER(B190,2)+'4th Order Polynomial TMP vs Res'!$E$41*POWER(B190,3)+'4th Order Polynomial TMP vs Res'!$F$41*POWER(B190,4) -> 18364.6127 | J190: ='4th Order Polynomial TMP vs Res'!$I$41*E190^4 + '4th Order Polynomial TMP vs Res'!$J$41*E190^3 + '4th Order Polynomial TMP vs Res'!$K$41*E190^2 + '4th Order Polynomial TMP vs Res'!$L$41*E190 + '4th Order Polynomial TMP vs Res'!$M$41 -> 129.6780736 | K190: =IF((VLOOKUP(Main!$N$22,Coefficients!$E$2:$H$28,4,FALSE)) = 125, NA(), B190-J190) -> 
A191: 172 | B191: 131 | D191: =IF(B191 <= VLOOKUP(Main!$N$22,Coefficients!$E$2:$H$28,4,FALSE),E191,NA()) ->  | E191: ='4th Order Polynomial TMP vs Res'!$B$41+'4th Order Polynomial TMP vs Res'!$C$41*POWER(B191,1)+'4th Order Polynomial TMP vs Res'!$D$41*POWER(B191,2)+'4th Order Polynomial TMP vs Res'!$E$41*POWER(B191,3)+'4th Order Polynomial TMP vs Res'!$F$41*POWER(B191,4) -> 18464.01423 | J191: ='4th Order Polynomial TMP vs Res'!$I$41*E191^4 + '4th Order Polynomial TMP vs Res'!$J$41*E191^3 + '4th Order Polynomial TMP vs Res'!$K$41*E191^2 + '4th Order Polynomial TMP vs Res'!$L$41*E191 + '4th Order Polynomial TMP vs Res'!$M$41 -> 130.6269673 | K191: =IF((VLOOKUP(Main!$N$22,Coefficients!$E$2:$H$28,4,FALSE)) = 125, NA(), B191-J191) -> 
A192: 173 | B192: 132 | D192: =IF(B192 <= VLOOKUP(Main!$N$22,Coefficients!$E$2:$H$28,4,FALSE),E192,NA()) ->  | E192: ='4th Order Polynomial TMP vs Res'!$B$41+'4th Order Polynomial TMP vs Res'!$C$41*POWER(B192,1)+'4th Order Polynomial TMP vs Res'!$D$41*POWER(B192,2)+'4th Order Polynomial TMP vs Res'!$E$41*POWER(B192,3)+'4th Order Polynomial TMP vs Res'!$F$41*POWER(B192,4) -> 18563.81598 | J192: ='4th Order Polynomial TMP vs Res'!$I$41*E192^4 + '4th Order Polynomial TMP vs Res'!$J$41*E192^3 + '4th Order Polynomial TMP vs Res'!$K$41*E192^2 + '4th Order Polynomial TMP vs Res'!$L$41*E192 + '4th Order Polynomial TMP vs Res'!$M$41 -> 131.5712308 | K192: =IF((VLOOKUP(Main!$N$22,Coefficients!$E$2:$H$28,4,FALSE)) = 125, NA(), B192-J192) -> 
A193: 174 | B193: 133 | D193: =IF(B193 <= VLOOKUP(Main!$N$22,Coefficients!$E$2:$H$28,4,FALSE),E193,NA()) ->  | E193: ='4th Order Polynomial TMP vs Res'!$B$41+'4th Order Polynomial TMP vs Res'!$C$41*POWER(B193,1)+'4th Order Polynomial TMP vs Res'!$D$41*POWER(B193,2)+'4th Order Polynomial TMP vs Res'!$E$41*POWER(B193,3)+'4th Order Polynomial TMP vs Res'!$F$41*POWER(B193,4) -> 18664.01909 | J193: ='4th Order Polynomial TMP vs Res'!$I$41*E193^4 + '4th Order Polynomial TMP vs Res'!$J$41*E193^3 + '4th Order Polynomial TMP vs Res'!$K$41*E193^2 + '4th Order Polynomial TMP vs Res'!$L$41*E193 + '4th Order Polynomial TMP vs Res'!$M$41 -> 132.5105943 | K193: =IF((VLOOKUP(Main!$N$22,Coefficients!$E$2:$H$28,4,FALSE)) = 125, NA(), B193-J193) -> 
A194: 175 | B194: 134 | D194: =IF(B194 <= VLOOKUP(Main!$N$22,Coefficients!$E$2:$H$28,4,FALSE),E194,NA()) ->  | E194: ='4th Order Polynomial TMP vs Res'!$B$41+'4th Order Polynomial TMP vs Res'!$C$41*POWER(B194,1)+'4th Order Polynomial TMP vs Res'!$D$41*POWER(B194,2)+'4th Order Polynomial TMP vs Res'!$E$41*POWER(B194,3)+'4th Order Polynomial TMP vs Res'!$F$41*POWER(B194,4) -> 18764.62473 | J194: ='4th Order Polynomial TMP vs Res'!$I$41*E194^4 + '4th Order Polynomial TMP vs Res'!$J$41*E194^3 + '4th Order Polynomial TMP vs Res'!$K$41*E194^2 + '4th Order Polynomial TMP vs Res'!$L$41*E194 + '4th Order Polynomial TMP vs Res'!$M$41 -> 133.4447773 | K194: =IF((VLOOKUP(Main!$N$22,Coefficients!$E$2:$H$28,4,FALSE)) = 125, NA(), B194-J194) -> 
A195: 176 | B195: 135 | D195: =IF(B195 <= VLOOKUP(Main!$N$22,Coefficients!$E$2:$H$28,4,FALSE),E195,NA()) ->  | E195: ='4th Order Polynomial TMP vs Res'!$B$41+'4th Order Polynomial TMP vs Res'!$C$41*POWER(B195,1)+'4th Order Polynomial TMP vs Res'!$D$41*POWER(B195,2)+'4th Order Polynomial TMP vs Res'!$E$41*POWER(B195,3)+'4th Order Polynomial TMP vs Res'!$F$41*POWER(B195,4) -> 18865.63405 | J195: ='4th Order Polynomial TMP vs Res'!$I$41*E195^4 + '4th Order Polynomial TMP vs Res'!$J$41*E195^3 + '4th Order Polynomial TMP vs Res'!$K$41*E195^2 + '4th Order Polynomial TMP vs Res'!$L$41*E195 + '4th Order Polynomial TMP vs Res'!$M$41 -> 134.3734882 | K195: =IF((VLOOKUP(Main!$N$22,Coefficients!$E$2:$H$28,4,FALSE)) = 125, NA(), B195-J195) -> 
A196: 177 | B196: 136 | D196: =IF(B196 <= VLOOKUP(Main!$N$22,Coefficients!$E$2:$H$28,4,FALSE),E196,NA()) ->  | E196: ='4th Order Polynomial TMP vs Res'!$B$41+'4th Order Polynomial TMP vs Res'!$C$41*POWER(B196,1)+'4th Order Polynomial TMP vs Res'!$D$41*POWER(B196,2)+'4th Order Polynomial TMP vs Res'!$E$41*POWER(B196,3)+'4th Order Polynomial TMP vs Res'!$F$41*POWER(B196,4) -> 18967.04823 | J196: ='4th Order Polynomial TMP vs Res'!$I$41*E196^4 + '4th Order Polynomial TMP vs Res'!$J$41*E196^3 + '4th Order Polynomial TMP vs Res'!$K$41*E196^2 + '4th Order Polynomial TMP vs Res'!$L$41*E196 + '4th Order Polynomial TMP vs Res'!$M$41 -> 135.2964243 | K196: =IF((VLOOKUP(Main!$N$22,Coefficients!$E$2:$H$28,4,FALSE)) = 125, NA(), B196-J196) -> 
A197: 178 | B197: 137 | D197: =IF(B197 <= VLOOKUP(Main!$N$22,Coefficients!$E$2:$H$28,4,FALSE),E197,NA()) ->  | E197: ='4th Order Polynomial TMP vs Res'!$B$41+'4th Order Polynomial TMP vs Res'!$C$41*POWER(B197,1)+'4th Order Polynomial TMP vs Res'!$D$41*POWER(B197,2)+'4th Order Polynomial TMP vs Res'!$E$41*POWER(B197,3)+'4th Order Polynomial TMP vs Res'!$F$41*POWER(B197,4) -> 19068.86843 | J197: ='4th Order Polynomial TMP vs Res'!$I$41*E197^4 + '4th Order Polynomial TMP vs Res'!$J$41*E197^3 + '4th Order Polynomial TMP vs Res'!$K$41*E197^2 + '4th Order Polynomial TMP vs Res'!$L$41*E197 + '4th Order Polynomial TMP vs Res'!$M$41 -> 136.2132714 | K197: =IF((VLOOKUP(Main!$N$22,Coefficients!$E$2:$H$28,4,FALSE)) = 125, NA(), B197-J197) -> 
A198: 179 | B198: 138 | D198: =IF(B198 <= VLOOKUP(Main!$N$22,Coefficients!$E$2:$H$28,4,FALSE),E198,NA()) ->  | E198: ='4th Order Polynomial TMP vs Res'!$B$41+'4th Order Polynomial TMP vs Res'!$C$41*POWER(B198,1)+'4th Order Polynomial TMP vs Res'!$D$41*POWER(B198,2)+'4th Order Polynomial TMP vs Res'!$E$41*POWER(B198,3)+'4th Order Polynomial TMP vs Res'!$F$41*POWER(B198,4) -> 19171.09583 | J198: ='4th Order Polynomial TMP vs Res'!$I$41*E198^4 + '4th Order Polynomial TMP vs Res'!$J$41*E198^3 + '4th Order Polynomial TMP vs Res'!$K$41*E198^2 + '4th Order Polynomial TMP vs Res'!$L$41*E198 + '4th Order Polynomial TMP vs Res'!$M$41 -> 137.1237032 | K198: =IF((VLOOKUP(Main!$N$22,Coefficients!$E$2:$H$28,4,FALSE)) = 125, NA(), B198-J198) -> 
A199: 180 | B199: 139 | D199: =IF(B199 <= VLOOKUP(Main!$N$22,Coefficients!$E$2:$H$28,4,FALSE),E199,NA()) ->  | E199: ='4th Order Polynomial TMP vs Res'!$B$41+'4th Order Polynomial TMP vs Res'!$C$41*POWER(B199,1)+'4th Order Polynomial TMP vs Res'!$D$41*POWER(B199,2)+'4th Order Polynomial TMP vs Res'!$E$41*POWER(B199,3)+'4th Order Polynomial TMP vs Res'!$F$41*POWER(B199,4) -> 19273.73163 | J199: ='4th Order Polynomial TMP vs Res'!$I$41*E199^4 + '4th Order Polynomial TMP vs Res'!$J$41*E199^3 + '4th Order Polynomial TMP vs Res'!$K$41*E199^2 + '4th Order Polynomial TMP vs Res'!$L$41*E199 + '4th Order Polynomial TMP vs Res'!$M$41 -> 138.0273815 | K199: =IF((VLOOKUP(Main!$N$22,Coefficients!$E$2:$H$28,4,FALSE)) = 125, NA(), B199-J199) -> 
A200: 181 | B200: 140 | D200: =IF(B200 <= VLOOKUP(Main!$N$22,Coefficients!$E$2:$H$28,4,FALSE),E200,NA()) ->  | E200: ='4th Order Polynomial TMP vs Res'!$B$41+'4th Order Polynomial TMP vs Res'!$C$41*POWER(B200,1)+'4th Order Polynomial TMP vs Res'!$D$41*POWER(B200,2)+'4th Order Polynomial TMP vs Res'!$E$41*POWER(B200,3)+'4th Order Polynomial TMP vs Res'!$F$41*POWER(B200,4) -> 19376.77702 | J200: ='4th Order Polynomial TMP vs Res'!$I$41*E200^4 + '4th Order Polynomial TMP vs Res'!$J$41*E200^3 + '4th Order Polynomial TMP vs Res'!$K$41*E200^2 + '4th Order Polynomial TMP vs Res'!$L$41*E200 + '4th Order Polynomial TMP vs Res'!$M$41 -> 138.9239554 | K200: =IF((VLOOKUP(Main!$N$22,Coefficients!$E$2:$H$28,4,FALSE)) = 125, NA(), B200-J200) -> 
A201: 182 | B201: 141 | D201: =IF(B201 <= VLOOKUP(Main!$N$22,Coefficients!$E$2:$H$28,4,FALSE),E201,NA()) ->  | E201: ='4th Order Polynomial TMP vs Res'!$B$41+'4th Order Polynomial TMP vs Res'!$C$41*POWER(B201,1)+'4th Order Polynomial TMP vs Res'!$D$41*POWER(B201,2)+'4th Order Polynomial TMP vs Res'!$E$41*POWER(B201,3)+'4th Order Polynomial TMP vs Res'!$F$41*POWER(B201,4) -> 19480.23318 | J201: ='4th Order Polynomial TMP vs Res'!$I$41*E201^4 + '4th Order Polynomial TMP vs Res'!$J$41*E201^3 + '4th Order Polynomial TMP vs Res'!$K$41*E201^2 + '4th Order Polynomial TMP vs Res'!$L$41*E201 + '4th Order Polynomial TMP vs Res'!$M$41 -> 139.813061 | K201: =IF((VLOOKUP(Main!$N$22,Coefficients!$E$2:$H$28,4,FALSE)) = 125, NA(), B201-J201) -> 
A202: 183 | B202: 142 | D202: =IF(B202 <= VLOOKUP(Main!$N$22,Coefficients!$E$2:$H$28,4,FALSE),E202,NA()) ->  | E202: ='4th Order Polynomial TMP vs Res'!$B$41+'4th Order Polynomial TMP vs Res'!$C$41*POWER(B202,1)+'4th Order Polynomial TMP vs Res'!$D$41*POWER(B202,2)+'4th Order Polynomial TMP vs Res'!$E$41*POWER(B202,3)+'4th Order Polynomial TMP vs Res'!$F$41*POWER(B202,4) -> 19584.10134 | J202: ='4th Order Polynomial TMP vs Res'!$I$41*E202^4 + '4th Order Polynomial TMP vs Res'!$J$41*E202^3 + '4th Order Polynomial TMP vs Res'!$K$41*E202^2 + '4th Order Polynomial TMP vs Res'!$L$41*E202 + '4th Order Polynomial TMP vs Res'!$M$41 -> 140.6943215 | K202: =IF((VLOOKUP(Main!$N$22,Coefficients!$E$2:$H$28,4,FALSE)) = 125, NA(), B202-J202) -> 
A203: 184 | B203: 143 | D203: =IF(B203 <= VLOOKUP(Main!$N$22,Coefficients!$E$2:$H$28,4,FALSE),E203,NA()) ->  | E203: ='4th Order Polynomial TMP vs Res'!$B$41+'4th Order Polynomial TMP vs Res'!$C$41*POWER(B203,1)+'4th Order Polynomial TMP vs Res'!$D$41*POWER(B203,2)+'4th Order Polynomial TMP vs Res'!$E$41*POWER(B203,3)+'4th Order Polynomial TMP vs Res'!$F$41*POWER(B203,4) -> 19688.38269 | J203: ='4th Order Polynomial TMP vs Res'!$I$41*E203^4 + '4th Order Polynomial TMP vs Res'!$J$41*E203^3 + '4th Order Polynomial TMP vs Res'!$K$41*E203^2 + '4th Order Polynomial TMP vs Res'!$L$41*E203 + '4th Order Polynomial TMP vs Res'!$M$41 -> 141.5673463 | K203: =IF((VLOOKUP(Main!$N$22,Coefficients!$E$2:$H$28,4,FALSE)) = 125, NA(), B203-J203) -> 
A204: 185 | B204: 144 | D204: =IF(B204 <= VLOOKUP(Main!$N$22,Coefficients!$E$2:$H$28,4,FALSE),E204,NA()) ->  | E204: ='4th Order Polynomial TMP vs Res'!$B$41+'4th Order Polynomial TMP vs Res'!$C$41*POWER(B204,1)+'4th Order Polynomial TMP vs Res'!$D$41*POWER(B204,2)+'4th Order Polynomial TMP vs Res'!$E$41*POWER(B204,3)+'4th Order Polynomial TMP vs Res'!$F$41*POWER(B204,4) -> 19793.07846 | J204: ='4th Order Polynomial TMP vs Res'!$I$41*E204^4 + '4th Order Polynomial TMP vs Res'!$J$41*E204^3 + '4th Order Polynomial TMP vs Res'!$K$41*E204^2 + '4th Order Polynomial TMP vs Res'!$L$41*E204 + '4th Order Polynomial TMP vs Res'!$M$41 -> 142.4317311 | K204: =IF((VLOOKUP(Main!$N$22,Coefficients!$E$2:$H$28,4,FALSE)) = 125, NA(), B204-J204) -> 
A205: 186 | B205: 145 | D205: =IF(B205 <= VLOOKUP(Main!$N$22,Coefficients!$E$2:$H$28,4,FALSE),E205,NA()) ->  | E205: ='4th Order Polynomial TMP vs Res'!$B$41+'4th Order Polynomial TMP vs Res'!$C$41*POWER(B205,1)+'4th Order Polynomial TMP vs Res'!$D$41*POWER(B205,2)+'4th Order Polynomial TMP vs Res'!$E$41*POWER(B205,3)+'4th Order Polynomial TMP vs Res'!$F$41*POWER(B205,4) -> 19898.18987 | J205: ='4th Order Polynomial TMP vs Res'!$I$41*E205^4 + '4th Order Polynomial TMP vs Res'!$J$41*E205^3 + '4th Order Polynomial TMP vs Res'!$K$41*E205^2 + '4th Order Polynomial TMP vs Res'!$L$41*E205 + '4th Order Polynomial TMP vs Res'!$M$41 -> 143.2870571 | K205: =IF((VLOOKUP(Main!$N$22,Coefficients!$E$2:$H$28,4,FALSE)) = 125, NA(), B205-J205) -> 
A206: 187 | B206: 146 | D206: =IF(B206 <= VLOOKUP(Main!$N$22,Coefficients!$E$2:$H$28,4,FALSE),E206,NA()) ->  | E206: ='4th Order Polynomial TMP vs Res'!$B$41+'4th Order Polynomial TMP vs Res'!$C$41*POWER(B206,1)+'4th Order Polynomial TMP vs Res'!$D$41*POWER(B206,2)+'4th Order Polynomial TMP vs Res'!$E$41*POWER(B206,3)+'4th Order Polynomial TMP vs Res'!$F$41*POWER(B206,4) -> 20003.71814 | J206: ='4th Order Polynomial TMP vs Res'!$I$41*E206^4 + '4th Order Polynomial TMP vs Res'!$J$41*E206^3 + '4th Order Polynomial TMP vs Res'!$K$41*E206^2 + '4th Order Polynomial TMP vs Res'!$L$41*E206 + '4th Order Polynomial TMP vs Res'!$M$41 -> 144.132891 | K206: =IF((VLOOKUP(Main!$N$22,Coefficients!$E$2:$H$28,4,FALSE)) = 125, NA(), B206-J206) -> 
A207: 188 | B207: 147 | D207: =IF(B207 <= VLOOKUP(Main!$N$22,Coefficients!$E$2:$H$28,4,FALSE),E207,NA()) ->  | E207: ='4th Order Polynomial TMP vs Res'!$B$41+'4th Order Polynomial TMP vs Res'!$C$41*POWER(B207,1)+'4th Order Polynomial TMP vs Res'!$D$41*POWER(B207,2)+'4th Order Polynomial TMP vs Res'!$E$41*POWER(B207,3)+'4th Order Polynomial TMP vs Res'!$F$41*POWER(B207,4) -> 20109.66452 | J207: ='4th Order Polynomial TMP vs Res'!$I$41*E207^4 + '4th Order Polynomial TMP vs Res'!$J$41*E207^3 + '4th Order Polynomial TMP vs Res'!$K$41*E207^2 + '4th Order Polynomial TMP vs Res'!$L$41*E207 + '4th Order Polynomial TMP vs Res'!$M$41 -> 144.9687844 | K207: =IF((VLOOKUP(Main!$N$22,Coefficients!$E$2:$H$28,4,FALSE)) = 125, NA(), B207-J207) -> 
A208: 189 | B208: 148 | D208: =IF(B208 <= VLOOKUP(Main!$N$22,Coefficients!$E$2:$H$28,4,FALSE),E208,NA()) ->  | E208: ='4th Order Polynomial TMP vs Res'!$B$41+'4th Order Polynomial TMP vs Res'!$C$41*POWER(B208,1)+'4th Order Polynomial TMP vs Res'!$D$41*POWER(B208,2)+'4th Order Polynomial TMP vs Res'!$E$41*POWER(B208,3)+'4th Order Polynomial TMP vs Res'!$F$41*POWER(B208,4) -> 20216.03023 | J208: ='4th Order Polynomial TMP vs Res'!$I$41*E208^4 + '4th Order Polynomial TMP vs Res'!$J$41*E208^3 + '4th Order Polynomial TMP vs Res'!$K$41*E208^2 + '4th Order Polynomial TMP vs Res'!$L$41*E208 + '4th Order Polynomial TMP vs Res'!$M$41 -> 145.7942736 | K208: =IF((VLOOKUP(Main!$N$22,Coefficients!$E$2:$H$28,4,FALSE)) = 125, NA(), B208-J208) -> 
A209: 190 | B209: 149 | D209: =IF(B209 <= VLOOKUP(Main!$N$22,Coefficients!$E$2:$H$28,4,FALSE),E209,NA()) ->  | E209: ='4th Order Polynomial TMP vs Res'!$B$41+'4th Order Polynomial TMP vs Res'!$C$41*POWER(B209,1)+'4th Order Polynomial TMP vs Res'!$D$41*POWER(B209,2)+'4th Order Polynomial TMP vs Res'!$E$41*POWER(B209,3)+'4th Order Polynomial TMP vs Res'!$F$41*POWER(B209,4) -> 20322.81654 | J209: ='4th Order Polynomial TMP vs Res'!$I$41*E209^4 + '4th Order Polynomial TMP vs Res'!$J$41*E209^3 + '4th Order Polynomial TMP vs Res'!$K$41*E209^2 + '4th Order Polynomial TMP vs Res'!$L$41*E209 + '4th Order Polynomial TMP vs Res'!$M$41 -> 146.6088789 | K209: =IF((VLOOKUP(Main!$N$22,Coefficients!$E$2:$H$28,4,FALSE)) = 125, NA(), B209-J209) -> 
A210: 191 | B210: 150 | D210: =IF(B210 <= VLOOKUP(Main!$N$22,Coefficients!$E$2:$H$28,4,FALSE),E210,NA()) ->  | E210: ='4th Order Polynomial TMP vs Res'!$B$41+'4th Order Polynomial TMP vs Res'!$C$41*POWER(B210,1)+'4th Order Polynomial TMP vs Res'!$D$41*POWER(B210,2)+'4th Order Polynomial TMP vs Res'!$E$41*POWER(B210,3)+'4th Order Polynomial TMP vs Res'!$F$41*POWER(B210,4) -> 20430.02468 | J210: ='4th Order Polynomial TMP vs Res'!$I$41*E210^4 + '4th Order Polynomial TMP vs Res'!$J$41*E210^3 + '4th Order Polynomial TMP vs Res'!$K$41*E210^2 + '4th Order Polynomial TMP vs Res'!$L$41*E210 + '4th Order Polynomial TMP vs Res'!$M$41 -> 147.4121046 | K210: =IF((VLOOKUP(Main!$N$22,Coefficients!$E$2:$H$28,4,FALSE)) = 125, NA(), B210-J210) -> 
A211: 192 | B211: 151 | C211: =IFERROR(D211*0.975,NA()) ->  | D211: =IF(B211 <= VLOOKUP(Main!$N$22,Coefficients!$E$2:$H$28,4,FALSE),E211,NA()) ->  | E211: ='4th Order Polynomial TMP vs Res'!$B$41+'4th Order Polynomial TMP vs Res'!$C$41*POWER(B211,1)+'4th Order Polynomial TMP vs Res'!$D$41*POWER(B211,2)+'4th Order Polynomial TMP vs Res'!$E$41*POWER(B211,3)+'4th Order Polynomial TMP vs Res'!$F$41*POWER(B211,4) -> 20537.65592 | F211: =IFERROR(D211*1.025,NA()) ->  | J211: ='4th Order Polynomial TMP vs Res'!$I$41*E211^4 + '4th Order Polynomial TMP vs Res'!$J$41*E211^3 + '4th Order Polynomial TMP vs Res'!$K$41*E211^2 + '4th Order Polynomial TMP vs Res'!$L$41*E211 + '4th Order Polynomial TMP vs Res'!$M$41 -> 148.2034383 | K211: =IF((VLOOKUP(Main!$N$22,Coefficients!$E$2:$H$28,4,FALSE)) = 125, NA(), B211-J211) -> 
A212: 193 | B212: 152 | C212: =IFERROR(D212*0.975,NA()) ->  | D212: =IF(B212 <= VLOOKUP(Main!$N$22,Coefficients!$E$2:$H$28,4,FALSE),E212,NA()) ->  | E212: ='4th Order Polynomial TMP vs Res'!$B$41+'4th Order Polynomial TMP vs Res'!$C$41*POWER(B212,1)+'4th Order Polynomial TMP vs Res'!$D$41*POWER(B212,2)+'4th Order Polynomial TMP vs Res'!$E$41*POWER(B212,3)+'4th Order Polynomial TMP vs Res'!$F$41*POWER(B212,4) -> 20645.71153 | F212: =IFERROR(D212*1.025,NA()) ->  | J212: ='4th Order Polynomial TMP vs Res'!$I$41*E212^4 + '4th Order Polynomial TMP vs Res'!$J$41*E212^3 + '4th Order Polynomial TMP vs Res'!$K$41*E212^2 + '4th Order Polynomial TMP vs Res'!$L$41*E212 + '4th Order Polynomial TMP vs Res'!$M$41 -> 148.9823504 | K212: =IF((VLOOKUP(Main!$N$22,Coefficients!$E$2:$H$28,4,FALSE)) = 125, NA(), B212-J212) -> 
... 237 more rows

Sheet NTC Thermistor Comparison
A5: Return to Menu
A15: VBias | B15: =Main!N25 -> 3.3 | C15: Vdc
A16: RBias | B16: =Main!$N$31 -> 10000 | C16: Ohms
B17: 4th order polynomials
B18: ='4th Order Polynomial TMP vs Res'!B41 -> 8494.749815 | C18: A0
B19: ='4th Order Polynomial TMP vs Res'!C41 -> 54.74849511 | C19: A1
B20: ='4th Order Polynomial TMP vs Res'!D41 -> 0.1509299809 | C20: A2
B21: ='4th Order Polynomial TMP vs Res'!E41 -> 5.911258716e-05 | C21: A3
B22: ='4th Order Polynomial TMP vs Res'!F41 -> 2.519921946e-07 | C22: A4
A25: MFG: | B25: Texas Instruments | N25: MFG:
A26: TI Device | B26: =Main!N22 -> TMP6131DECR | N26: Device: | O26: Typical NTC
A29: 1 °C Steps | O29: 1 °C Steps
B31: Temp | C31: MIN | D31: TYP | E31: MAX | F31: R/div/Bot | G31: R/div/Top | H31: Sensitivity | I31: Current | J31: Power | O31: Temp | P31: R-Low | Q31: R-Center | R31: R-High | S31: R/div | T31: Sensitivity | U31: Power
A32: Line # | B32: (°C) | C32: (Ω) | D32: (Ω) | E32: (Ω) | F32: Vdc | G32: Vdc | H32: Ω/°C | I32: A | J32: (milli-Watts) | K32: (-) tolerance | L32: (+) tolerance | M32: Delta Vdc | O32: (°C) | P32: (Ω) | Q32: (Ω) | R32: (Ω) | S32: Vdc | T32: Ω/°C | U32: (milli-Watts) | V32: (-) tolerance | W32: (+) tolerance | X32: Delta Vdc
A33: 1 | B33: -40 | C33: =IFERROR('Device Resistance Tables'!C20,NA()) -> 6445.012477 | D33: =IFERROR('Device Resistance Tables'!D20,NA()) -> 6543.159875 | E33: =IFERROR('Device Resistance Tables'!F20,NA()) -> 6641.307273 | F33: =IFERROR(D33*($B$15/(Main!$N$31+D33)),NA()) -> 1.305217851 | G33: =IFERROR($B$16*($B$15/(Main!$N$31+D33)),NA()) -> 1.994782149 | I33: =$F33/$D33 -> 0.0001994782149 | J33: =IFERROR(($B$15/(Main!$N$31+D33))^2*(Main!$N$31+D33)*1000,NA()) -> 0.658278109 | K33: =IFERROR(((D33-C33)/D33)*-100,NA()) -> -1.5 | L33: =IFERROR(((E33-D33)/D33)*100,NA()) -> 1.5 | O33: -40 | P33: 188020.2 | Q33: 195652 | R33: 203573.1 | S33: =IFERROR(Q33*($B$15/(Main!$N$31+Q33)),NA()) -> 3.139534748 | U33: =IFERROR(($B$15/(Main!$N$31+Q33))^2*(Main!$N$31+Q33)*1000,NA()) -> 0.05295353315 | V33: =IFERROR(((Q33-P33)/Q33)*-100,NA()) -> -3.900701245 | W33: =IFERROR(((R33-Q33)/Q33)*100,NA()) -> 4.048565821
A34: 2 | B34: -39 | C34: =IFERROR('Device Resistance Tables'!C21,NA()) -> 6487.406484 | D34: =IFERROR('Device Resistance Tables'!D21,NA()) -> 6586.199476 | E34: =IFERROR('Device Resistance Tables'!F21,NA()) -> 6684.992469 | F34: =IFERROR(D34*($B$15/(Main!$N$31+D34)),NA()) -> 1.31039412 | G34: =IFERROR($B$16*($B$15/(Main!$N$31+D34)),NA()) -> 1.98960588 | H34: =IFERROR(D34-D33,NA()) -> 43.0396017 | I34: =$F34/$D34 -> 0.000198960588 | J34: =IFERROR(($B$15/(Main!$N$31+D34))^2*(Main!$N$31+D34)*1000,NA()) -> 0.6565699403 | K34: =IFERROR(((D34-C34)/D34)*-100,NA()) -> -1.5 | L34: 1.5 | M34: =IFERROR(F34-F33,NA()) -> 0.005176268938 | O34: -39 | P34: 177804.4 | Q34: 184917.1 | R34: 192295.1 | S34: =IFERROR(Q34*($B$15/(Main!$N$31+Q34)),NA()) -> 3.130697255 | T34: =IFERROR(Q33-Q34,NA()) -> 10734.9 | U34: =IFERROR(($B$15/(Main!$N$31+Q34))^2*(Main!$N$31+Q34)*1000,NA()) -> 0.05586990572 | V34: =IFERROR(((Q34-P34)/Q34)*-100,NA()) -> -3.846426318 | W34: =IFERROR(((R34-Q34)/Q34)*100,NA()) -> 3.989896013 | X34: =IFERROR(S33-S34,NA()) -> 0.008837492624
A35: 3 | B35: -38 | C35: =IFERROR('Device Resistance Tables'!C22,NA()) -> 6530.08873 | D35: =IFERROR('Device Resistance Tables'!D22,NA()) -> 6629.531706 | E35: =IFERROR('Device Resistance Tables'!F22,NA()) -> 6728.974681 | F35: =IFERROR(D35*($B$15/(Main!$N$31+D35)),NA()) -> 1.315578515 | G35: =IFERROR($B$16*($B$15/(Main!$N$31+D35)),NA()) -> 1.984421485 | H35: 43.33222918 | I35: 0.0001984421485 | J35: =IFERROR(($B$15/(Main!$N$31+D35))^2*(Main!$N$31+D35)*1000,NA()) -> 0.65485909 | K35: -1.5 | L35: 1.5 | M35: =IFERROR(F35-F34,NA()) -> 0.005184394815 | O35: -38 | P35: 168214.1 | Q35: 174845.2 | R35: 181719.5 | S35: =IFERROR(Q35*($B$15/(Main!$N$31+Q35)),NA()) -> 3.121472237 | T35: =IFERROR(Q34-Q35,NA()) -> 10071.9 | U35: =IFERROR(($B$15/(Main!$N$31+Q35))^2*(Main!$N$31+Q35)*1000,NA()) -> 0.05891416169 | V35: -3.792554786 | W35: 3.931649253 | X35: =IFERROR(S34-S35,NA()) -> 0.009225018087
A36: 4 | B36: -37 | C36: =IFERROR('Device Resistance Tables'!C23,NA()) -> 6573.059334 | D36: =IFERROR('Device Resistance Tables'!D23,NA()) -> 6673.156684 | E36: =IFERROR('Device Resistance Tables'!F23,NA()) -> 6773.254034 | F36: =IFERROR(D36*($B$15/(Main!$N$31+D36)),NA()) -> 1.320770714 | G36: =IFERROR($B$16*($B$15/(Main!$N$31+D36)),NA()) -> 1.979229286 | H36: 43.62497849 | I36: 0.0001979229286 | J36: =IFERROR(($B$15/(Main!$N$31+D36))^2*(Main!$N$31+D36)*1000,NA()) -> 0.6531456644 | K36: -1.5 | L36: 1.5 | M36: 0.005192198828 | O36: -37 | P36: 159206.9 | Q36: 165391 | R36: 171798.1 | S36: =IFERROR(Q36*($B$15/(Main!$N$31+Q36)),NA()) -> 3.111848955 | T36: 9454.2 | U36: =IFERROR(($B$15/(Main!$N$31+Q36))^2*(Main!$N$31+Q36)*1000,NA()) -> 0.06208984497 | V36: -3.73907891 | W36: 3.873910914 | X36: 0.009623282689
A37: 5 | B37: -36 | C37: =IFERROR('Device Resistance Tables'!C24,NA()) -> 6616.318422 | D37: =IFERROR('Device Resistance Tables'!D24,NA()) -> 6717.07454 | E37: =IFERROR('Device Resistance Tables'!F24,NA()) -> 6817.830658 | F37: =IFERROR(D37*($B$15/(Main!$N$31+D37)),NA()) -> 1.325970398 | G37: =IFERROR($B$16*($B$15/(Main!$N$31+D37)),NA()) -> 1.974029602 | H37: 43.91785569 | I37: 0.0001974029602 | J37: =IFERROR(($B$15/(Main!$N$31+D37))^2*(Main!$N$31+D37)*1000,NA()) -> 0.6514297686 | K37: -1.5 | L37: 1.5 | M37: 0.005199684069 | O37: -36 | P37: 150743.5 | Q37: 156512.5 | R37: 162486 | S37: =IFERROR(Q37*($B$15/(Main!$N$31+Q37)),NA()) -> 3.10181668 | T37: 8878.5 | U37: =IFERROR(($B$15/(Main!$N$31+Q37))^2*(Main!$N$31+Q37)*1000,NA()) -> 0.06540049546 | V37: -3.685967574 | W37: 3.816628065 | X37: 0.01003227419
A38: 6 | B38: -35 | C38: =IFERROR('Device Resistance Tables'!C25,NA()) -> 6659.866126 | D38: =IFERROR('Device Resistance Tables'!D25,NA()) -> 6761.285407 | E38: =IFERROR('Device Resistance Tables'!F25,NA()) -> 6862.704688 | F38: =IFERROR(D38*($B$15/(Main!$N$31+D38)),NA()) -> 1.331177252 | G38: =IFERROR($B$16*($B$15/(Main!$N$31+D38)),NA()) -> 1.968822748 | H38: 44.21086682 | I38: 0.0001968822748 | J38: =IFERROR(($B$15/(Main!$N$31+D38))^2*(Main!$N$31+D38)*1000,NA()) -> 0.649711507 | K38: -1.5 | L38: 1.5 | M38: 0.005206853634 | O38: -35 | P38: 142787.7 | Q38: 148171 | R38: 153741.8 | S38: =IFERROR(Q38*($B$15/(Main!$N$31+Q38)),NA()) -> 3.091365042 | T38: 8341.5 | U38: =IFERROR(($B$15/(Main!$N$31+Q38))^2*(Main!$N$31+Q38)*1000,NA()) -> 0.06884953626 | V38: -3.633167084 | W38: 3.759710065 | X38: 0.0104516388
A39: 7 | B39: -34 | C39: =IFERROR('Device Resistance Tables'!C26,NA()) -> 6703.702583 | D39: =IFERROR('Device Resistance Tables'!D26,NA()) -> 6805.789425 | E39: =IFERROR('Device Resistance Tables'!F26,NA()) -> 6907.876266 | F39: =IFERROR(D39*($B$15/(Main!$N$31+D39)),NA()) -> 1.336390962 | G39: =IFERROR($B$16*($B$15/(Main!$N$31+D39)),NA()) -> 1.963609038 | H39: 44.50401793 | I39: 0.0001963609038 | J39: =IFERROR(($B$15/(Main!$N$31+D39))^2*(Main!$N$31+D39)*1000,NA()) -> 0.6479909824 | K39: -1.5 | L39: 1.5 | M39: 0.005213710626 | O39: -34 | P39: 135305.5 | Q39: 140330.4 | R39: 145527.4 | S39: =IFERROR(Q39*($B$15/(Main!$N$31+Q39)),NA()) -> 3.080483522 | T39: 7840.6 | U39: =IFERROR(($B$15/(Main!$N$31+Q39))^2*(Main!$N$31+Q39)*1000,NA()) -> 0.07244043786 | V39: -3.580763683 | W39: 3.703402826 | X39: 0.01088152
A40: 8 | B40: -33 | C40: =IFERROR('Device Resistance Tables'!C27,NA()) -> 6747.827939 | D40: =IFERROR('Device Resistance Tables'!D27,NA()) -> 6850.58674 | E40: =IFERROR('Device Resistance Tables'!F27,NA()) -> 6953.345541 | F40: =IFERROR(D40*($B$15/(Main!$N$31+D40)),NA()) -> 1.34161122 | G40: =IFERROR($B$16*($B$15/(Main!$N$31+D40)),NA()) -> 1.95838878 | H40: 44.79731506 | I40: 0.000195838878 | J40: =IFERROR(($B$15/(Main!$N$31+D40))^2*(Main!$N$31+D40)*1000,NA()) -> 0.6462682973 | K40: -1.5 | L40: 1.5 | M40: 0.005220258148 | O40: -33 | P40: 128265.9 | Q40: 132957.6 | R40: 137807.1 | S40: =IFERROR(Q40*($B$15/(Main!$N$31+Q40)),NA()) -> 3.069162325 | T40: 7372.8 | U40: =IFERROR(($B$15/(Main!$N$31+Q40))^2*(Main!$N$31+Q40)*1000,NA()) -> 0.07617643273 | V40: -3.52871893 | W40: 3.647403383 | X40: 0.01132119658
A41: 9 | B41: -32 | C41: =IFERROR('Device Resistance Tables'!C28,NA()) -> 6792.242341 | D41: =IFERROR('Device Resistance Tables'!D28,NA()) -> 6895.677504 | E41: =IFERROR('Device Resistance Tables'!F28,NA()) -> 6999.112667 | F41: =IFERROR(D41*($B$15/(Main!$N$31+D41)),NA()) -> 1.34683772 | G41: =IFERROR($B$16*($B$15/(Main!$N$31+D41)),NA()) -> 1.95316228 | H41: 45.09076427 | I41: 0.000195316228 | J41: =IFERROR(($B$15/(Main!$N$31+D41))^2*(Main!$N$31+D41)*1000,NA()) -> 0.6445435525 | K41: -1.5 | L41: 1.5 | M41: 0.00522649931 | O41: -32 | P41: 121639.7 | Q41: 126021.5 | R41: 130548.1 | S41: =IFERROR(Q41*($B$15/(Main!$N$31+Q41)),NA()) -> 3.057391295 | T41: 6936.1 | U41: =IFERROR(($B$15/(Main!$N$31+Q41))^2*(Main!$N$31+Q41)*1000,NA()) -> 0.08006087273 | V41: -3.477025746 | W41: 3.591926774 | X41: 0.01177103029
A42: 10 | B42: -31 | C42: =IFERROR('Device Resistance Tables'!C29,NA()) -> 6836.945947 | D42: =IFERROR('Device Resistance Tables'!D29,NA()) -> 6941.061876 | E42: =IFERROR('Device Resistance Tables'!F29,NA()) -> 7045.177804 | F42: =IFERROR(D42*($B$15/(Main!$N$31+D42)),NA()) -> 1.352070157 | G42: =IFERROR($B$16*($B$15/(Main!$N$31+D42)),NA()) -> 1.947929843 | H42: 45.3843716 | I42: 0.0001947929843 | J42: =IFERROR(($B$15/(Main!$N$31+D42))^2*(Main!$N$31+D42)*1000,NA()) -> 0.6428168482 | K42: -1.5 | L42: 1.5 | M42: 0.005232437221 | O42: -31 | P42: 115400.1 | Q42: 119493.6 | R42: 123719.8 | S42: =IFERROR(Q42*($B$15/(Main!$N$31+Q42)),NA()) -> 3.045161151 | T42: 6527.9 | U42: =IFERROR(($B$15/(Main!$N$31+Q42))^2*(Main!$N$31+Q42)*1000,NA()) -> 0.08409682023 | V42: -3.425706481 | W42: 3.536758454 | X42: 0.01223014394
A43: 11 | B43: -30 | C43: =IFERROR('Device Resistance Tables'!C30,NA()) -> 6881.938918 | D43: =IFERROR('Device Resistance Tables'!D30,NA()) -> 6986.740019 | E43: =IFERROR('Device Resistance Tables'!F30,NA()) -> 7091.541119 | F43: =IFERROR(D43*($B$15/(Main!$N$31+D43)),NA()) -> 1.357308232 | G43: =IFERROR($B$16*($B$15/(Main!$N$31+D43)),NA()) -> 1.942691768 | H43: 45.6781431 | I43: 0.0001942691768 | J43: =IFERROR(($B$15/(Main!$N$31+D43))^2*(Main!$N$31+D43)*1000,NA()) -> 0.6410882835 | K43: -1.5 | L43: 1.5 | M43: 0.005238074994 | O43: -30 | P43: 109522.1 | Q43: 113347.1 | R43: 117294 | S43: =IFERROR(Q43*($B$15/(Main!$N$31+Q43)),NA()) -> 3.032462295 | T43: 6146.5 | U43: =IFERROR(($B$15/(Main!$N$31+Q43))^2*(Main!$N$31+Q43)*1000,NA()) -> 0.08828744251 | V43: -3.374590087 | W43: 3.482135846 | X43: 0.0126988554
A44: 12 | B44: -29 | C44: =IFERROR('Device Resistance Tables'!C31,NA()) -> 6927.221422 | D44: =IFERROR('Device Resistance Tables'!D31,NA()) -> 7032.712103 | E44: =IFERROR('Device Resistance Tables'!F31,NA()) -> 7138.202785 | F44: =IFERROR(D44*($B$15/(Main!$N$31+D44)),NA()) -> 1.362551648 | G44: =IFERROR($B$16*($B$15/(Main!$N$31+D44)),NA()) -> 1.937448352 | H44: 45.97208481 | I44: 0.0001937448352 | J44: =IFERROR(($B$15/(Main!$N$31+D44))^2*(Main!$N$31+D44)*1000,NA()) -> 0.6393579563 | K44: -1.5 | L44: 1.5 | M44: 0.005243415739 | O44: -29 | P44: 103989.4 | Q44: 107564.9 | R44: 111252.2 | S44: =IFERROR(Q44*($B$15/(Main!$N$31+Q44)),NA()) -> 3.019303976 | T44: 5782.2 | U44: =IFERROR(($B$15/(Main!$N$31+Q44))^2*(Main!$N$31+Q44)*1000,NA()) -> 0.09262968794 | V44: -3.324039719 | W44: 3.42797697 | X44: 0.01315831949
A45: 13 | B45: -28 | C45: =IFERROR('Device Resistance Tables'!C32,NA()) -> 6972.793632 | D45: =IFERROR('Device Resistance Tables'!D32,NA()) -> 7078.978306 | E45: =IFERROR('Device Resistance Tables'!F32,NA()) -> 7185.162981 | F45: =IFERROR(D45*($B$15/(Main!$N$31+D45)),NA()) -> 1.36780011 | G45: =IFERROR($B$16*($B$15/(Main!$N$31+D45)),NA()) -> 1.93219989 | H45: 46.2662028 | I45: 0.000193219989 | J45: =IFERROR(($B$15/(Main!$N$31+D45))^2*(Main!$N$31+D45)*1000,NA()) -> 0.6376259636 | K45: -1.5 | L45: 1.5 | M45: 0.00524846257 | O45: -28 | P45: 98772.5 | Q45: 102115.5 | R45: 105561.1 | S45: =IFERROR(Q45*($B$15/(Main!$N$31+Q45)),NA()) -> 3.00566068 | T45: 5449.4 | U45: =IFERROR(($B$15/(Main!$N$31+Q45))^2*(Main!$N$31+Q45)*1000,NA()) -> 0.09713197551 | V45: -3.273743947 | W45: 3.37421841 | X45: 0.01364329565
A46: 14 | B46: -27 | C46: =IFERROR('Device Resistance Tables'!C33,NA()) -> 7018.655727 | D46: =IFERROR('Device Resistance Tables'!D33,NA()) -> 7125.538809 | E46: =IFERROR('Device Resistance Tables'!F33,NA()) -> 7232.421891 | F46: =IFERROR(D46*($B$15/(Main!$N$31+D46)),NA()) -> 1.373053329 | G46: =IFERROR($B$16*($B$15/(Main!$N$31+D46)),NA()) -> 1.926946671 | H46: 46.56050309 | I46: 0.0001926946671 | J46: =IFERROR(($B$15/(Main!$N$31+D46))^2*(Main!$N$31+D46)*1000,NA()) -> 0.6358924015 | K46: -1.5 | L46: 1.5 | M46: 0.005253218596 | O46: -27 | P46: 93851.2 | Q46: 96977.6 | R46: 100198.1 | S46: =IFERROR(Q46*($B$15/(Main!$N$31+Q46)),NA()) -> 2.991524207 | T46: 5137.9 | U46: =IFERROR(($B$15/(Main!$N$31+Q46))^2*(Main!$N$31+Q46)*1000,NA()) -> 0.1017970117 | V46: -3.223837257 | W46: 3.320869974 | X46: 0.01413647334
A47: 15 | B47: -26 | C47: =IFERROR('Device Resistance Tables'!C34,NA()) -> 7064.807894 | D47: =IFERROR('Device Resistance Tables'!D34,NA()) -> 7172.393801 | E47: =IFERROR('Device Resistance Tables'!F34,NA()) -> 7279.979708 | F47: =IFERROR(D47*($B$15/(Main!$N$31+D47)),NA()) -> 1.378311016 | G47: =IFERROR($B$16*($B$15/(Main!$N$31+D47)),NA()) -> 1.921688984 | H47: 46.85499174 | I47: 0.0001921688984 | J47: =IFERROR(($B$15/(Main!$N$31+D47))^2*(Main!$N$31+D47)*1000,NA()) -> 0.6341573648 | K47: -1.5 | L47: 1.5 | M47: 0.005257686925 | O47: -26 | P47: 89207.1 | Q47: 92131.5 | R47: 95142.3 | S47: =IFERROR(Q47*($B$15/(Main!$N$31+Q47)),NA()) -> 2.97688715 | T47: 4846.1 | U47: =IFERROR(($B$15/(Main!$N$31+Q47))^2*(Main!$N$31+Q47)*1000,NA()) -> 0.1066272404 | V47: -3.174158675 | W47: 3.267937676 | X47: 0.01463705655
A48: 16 | B48: -25 | C48: =IFERROR('Device Resistance Tables'!C35,NA()) -> 7111.250324 | D48: =IFERROR('Device Resistance Tables'!D35,NA()) -> 7219.543476 | E48: =IFERROR('Device Resistance Tables'!F35,NA()) -> 7327.836628 | F48: =IFERROR(D48*($B$15/(Main!$N$31+D48)),NA()) -> 1.383572886 | G48: =IFERROR($B$16*($B$15/(Main!$N$31+D48)),NA()) -> 1.916427114 | H48: 47.14967481 | I48: 0.0001916427114 | J48: =IFERROR(($B$15/(Main!$N$31+D48))^2*(Main!$N$31+D48)*1000,NA()) -> 0.6324209475 | K48: -1.5 | L48: 1.5 | M48: 0.005261870665 | O48: -25 | P48: 84822.7 | Q48: 87558.8 | R48: 90374.1 | S48: =IFERROR(Q48*($B$15/(Main!$N$31+Q48)),NA()) -> 2.961742457 | T48: 4572.7 | U48: =IFERROR(($B$15/(Main!$N$31+Q48))^2*(Main!$N$31+Q48)*1000,NA()) -> 0.1116249892 | V48: -3.124871515 | W48: 3.215325016 | X48: 0.01514469353
A49: 17 | B49: -24 | C49: =IFERROR('Device Resistance Tables'!C36,NA()) -> 7157.983214 | D49: =IFERROR('Device Resistance Tables'!D36,NA()) -> 7266.988034 | E49: =IFERROR('Device Resistance Tables'!F36,NA()) -> 7375.992855 | F49: =IFERROR(D49*($B$15/(Main!$N$31+D49)),NA()) -> 1.388838659 | G49: =IFERROR($B$16*($B$15/(Main!$N$31+D49)),NA()) -> 1.911161341 | H49: 47.44455832 | I49: 0.0001911161341 | J49: =IFERROR(($B$15/(Main!$N$31+D49))^2*(Main!$N$31+D49)*1000,NA()) -> 0.6306832424 | K49: -1.5 | L49: 1.5 | M49: 0.005265772918 | O49: -24 | P49: 80681.9 | Q49: 83242.4 | R49: 85875.5 | S49: =IFERROR(Q49*($B$15/(Main!$N$31+Q49)),NA()) -> 2.946083756 | T49: 4316.4 | U49: =IFERROR(($B$15/(Main!$N$31+Q49))^2*(Main!$N$31+Q49)*1000,NA()) -> 0.1167923606 | V49: -3.075956484 | W49: 3.163171653 | X49: 0.01565870097
A50: 18 | B50: -23 | C50: =IFERROR('Device Resistance Tables'!C37,NA()) -> 7205.006767 | D50: =IFERROR('Device Resistance Tables'!D37,NA()) -> 7314.727683 | E50: =IFERROR('Device Resistance Tables'!F37,NA()) -> 7424.448598 | F50: =IFERROR(D50*($B$15/(Main!$N$31+D50)),NA()) -> 1.394108056 | G50: =IFERROR($B$16*($B$15/(Main!$N$31+D50)),NA()) -> 1.905891944 | H50: 47.73964835 | I50: 0.0001905891944 | J50: =IFERROR(($B$15/(Main!$N$31+D50))^2*(Main!$N$31+D50)*1000,NA()) -> 0.6289443415 | K50: -1.5 | L50: 1.5 | M50: 0.005269396782 | O50: -23 | P50: 76769.8 | Q50: 79166.3 | R50: 81629.5 | S50: =IFERROR(Q50*($B$15/(Main!$N$31+Q50)),NA()) -> 2.92990502 | T50: 4076.1 | U50: =IFERROR(($B$15/(Main!$N$31+Q50))^2*(Main!$N$31+Q50)*1000,NA()) -> 0.1221313433 | V50: -3.027171915 | W50: 3.111424937 | X50: 0.01617873572
A51: 19 | B51: -22 | C51: =IFERROR('Device Resistance Tables'!C38,NA()) -> 7252.321194 | D51: =IFERROR('Device Resistance Tables'!D38,NA()) -> 7362.762633 | E51: =IFERROR('Device Resistance Tables'!F38,NA()) -> 7473.204073 | F51: =IFERROR(D51*($B$15/(Main!$N$31+D51)),NA()) -> 1.399380802 | G51: =IFERROR($B$16*($B$15/(Main!$N$31+D51)),NA()) -> 1.900619198 | H51: 48.03495092 | I51: 0.0001900619198 | J51: =IFERROR(($B$15/(Main!$N$31+D51))^2*(Main!$N$31+D51)*1000,NA()) -> 0.6272043355 | K51: -1.5 | L51: 1.5 | M51: 0.005272745353 | O51: -22 | P51: 73072.2 | Q51: 75315.7 | R51: 77620.4 | S51: =IFERROR(Q51*($B$15/(Main!$N$31+Q51)),NA()) -> 2.913201322 | T51: 3850.6 | U51: =IFERROR(($B$15/(Main!$N$31+Q51))^2*(Main!$N$31+Q51)*1000,NA()) -> 0.1276435638 | V51: -2.978794594 | W51: 3.060052552 | X51: 0.01670369849
A52: 20 | B52: -21 | C52: =IFERROR('Device Resistance Tables'!C39,NA()) -> 7299.926709 | D52: =IFERROR('Device Resistance Tables'!D39,NA()) -> 7411.093106 | E52: =IFERROR('Device Resistance Tables'!F39,NA()) -> 7522.259502 | F52: =IFERROR(D52*($B$15/(Main!$N$31+D52)),NA()) -> 1.404656623 | G52: =IFERROR($B$16*($B$15/(Main!$N$31+D52)),NA()) -> 1.895343377 | H52: 48.3304721 | I52: 0.0001895343377 | J52: =IFERROR(($B$15/(Main!$N$31+D52))^2*(Main!$N$31+D52)*1000,NA()) -> 0.6254633143 | K52: -1.5 | L52: 1.5 | M52: 0.005275821718 | O52: -21 | P52: 69576.1 | Q52: 71676.8 | R52: 73833.6 | S52: =IFERROR(Q52*($B$15/(Main!$N$31+Q52)),NA()) -> 2.8959685 | T52: 3638.9 | U52: =IFERROR(($B$15/(Main!$N$31+Q52))^2*(Main!$N$31+Q52)*1000,NA()) -> 0.1333303949 | V52: -2.930794902 | W52: 3.009062905 | X52: 0.01723282144
A53: 21 | B53: -20 | C53: =IFERROR('Device Resistance Tables'!C40,NA()) -> 7347.823534 | D53: =IFERROR('Device Resistance Tables'!D40,NA()) -> 7459.719324 | E53: =IFERROR('Device Resistance Tables'!F40,NA()) -> 7571.615113 | F53: =IFERROR(D53*($B$15/(Main!$N$31+D53)),NA()) -> 1.409935252 | G53: =IFERROR($B$16*($B$15/(Main!$N$31+D53)),NA()) -> 1.890064748 | H53: 48.62621792 | I53: 0.0001890064748 | J53: =IFERROR(($B$15/(Main!$N$31+D53))^2*(Main!$N$31+D53)*1000,NA()) -> 0.6237213668 | K53: -1.5 | L53: 1.5 | M53: 0.005278628961 | O53: -20 | P53: 66269.4 | Q53: 68236.7 | R53: 70255.4 | S53: =IFERROR(Q53*($B$15/(Main!$N$31+Q53)),NA()) -> 2.878203068 | T53: 3440.1 | U53: =IFERROR(($B$15/(Main!$N$31+Q53))^2*(Main!$N$31+Q53)*1000,NA()) -> 0.1391929874 | V53: -2.883052668 | W53: 2.958378702 | X53: 0.01776543185
A54: 22 | B54: -19 | C54: =IFERROR('Device Resistance Tables'!C41,NA()) -> 7396.011895 | D54: =IFERROR('Device Resistance Tables'!D41,NA()) -> 7508.641518 | E54: =IFERROR('Device Resistance Tables'!F41,NA()) -> 7621.271141 | F54: =IFERROR(D54*($B$15/(Main!$N$31+D54)),NA()) -> 1.415216422 | G54: =IFERROR($B$16*($B$15/(Main!$N$31+D54)),NA()) -> 1.884783578 | H54: 48.92219444 | I54: 0.0001884783578 | J54: =IFERROR(($B$15/(Main!$N$31+D54))^2*(Main!$N$31+D54)*1000,NA()) -> 0.6219785806 | K54: -1.5 | L54: 1.5 | M54: 0.005281170158 | O54: -19 | P54: 63147.7 | Q54: 64990.7 | R54: 66880.7 | S54: =IFERROR(Q54*($B$15/(Main!$N$31+Q54)),NA()) -> 2.859945433 | T54: 3246 | U54: =IFERROR(($B$15/(Main!$N$31+Q54))^2*(Main!$N$31+Q54)*1000,NA()) -> 0.145218007 | V54: -2.835790352 | W54: 2.908108391 | X54: 0.01825763515
A55: 23 | B55: -18 | C55: =IFERROR('Device Resistance Tables'!C42,NA()) -> 7444.492027 | D55: =IFERROR('Device Resistance Tables'!D42,NA()) -> 7557.859926 | E55: =IFERROR('Device Resistance Tables'!F42,NA()) -> 7671.227825 | F55: =IFERROR(D55*($B$15/(Main!$N$31+D55)),NA()) -> 1.420499871 | G55: =IFERROR($B$16*($B$15/(Main!$N$31+D55)),NA()) -> 1.879500129 | H55: 49.2184077 | I55: 0.0001879500129 | J55: =IFERROR(($B$15/(Main!$N$31+D55))^2*(Main!$N$31+D55)*1000,NA()) -> 0.6202350427 | K55: -1.5 | L55: 1.5 | M55: 0.005283448378 | O55: -18 | P55: 60192.3 | Q55: 61919 | R55: 63688.9 | S55: =IFERROR(Q55*($B$15/(Main!$N$31+Q55)),NA()) -> 2.841150461 | T55: 3071.7 | U55: =IFERROR(($B$15/(Main!$N$31+Q55))^2*(Main!$N$31+Q55)*1000,NA()) -> 0.1514203479 | V55: -2.788643227 | W55: 2.858411796 | X55: 0.0187949723
A56: 24 | B56: -17 | C56: =IFERROR('Device Resistance Tables'!C43,NA()) -> 7493.264168 | D56: =IFERROR('Device Resistance Tables'!D43,NA()) -> 7607.374789 | E56: =IFERROR('Device Resistance Tables'!F43,NA()) -> 7721.485411 | F56: =IFERROR(D56*($B$15/(Main!$N$31+D56)),NA()) -> 1.425785337 | G56: =IFERROR($B$16*($B$15/(Main!$N$31+D56)),NA()) -> 1.874214663 | H56: 49.51486375 | I56: 0.0001874214663 | J56: =IFERROR(($B$15/(Main!$N$31+D56))^2*(Main!$N$31+D56)*1000,NA()) -> 0.6184908387 | K56: -1.5 | L56: 1.5 | M56: 0.005285466683 | O56: -17 | P56: 57393.3 | Q56: 59011.3 | R56: 60668.9 | S56: =IFERROR(Q56*($B$15/(Main!$N$31+Q56)),NA()) -> 2.821817441 | T56: 2907.7 | U56: =IFERROR(($B$15/(Main!$N$31+Q56))^2*(Main!$N$31+Q56)*1000,NA()) -> 0.1578002443 | V56: -2.741847748 | W56: 2.808953539 | X56: 0.01933301944
A57: 25 | B57: -16 | C57: =IFERROR('Device Resistance Tables'!C44,NA()) -> 7542.328563 | D57: =IFERROR('Device Resistance Tables'!D44,NA()) -> 7657.186358 | E57: =IFERROR('Device Resistance Tables'!F44,NA()) -> 7772.044153 | F57: =IFERROR(D57*($B$15/(Main!$N$31+D57)),NA()) -> 1.431072566 | G57: =IFERROR($B$16*($B$15/(Main!$N$31+D57)),NA()) -> 1.868927434 | H57: 49.81156864 | I57: 0.0001868927434 | J57: =IFERROR(($B$15/(Main!$N$31+D57))^2*(Main!$N$31+D57)*1000,NA()) -> 0.6167460534 | K57: -1.5 | L57: 1.5 | M57: 0.005287228125 | O57: -16 | P57: 54741.5 | Q57: 56257.9 | R57: 57810.5 | S57: =IFERROR(Q57*($B$15/(Main!$N$31+Q57)),NA()) -> 2.801946183 | T57: 2753.4 | U57: =IFERROR(($B$15/(Main!$N$31+Q57))^2*(Main!$N$31+Q57)*1000,NA()) -> 0.1643577596 | V57: -2.695443662 | W57: 2.759790181 | X57: 0.01987125847
A58: 26 | B58: -15 | C58: =IFERROR('Device Resistance Tables'!C45,NA()) -> 7591.685463 | D58: =IFERROR('Device Resistance Tables'!D45,NA()) -> 7707.294886 | E58: =IFERROR('Device Resistance Tables'!F45,NA()) -> 7822.90431 | F58: =IFERROR(D58*($B$15/(Main!$N$31+D58)),NA()) -> 1.436361301 | G58: =IFERROR($B$16*($B$15/(Main!$N$31+D58)),NA()) -> 1.863638699 | H58: 50.10852842 | I58: 0.0001863638699 | J58: =IFERROR(($B$15/(Main!$N$31+D58))^2*(Main!$N$31+D58)*1000,NA()) -> 0.6150007706 | K58: -1.5 | L58: 1.5 | M58: 0.005288735748 | O58: -15 | P58: 52228.3 | Q58: 53649.6 | R58: 55104 | S58: =IFERROR(Q58*($B$15/(Main!$N$31+Q58)),NA()) -> 2.781536412 | T58: 2608.3 | U58: =IFERROR(($B$15/(Main!$N$31+Q58))^2*(Main!$N$31+Q58)*1000,NA()) -> 0.1710929841 | V58: -2.64922758 | W58: 2.710924219 | X58: 0.02040977117
A59: 27 | B59: -14 | C59: =IFERROR('Device Resistance Tables'!C46,NA()) -> 7641.335126 | D59: =IFERROR('Device Resistance Tables'!D46,NA()) -> 7757.700636 | E59: =IFERROR('Device Resistance Tables'!F46,NA()) -> 7874.066145 | F59: =IFERROR(D59*($B$15/(Main!$N$31+D59)),NA()) -> 1.441651294 | G59: =IFERROR($B$16*($B$15/(Main!$N$31+D59)),NA()) -> 1.858348706 | H59: 50.40574913 | I59: 0.0001858348706 | J59: =IFERROR(($B$15/(Main!$N$31+D59))^2*(Main!$N$31+D59)*1000,NA()) -> 0.613255073 | K59: -1.5 | L59: 1.5 | M59: 0.005289992587 | O59: -14 | P59: 49845.6 | Q59: 51177.9 | R59: 52540.6 | S59: =IFERROR(Q59*($B$15/(Main!$N$31+Q59)),NA()) -> 2.760589527 | T59: 2471.7 | U59: =IFERROR(($B$15/(Main!$N$31+Q59))^2*(Main!$N$31+Q59)*1000,NA()) -> 0.1780054562 | V59: -2.603272116 | W59: 2.662672755 | X59: 0.02094688524
A60: 28 | B60: -13 | C60: =IFERROR('Device Resistance Tables'!C47,NA()) -> 7691.277814 | D60: =IFERROR('Device Resistance Tables'!D47,NA()) -> 7808.403872 | E60: =IFERROR('Device Resistance Tables'!F47,NA()) -> 7925.529931 | F60: =IFERROR(D60*($B$15/(Main!$N$31+D60)),NA()) -> 1.446942296 | G60: =IFERROR($B$16*($B$15/(Main!$N$31+D60)),NA()) -> 1.853057704 | H60: 50.70323683 | I60: 0.0001853057704 | J60: =IFERROR(($B$15/(Main!$N$31+D60))^2*(Main!$N$31+D60)*1000,NA()) -> 0.6115090425 | K60: -1.5 | L60: 1.5 | M60: 0.005291001666 | O60: -13 | P60: 47585.9 | Q60: 48834.9 | R60: 50111.7 | S60: =IFERROR(Q60*($B$15/(Main!$N$31+Q60)),NA()) -> 2.73910842 | T60: 2343 | U60: =IFERROR(($B$15/(Main!$N$31+Q60))^2*(Main!$N$31+Q60)*1000,NA()) -> 0.1850942213 | V60: -2.557597128 | W60: 2.61452363 | X60: 0.02148110627
A61: 29 | B61: -12 | C61: =IFERROR('Device Resistance Tables'!C48,NA()) -> 7741.513797 | D61: =IFERROR('Device Resistance Tables'!D48,NA()) -> 7859.40487 | E61: =IFERROR('Device Resistance Tables'!F48,NA()) -> 7977.295943 | F61: =IFERROR(D61*($B$15/(Main!$N$31+D61)),NA()) -> 1.452234062 | G61: =IFERROR($B$16*($B$15/(Main!$N$31+D61)),NA()) -> 1.847765938 | H61: 51.00099755 | I61: 0.0001847765938 | J61: =IFERROR(($B$15/(Main!$N$31+D61))^2*(Main!$N$31+D61)*1000,NA()) -> 0.6097627597 | K61: -1.5 | L61: 1.5 | M61: 0.005291765998 | O61: -12 | P61: 45442.2 | Q61: 46613.2 | R61: 47809.7 | S61: =IFERROR(Q61*($B$15/(Main!$N$31+Q61)),NA()) -> 2.717097073 | T61: 2221.7 | U61: =IFERROR(($B$15/(Main!$N$31+Q61))^2*(Main!$N$31+Q61)*1000,NA()) -> 0.192357966 | V61: -2.512163936 | W61: 2.56686947 | X61: 0.02201134757
A62: 30 | B62: -11 | C62: =IFERROR('Device Resistance Tables'!C49,NA()) -> 7792.043349 | D62: =IFERROR('Device Resistance Tables'!D49,NA()) -> 7910.703907 | E62: =IFERROR('Device Resistance Tables'!F49,NA()) -> 8029.364466 | F62: =IFERROR(D62*($B$15/(Main!$N$31+D62)),NA()) -> 1.45752635 | G62: =IFERROR($B$16*($B$15/(Main!$N$31+D62)),NA()) -> 1.84247365 | H62: 51.29903735 | I62: 0.000184247365 | J62: =IFERROR(($B$15/(Main!$N$31+D62))^2*(Main!$N$31+D62)*1000,NA()) -> 0.6080163045 | K62: -1.5 | L62: 1.5 | M62: 0.005292288588 | O62: -11 | P62: 43407.8 | Q62: 44505.8 | R62: 45627.1 | S62: =IFERROR(Q62*($B$15/(Main!$N$31+Q62)),NA()) -> 2.694559845 | T62: 2107.4 | U62: =IFERROR(($B$15/(Main!$N$31+Q62))^2*(Main!$N$31+Q62)*1000,NA()) -> 0.1997952511 | V62: -2.467094176 | W62: 2.519446904 | X62: 0.02253722776
A63: 31 | B63: -10 | C63: =IFERROR('Device Resistance Tables'!C50,NA()) -> 7842.866751 | D63: =IFERROR('Device Resistance Tables'!D50,NA()) -> 7962.30127 | E63: =IFERROR('Device Resistance Tables'!F50,NA()) -> 8081.735789 | F63: =IFERROR(D63*($B$15/(Main!$N$31+D63)),NA()) -> 1.462818923 | G63: =IFERROR($B$16*($B$15/(Main!$N$31+D63)),NA()) -> 1.837181077 | H63: 51.59736228 | I63: 0.0001837181077 | J63: =IFERROR(($B$15/(Main!$N$31+D63))^2*(Main!$N$31+D63)*1000,NA()) -> 0.6062697556 | K63: -1.5 | L63: 1.5 | M63: 0.005292572426 | O63: -10 | P63: 41476.5 | Q63: 42506.2 | R63: 43557 | S63: =IFERROR(Q63*($B$15/(Main!$N$31+Q63)),NA()) -> 2.671502794 | T63: 1999.6 | U63: =IFERROR(($B$15/(Main!$N$31+Q63))^2*(Main!$N$31+Q63)*1000,NA()) -> 0.207404078 | V63: -2.422470134 | W63: 2.472109951 | X63: 0.02305705105
A64: 32 | B64: -9 | C64: =IFERROR('Device Resistance Tables'!C51,NA()) -> 7893.984289 | D64: =IFERROR('Device Resistance Tables'!D51,NA()) -> 8014.197248 | E64: =IFERROR('Device Resistance Tables'!F51,NA()) -> 8134.410207 | F64: =IFERROR(D64*($B$15/(Main!$N$31+D64)),NA()) -> 1.468111543 | G64: =IFERROR($B$16*($B$15/(Main!$N$31+D64)),NA()) -> 1.831888457 | H64: 51.89597838 | I64: 0.0001831888457 | J64: =IFERROR(($B$15/(Main!$N$31+D64))^2*(Main!$N$31+D64)*1000,NA()) -> 0.6045231908 | K64: -1.5 | L64: 1.5 | M64: 0.005292620491 | O64: -9 | P64: 39634.5 | Q64: 40599.7 | R64: 41584.3 | S64: =IFERROR(Q64*($B$15/(Main!$N$31+Q64)),NA()) -> 2.64782222 | T64: 1906.5 | U64: =IFERROR(($B$15/(Main!$N$31+Q64))^2*(Main!$N$31+Q64)*1000,NA()) -> 0.2152186673 | V64: -2.377357468 | W64: 2.425141072 | X64: 0.02368057367
A65: 33 | B65: -8 | C65: =IFERROR('Device Resistance Tables'!C52,NA()) -> 7945.396258 | D65: =IFERROR('Device Resistance Tables'!D52,NA()) -> 8066.39214 | E65: =IFERROR('Device Resistance Tables'!F52,NA()) -> 8187.388022 | F65: =IFERROR(D65*($B$15/(Main!$N$31+D65)),NA()) -> 1.473403979 | G65: =IFERROR($B$16*($B$15/(Main!$N$31+D65)),NA()) -> 1.826596021 | H65: 52.1948917 | I65: 0.0001826596021 | J65: =IFERROR(($B$15/(Main!$N$31+D65))^2*(Main!$N$31+D65)*1000,NA()) -> 0.602776687 | K65: -1.5 | L65: =IFERROR(((E65-D65)/D65)*100,NA()) -> 1.5 | M65: 0.005292435749 | O65: -8 | P65: 37885.5 | Q65: 38790.5 | R65: 39713.1 | S65: =IFERROR(Q65*($B$15/(Main!$N$31+Q65)),NA()) -> 2.623638823 | T65: 1809.2 | U65: =IFERROR(($B$15/(Main!$N$31+Q65))^2*(Main!$N$31+Q65)*1000,NA()) -> 0.2231991884 | V65: -2.333045462 | W65: 2.378417396 | X65: 0.02418339716
A66: 34 | B66: -7 | C66: =IFERROR('Device Resistance Tables'!C53,NA()) -> 7997.102954 | D66: =IFERROR('Device Resistance Tables'!D53,NA()) -> 8118.886248 | E66: =IFERROR('Device Resistance Tables'!F53,NA()) -> 8240.669542 | F66: =IFERROR(D66*($B$15/(Main!$N$31+D66)),NA()) -> 1.478696 | G66: =IFERROR($B$16*($B$15/(Main!$N$31+D66)),NA()) -> 1.821304 | H66: =IFERROR(D66-D65,NA()) -> 52.49410829 | I66: 0.0001821304 | J66: =IFERROR(($B$15/(Main!$N$31+D66))^2*(Main!$N$31+D66)*1000,NA()) -> 0.60103032 | K66: -1.5 | L66: 1.5 | M66: 0.005292021156 | O66: -7 | P66: 36224.4 | Q66: 37072.9 | R66: 37937.4 | S66: =IFERROR(Q66*($B$15/(Main!$N$31+Q66)),NA()) -> 2.598959699 | T66: 1717.6 | U66: =IFERROR(($B$15/(Main!$N$31+Q66))^2*(Main!$N$31+Q66)*1000,NA()) -> 0.2313432994 | V66: -2.288733819 | W66: 2.331892029 | X66: 0.02467912445
A67: 35 | B67: -6 | C67: =IFERROR('Device Resistance Tables'!C54,NA()) -> 8049.104684 | D67: =IFERROR('Device Resistance Tables'!D54,NA()) -> 8171.679882 | E67: =IFERROR('Device Resistance Tables'!F54,NA()) -> 8294.25508 | F67: =IFERROR(D67*($B$15/(Main!$N$31+D67)),NA()) -> 1.48398738 | G67: =IFERROR($B$16*($B$15/(Main!$N$31+D67)),NA()) -> 1.81601262 | H67: 52.7936342 | I67: 0.000181601262 | J67: =IFERROR(($B$15/(Main!$N$31+D67))^2*(Main!$N$31+D67)*1000,NA()) -> 0.5992841647 | K67: -1.5 | L67: 1.5 | M67: 0.005291379651 | O67: -6 | P67: 34646.1 | Q67: 35441.7 | R67: 36251.9 | S67: =IFERROR(Q67*($B$15/(Main!$N$31+Q67)),NA()) -> 2.573794774 | T67: 1631.2 | U67: =IFERROR(($B$15/(Main!$N$31+Q67))^2*(Main!$N$31+Q67)*1000,NA()) -> 0.2396477244 | V67: -2.244813313 | W67: 2.286007725 | X67: 0.02516492428
A68: 36 | B68: -5 | C68: =IFERROR('Device Resistance Tables'!C55,NA()) -> 8101.401757 | D68: =IFERROR('Device Resistance Tables'!D55,NA()) -> 8224.773358 | E68: =IFERROR('Device Resistance Tables'!F55,NA()) -> 8348.144958 | F68: =IFERROR(D68*($B$15/(Main!$N$31+D68)),NA()) -> 1.489277894 | G68: =IFERROR($B$16*($B$15/(Main!$N$31+D68)),NA()) -> 1.810722106 | H68: 53.09347548 | I68: 0.0001810722106 | J68: =IFERROR(($B$15/(Main!$N$31+D68))^2*(Main!$N$31+D68)*1000,NA()) -> 0.5975382951 | K68: -1.5 | L68: 1.5 | M68: 0.005290514161 | O68: -5 | P68: 33146.2 | Q68: 33892.2 | R68: 34651.5 | S68: =IFERROR(Q68*($B$15/(Main!$N$31+Q68)),NA()) -> 2.548157987 | T68: 1549.5 | U68: =IFERROR(($B$15/(Main!$N$31+Q68))^2*(Main!$N$31+Q68)*1000,NA()) -> 0.2481078643 | V68: -2.201096417 | W68: 2.240338485 | X68: 0.02563678733
A69: 37 | B69: -4 | C69: =IFERROR('Device Resistance Tables'!C56,NA()) -> 8153.994491 | D69: =IFERROR('Device Resistance Tables'!D56,NA()) -> 8278.166996 | E69: =IFERROR('Device Resistance Tables'!F56,NA()) -> 8402.339501 | F69: =IFERROR(D69*($B$15/(Main!$N$31+D69)),NA()) -> 1.494567321 | G69: =IFERROR($B$16*($B$15/(Main!$N$31+D69)),NA()) -> 1.805432679 | H69: 53.39363816 | I69: 0.0001805432679 | J69: =IFERROR(($B$15/(Main!$N$31+D69))^2*(Main!$N$31+D69)*1000,NA()) -> 0.595792784 | K69: -1.5 | L69: 1.5 | M69: 0.005289427598 | O69: -4 | P69: 31720.2 | Q69: 32419.7 | R69: 33131.3 | S69: =IFERROR(Q69*($B$15/(Main!$N$31+Q69)),NA()) -> 2.522059562 | T69: 1472.5 | U69: =IFERROR(($B$15/(Main!$N$31+Q69))^2*(Main!$N$31+Q69)*1000,NA()) -> 0.2567203446 | V69: -2.15763872 | W69: 2.194961705 | X69: 0.02609842512
A70: 38 | B70: -3 | C70: =IFERROR('Device Resistance Tables'!C57,NA()) -> 8206.883207 | D70: =IFERROR('Device Resistance Tables'!D57,NA()) -> 8331.861124 | E70: =IFERROR('Device Resistance Tables'!F57,NA()) -> 8456.839041 | F70: =IFERROR(D70*($B$15/(Main!$N$31+D70)),NA()) -> 1.499855444 | G70: =IFERROR($B$16*($B$15/(Main!$N$31+D70)),NA()) -> 1.800144556 | H70: 53.69412831 | I70: 0.0001800144556 | J70: =IFERROR(($B$15/(Main!$N$31+D70))^2*(Main!$N$31+D70)*1000,NA()) -> 0.5940477034 | K70: -1.5 | L70: 1.5 | M70: 0.005288122861 | O70: -3 | P70: 30364.1 | Q70: 31020 | R70: 31686.9 | S70: =IFERROR(Q70*($B$15/(Main!$N$31+Q70)),NA()) -> 2.495514383 | T70: 1399.7 | U70: =IFERROR(($B$15/(Main!$N$31+Q70))^2*(Main!$N$31+Q70)*1000,NA()) -> 0.2654802535 | V70: -2.114442295 | W70: 2.149903288 | X70: 0.02654517872
A71: 39 | B71: -2 | C71: =IFERROR('Device Resistance Tables'!C58,NA()) -> 8260.068235 | D71: =IFERROR('Device Resistance Tables'!D58,NA()) -> 8385.856076 | E71: =IFERROR('Device Resistance Tables'!F58,NA()) -> 8511.643917 | F71: =IFERROR(D71*($B$15/(Main!$N$31+D71)),NA()) -> 1.505142047 | G71: =IFERROR($B$16*($B$15/(Main!$N$31+D71)),NA()) -> 1.794857953 | H71: 53.99495196 | I71: 0.0001794857953 | J71: =IFERROR(($B$15/(Main!$N$31+D71))^2*(Main!$N$31+D71)*1000,NA()) -> 0.5923031245 | K71: -1.5 | L71: 1.5 | M71: 0.005286602833 | O71: -2 | P71: 29074 | Q71: 29689 | R71: 30314 | S71: =IFERROR(Q71*($B$15/(Main!$N$31+Q71)),NA()) -> 2.468535362 | T71: 1331 | U71: =IFERROR(($B$15/(Main!$N$31+Q71))^2*(Main!$N$31+Q71)*1000,NA()) -> 0.2743833304 | V71: -2.071474283 | W71: 2.105156792 | X71: 0.02697902078
A72: 40 | B72: -1 | C72: =IFERROR('Device Resistance Tables'!C59,NA()) -> 8313.549908 | D72: =IFERROR('Device Resistance Tables'!D59,NA()) -> 8440.152191 | E72: =IFERROR('Device Resistance Tables'!F59,NA()) -> 8566.754474 | F72: =IFERROR(D72*($B$15/(Main!$N$31+D72)),NA()) -> 1.510426917 | G72: =IFERROR($B$16*($B$15/(Main!$N$31+D72)),NA()) -> 1.789573083 | H72: 54.29611517 | I72: 0.0001789573083 | J72: =IFERROR(($B$15/(Main!$N$31+D72))^2*(Main!$N$31+D72)*1000,NA()) -> 0.5905591172 | K72: -1.5 | L72: 1.5 | M72: 0.005284870381 | O72: -1 | P72: 27846.5 | Q72: 28423.1 | R72: 29008.8 | S72: =IFERROR(Q72*($B$15/(Main!$N$31+Q72)),NA()) -> 2.441141657 | T72: 1265.9 | U72: =IFERROR(($B$15/(Main!$N$31+Q72))^2*(Main!$N$31+Q72)*1000,NA()) -> 0.2834232532 | V72: -2.028631641 | W72: 2.060647853 | X72: 0.02739370547
A73: 41 | B73: 0 | C73: =IFERROR('Device Resistance Tables'!C60,NA()) -> 8409.802317 | D73: =IFERROR('Device Resistance Tables'!D60,NA()) -> 8494.749815 | E73: =IFERROR('Device Resistance Tables'!F60,NA()) -> 8579.697313 | F73: =IFERROR(D73*($B$15/(Main!$N$31+D73)),NA()) -> 1.515709846 | G73: =IFERROR($B$16*($B$15/(Main!$N$31+D73)),NA()) -> 1.784290154 | H73: 54.59762399 | I73: 0.0001784290154 | J73: =IFERROR(($B$15/(Main!$N$31+D73))^2*(Main!$N$31+D73)*1000,NA()) -> 0.5888157509 | K73: -1 | L73: 1 | M73: 0.005282928357 | O73: 0 | P73: 26678 | Q73: 27218.6 | R73: 27767.5 | S73: =IFERROR(Q73*($B$15/(Main!$N$31+Q73)),NA()) -> 2.413346553 | T73: 1204.5 | U73: =IFERROR(($B$15/(Main!$N$31+Q73))^2*(Main!$N$31+Q73)*1000,NA()) -> 0.2925956377 | V73: -1.986141829 | W73: 2.016635683 | X73: 0.02779510444
A74: 42 | B74: 1 | C74: =IFERROR('Device Resistance Tables'!C61,NA()) -> 8464.152807 | D74: =IFERROR('Device Resistance Tables'!D61,NA()) -> 8549.6493 | E74: =IFERROR('Device Resistance Tables'!F61,NA()) -> 8635.145793 | F74: =IFERROR(D74*($B$15/(Main!$N$31+D74)),NA()) -> 1.520990625 | G74: =IFERROR($B$16*($B$15/(Main!$N$31+D74)),NA()) -> 1.779009375 | H74: 54.89948445 | I74: 0.0001779009375 | J74: =IFERROR(($B$15/(Main!$N$31+D74))^2*(Main!$N$31+D74)*1000,NA()) -> 0.5870730936 | K74: -1 | L74: 1 | M74: 0.005280779598 | O74: 1 | P74: 25569 | Q74: 26076 | R74: 26590.4 | S74: =IFERROR(Q74*($B$15/(Main!$N$31+Q74)),NA()) -> 2.385264442 | T74: 1142.6 | U74: =IFERROR(($B$15/(Main!$N$31+Q74))^2*(Main!$N$31+Q74)*1000,NA()) -> 0.3018627342 | V74: -1.944316613 | W74: 1.972695199 | X74: 0.0280821108
A75: 43 | B75: 2 | C75: =IFERROR('Device Resistance Tables'!C62,NA()) -> 8518.802492 | D75: =IFERROR('Device Resistance Tables'!D62,NA()) -> 8604.851002 | E75: =IFERROR('Device Resistance Tables'!F62,NA()) -> 8690.899512 | F75: =IFERROR(D75*($B$15/(Main!$N$31+D75)),NA()) -> 1.526269052 | G75: =IFERROR($B$16*($B$15/(Main!$N$31+D75)),NA()) -> 1.773730948 | H75: 55.20170262 | I75: 0.0001773730948 | J75: =IFERROR(($B$15/(Main!$N$31+D75))^2*(Main!$N$31+D75)*1000,NA()) -> 0.5853312127 | K75: -1 | L75: 1 | M75: 0.005278426924 | O75: 2 | P75: 24512.3 | Q75: 24987.7 | R75: 25469.8 | S75: =IFERROR(Q75*($B$15/(Main!$N$31+Q75)),NA()) -> 2.356811394 | T75: 1088.3 | U75: =IFERROR(($B$15/(Main!$N$31+Q75))^2*(Main!$N$31+Q75)*1000,NA()) -> 0.3112522401 | V75: -1.902536048 | W75: 1.92934924 | X75: 0.02845304802
A76: 44 | B76: 3 | C76: =IFERROR('Device Resistance Tables'!C63,NA()) -> 8573.751734 | D76: =IFERROR('Device Resistance Tables'!D63,NA()) -> 8660.355287 | E76: =IFERROR('Device Resistance Tables'!F63,NA()) -> 8746.95884 | F76: =IFERROR(D76*($B$15/(Main!$N$31+D76)),NA()) -> 1.531544925 | G76: =IFERROR($B$16*($B$15/(Main!$N$31+D76)),NA()) -> 1.768455075 | H76: 55.50428453 | I76: 0.0001768455075 | J76: =IFERROR(($B$15/(Main!$N$31+D76))^2*(Main!$N$31+D76)*1000,NA()) -> 0.5835901746 | K76: -1 | L76: 1 | M76: 0.005275873138 | O76: 3 | P76: 23505.2 | Q76: 23950.9 | R76: 24402.6 | S76: =IFERROR(Q76*($B$15/(Main!$N$31+Q76)),NA()) -> 2.328008094 | T76: 1036.8 | U76: =IFERROR(($B$15/(Main!$N$31+Q76))^2*(Main!$N$31+Q76)*1000,NA()) -> 0.320757329 | V76: -1.860890405 | W76: 1.885941656 | X76: 0.02880329968
A77: 45 | B77: 4 | C77: =IFERROR('Device Resistance Tables'!C64,NA()) -> 8629.000898 | D77: =IFERROR('Device Resistance Tables'!D64,NA()) -> 8716.162523 | E77: =IFERROR('Device Resistance Tables'!F64,NA()) -> 8803.324148 | F77: =IFERROR(D77*($B$15/(Main!$N$31+D77)),NA()) -> 1.536818046 | G77: =IFERROR($B$16*($B$15/(Main!$N$31+D77)),NA()) -> 1.763181954 | H77: 55.80723624 | I77: 0.0001763181954 | J77: =IFERROR(($B$15/(Main!$N$31+D77))^2*(Main!$N$31+D77)*1000,NA()) -> 0.5818500447 | K77: -1 | L77: 1 | M77: 0.005273121026 | O77: 4 | P77: 22545 | Q77: 22962.9 | R77: 23386.1 | S77: =IFERROR(Q77*($B$15/(Main!$N$31+Q77)),NA()) -> 2.298874492 | T77: 988 | U77: =IFERROR(($B$15/(Main!$N$31+Q77))^2*(Main!$N$31+Q77)*1000,NA()) -> 0.3303714176 | V77: -1.819892087 | W77: 1.842972795 | X77: 0.02913360181
A78: 46 | B78: 5 | C78: =IFERROR('Device Resistance Tables'!C65,NA()) -> 8684.550356 | D78: =IFERROR('Device Resistance Tables'!D65,NA()) -> 8772.273087 | E78: =IFERROR('Device Resistance Tables'!F65,NA()) -> 8859.995818 | F78: =IFERROR(D78*($B$15/(Main!$N$31+D78)),NA()) -> 1.54208822 | G78: =IFERROR($B$16*($B$15/(Main!$N$31+D78)),NA()) -> 1.75791178 | H78: 56.11056379 | I78: 0.000175791178 | J78: =IFERROR(($B$15/(Main!$N$31+D78))^2*(Main!$N$31+D78)*1000,NA()) -> 0.5801108875 | K78: -1 | L78: 1 | M78: 0.005270173357 | O78: 5 | P78: 21629.4 | Q78: 22021.1 | R78: 22417.5 | S78: =IFERROR(Q78*($B$15/(Main!$N$31+Q78)),NA()) -> 2.269429532 | T78: 941.8 | U78: =IFERROR(($B$15/(Main!$N$31+Q78))^2*(Main!$N$31+Q78)*1000,NA()) -> 0.3400882543 | V78: -1.778748564 | W78: 1.80009173 | X78: 0.02944495983
A79: 47 | B79: 6 | C79: =IFERROR('Device Resistance Tables'!C66,NA()) -> 8740.400486 | D79: =IFERROR('Device Resistance Tables'!D66,NA()) -> 8828.68736 | E79: =IFERROR('Device Resistance Tables'!F66,NA()) -> 8916.974234 | F79: =IFERROR(D79*($B$15/(Main!$N$31+D79)),NA()) -> 1.547355253 | G79: =IFERROR($B$16*($B$15/(Main!$N$31+D79)),NA()) -> 1.752644747 | H79: 56.41427323 | I79: 0.0001752644747 | J79: =IFERROR(($B$15/(Main!$N$31+D79))^2*(Main!$N$31+D79)*1000,NA()) -> 0.5783727666 | K79: -1 | L79: 1 | M79: 0.005267032883 | O79: 6 | P79: 20756 | Q79: 21123 | R79: 21494.4 | S79: =IFERROR(Q79*($B$15/(Main!$N$31+Q79)),NA()) -> 2.239690904 | T79: 898.1 | U79: =IFERROR(($B$15/(Main!$N$31+Q79))^2*(Main!$N$31+Q79)*1000,NA()) -> 0.3499020017 | V79: -1.737442598 | W79: 1.758272973 | X79: 0.02973862857
A80: 48 | B80: 7 | C80: =IFERROR('Device Resistance Tables'!C67,NA()) -> 8796.551673 | D80: =IFERROR('Device Resistance Tables'!D67,NA()) -> 8885.405731 | E80: =IFERROR('Device Resistance Tables'!F67,NA()) -> 8974.259788 | F80: =IFERROR(D80*($B$15/(Main!$N$31+D80)),NA()) -> 1.552618955 | G80: =IFERROR($B$16*($B$15/(Main!$N$31+D80)),NA()) -> 1.747381045 | H80: 56.71837061 | I80: 0.0001747381045 | J80: =IFERROR(($B$15/(Main!$N$31+D80))^2*(Main!$N$31+D80)*1000,NA()) -> 0.5766357448 | K80: -1 | L80: 1 | M80: 0.005263702339 | O80: 7 | P80: 19922.7 | Q80: 20266.6 | R80: 20614.3 | S80: =IFERROR(Q80*($B$15/(Main!$N$31+Q80)),NA()) -> 2.209689228 | T80: 856.4 | U80: =IFERROR(($B$15/(Main!$N$31+Q80))^2*(Main!$N$31+Q80)*1000,NA()) -> 0.3598025546 | V80: -1.696880582 | W80: 1.715630644 | X80: 0.03000167544
A81: 49 | B81: 8 | C81: =IFERROR('Device Resistance Tables'!C68,NA()) -> 8853.004307 | D81: =IFERROR('Device Resistance Tables'!D68,NA()) -> 8942.428593 | E81: =IFERROR('Device Resistance Tables'!F68,NA()) -> 9031.852879 | F81: =IFERROR(D81*($B$15/(Main!$N$31+D81)),NA()) -> 1.557879139 | G81: =IFERROR($B$16*($B$15/(Main!$N$31+D81)),NA()) -> 1.742120861 | H81: 57.02286197 | I81: 0.0001742120861 | J81: =IFERROR(($B$15/(Main!$N$31+D81))^2*(Main!$N$31+D81)*1000,NA()) -> 0.574899884 | K81: -1 | L81: 1 | M81: 0.00526018444 | O81: 8 | P81: 19127.3 | Q81: 19449.5 | R81: 19775.1 | S81: =IFERROR(Q81*($B$15/(Main!$N$31+Q81)),NA()) -> 2.179437681 | T81: 817.1 | U81: =IFERROR(($B$15/(Main!$N$31+Q81))^2*(Main!$N$31+Q81)*1000,NA()) -> 0.3697855651 | V81: -1.656597856 | W81: 1.674079025 | X81: 0.03025154694
A82: 50 | B82: 9 | C82: =IFERROR('Device Resistance Tables'!C69,NA()) -> 8909.758783 | D82: =IFERROR('Device Resistance Tables'!D69,NA()) -> 8999.756346 | E82: =IFERROR('Device Resistance Tables'!F69,NA()) -> 9089.75391 | F82: =IFERROR(D82*($B$15/(Main!$N$31+D82)),NA()) -> 1.563135621 | G82: =IFERROR($B$16*($B$15/(Main!$N$31+D82)),NA()) -> 1.736864379 | H82: 57.32775337 | I82: 0.0001736864379 | J82: =IFERROR(($B$15/(Main!$N$31+D82))^2*(Main!$N$31+D82)*1000,NA()) -> 0.5731652449 | K82: -1 | L82: 1 | M82: 0.005256481884 | O82: 9 | P82: 18368 | Q82: 18669.8 | R82: 18974.5 | S82: =IFERROR(Q82*($B$15/(Main!$N$31+Q82)),NA()) -> 2.14896302 | T82: 779.7 | U82: =IFERROR(($B$15/(Main!$N$31+Q82))^2*(Main!$N$31+Q82)*1000,NA()) -> 0.3798422033 | V82: -1.616514371 | W82: 1.632047478 | X82: 0.03047466113
A83: 51 | B83: 10 | C83: =IFERROR('Device Resistance Tables'!C70,NA()) -> 8966.815503 | D83: =IFERROR('Device Resistance Tables'!D70,NA()) -> 9057.389397 | E83: =IFERROR('Device Resistance Tables'!F70,NA()) -> 9147.963291 | F83: =IFERROR(D83*($B$15/(Main!$N$31+D83)),NA()) -> 1.568388219 | G83: =IFERROR($B$16*($B$15/(Main!$N$31+D83)),NA()) -> 1.731611781 | H83: 57.63305085 | I83: 0.0001731611781 | J83: =IFERROR(($B$15/(Main!$N$31+D83))^2*(Main!$N$31+D83)*1000,NA()) -> 0.5714318878 | K83: -1 | L83: 1 | M83: 0.005252597351 | O83: 10 | P83: 17643 | Q83: 17925.5 | R83: 18210.7 | S83: =IFERROR(Q83*($B$15/(Main!$N$31+Q83)),NA()) -> 2.118284364 | T83: 744.3 | U83: =IFERROR(($B$15/(Main!$N$31+Q83))^2*(Main!$N$31+Q83)*1000,NA()) -> 0.38996616 | V83: -1.575967198 | W83: 1.591029539 | X83: 0.03067865657
A84: 52 | B84: 11 | C84: =IFERROR('Device Resistance Tables'!C71,NA()) -> 9024.174876 | D84: =IFERROR('Device Resistance Tables'!D71,NA()) -> 9115.328157 | E84: =IFERROR('Device Resistance Tables'!F71,NA()) -> 9206.481439 | F84: =IFERROR(D84*($B$15/(Main!$N$31+D84)),NA()) -> 1.573636752 | G84: =IFERROR($B$16*($B$15/(Main!$N$31+D84)),NA()) -> 1.726363248 | H84: 57.93876047 | I84: 0.0001726363248 | J84: =IFERROR(($B$15/(Main!$N$31+D84))^2*(Main!$N$31+D84)*1000,NA()) -> 0.5696998718 | K84: -1 | L84: 1 | M84: 0.005248533501 | O84: 11 | P84: 16949.4 | Q84: 17213.9 | R84: 17480.7 | S84: =IFERROR(Q84*($B$15/(Main!$N$31+Q84)),NA()) -> 2.087384388 | T84: 711.6 | U84: =IFERROR(($B$15/(Main!$N$31+Q84))^2*(Main!$N$31+Q84)*1000,NA()) -> 0.4001631519 | V84: -1.536548952 | W84: 1.549910247 | X84: 0.03089997563
A85: 53 | B85: 12 | C85: =IFERROR('Device Resistance Tables'!C72,NA()) -> 9081.837315 | D85: =IFERROR('Device Resistance Tables'!D72,NA()) -> 9173.573046 | E85: =IFERROR('Device Resistance Tables'!F72,NA()) -> 9265.308776 | F85: =IFERROR(D85*($B$15/(Main!$N$31+D85)),NA()) -> 1.578881045 | G85: =IFERROR($B$16*($B$15/(Main!$N$31+D85)),NA()) -> 1.721118955 | H85: 58.24488826 | I85: 0.0001721118955 | J85: =IFERROR(($B$15/(Main!$N$31+D85))^2*(Main!$N$31+D85)*1000,NA()) -> 0.5679692551 | K85: -1 | L85: 1 | M85: 0.005244292976 | O85: 12 | P85: 16287 | Q85: 16534.4 | R85: 16784 | S85: =IFERROR(Q85*($B$15/(Main!$N$31+Q85)),NA()) -> 2.056331404 | T85: 679.5 | U85: =IFERROR(($B$15/(Main!$N$31+Q85))^2*(Main!$N$31+Q85)*1000,NA()) -> 0.4104106368 | V85: -1.496274434 | W85: 1.509580027 | X85: 0.03105298436
A86: 54 | B86: 13 | C86: =IFERROR('Device Resistance Tables'!C73,NA()) -> 9139.803241 | D86: =IFERROR('Device Resistance Tables'!D73,NA()) -> 9232.124486 | E86: =IFERROR('Device Resistance Tables'!F73,NA()) -> 9324.445731 | F86: =IFERROR(D86*($B$15/(Main!$N$31+D86)),NA()) -> 1.584120924 | G86: =IFERROR($B$16*($B$15/(Main!$N$31+D86)),NA()) -> 1.715879076 | H86: 58.55144027 | I86: 0.0001715879076 | J86: =IFERROR(($B$15/(Main!$N$31+D86))^2*(Main!$N$31+D86)*1000,NA()) -> 0.5662400952 | K86: -1 | L86: 1 | M86: 0.0052398784 | O86: 13 | P86: 15654.1 | Q86: 15885.6 | R86: 16118.9 | S86: =IFERROR(Q86*($B$15/(Main!$N$31+Q86)),NA()) -> 2.025159934 | T86: 648.8 | U86: =IFERROR(($B$15/(Main!$N$31+Q86))^2*(Main!$N$31+Q86)*1000,NA()) -> 0.4206972216 | V86: -1.457294657 | W86: 1.468625674 | X86: 0.03117146928
A87: 55 | B87: 14 | C87: =IFERROR('Device Resistance Tables'!C74,NA()) -> 9198.073079 | D87: =IFERROR('Device Resistance Tables'!D74,NA()) -> 9290.982908 | E87: =IFERROR('Device Resistance Tables'!F74,NA()) -> 9383.892738 | F87: =IFERROR(D87*($B$15/(Main!$N$31+D87)),NA()) -> 1.589356216 | G87: =IFERROR($B$16*($B$15/(Main!$N$31+D87)),NA()) -> 1.710643784 | H87: 58.85842256 | I87: 0.0001710643784 | J87: =IFERROR(($B$15/(Main!$N$31+D87))^2*(Main!$N$31+D87)*1000,NA()) -> 0.5645124487 | K87: -1 | L87: 1 | M87: 0.005235292375 | O87: 14 | P87: 15049.3 | Q87: 15265.8 | R87: 15483.8 | S87: =IFERROR(Q87*($B$15/(Main!$N$31+Q87)),NA()) -> 1.993886598 | T87: 619.8 | U87: =IFERROR(($B$15/(Main!$N$31+Q87))^2*(Main!$N$31+Q87)*1000,NA()) -> 0.4310174228 | V87: -1.41820278 | W87: 1.428028665 | X87: 0.03127333679
A88: 56 | B88: 15 | C88: =IFERROR('Device Resistance Tables'!C75,NA()) -> 9256.647262 | D88: =IFERROR('Device Resistance Tables'!D75,NA()) -> 9350.14875 | E88: =IFERROR('Device Resistance Tables'!F75,NA()) -> 9443.650237 | F88: =IFERROR(D88*($B$15/(Main!$N$31+D88)),NA()) -> 1.594586753 | G88: =IFERROR($B$16*($B$15/(Main!$N$31+D88)),NA()) -> 1.705413247 | H88: 59.16584117 | I88: 0.0001705413247 | J88: =IFERROR(($B$15/(Main!$N$31+D88))^2*(Main!$N$31+D88)*1000,NA()) -> 0.5627863714 | K88: -1 | L88: 1 | M88: 0.005230537487 | O88: 15 | P88: 14471.2 | Q88: 14673.5 | R88: 14877.2 | S88: =IFERROR(Q88*($B$15/(Main!$N$31+Q88)),NA()) -> 1.962532677 | T88: 592.3 | U88: =IFERROR(($B$15/(Main!$N$31+Q88))^2*(Main!$N$31+Q88)*1000,NA()) -> 0.4413642167 | V88: -1.378675844 | W88: 1.388216854 | X88: 0.03135392093
A89: 57 | B89: 16 | C89: =IFERROR('Device Resistance Tables'!C76,NA()) -> 9315.526227 | D89: =IFERROR('Device Resistance Tables'!D76,NA()) -> 9409.622452 | E89: =IFERROR('Device Resistance Tables'!F76,NA()) -> 9503.718676 | F89: =IFERROR(D89*($B$15/(Main!$N$31+D89)),NA()) -> 1.59981237 | G89: =IFERROR($B$16*($B$15/(Main!$N$31+D89)),NA()) -> 1.70018763 | H89: 59.47370214 | I89: 0.000170018763 | J89: =IFERROR(($B$15/(Main!$N$31+D89))^2*(Main!$N$31+D89)*1000,NA()) -> 0.561061918 | K89: -1 | L89: 1 | M89: 0.0052256163 | O89: 16 | P89: 13918.4 | Q89: 14107.5 | R89: 14297.7 | S89: =IFERROR(Q89*($B$15/(Main!$N$31+Q89)),NA()) -> 1.931131391 | T89: 566 | U89: =IFERROR(($B$15/(Main!$N$31+Q89))^2*(Main!$N$31+Q89)*1000,NA()) -> 0.4517266411 | V89: -1.340421761 | W89: 1.348219032 | X89: 0.03140128611
A90: 58 | B90: 17 | C90: =IFERROR('Device Resistance Tables'!C77,NA()) -> 9374.710419 | D90: =IFERROR('Device Resistance Tables'!D77,NA()) -> 9469.404463 | E90: =IFERROR('Device Resistance Tables'!F77,NA()) -> 9564.098508 | F90: =IFERROR(D90*($B$15/(Main!$N$31+D90)),NA()) -> 1.605032901 | G90: =IFERROR($B$16*($B$15/(Main!$N$31+D90)),NA()) -> 1.694967099 | H90: 59.78201154 | I90: 0.0001694967099 | J90: =IFERROR(($B$15/(Main!$N$31+D90))^2*(Main!$N$31+D90)*1000,NA()) -> 0.5593391426 | K90: -1 | L90: 1 | M90: 0.005220531358 | O90: 17 | P90: 13389.8 | Q90: 13566.4 | R90: 13743.9 | S90: =IFERROR(Q90*($B$15/(Main!$N$31+Q90)),NA()) -> 1.89970127 | T90: 541.1 | U90: =IFERROR(($B$15/(Main!$N$31+Q90))^2*(Main!$N$31+Q90)*1000,NA()) -> 0.462098581 | V90: -1.301745489 | W90: 1.308379526 | X90: 0.03143012104
A91: 59 | B91: 18 | C91: =IFERROR('Device Resistance Tables'!C78,NA()) -> 9434.200286 | D91: =IFERROR('Device Resistance Tables'!D78,NA()) -> 9529.495239 | E91: =IFERROR('Device Resistance Tables'!F78,NA()) -> 9624.790191 | F91: =IFERROR(D91*($B$15/(Main!$N$31+D91)),NA()) -> 1.610248186 | G91: =IFERROR($B$16*($B$15/(Main!$N$31+D91)),NA()) -> 1.689751814 | H91: 60.0907754 | I91: 0.0001689751814 | J91: =IFERROR(($B$15/(Main!$N$31+D91))^2*(Main!$N$31+D91)*1000,NA()) -> 0.5576180985 | K91: -1 | L91: 1 | M91: 0.005215285188 | O91: 18 | P91: 12884.1 | Q91: 13048.9 | R91: 13214.5 | S91: =IFERROR(Q91*($B$15/(Main!$N$31+Q91)),NA()) -> 1.868261392 | T91: 517.5 | U91: =IFERROR(($B$15/(Main!$N$31+Q91))^2*(Main!$N$31+Q91)*1000,NA()) -> 0.4724737406 | V91: -1.262941704 | W91: 1.269072489 | X91: 0.03143987752
A92: 60 | B92: 19 | C92: =IFERROR('Device Resistance Tables'!C79,NA()) -> 9493.996286 | D92: =IFERROR('Device Resistance Tables'!D79,NA()) -> 9589.895238 | E92: =IFERROR('Device Resistance Tables'!F79,NA()) -> 9685.794191 | F92: =IFERROR(D92*($B$15/(Main!$N$31+D92)),NA()) -> 1.615458067 | G92: =IFERROR($B$16*($B$15/(Main!$N$31+D92)),NA()) -> 1.684541933 | H92: 60.39999977 | I92: 0.0001684541933 | J92: =IFERROR(($B$15/(Main!$N$31+D92))^2*(Main!$N$31+D92)*1000,NA()) -> 0.555898838 | K92: -1 | L92: 1 | M92: 0.005209880293 | O92: 19 | P92: 12400.2 | Q92: 12554 | R92: 12708.4 | S92: =IFERROR(Q92*($B$15/(Main!$N$31+Q92)),NA()) -> 1.836844906 | T92: 494.9 | U92: =IFERROR(($B$15/(Main!$N$31+Q92))^2*(Main!$N$31+Q92)*1000,NA()) -> 0.4828411812 | V92: -1.225107535 | W92: 1.229886889 | X92: 0.03141648652
A93: 61 | B93: 20 | C93: =IFERROR('Device Resistance Tables'!C80,NA()) -> 9554.09888 | D93: =IFERROR('Device Resistance Tables'!D80,NA()) -> 9650.604929 | E93: =IFERROR('Device Resistance Tables'!F80,NA()) -> 9747.110978 | F93: =IFERROR(D93*($B$15/(Main!$N$31+D93)),NA()) -> 1.620662386 | G93: =IFERROR($B$16*($B$15/(Main!$N$31+D93)),NA()) -> 1.679337614 | H93: 60.7096907 | I93: 0.0001679337614 | J93: =IFERROR(($B$15/(Main!$N$31+D93))^2*(Main!$N$31+D93)*1000,NA()) -> 0.5541814127 | K93: -1 | L93: 1 | M93: 0.00520431916 | O93: 20 | P93: 11937.1 | Q93: 12080.5 | R93: 12224.4 | S93: =IFERROR(Q93*($B$15/(Main!$N$31+Q93)),NA()) -> 1.805468626 | T93: 473.5 | U93: =IFERROR(($B$15/(Main!$N$31+Q93))^2*(Main!$N$31+Q93)*1000,NA()) -> 0.4931953534 | V93: -1.18703696 | W93: 1.191175862 | X93: 0.0313762794
A94: 62 | B94: 21 | C94: =IFERROR('Device Resistance Tables'!C81,NA()) -> 9614.508536 | D94: =IFERROR('Device Resistance Tables'!D81,NA()) -> 9711.624783 | E94: =IFERROR('Device Resistance Tables'!F81,NA()) -> 9808.741031 | F94: =IFERROR(D94*($B$15/(Main!$N$31+D94)),NA()) -> 1.62586099 | G94: =IFERROR($B$16*($B$15/(Main!$N$31+D94)),NA()) -> 1.67413901 | H94: 61.01985424 | I94: 0.000167413901 | J94: =IFERROR(($B$15/(Main!$N$31+D94))^2*(Main!$N$31+D94)*1000,NA()) -> 0.5524658733 | K94: -1 | L94: 1 | M94: 0.005198604253 | O94: 21 | P94: 11494.5 | Q94: 11628.1 | R94: 11762.1 | S94: =IFERROR(Q94*($B$15/(Main!$N$31+Q94)),NA()) -> 1.774207166 | T94: 452.4 | U94: =IFERROR(($B$15/(Main!$N$31+Q94))^2*(Main!$N$31+Q94)*1000,NA()) -> 0.5035116353 | V94: -1.148940928 | W94: 1.15238087 | X94: 0.03126146049
A95: 63 | B95: 22 | C95: =IFERROR('Device Resistance Tables'!C82,NA()) -> 9675.225727 | D95: =IFERROR('Device Resistance Tables'!D82,NA()) -> 9772.95528 | E95: =IFERROR('Device Resistance Tables'!F82,NA()) -> 9870.684833 | F95: =IFERROR(D95*($B$15/(Main!$N$31+D95)),NA()) -> 1.631053728 | G95: =IFERROR($B$16*($B$15/(Main!$N$31+D95)),NA()) -> 1.668946272 | H95: 61.33049643 | I95: 0.0001668946272 | J95: =IFERROR(($B$15/(Main!$N$31+D95))^2*(Main!$N$31+D95)*1000,NA()) -> 0.5507522697 | K95: -1 | L95: 1 | M95: 0.005192738016 | O95: 22 | P95: 11070.3 | Q95: 11194.7 | R95: 11319.5 | S95: =IFERROR(Q95*($B$15/(Main!$N$31+Q95)),NA()) -> 1.743006978 | T95: 433.4 | U95: =IFERROR(($B$15/(Main!$N$31+Q95))^2*(Main!$N$31+Q95)*1000,NA()) -> 0.5138076972 | V95: -1.11124014 | W95: 1.11481326 | X95: 0.03120018752
A96: 64 | B96: 23 | C96: =IFERROR('Device Resistance Tables'!C83,NA()) -> 9736.250934 | D96: =IFERROR('Device Resistance Tables'!D83,NA()) -> 9834.596903 | E96: =IFERROR('Device Resistance Tables'!F83,NA()) -> 9932.942872 | F96: =IFERROR(D96*($B$15/(Main!$N$31+D96)),NA()) -> 1.636240451 | G96: =IFERROR($B$16*($B$15/(Main!$N$31+D96)),NA()) -> 1.663759549 | H96: 61.64162333 | I96: 0.0001663759549 | J96: =IFERROR(($B$15/(Main!$N$31+D96))^2*(Main!$N$31+D96)*1000,NA()) -> 0.5490406512 | K96: -1 | L96: 1 | M96: 0.005186722874 | O96: 23 | P96: 10663.7 | Q96: 10779.5 | R96: 10895.5 | S96: =IFERROR(Q96*($B$15/(Main!$N$31+Q96)),NA()) -> 1.71189634 | T96: 415.2 | U96: =IFERROR(($B$15/(Main!$N$31+Q96))^2*(Main!$N$31+Q96)*1000,NA()) -> 0.5240742078 | V96: -1.074261329 | W96: 1.076116703 | X96: 0.03111063802
A97: 65 | B97: 24 | C97: =IFERROR('Device Resistance Tables'!C84,NA()) -> 9797.584643 | D97: =IFERROR('Device Resistance Tables'!D84,NA()) -> 9896.550144 | E97: =IFERROR('Device Resistance Tables'!F84,NA()) -> 9995.515646 | F97: =IFERROR(D97*($B$15/(Main!$N$31+D97)),NA()) -> 1.641421012 | G97: =IFERROR($B$16*($B$15/(Main!$N$31+D97)),NA()) -> 1.658578988 | H97: 61.95324098 | I97: 0.0001658578988 | J97: =IFERROR(($B$15/(Main!$N$31+D97))^2*(Main!$N$31+D97)*1000,NA()) -> 0.547331066 | K97: -1 | L97: =IFERROR(((E97-D97)/D97)*100,NA()) -> 1 | M97: 0.005180561229 | O97: 24 | P97: 10273.8 | Q97: 10381.5 | R97: 10489.2 | S97: =IFERROR(Q97*($B$15/(Main!$N$31+Q97)),NA()) -> 1.680884626 | T97: 398 | U97: =IFERROR(($B$15/(Main!$N$31+Q97))^2*(Main!$N$31+Q97)*1000,NA()) -> 0.5343080735 | V97: -1.037422338 | W97: 1.037422338 | X97: 0.03101171438
A98: 66 | B98: 25 | C98: =IFERROR('Device Resistance Tables'!C85,NA()) -> 9859.227345 | D98: =IFERROR('Device Resistance Tables'!D85,NA()) -> 9958.8155 | E98: =IFERROR('Device Resistance Tables'!F85,NA()) -> 10058.40365 | F98: =IFERROR(D98*($B$15/(Main!$N$31+D98)),NA()) -> 1.646595268 | G98: =IFERROR($B$16*($B$15/(Main!$N$31+D98)),NA()) -> 1.653404732 | H98: =IFERROR(D98-D97,NA()) -> 62.26535543 | I98: =$F98/$D98 -> 0.0001653404732 | J98: =IFERROR(($B$15/(Main!$N$31+D98))^2*(Main!$N$31+D98)*1000,NA()) -> 0.5456235617 | K98: =IFERROR(((D98-C98)/D98)*-100,NA()) -> -1 | L98: 1 | M98: 0.005174255465 | O98: 25 | P98: 9900 | Q98: 10000 | R98: 10100 | S98: =IFERROR(Q98*($B$15/(Main!$N$31+Q98)),NA()) -> 1.65 | T98: 381.5 | U98: =IFERROR(($B$15/(Main!$N$31+Q98))^2*(Main!$N$31+Q98)*1000,NA()) -> 0.5445 | V98: =IFERROR(((Q98-P98)/Q98)*-100,NA()) -> -1 | W98: =IFERROR(((R98-Q98)/Q98)*100,NA()) -> 1 | X98: 0.03088462576
A99: 67 | B99: 26 | C99: =IFERROR('Device Resistance Tables'!C86,NA()) -> 9921.179538 | D99: =IFERROR('Device Resistance Tables'!D86,NA()) -> 10021.39347 | E99: =IFERROR('Device Resistance Tables'!F86,NA()) -> 10121.60741 | F99: =IFERROR(D99*($B$15/(Main!$N$31+D99)),NA()) -> 1.651763076 | G99: =IFERROR($B$16*($B$15/(Main!$N$31+D99)),NA()) -> 1.648236924 | H99: 62.57797272 | I99: 0.0001648236924 | J99: =IFERROR(($B$15/(Main!$N$31+D99))^2*(Main!$N$31+D99)*1000,NA()) -> 0.5439181851 | K99: -1 | L99: 1 | M99: =IFERROR(F99-F98,NA()) -> 0.005167807944 | O99: 26 | P99: 9534.3 | Q99: 9634.2 | R99: 9734.2 | S99: =IFERROR(Q99*($B$15/(Main!$N$31+Q99)),NA()) -> 1.619259252 | T99: =IFERROR(Q98-Q99,NA()) -> 365.8 | U99: =IFERROR(($B$15/(Main!$N$31+Q99))^2*(Main!$N$31+Q99)*1000,NA()) -> 0.5546444469 | V99: -1.036930934 | W99: 1.037968902 | X99: =IFERROR(S98-S99,NA()) -> 0.03074074829
A100: 68 | B100: 27 | C100: =IFERROR('Device Resistance Tables'!C87,NA()) -> 9983.441725 | D100: =IFERROR('Device Resistance Tables'!D87,NA()) -> 10084.28457 | E100: =IFERROR('Device Resistance Tables'!F87,NA()) -> 10185.12742 | F100: =IFERROR(D100*($B$15/(Main!$N$31+D100)),NA()) -> 1.656924297 | G100: =IFERROR($B$16*($B$15/(Main!$N$31+D100)),NA()) -> 1.643075703 | H100: 62.89109891 | I100: 0.0001643075703 | J100: =IFERROR(($B$15/(Main!$N$31+D100))^2*(Main!$N$31+D100)*1000,NA()) -> 0.5422149821 | K100: -1 | L100: 1 | M100: 0.005161221007 | O100: 27 | P100: 9183.8 | Q100: 9283.5 | R100: 9383.3 | S100: =IFERROR(Q100*($B$15/(Main!$N$31+Q100)),NA()) -> 1.588692405 | T100: 350.7 | U100: =IFERROR(($B$15/(Main!$N$31+Q100))^2*(Main!$N$31+Q100)*1000,NA()) -> 0.5647315062 | V100: -1.073948403 | W100: 1.075025583 | X100: 0.03056684629
A101: 69 | B101: 28 | C101: =IFERROR('Device Resistance Tables'!C88,NA()) -> 10046.01442 | D101: =IFERROR('Device Resistance Tables'!D88,NA()) -> 10147.48931 | E101: =IFERROR('Device Resistance Tables'!F88,NA()) -> 10248.9642 | F101: =IFERROR(D101*($B$15/(Main!$N$31+D101)),NA()) -> 1.662078794 | G101: =IFERROR($B$16*($B$15/(Main!$N$31+D101)),NA()) -> 1.637921206 | H101: 63.20474004 | I101: 0.0001637921206 | J101: =IFERROR(($B$15/(Main!$N$31+D101))^2*(Main!$N$31+D101)*1000,NA()) -> 0.5405139981 | K101: -1 | L101: 1 | M101: 0.005154496975 | O101: 28 | P101: 8847.7 | Q101: 8947 | R101: 9046.5 | S101: =IFERROR(Q101*($B$15/(Main!$N$31+Q101)),NA()) -> 1.558299467 | T101: 336.5 | U101: =IFERROR(($B$15/(Main!$N$31+Q101))^2*(Main!$N$31+Q101)*1000,NA()) -> 0.5747611759 | V101: -1.10986923 | W101: 1.112104616 | X101: 0.03039293849
A102: 70 | B102: 29 | C102: =IFERROR('Device Resistance Tables'!C89,NA()) -> 10108.89813 | D102: =IFERROR('Device Resistance Tables'!D89,NA()) -> 10211.00821 | E102: =IFERROR('Device Resistance Tables'!F89,NA()) -> 10313.1183 | F102: =IFERROR(D102*($B$15/(Main!$N$31+D102)),NA()) -> 1.667226432 | G102: =IFERROR($B$16*($B$15/(Main!$N$31+D102)),NA()) -> 1.632773568 | H102: 63.51890217 | I102: 0.0001632773568 | J102: =IFERROR(($B$15/(Main!$N$31+D102))^2*(Main!$N$31+D102)*1000,NA()) -> 0.5388152775 | K102: -1 | L102: 1 | M102: 0.005147638147 | O102: 29 | P102: 8525.4 | Q102: 8624.2 | R102: 8723.4 | S102: =IFERROR(Q102*($B$15/(Main!$N$31+Q102)),NA()) -> 1.528111812 | T102: 322.8 | U102: =IFERROR(($B$15/(Main!$N$31+Q102))^2*(Main!$N$31+Q102)*1000,NA()) -> 0.5847231022 | V102: -1.145613506 | W102: 1.150251618 | X102: 0.03018765542
A103: 71 | B103: 30 | C103: =IFERROR('Device Resistance Tables'!C90,NA()) -> 10172.09339 | D103: =IFERROR('Device Resistance Tables'!D90,NA()) -> 10274.8418 | E103: =IFERROR('Device Resistance Tables'!F90,NA()) -> 10377.59022 | F103: =IFERROR(D103*($B$15/(Main!$N$31+D103)),NA()) -> 1.672367078 | G103: =IFERROR($B$16*($B$15/(Main!$N$31+D103)),NA()) -> 1.627632922 | H103: 63.83359133 | I103: 0.0001627632922 | J103: =IFERROR(($B$15/(Main!$N$31+D103))^2*(Main!$N$31+D103)*1000,NA()) -> 0.5371188641 | K103: -1 | L103: 1 | M103: 0.005140646802 | O103: 30 | P103: 8216.2 | Q103: 8314.5 | R103: 8413.2 | S103: =IFERROR(Q103*($B$15/(Main!$N$31+Q103)),NA()) -> 1.498149008 | T103: 309.7 | U103: =IFERROR(($B$15/(Main!$N$31+Q103))^2*(Main!$N$31+Q103)*1000,NA()) -> 0.5946108275 | V103: -1.182271935 | W103: 1.187082807 | X103: 0.0299628039
A104: 72 | B104: 31 | C104: =IFERROR('Device Resistance Tables'!C91,NA()) -> 10235.60071 | D104: =IFERROR('Device Resistance Tables'!D91,NA()) -> 10338.99062 | E104: =IFERROR('Device Resistance Tables'!F91,NA()) -> 10442.38052 | F104: =IFERROR(D104*($B$15/(Main!$N$31+D104)),NA()) -> 1.677500604 | G104: =IFERROR($B$16*($B$15/(Main!$N$31+D104)),NA()) -> 1.622499396 | H104: 64.14881357 | I104: 0.0001622499396 | J104: =IFERROR(($B$15/(Main!$N$31+D104))^2*(Main!$N$31+D104)*1000,NA()) -> 0.5354248008 | K104: -1 | L104: 1 | M104: 0.005133525199 | O104: 31 | P104: 7920.4 | Q104: 8018.1 | R104: 8116.2 | S104: =IFERROR(Q104*($B$15/(Main!$N$31+Q104)),NA()) -> 1.468508333 | T104: 296.4 | U104: =IFERROR(($B$15/(Main!$N$31+Q104))^2*(Main!$N$31+Q104)*1000,NA()) -> 0.60439225 | V104: -1.218493159 | W104: 1.223481872 | X104: 0.02964067433
A105: 73 | B105: 32 | C105: =IFERROR('Device Resistance Tables'!C92,NA()) -> 10299.42064 | D105: =IFERROR('Device Resistance Tables'!D92,NA()) -> 10403.45519 | E105: =IFERROR('Device Resistance Tables'!F92,NA()) -> 10507.48975 | F105: =IFERROR(D105*($B$15/(Main!$N$31+D105)),NA()) -> 1.682626879 | G105: =IFERROR($B$16*($B$15/(Main!$N$31+D105)),NA()) -> 1.617373121 | H105: 64.46457496 | I105: 0.0001617373121 | J105: =IFERROR(($B$15/(Main!$N$31+D105))^2*(Main!$N$31+D105)*1000,NA()) -> 0.5337331298 | K105: -1 | L105: 1 | M105: 0.005126275572 | O105: 32 | P105: 7636.7 | Q105: 7733.7 | R105: 7831.2 | S105: =IFERROR(Q105*($B$15/(Main!$N$31+Q105)),NA()) -> 1.439136221 | T105: 284.4 | U105: =IFERROR(($B$15/(Main!$N$31+Q105))^2*(Main!$N$31+Q105)*1000,NA()) -> 0.6140850471 | V105: -1.254250876 | W105: 1.260716087 | X105: 0.02937211242
A106: 74 | B106: 33 | C106: =IFERROR('Device Resistance Tables'!C93,NA()) -> 10363.55371 | D106: =IFERROR('Device Resistance Tables'!D93,NA()) -> 10468.23607 | E106: =IFERROR('Device Resistance Tables'!F93,NA()) -> 10572.91844 | F106: =IFERROR(D106*($B$15/(Main!$N$31+D106)),NA()) -> 1.687745779 | G106: =IFERROR($B$16*($B$15/(Main!$N$31+D106)),NA()) -> 1.612254221 | H106: 64.78088152 | I106: 0.0001612254221 | J106: =IFERROR(($B$15/(Main!$N$31+D106))^2*(Main!$N$31+D106)*1000,NA()) -> 0.5320438928 | K106: -1 | L106: 1 | M106: 0.00511890014 | O106: 33 | P106: 7364.7 | Q106: 7460.9 | R106: 7557.6 | S106: =IFERROR(Q106*($B$15/(Main!$N$31+Q106)),NA()) -> 1.410063055 | T106: 272.8 | U106: =IFERROR(($B$15/(Main!$N$31+Q106))^2*(Main!$N$31+Q106)*1000,NA()) -> 0.6236791918 | V106: -1.28938868 | W106: 1.296090284 | X106: 0.0290731657
A107: 75 | B107: 34 | C107: =IFERROR('Device Resistance Tables'!C94,NA()) -> 10428.00048 | D107: =IFERROR('Device Resistance Tables'!D94,NA()) -> 10533.33381 | E107: =IFERROR('Device Resistance Tables'!F94,NA()) -> 10638.66715 | F107: =IFERROR(D107*($B$15/(Main!$N$31+D107)),NA()) -> 1.69285718 | G107: =IFERROR($B$16*($B$15/(Main!$N$31+D107)),NA()) -> 1.60714282 | H107: 65.09773931 | I107: 0.000160714282 | J107: =IFERROR(($B$15/(Main!$N$31+D107))^2*(Main!$N$31+D107)*1000,NA()) -> 0.5303571304 | K107: -1 | L107: 1 | M107: 0.005111401096 | O107: 34 | P107: 7103.8 | Q107: 7199.1 | R107: 7295.1 | S107: =IFERROR(Q107*($B$15/(Main!$N$31+Q107)),NA()) -> 1.381294951 | T107: 261.8 | U107: =IFERROR(($B$15/(Main!$N$31+Q107))^2*(Main!$N$31+Q107)*1000,NA()) -> 0.633172666 | V107: -1.323776583 | W107: 1.333500021 | X107: 0.02876810369
A108: 76 | B108: 35 | C108: =IFERROR('Device Resistance Tables'!C95,NA()) -> 10492.76148 | D108: =IFERROR('Device Resistance Tables'!D95,NA()) -> 10598.74897 | E108: =IFERROR('Device Resistance Tables'!F95,NA()) -> 10704.73646 | F108: =IFERROR(D108*($B$15/(Main!$N$31+D108)),NA()) -> 1.697960961 | G108: =IFERROR($B$16*($B$15/(Main!$N$31+D108)),NA()) -> 1.602039039 | H108: 65.41515438 | I108: 0.0001602039039 | J108: =IFERROR(($B$15/(Main!$N$31+D108))^2*(Main!$N$31+D108)*1000,NA()) -> 0.5286728828 | K108: -1 | L108: 1 | M108: 0.005103780614 | O108: 35 | P108: 6853.4 | Q108: 6947.9 | R108: 7043 | S108: =IFERROR(Q108*($B$15/(Main!$N$31+Q108)),NA()) -> 1.352856106 | T108: 251.2 | U108: =IFERROR(($B$15/(Main!$N$31+Q108))^2*(Main!$N$31+Q108)*1000,NA()) -> 0.642557485 | V108: -1.360123203 | W108: 1.368758906 | X108: 0.02843884541
A109: 77 | B109: 36 | C109: =IFERROR('Device Resistance Tables'!C96,NA()) -> 10557.83728 | D109: =IFERROR('Device Resistance Tables'!D96,NA()) -> 10664.4821 | E109: =IFERROR('Device Resistance Tables'!F96,NA()) -> 10771.12692 | F109: =IFERROR(D109*($B$15/(Main!$N$31+D109)),NA()) -> 1.703057002 | G109: =IFERROR($B$16*($B$15/(Main!$N$31+D109)),NA()) -> 1.596942998 | H109: 65.73313277 | I109: 0.0001596942998 | J109: =IFERROR(($B$15/(Main!$N$31+D109))^2*(Main!$N$31+D109)*1000,NA()) -> 0.5269911894 | K109: -1 | L109: 1 | M109: 0.005096040846 | O109: 36 | P109: 6613.1 | Q109: 6706.7 | R109: 6800.9 | S109: =IFERROR(Q109*($B$15/(Main!$N$31+Q109)),NA()) -> 1.324744564 | T109: 241.2 | U109: =IFERROR(($B$15/(Main!$N$31+Q109))^2*(Main!$N$31+Q109)*1000,NA()) -> 0.651834294 | V109: -1.395619306 | W109: 1.404565584 | X109: 0.02811154251
A110: 78 | B110: 37 | C110: =IFERROR('Device Resistance Tables'!C97,NA()) -> 10623.22844 | D110: =IFERROR('Device Resistance Tables'!D97,NA()) -> 10730.53378 | E110: =IFERROR('Device Resistance Tables'!F97,NA()) -> 10837.83912 | F110: =IFERROR(D110*($B$15/(Main!$N$31+D110)),NA()) -> 1.708145186 | G110: =IFERROR($B$16*($B$15/(Main!$N$31+D110)),NA()) -> 1.591854814 | H110: 66.05168054 | I110: 0.0001591854814 | J110: =IFERROR(($B$15/(Main!$N$31+D110))^2*(Main!$N$31+D110)*1000,NA()) -> 0.5253120887 | K110: -1 | L110: 1 | M110: 0.005088183925 | O110: 37 | P110: 6382.5 | Q110: 6475.1 | R110: 6568.3 | S110: =IFERROR(Q110*($B$15/(Main!$N$31+Q110)),NA()) -> 1.296977257 | T110: 231.6 | U110: =IFERROR(($B$15/(Main!$N$31+Q110))^2*(Main!$N$31+Q110)*1000,NA()) -> 0.6609975053 | V110: -1.430093744 | W110: 1.43936001 | X110: 0.02776730697
A111: 79 | B111: 38 | C111: =IFERROR('Device Resistance Tables'!C98,NA()) -> 10688.93554 | D111: =IFERROR('Device Resistance Tables'!D98,NA()) -> 10796.90459 | E111: =IFERROR('Device Resistance Tables'!F98,NA()) -> 10904.87363 | F111: =IFERROR(D111*($B$15/(Main!$N$31+D111)),NA()) -> 1.713225398 | G111: =IFERROR($B$16*($B$15/(Main!$N$31+D111)),NA()) -> 1.586774602 | H111: 66.37080373 | I111: 0.0001586774602 | J111: =IFERROR(($B$15/(Main!$N$31+D111))^2*(Main!$N$31+D111)*1000,NA()) -> 0.5236356187 | K111: -1 | L111: 1 | M111: 0.005080211961 | O111: 38 | P111: 6161.1 | Q111: 6252.6 | R111: 6344.9 | S111: =IFERROR(Q111*($B$15/(Main!$N$31+Q111)),NA()) -> 1.26955564 | T111: 222.5 | U111: =IFERROR(($B$15/(Main!$N$31+Q111))^2*(Main!$N$31+Q111)*1000,NA()) -> 0.6700466387 | V111: -1.463391229 | W111: 1.476185907 | X111: 0.02742161626
A112: 80 | B112: 39 | C112: =IFERROR('Device Resistance Tables'!C99,NA()) -> 10754.95914 | D112: =IFERROR('Device Resistance Tables'!D99,NA()) -> 10863.59509 | E112: =IFERROR('Device Resistance Tables'!F99,NA()) -> 10972.23104 | F112: =IFERROR(D112*($B$15/(Main!$N$31+D112)),NA()) -> 1.718297525 | G112: =IFERROR($B$16*($B$15/(Main!$N$31+D112)),NA()) -> 1.581702475 | H112: 66.69050839 | I112: 0.0001581702475 | J112: =IFERROR(($B$15/(Main!$N$31+D112))^2*(Main!$N$31+D112)*1000,NA()) -> 0.5219618168 | K112: -1 | L112: 1 | M112: 0.005072127044 | O112: 39 | P112: 5948.5 | Q112: 6039 | R112: 6130.2 | S112: =IFERROR(Q112*($B$15/(Main!$N$31+Q112)),NA()) -> 1.242515119 | T112: 213.6 | U112: =IFERROR(($B$15/(Main!$N$31+Q112))^2*(Main!$N$31+Q112)*1000,NA()) -> 0.6789700106 | V112: -1.498592482 | W112: 1.510183805 | X112: 0.02704052093
A113: 81 | B113: 40 | C113: =IFERROR('Device Resistance Tables'!C100,NA()) -> 10821.29984 | D113: =IFERROR('Device Resistance Tables'!D100,NA()) -> 10930.60589 | E113: =IFERROR('Device Resistance Tables'!F100,NA()) -> 11039.91195 | F113: =IFERROR(D113*($B$15/(Main!$N$31+D113)),NA()) -> 1.723361456 | G113: =IFERROR($B$16*($B$15/(Main!$N$31+D113)),NA()) -> 1.576638544 | H113: 67.01080056 | I113: 0.0001576638544 | J113: =IFERROR(($B$15/(Main!$N$31+D113))^2*(Main!$N$31+D113)*1000,NA()) -> 0.5202907195 | K113: -1 | L113: 1 | M113: 0.005063931242 | O113: 40 | P113: 5744.3 | Q113: 5833.6 | R113: 5923.8 | S113: =IFERROR(Q113*($B$15/(Main!$N$31+Q113)),NA()) -> 1.215824576 | T113: 205.4 | U113: =IFERROR(($B$15/(Main!$N$31+Q113))^2*(Main!$N$31+Q113)*1000,NA()) -> 0.6877778901 | V113: -1.530787164 | W113: 1.54621503 | X113: 0.02669054381
A114: 82 | B114: 41 | C114: =IFERROR('Device Resistance Tables'!C101,NA()) -> 10887.9582 | D114: =IFERROR('Device Resistance Tables'!D101,NA()) -> 10997.93758 | E114: =IFERROR('Device Resistance Tables'!F101,NA()) -> 11107.91696 | F114: =IFERROR(D114*($B$15/(Main!$N$31+D114)),NA()) -> 1.728417083 | G114: =IFERROR($B$16*($B$15/(Main!$N$31+D114)),NA()) -> 1.571582917 | H114: 67.33168629 | I114: 0.0001571582917 | J114: =IFERROR(($B$15/(Main!$N$31+D114))^2*(Main!$N$31+D114)*1000,NA()) -> 0.5186223627 | K114: -1 | L114: 1 | M114: 0.005055626603 | O114: 41 | P114: 5547.4 | Q114: 5635.7 | R114: 5724.8 | S114: =IFERROR(Q114*($B$15/(Main!$N$31+Q114)),NA()) -> 1.189445308 | T114: 197.9 | U114: =IFERROR(($B$15/(Main!$N$31+Q114))^2*(Main!$N$31+Q114)*1000,NA()) -> 0.6964830484 | V114: -1.566797381 | W114: 1.580992601 | X114: 0.02637926773
A115: 83 | B115: 42 | C115: =IFERROR('Device Resistance Tables'!C102,NA()) -> 10954.93484 | D115: =IFERROR('Device Resistance Tables'!D102,NA()) -> 11065.59075 | E115: =IFERROR('Device Resistance Tables'!F102,NA()) -> 11176.24666 | F115: =IFERROR(D115*($B$15/(Main!$N$31+D115)),NA()) -> 1.733464298 | G115: =IFERROR($B$16*($B$15/(Main!$N$31+D115)),NA()) -> 1.566535702 | H115: 67.65317164 | I115: 0.0001566535702 | J115: =IFERROR(($B$15/(Main!$N$31+D115))^2*(Main!$N$31+D115)*1000,NA()) -> 0.5169567817 | K115: -1 | L115: 1 | M115: 0.005047215153 | O115: 42 | P115: 5358.2 | Q115: 5445.4 | R115: 5533.3 | S115: =IFERROR(Q115*($B$15/(Main!$N$31+Q115)),NA()) -> 1.163441542 | T115: 190.3 | U115: =IFERROR(($B$15/(Main!$N$31+Q115))^2*(Main!$N$31+Q115)*1000,NA()) -> 0.705064291 | V115: -1.6013516 | W115: 1.614206486 | X115: 0.02600376539
A116: 84 | B116: 43 | C116: =IFERROR('Device Resistance Tables'!C103,NA()) -> 11022.23035 | D116: =IFERROR('Device Resistance Tables'!D103,NA()) -> 11133.56602 | E116: =IFERROR('Device Resistance Tables'!F103,NA()) -> 11244.90168 | F116: =IFERROR(D116*($B$15/(Main!$N$31+D116)),NA()) -> 1.738502997 | G116: =IFERROR($B$16*($B$15/(Main!$N$31+D116)),NA()) -> 1.561497003 | H116: 67.97526265 | I116: 0.0001561497003 | J116: =IFERROR(($B$15/(Main!$N$31+D116))^2*(Main!$N$31+D116)*1000,NA()) -> 0.5152940111 | K116: -1 | L116: 1 | M116: 0.005038698899 | O116: 43 | P116: 5176.4 | Q116: 5262.3 | R116: 5349.2 | S116: =IFERROR(Q116*($B$15/(Main!$N$31+Q116)),NA()) -> 1.137809504 | T116: 183.1 | U116: =IFERROR(($B$15/(Main!$N$31+Q116))^2*(Main!$N$31+Q116)*1000,NA()) -> 0.7135228635 | V116: -1.632366076 | W116: 1.651369173 | X116: 0.025632038
A117: 85 | B117: 44 | C117: =IFERROR('Device Resistance Tables'!C104,NA()) -> 11089.84534 | D117: =IFERROR('Device Resistance Tables'!D104,NA()) -> 11201.86398 | E117: =IFERROR('Device Resistance Tables'!F104,NA()) -> 11313.88262 | F117: =IFERROR(D117*($B$15/(Main!$N$31+D117)),NA()) -> 1.743533077 | G117: =IFERROR($B$16*($B$15/(Main!$N$31+D117)),NA()) -> 1.556466923 | H117: 68.29796537 | I117: 0.0001556466923 | J117: =IFERROR(($B$15/(Main!$N$31+D117))^2*(Main!$N$31+D117)*1000,NA()) -> 0.5136340847 | K117: -1 | L117: 1 | M117: 0.005030079824 | O117: 44 | P117: 5001.5 | Q117: 5086.3 | R117: 5172 | S117: =IFERROR(Q117*($B$15/(Main!$N$31+Q117)),NA()) -> 1.112584928 | T117: 176 | U117: =IFERROR(($B$15/(Main!$N$31+Q117))^2*(Main!$N$31+Q117)*1000,NA()) -> 0.7218469737 | V117: -1.667223719 | W117: 1.68491831 | X117: 0.02522457642
A118: 86 | B118: 45 | C118: =IFERROR('Device Resistance Tables'!C105,NA()) -> 11157.78041 | D118: =IFERROR('Device Resistance Tables'!D105,NA()) -> 11270.48527 | E118: =IFERROR('Device Resistance Tables'!F105,NA()) -> 11383.19012 | F118: =IFERROR(D118*($B$15/(Main!$N$31+D118)),NA()) -> 1.748554436 | G118: =IFERROR($B$16*($B$15/(Main!$N$31+D118)),NA()) -> 1.551445564 | H118: 68.62128584 | I118: 0.0001551445564 | J118: =IFERROR(($B$15/(Main!$N$31+D118))^2*(Main!$N$31+D118)*1000,NA()) -> 0.511977036 | K118: -1 | L118: 1 | M118: 0.005021359894 | O118: 45 | P118: 4833.3 | Q118: 4916.9 | R118: 5001.5 | S118: =IFERROR(Q118*($B$15/(Main!$N$31+Q118)),NA()) -> 1.087744102 | T118: 169.4 | U118: =IFERROR(($B$15/(Main!$N$31+Q118))^2*(Main!$N$31+Q118)*1000,NA()) -> 0.7300444462 | V118: -1.700258293 | W118: 1.720596311 | X118: 0.02484082572
A119: 87 | B119: 46 | C119: =IFERROR('Device Resistance Tables'!C106,NA()) -> 11226.03619 | D119: =IFERROR('Device Resistance Tables'!D106,NA()) -> 11339.4305 | E119: =IFERROR('Device Resistance Tables'!F106,NA()) -> 11452.8248 | F119: =IFERROR(D119*($B$15/(Main!$N$31+D119)),NA()) -> 1.753566978 | G119: =IFERROR($B$16*($B$15/(Main!$N$31+D119)),NA()) -> 1.546433022 | H119: 68.94523011 | I119: 0.0001546433022 | J119: =IFERROR(($B$15/(Main!$N$31+D119))^2*(Main!$N$31+D119)*1000,NA()) -> 0.5103228974 | K119: -1 | L119: 1 | M119: 0.005012541052 | O119: 46 | P119: 4671.5 | Q119: 4753.9 | R119: 4837.3 | S119: =IFERROR(Q119*($B$15/(Main!$N$31+Q119)),NA()) -> 1.063303262 | T119: 163 | U119: =IFERROR(($B$15/(Main!$N$31+Q119))^2*(Main!$N$31+Q119)*1000,NA()) -> 0.7381099235 | V119: -1.7333137 | W119: 1.754349061 | X119: 0.02444084014
A120: 88 | B120: 47 | C120: =IFERROR('Device Resistance Tables'!C107,NA()) -> 11294.6133 | D120: =IFERROR('Device Resistance Tables'!D107,NA()) -> 11408.7003 | E120: =IFERROR('Device Resistance Tables'!F107,NA()) -> 11522.7873 | F120: =IFERROR(D120*($B$15/(Main!$N$31+D120)),NA()) -> 1.758570603 | G120: =IFERROR($B$16*($B$15/(Main!$N$31+D120)),NA()) -> 1.541429397 | H120: 69.26980424 | I120: 0.0001541429397 | J120: =IFERROR(($B$15/(Main!$N$31+D120))^2*(Main!$N$31+D120)*1000,NA()) -> 0.5086717011 | K120: -1 | L120: 1 | M120: 0.005003625219 | O120: 47 | P120: 4515.9 | Q120: 4597.1 | R120: 4679.3 | S120: =IFERROR(Q120*($B$15/(Main!$N$31+Q120)),NA()) -> 1.03927698 | T120: 156.8 | U120: =IFERROR(($B$15/(Main!$N$31+Q120))^2*(Main!$N$31+Q120)*1000,NA()) -> 0.7460385967 | V120: -1.766330948 | W120: 1.788083792 | X120: 0.02402628251
A121: 89 | B121: 48 | C121: =IFERROR('Device Resistance Tables'!C108,NA()) -> 11363.51236 | D121: =IFERROR('Device Resistance Tables'!D108,NA()) -> 11478.29531 | E121: =IFERROR('Device Resistance Tables'!F108,NA()) -> 11593.07827 | F121: =IFERROR(D121*($B$15/(Main!$N$31+D121)),NA()) -> 1.763565217 | G121: =IFERROR($B$16*($B$15/(Main!$N$31+D121)),NA()) -> 1.536434783 | H121: 69.59501426 | I121: 0.0001536434783 | J121: =IFERROR(($B$15/(Main!$N$31+D121))^2*(Main!$N$31+D121)*1000,NA()) -> 0.5070234784 | K121: -1 | L121: 1 | M121: 0.004994614298 | O121: 48 | P121: 4366.1 | Q121: 4446.1 | R121: 4527.1 | S121: =IFERROR(Q121*($B$15/(Main!$N$31+Q121)),NA()) -> 1.015646437 | T121: 151 | U121: =IFERROR(($B$15/(Main!$N$31+Q121))^2*(Main!$N$31+Q121)*1000,NA()) -> 0.7538366756 | V121: -1.79932975 | W121: 1.821821372 | X121: 0.02363054223
A122: 90 | B122: 49 | C122: =IFERROR('Device Resistance Tables'!C109,NA()) -> 11432.73402 | D122: =IFERROR('Device Resistance Tables'!D109,NA()) -> 11548.21618 | E122: =IFERROR('Device Resistance Tables'!F109,NA()) -> 11663.69834 | F122: =IFERROR(D122*($B$15/(Main!$N$31+D122)),NA()) -> 1.768550727 | G122: =IFERROR($B$16*($B$15/(Main!$N$31+D122)),NA()) -> 1.531449273 | H122: 69.92086623 | I122: 0.0001531449273 | J122: =IFERROR(($B$15/(Main!$N$31+D122))^2*(Main!$N$31+D122)*1000,NA()) -> 0.50537826 | K122: -1 | L122: 1 | M122: 0.004985510171 | O122: 49 | P122: 4222 | Q122: 4300.8 | R122: 4380.6 | S122: =IFERROR(Q122*($B$15/(Main!$N$31+Q122)),NA()) -> 0.9924367868 | T122: 145.3 | U122: =IFERROR(($B$15/(Main!$N$31+Q122))^2*(Main!$N$31+Q122)*1000,NA()) -> 0.7614958604 | V122: -1.832217262 | W122: 1.85546875 | X122: 0.02320965069
A123: 91 | B123: 50 | C123: =IFERROR('Device Resistance Tables'!C110,NA()) -> 11502.27891 | D123: =IFERROR('Device Resistance Tables'!D110,NA()) -> 11618.46355 | E123: =IFERROR('Device Resistance Tables'!F110,NA()) -> 11734.64818 | F123: =IFERROR(D123*($B$15/(Main!$N$31+D123)),NA()) -> 1.773527042 | G123: =IFERROR($B$16*($B$15/(Main!$N$31+D123)),NA()) -> 1.526472958 | H123: 70.2473662 | I123: 0.0001526472958 | J123: =IFERROR(($B$15/(Main!$N$31+D123))^2*(Main!$N$31+D123)*1000,NA()) -> 0.5037360762 | K123: -1 | L123: 1 | M123: 0.004976314697 | O123: 50 | P123: 4083.3 | Q123: 4160.9 | R123: 4239.5 | S123: =IFERROR(Q123*($B$15/(Main!$N$31+Q123)),NA()) -> 0.9696396415 | T123: 139.9 | U123: =IFERROR(($B$15/(Main!$N$31+Q123))^2*(Main!$N$31+Q123)*1000,NA()) -> 0.7690189183 | V123: -1.864981134 | W123: 1.889014396 | X123: 0.0227971452
A124: 92 | B124: 51 | C124: =IFERROR('Device Resistance Tables'!C111,NA()) -> 11572.14769 | D124: =IFERROR('Device Resistance Tables'!D111,NA()) -> 11689.03807 | E124: =IFERROR('Device Resistance Tables'!F111,NA()) -> 11805.92845 | F124: =IFERROR(D124*($B$15/(Main!$N$31+D124)),NA()) -> 1.778494072 | G124: =IFERROR($B$16*($B$15/(Main!$N$31+D124)),NA()) -> 1.521505928 | H124: 70.57452021 | I124: 0.0001521505928 | J124: =IFERROR(($B$15/(Main!$N$31+D124))^2*(Main!$N$31+D124)*1000,NA()) -> 0.5020969564 | K124: -1 | L124: 1 | M124: 0.004967029718 | O124: 51 | P124: 3949.8 | Q124: 4026.2 | R124: 4103.6 | S124: =IFERROR(Q124*($B$15/(Main!$N$31+Q124)),NA()) -> 0.9472601275 | T124: 134.7 | U124: =IFERROR(($B$15/(Main!$N$31+Q124))^2*(Main!$N$31+Q124)*1000,NA()) -> 0.7764041579 | V124: -1.897570911 | W124: 1.922408226 | X124: 0.02237951407
A125: 93 | B125: 52 | C125: =IFERROR('Device Resistance Tables'!C112,NA()) -> 11642.341 | D125: =IFERROR('Device Resistance Tables'!D112,NA()) -> 11759.9404 | E125: =IFERROR('Device Resistance Tables'!F112,NA()) -> 11877.53981 | F125: =IFERROR(D125*($B$15/(Main!$N$31+D125)),NA()) -> 1.783451729 | G125: =IFERROR($B$16*($B$15/(Main!$N$31+D125)),NA()) -> 1.516548271 | H125: 70.90233431 | I125: 0.0001516548271 | J125: =IFERROR(($B$15/(Main!$N$31+D125))^2*(Main!$N$31+D125)*1000,NA()) -> 0.5004609295 | K125: -1 | L125: 1 | M125: 0.004957657052 | O125: 52 | P125: 3821.3 | Q125: 3896.4 | R125: 3972.7 | S125: =IFERROR(Q125*($B$15/(Main!$N$31+Q125)),NA()) -> 0.9252842463 | T125: 129.8 | U125: =IFERROR(($B$15/(Main!$N$31+Q125))^2*(Main!$N$31+Q125)*1000,NA()) -> 0.7836561987 | V125: -1.927420183 | W125: 1.958217842 | X125: 0.0219758812
A126: 94 | B126: 53 | C126: =IFERROR('Device Resistance Tables'!C113,NA()) -> 11712.8595 | D126: =IFERROR('Device Resistance Tables'!D113,NA()) -> 11831.17122 | E126: =IFERROR('Device Resistance Tables'!F113,NA()) -> 11949.48293 | F126: =IFERROR(D126*($B$15/(Main!$N$31+D126)),NA()) -> 1.788399927 | G126: =IFERROR($B$16*($B$15/(Main!$N$31+D126)),NA()) -> 1.511600073 | H126: 71.23081454 | I126: 0.0001511600073 | J126: =IFERROR(($B$15/(Main!$N$31+D126))^2*(Main!$N$31+D126)*1000,NA()) -> 0.498828024 | K126: -1 | L126: 1 | M126: 0.0049481985 | O126: 53 | P126: 3697.5 | Q126: 3771.4 | R126: 3846.5 | S126: =IFERROR(Q126*($B$15/(Main!$N$31+Q126)),NA()) -> 0.9037294683 | T126: 125 | U126: =IFERROR(($B$15/(Main!$N$31+Q126))^2*(Main!$N$31+Q126)*1000,NA()) -> 0.7907692755 | V126: -1.959484542 | W126: 1.991302964 | X126: 0.02155477796
A127: 95 | B127: 54 | C127: =IFERROR('Device Resistance Tables'!C114,NA()) -> 11783.70387 | D127: =IFERROR('Device Resistance Tables'!D114,NA()) -> 11902.73118 | E127: =IFERROR('Device Resistance Tables'!F114,NA()) -> 12021.7585 | F127: =IFERROR(D127*($B$15/(Main!$N$31+D127)),NA()) -> 1.793338583 | G127: =IFERROR($B$16*($B$15/(Main!$N$31+D127)),NA()) -> 1.506661417 | H127: 71.55996696 | I127: 0.0001506661417 | J127: =IFERROR(($B$15/(Main!$N$31+D127))^2*(Main!$N$31+D127)*1000,NA()) -> 0.4971982676 | K127: -1 | L127: 1 | M127: 0.00493865584 | O127: 54 | P127: 3578.3 | Q127: 3651 | R127: 3724.9 | S127: =IFERROR(Q127*($B$15/(Main!$N$31+Q127)),NA()) -> 0.8825946817 | T127: 120.4 | U127: =IFERROR(($B$15/(Main!$N$31+Q127))^2*(Main!$N$31+Q127)*1000,NA()) -> 0.797743755 | V127: -1.991235278 | W127: 2.024102985 | X127: 0.02113478661
A128: 96 | B128: 55 | C128: =IFERROR('Device Resistance Tables'!C115,NA()) -> 11854.87477 | D128: =IFERROR('Device Resistance Tables'!D115,NA()) -> 11974.62098 | E128: =IFERROR('Device Resistance Tables'!F115,NA()) -> 12094.36719 | F128: =IFERROR(D128*($B$15/(Main!$N$31+D128)),NA()) -> 1.798267614 | G128: =IFERROR($B$16*($B$15/(Main!$N$31+D128)),NA()) -> 1.501732386 | H128: 71.88979762 | I128: 0.0001501732386 | J128: =IFERROR(($B$15/(Main!$N$31+D128))^2*(Main!$N$31+D128)*1000,NA()) -> 0.4955716874 | K128: -1 | L128: 1 | M128: 0.004929030832 | O128: 55 | P128: 3463.4 | Q128: 3535 | R128: 3607.6 | S128: =IFERROR(Q128*($B$15/(Main!$N$31+Q128)),NA()) -> 0.8618766162 | T128: 116 | U128: =IFERROR(($B$15/(Main!$N$31+Q128))^2*(Main!$N$31+Q128)*1000,NA()) -> 0.8045807167 | V128: -2.025459689 | W128: 2.053748232 | X128: 0.02071806553
A129: 97 | B129: 56 | C129: =IFERROR('Device Resistance Tables'!C116,NA()) -> 11926.37288 | D129: =IFERROR('Device Resistance Tables'!D116,NA()) -> 12046.84129 | E129: =IFERROR('Device Resistance Tables'!F116,NA()) -> 12167.30971 | F129: =IFERROR(D129*($B$15/(Main!$N$31+D129)),NA()) -> 1.803186939 | G129: =IFERROR($B$16*($B$15/(Main!$N$31+D129)),NA()) -> 1.496813061 | H129: 72.22031255 | I129: 0.0001496813061 | J129: =IFERROR(($B$15/(Main!$N$31+D129))^2*(Main!$N$31+D129)*1000,NA()) -> 0.4939483101 | K129: -1 | L129: =IFERROR(((E129-D129)/D129)*100,NA()) -> 1 | M129: 0.004919325216 | O129: 56 | P129: 3352.7 | Q129: 3423.1 | R129: 3494.6 | S129: =IFERROR(Q129*($B$15/(Main!$N$31+Q129)),NA()) -> 0.8415515045 | T129: 111.9 | U129: =IFERROR(($B$15/(Main!$N$31+Q129))^2*(Main!$N$31+Q129)*1000,NA()) -> 0.8112880035 | V129: -2.056615349 | W129: 2.088749963 | X129: 0.02032511168
A130: 98 | B130: 57 | C130: =IFERROR('Device Resistance Tables'!C117,NA()) -> 11998.19888 | D130: =IFERROR('Device Resistance Tables'!D117,NA()) -> 12119.39281 | E130: =IFERROR('Device Resistance Tables'!F117,NA()) -> 12240.58674 | F130: =IFERROR(D130*($B$15/(Main!$N$31+D130)),NA()) -> 1.80809648 | G130: =IFERROR($B$16*($B$15/(Main!$N$31+D130)),NA()) -> 1.49190352 | H130: =IFERROR(D130-D129,NA()) -> 72.55151782 | I130: 0.000149190352 | J130: =IFERROR(($B$15/(Main!$N$31+D130))^2*(Main!$N$31+D130)*1000,NA()) -> 0.4923281617 | K130: -1 | L130: 1 | M130: 0.004909540709 | O130: 57 | P130: 3246.1 | Q130: 3315.2 | R130: 3385.6 | S130: =IFERROR(Q130*($B$15/(Main!$N$31+Q130)),NA()) -> 0.821629416 | T130: 107.9 | U130: =IFERROR(($B$15/(Main!$N$31+Q130))^2*(Main!$N$31+Q130)*1000,NA()) -> 0.8178622927 | V130: -2.084338803 | W130: 2.123552124 | X130: 0.01992208849
A131: 99 | B131: 58 | C131: =IFERROR('Device Resistance Tables'!C118,NA()) -> 12070.35347 | D131: =IFERROR('Device Resistance Tables'!D118,NA()) -> 12192.27623 | E131: =IFERROR('Device Resistance Tables'!F118,NA()) -> 12314.19899 | F131: =IFERROR(D131*($B$15/(Main!$N$31+D131)),NA()) -> 1.812996159 | G131: =IFERROR($B$16*($B$15/(Main!$N$31+D131)),NA()) -> 1.487003841 | H131: 72.88341946 | I131: 0.0001487003841 | J131: =IFERROR(($B$15/(Main!$N$31+D131))^2*(Main!$N$31+D131)*1000,NA()) -> 0.4907112676 | K131: -1 | L131: 1 | M131: 0.004899679011 | O131: 58 | P131: 3143.2 | Q131: 3211.3 | R131: 3280.4 | S131: =IFERROR(Q131*($B$15/(Main!$N$31+Q131)),NA()) -> 0.802138321 | T131: 103.9 | U131: =IFERROR(($B$15/(Main!$N$31+Q131))^2*(Main!$N$31+Q131)*1000,NA()) -> 0.8242943541 | V131: -2.120636502 | W131: 2.151776539 | X131: 0.01949109502
A132: 100 | B132: 59 | C132: =IFERROR('Device Resistance Tables'!C119,NA()) -> 12142.83733 | D132: =IFERROR('Device Resistance Tables'!D119,NA()) -> 12265.49225 | E132: =IFERROR('Device Resistance Tables'!F119,NA()) -> 12388.14718 | F132: =IFERROR(D132*($B$15/(Main!$N$31+D132)),NA()) -> 1.817885901 | G132: =IFERROR($B$16*($B$15/(Main!$N$31+D132)),NA()) -> 1.482114099 | H132: 73.21602353 | I132: 0.0001482114099 | J132: =IFERROR(($B$15/(Main!$N$31+D132))^2*(Main!$N$31+D132)*1000,NA()) -> 0.4890976528 | K132: -1 | L132: 1 | M132: 0.004889741802 | O132: 59 | P132: 3044.1 | Q132: 3111 | R132: 3179 | S132: =IFERROR(Q132*($B$15/(Main!$N$31+Q132)),NA()) -> 0.7830295172 | T132: 100.3 | U132: =IFERROR(($B$15/(Main!$N$31+Q132))^2*(Main!$N$31+Q132)*1000,NA()) -> 0.8306002593 | V132: -2.150433944 | W132: 2.18579235 | X132: 0.01910880378
A133: 101 | B133: 60 | C133: =IFERROR('Device Resistance Tables'!C120,NA()) -> 12215.65117 | D133: =IFERROR('Device Resistance Tables'!D120,NA()) -> 12339.04159 | E133: =IFERROR('Device Resistance Tables'!F120,NA()) -> 12462.43201 | F133: =IFERROR(D133*($B$15/(Main!$N$31+D133)),NA()) -> 1.822765631 | G133: =IFERROR($B$16*($B$15/(Main!$N$31+D133)),NA()) -> 1.477234369 | H133: 73.54933607 | I133: 0.0001477234369 | J133: =IFERROR(($B$15/(Main!$N$31+D133))^2*(Main!$N$31+D133)*1000,NA()) -> 0.4874873417 | K133: -1 | L133: 1 | M133: 0.004879730742 | O133: 60 | P133: 2948.6 | Q133: 3014.3 | R133: 3081.2 | S133: =IFERROR(Q133*($B$15/(Main!$N$31+Q133)),NA()) -> 0.7643277011 | T133: 96.7 | U133: =IFERROR(($B$15/(Main!$N$31+Q133))^2*(Main!$N$31+Q133)*1000,NA()) -> 0.8367718586 | V133: -2.179610523 | W133: 2.219420761 | X133: 0.01870181613
A134: 102 | B134: 61 | C134: =IFERROR('Device Resistance Tables'!C121,NA()) -> 12288.7957 | D134: =IFERROR('Device Resistance Tables'!D121,NA()) -> 12412.92495 | E134: =IFERROR('Device Resistance Tables'!F121,NA()) -> 12537.0542 | F134: =IFERROR(D134*($B$15/(Main!$N$31+D134)),NA()) -> 1.827635279 | G134: =IFERROR($B$16*($B$15/(Main!$N$31+D134)),NA()) -> 1.472364721 | H134: 73.88336313 | I134: 0.0001472364721 | J134: =IFERROR(($B$15/(Main!$N$31+D134))^2*(Main!$N$31+D134)*1000,NA()) -> 0.485880358 | K134: -1 | L134: 1 | M134: 0.004869647469 | O134: 61 | P134: 2857.8 | Q134: 2922.4 | R134: 2988.1 | S134: =IFERROR(Q134*($B$15/(Main!$N$31+Q134)),NA()) -> 0.7462948059 | T134: 91.9 | U134: =IFERROR(($B$15/(Main!$N$31+Q134))^2*(Main!$N$31+Q134)*1000,NA()) -> 0.842722714 | V134: -2.210511908 | W134: 2.248152204 | X134: 0.01803289515
A135: 103 | B135: 62 | C135: =IFERROR('Device Resistance Tables'!C122,NA()) -> 12362.27163 | D135: =IFERROR('Device Resistance Tables'!D122,NA()) -> 12487.14306 | E135: =IFERROR('Device Resistance Tables'!F122,NA()) -> 12612.01449 | F135: =IFERROR(D135*($B$15/(Main!$N$31+D135)),NA()) -> 1.832494772 | G135: =IFERROR($B$16*($B$15/(Main!$N$31+D135)),NA()) -> 1.467505228 | H135: 74.21811075 | I135: 0.0001467505228 | J135: =IFERROR(($B$15/(Main!$N$31+D135))^2*(Main!$N$31+D135)*1000,NA()) -> 0.4842767251 | K135: -1 | L135: 1 | M135: 0.004859493606 | O135: 62 | P135: 2770.3 | Q135: 2833.7 | R135: 2898.4 | S135: =IFERROR(Q135*($B$15/(Main!$N$31+Q135)),NA()) -> 0.7286448959 | T135: 88.7 | U135: =IFERROR(($B$15/(Main!$N$31+Q135))^2*(Main!$N$31+Q135)*1000,NA()) -> 0.8485471844 | V135: -2.237357518 | W135: 2.283233934 | X135: 0.01764991006
A136: 104 | B136: 63 | C136: =IFERROR('Device Resistance Tables'!C123,NA()) -> 12436.07968 | D136: =IFERROR('Device Resistance Tables'!D123,NA()) -> 12561.69665 | E136: =IFERROR('Device Resistance Tables'!F123,NA()) -> 12687.31362 | F136: =IFERROR(D136*($B$15/(Main!$N$31+D136)),NA()) -> 1.837344043 | G136: =IFERROR($B$16*($B$15/(Main!$N$31+D136)),NA()) -> 1.462655957 | H136: 74.553585 | I136: 0.0001462655957 | J136: =IFERROR(($B$15/(Main!$N$31+D136))^2*(Main!$N$31+D136)*1000,NA()) -> 0.4826764658 | K136: -1 | L136: 1 | M136: 0.004849270754 | O136: 63 | P136: 2685.8 | Q136: 2748.2 | R136: 2811.8 | S136: =IFERROR(Q136*($B$15/(Main!$N$31+Q136)),NA()) -> 0.7113992564 | T136: 85.5 | U136: =IFERROR(($B$15/(Main!$N$31+Q136))^2*(Main!$N$31+Q136)*1000,NA()) -> 0.8542382454 | V136: -2.270577105 | W136: 2.314242049 | X136: 0.01724563949
A137: 105 | B137: 64 | C137: =IFERROR('Device Resistance Tables'!C124,NA()) -> 12510.22058 | D137: =IFERROR('Device Resistance Tables'!D124,NA()) -> 12636.58644 | E137: =IFERROR('Device Resistance Tables'!F124,NA()) -> 12762.95231 | F137: =IFERROR(D137*($B$15/(Main!$N$31+D137)),NA()) -> 1.842183024 | G137: =IFERROR($B$16*($B$15/(Main!$N$31+D137)),NA()) -> 1.457816976 | H137: 74.88979191 | I137: 0.0001457816976 | J137: =IFERROR(($B$15/(Main!$N$31+D137))^2*(Main!$N$31+D137)*1000,NA()) -> 0.4810796022 | K137: -1 | L137: 1 | M137: 0.004838980494 | O137: 64 | P137: 2604.4 | Q137: 2665.7 | R137: 2728.2 | S137: =IFERROR(Q137*($B$15/(Main!$N$31+Q137)),NA()) -> 0.6945380042 | T137: 82.5 | U137: =IFERROR(($B$15/(Main!$N$31+Q137))^2*(Main!$N$31+Q137)*1000,NA()) -> 0.8598024586 | V137: -2.299583599 | W137: 2.344599917 | X137: 0.01686125215
A138: 106 | B138: 65 | C138: =IFERROR('Device Resistance Tables'!C125,NA()) -> 12584.69505 | D138: =IFERROR('Device Resistance Tables'!D125,NA()) -> 12711.81318 | E138: =IFERROR('Device Resistance Tables'!F125,NA()) -> 12838.93131 | F138: =IFERROR(D138*($B$15/(Main!$N$31+D138)),NA()) -> 1.847011648 | G138: =IFERROR($B$16*($B$15/(Main!$N$31+D138)),NA()) -> 1.452988352 | H138: 75.22673753 | I138: 0.0001452988352 | J138: =IFERROR(($B$15/(Main!$N$31+D138))^2*(Main!$N$31+D138)*1000,NA()) -> 0.4794861561 | K138: -1 | L138: 1 | M138: 0.004828624389 | O138: 65 | P138: 2525.9 | Q138: 2586.1 | R138: 2647.6 | S138: =IFERROR(Q138*($B$15/(Main!$N$31+Q138)),NA()) -> 0.6780599232 | T138: 79.6 | U138: =IFERROR(($B$15/(Main!$N$31+Q138))^2*(Main!$N$31+Q138)*1000,NA()) -> 0.8652402253 | V138: -2.32782955 | W138: 2.378098295 | X138: 0.01647808097
A139: 107 | B139: 66 | C139: =IFERROR('Device Resistance Tables'!C126,NA()) -> 12659.50383 | D139: =IFERROR('Device Resistance Tables'!D126,NA()) -> 12787.37761 | E139: =IFERROR('Device Resistance Tables'!F126,NA()) -> 12915.25138 | F139: =IFERROR(D139*($B$15/(Main!$N$31+D139)),NA()) -> 1.851829852 | G139: =IFERROR($B$16*($B$15/(Main!$N$31+D139)),NA()) -> 1.448170148 | H139: 75.56442791 | I139: 0.0001448170148 | J139: =IFERROR(($B$15/(Main!$N$31+D139))^2*(Main!$N$31+D139)*1000,NA()) -> 0.4778961488 | K139: -1 | L139: 1 | M139: 0.004818203984 | O139: 66 | P139: 2450.1 | Q139: 2509.3 | R139: 2569.7 | S139: =IFERROR(Q139*($B$15/(Main!$N$31+Q139)),NA()) -> 0.6619626998 | T139: 76.8 | U139: =IFERROR(($B$15/(Main!$N$31+Q139))^2*(Main!$N$31+Q139)*1000,NA()) -> 0.8705523091 | V139: -2.359223688 | W139: 2.40704579 | X139: 0.0160972235
A140: 108 | B140: 67 | C140: =IFERROR('Device Resistance Tables'!C127,NA()) -> 12734.64767 | D140: =IFERROR('Device Resistance Tables'!D127,NA()) -> 12863.28048 | E140: =IFERROR('Device Resistance Tables'!F127,NA()) -> 12991.91328 | F140: =IFERROR(D140*($B$15/(Main!$N$31+D140)),NA()) -> 1.856637573 | G140: =IFERROR($B$16*($B$15/(Main!$N$31+D140)),NA()) -> 1.443362427 | H140: 75.90286909 | I140: 0.0001443362427 | J140: =IFERROR(($B$15/(Main!$N$31+D140))^2*(Main!$N$31+D140)*1000,NA()) -> 0.476309601 | K140: -1 | L140: 1 | M140: 0.004807720803 | O140: 67 | P140: 2377 | Q140: 2435.1 | R140: 2494.5 | S140: =IFERROR(Q140*($B$15/(Main!$N$31+Q140)),NA()) -> 0.6462215825 | T140: 74.2 | U140: =IFERROR(($B$15/(Main!$N$31+Q140))^2*(Main!$N$31+Q140)*1000,NA()) -> 0.8757468778 | V140: -2.385938976 | W140: 2.439324874 | X140: 0.0157411173
A141: 109 | B141: 68 | C141: =IFERROR('Device Resistance Tables'!C128,NA()) -> 12810.12732 | D141: =IFERROR('Device Resistance Tables'!D128,NA()) -> 12939.52254 | E141: =IFERROR('Device Resistance Tables'!F128,NA()) -> 13068.91777 | F141: =IFERROR(D141*($B$15/(Main!$N$31+D141)),NA()) -> 1.861434749 | G141: =IFERROR($B$16*($B$15/(Main!$N$31+D141)),NA()) -> 1.438565251 | H141: 76.24206713 | I141: 0.0001438565251 | J141: =IFERROR(($B$15/(Main!$N$31+D141))^2*(Main!$N$31+D141)*1000,NA()) -> 0.4747265328 | K141: -1 | L141: 1 | M141: 0.004797176352 | O141: 68 | P141: 2306.4 | Q141: 2363.5 | R141: 2421.8 | S141: =IFERROR(Q141*($B$15/(Main!$N$31+Q141)),NA()) -> 0.6308529138 | T141: 71.6 | U141: =IFERROR(($B$15/(Main!$N$31+Q141))^2*(Main!$N$31+Q141)*1000,NA()) -> 0.8808185384 | V141: -2.41590861 | W141: 2.46668077 | X141: 0.01536866864
A142: 110 | B142: 69 | C142: =IFERROR('Device Resistance Tables'!C129,NA()) -> 12885.94353 | D142: =IFERROR('Device Resistance Tables'!D129,NA()) -> 13016.10457 | E142: =IFERROR('Device Resistance Tables'!F129,NA()) -> 13146.26562 | F142: =IFERROR(D142*($B$15/(Main!$N$31+D142)),NA()) -> 1.866221321 | G142: =IFERROR($B$16*($B$15/(Main!$N$31+D142)),NA()) -> 1.433778679 | H142: 76.58202808 | I142: 0.0001433778679 | J142: =IFERROR(($B$15/(Main!$N$31+D142))^2*(Main!$N$31+D142)*1000,NA()) -> 0.473146964 | K142: -1 | L142: 1 | M142: 0.004786572119 | O142: 69 | P142: 2238.2 | Q142: 2294.3 | R142: 2351.7 | S142: =IFERROR(Q142*($B$15/(Main!$N$31+Q142)),NA()) -> 0.6158292867 | T142: 69.2 | U142: =IFERROR(($B$15/(Main!$N$31+Q142))^2*(Main!$N$31+Q142)*1000,NA()) -> 0.8857763354 | V142: -2.445190254 | W142: 2.501852417 | X142: 0.01502362708
A143: 111 | B143: 70 | C143: =IFERROR('Device Resistance Tables'!C130,NA()) -> 12962.09706 | D143: =IFERROR('Device Resistance Tables'!D130,NA()) -> 13093.02733 | E143: =IFERROR('Device Resistance Tables'!F130,NA()) -> 13223.9576 | F143: =IFERROR(D143*($B$15/(Main!$N$31+D143)),NA()) -> 1.870997231 | G143: =IFERROR($B$16*($B$15/(Main!$N$31+D143)),NA()) -> 1.429002769 | H143: 76.92275797 | I143: 0.0001429002769 | J143: =IFERROR(($B$15/(Main!$N$31+D143))^2*(Main!$N$31+D143)*1000,NA()) -> 0.4715709138 | K143: -1 | L143: 1 | M143: 0.004775909573 | O143: 70 | P143: 2172.4 | Q143: 2227.5 | R143: 2283.9 | S143: =IFERROR(Q143*($B$15/(Main!$N$31+Q143)),NA()) -> 0.6011654058 | T143: 66.8 | U143: =IFERROR(($B$15/(Main!$N$31+Q143))^2*(Main!$N$31+Q143)*1000,NA()) -> 0.8906154161 | V143: -2.47362514 | W143: 2.531986532 | X143: 0.0146638809
A144: 112 | B144: 71 | C144: =IFERROR('Device Resistance Tables'!C131,NA()) -> 12972.73722 | D144: =IFERROR('Device Resistance Tables'!D131,NA()) -> 13170.29159 | E144: =IFERROR('Device Resistance Tables'!F131,NA()) -> 13367.84597 | F144: =IFERROR(D144*($B$15/(Main!$N$31+D144)),NA()) -> 1.875762421 | G144: =IFERROR($B$16*($B$15/(Main!$N$31+D144)),NA()) -> 1.424237579 | H144: 77.26426287 | I144: 0.0001424237579 | J144: =IFERROR(($B$15/(Main!$N$31+D144))^2*(Main!$N$31+D144)*1000,NA()) -> 0.4699984011 | K144: -1.5 | L144: 1.5 | M144: 0.004765190164 | O144: 71 | P144: 2108.6 | Q144: 2162.7 | R144: 2218.1 | S144: =IFERROR(Q144*($B$15/(Main!$N$31+Q144)),NA()) -> 0.586786651 | T144: 64.8 | U144: =IFERROR(($B$15/(Main!$N$31+Q144))^2*(Main!$N$31+Q144)*1000,NA()) -> 0.8953604052 | V144: -2.501502751 | W144: 2.561612799 | X144: 0.01437875486
A145: 113 | B145: 72 | C145: =IFERROR('Device Resistance Tables'!C132,NA()) -> 13049.17967 | D145: =IFERROR('Device Resistance Tables'!D132,NA()) -> 13247.89814 | E145: =IFERROR('Device Resistance Tables'!F132,NA()) -> 13446.61661 | F145: =IFERROR(D145*($B$15/(Main!$N$31+D145)),NA()) -> 1.880516836 | G145: =IFERROR($B$16*($B$15/(Main!$N$31+D145)),NA()) -> 1.419483164 | H145: 77.6065488 | I145: 0.0001419483164 | J145: =IFERROR(($B$15/(Main!$N$31+D145))^2*(Main!$N$31+D145)*1000,NA()) -> 0.468429444 | K145: -1.5 | L145: 1.5 | M145: 0.004754415324 | O145: 72 | P145: 2046.9 | Q145: 2100.1 | R145: 2154.5 | S145: =IFERROR(Q145*($B$15/(Main!$N$31+Q145)),NA()) -> 0.572749812 | T145: 62.6 | U145: =IFERROR(($B$15/(Main!$N$31+Q145))^2*(Main!$N$31+Q145)*1000,NA()) -> 0.899992562 | V145: -2.533212704 | W145: 2.59035284 | X145: 0.01403683901
A146: 114 | B146: 73 | C146: =IFERROR('Device Resistance Tables'!C133,NA()) -> 13125.96005 | D146: =IFERROR('Device Resistance Tables'!D133,NA()) -> 13325.84776 | E146: =IFERROR('Device Resistance Tables'!F133,NA()) -> 13525.73548 | F146: =IFERROR(D146*($B$15/(Main!$N$31+D146)),NA()) -> 1.885260423 | G146: =IFERROR($B$16*($B$15/(Main!$N$31+D146)),NA()) -> 1.414739577 | H146: 77.94962184 | I146: 0.0001414739577 | J146: =IFERROR(($B$15/(Main!$N$31+D146))^2*(Main!$N$31+D146)*1000,NA()) -> 0.4668640605 | K146: -1.5 | L146: 1.5 | M146: 0.004743586468 | O146: 73 | P146: 1987.3 | Q146: 2039.6 | R146: 2093 | S146: =IFERROR(Q146*($B$15/(Main!$N$31+Q146)),NA()) -> 0.559045151 | T146: 60.5 | U146: =IFERROR(($B$15/(Main!$N$31+Q146))^2*(Main!$N$31+Q146)*1000,NA()) -> 0.9045151002 | V146: -2.56422828 | W146: 2.618160424 | X146: 0.01370466098
A147: 115 | B147: 74 | C147: =IFERROR('Device Resistance Tables'!C134,NA()) -> 13203.07913 | D147: =IFERROR('Device Resistance Tables'!D134,NA()) -> 13404.14125 | E147: =IFERROR('Device Resistance Tables'!F134,NA()) -> 13605.20337 | F147: =IFERROR(D147*($B$15/(Main!$N$31+D147)),NA()) -> 1.889993128 | G147: =IFERROR($B$16*($B$15/(Main!$N$31+D147)),NA()) -> 1.410006872 | H147: 78.29348801 | I147: 0.0001410006872 | J147: =IFERROR(($B$15/(Main!$N$31+D147))^2*(Main!$N$31+D147)*1000,NA()) -> 0.4653022678 | K147: -1.5 | L147: 1.5 | M147: 0.004732704992 | O147: 74 | P147: 1929.8 | Q147: 1981.1 | R147: 2033.5 | S147: =IFERROR(Q147*($B$15/(Main!$N$31+Q147)),NA()) -> 0.5456619175 | T147: 58.5 | U147: =IFERROR(($B$15/(Main!$N$31+Q147))^2*(Main!$N$31+Q147)*1000,NA()) -> 0.9089315672 | V147: -2.589470496 | W147: 2.644995205 | X147: 0.01338323348
A148: 116 | B148: 75 | C148: =IFERROR('Device Resistance Tables'!C135,NA()) -> 13280.53771 | D148: =IFERROR('Device Resistance Tables'!D135,NA()) -> 13482.7794 | E148: =IFERROR('Device Resistance Tables'!F135,NA()) -> 13685.02109 | F148: =IFERROR(D148*($B$15/(Main!$N$31+D148)),NA()) -> 1.8947149 | G148: =IFERROR($B$16*($B$15/(Main!$N$31+D148)),NA()) -> 1.4052851 | H148: 78.63815338 | I148: 0.00014052851 | J148: =IFERROR(($B$15/(Main!$N$31+D148))^2*(Main!$N$31+D148)*1000,NA()) -> 0.463744083 | K148: -1.5 | L148: 1.5 | M148: 0.004721772273 | O148: 75 | P148: 1874.1 | Q148: 1924.5 | R148: 1976.1 | S148: =IFERROR(Q148*($B$15/(Main!$N$31+Q148)),NA()) -> 0.5325883685 | T148: 56.6 | U148: =IFERROR(($B$15/(Main!$N$31+Q148))^2*(Main!$N$31+Q148)*1000,NA()) -> 0.9132458384 | V148: -2.618862042 | W148: 2.6812159 | X148: 0.01307354904
A149: 117 | B149: 76 | C149: =IFERROR('Device Resistance Tables'!C136,NA()) -> 13358.33658 | D149: =IFERROR('Device Resistance Tables'!D136,NA()) -> 13561.76303 | E149: =IFERROR('Device Resistance Tables'!F136,NA()) -> 13765.18947 | F149: =IFERROR(D149*($B$15/(Main!$N$31+D149)),NA()) -> 1.89942569 | G149: =IFERROR($B$16*($B$15/(Main!$N$31+D149)),NA()) -> 1.40057431 | H149: 78.98362398 | I149: 0.000140057431 | J149: =IFERROR(($B$15/(Main!$N$31+D149))^2*(Main!$N$31+D149)*1000,NA()) -> 0.4621895224 | K149: -1.5 | L149: 1.5 | M149: 0.004710789672 | O149: 76 | P149: 1820.4 | Q149: 1869.8 | R149: 1920.5 | S149: =IFERROR(Q149*($B$15/(Main!$N$31+Q149)),NA()) -> 0.5198352121 | T149: 54.7 | U149: =IFERROR(($B$15/(Main!$N$31+Q149))^2*(Main!$N$31+Q149)*1000,NA()) -> 0.91745438 | V149: -2.641993796 | W149: 2.711519949 | X149: 0.01275315643
A150: 118 | B150: 77 | C150: =IFERROR('Device Resistance Tables'!C137,NA()) -> 13436.47654 | D150: =IFERROR('Device Resistance Tables'!D137,NA()) -> 13641.09293 | E150: =IFERROR('Device Resistance Tables'!F137,NA()) -> 13845.70933 | F150: =IFERROR(D150*($B$15/(Main!$N$31+D150)),NA()) -> 1.904125448 | G150: =IFERROR($B$16*($B$15/(Main!$N$31+D150)),NA()) -> 1.395874552 | H150: 79.32990587 | I150: 0.0001395874552 | J150: =IFERROR(($B$15/(Main!$N$31+D150))^2*(Main!$N$31+D150)*1000,NA()) -> 0.4606386021 | K150: -1.5 | L150: 1.5 | M150: 0.004699758531 | O150: 77 | P150: 1768.4 | Q150: 1817 | R150: 1866.7 | S150: =IFERROR(Q150*($B$15/(Main!$N$31+Q150)),NA()) -> 0.507413049 | T150: 52.8 | U150: =IFERROR(($B$15/(Main!$N$31+Q150))^2*(Main!$N$31+Q150)*1000,NA()) -> 0.9215536938 | V150: -2.67473858 | W150: 2.735277931 | X150: 0.01242216305
A151: 119 | B151: 78 | C151: =IFERROR('Device Resistance Tables'!C138,NA()) -> 13514.95839 | D151: =IFERROR('Device Resistance Tables'!D138,NA()) -> 13720.76994 | E151: =IFERROR('Device Resistance Tables'!F138,NA()) -> 13926.58149 | F151: =IFERROR(D151*($B$15/(Main!$N$31+D151)),NA()) -> 1.908814128 | G151: =IFERROR($B$16*($B$15/(Main!$N$31+D151)),NA()) -> 1.391185872 | H151: 79.67700509 | I151: 0.0001391185872 | J151: =IFERROR(($B$15/(Main!$N$31+D151))^2*(Main!$N$31+D151)*1000,NA()) -> 0.4590913376 | K151: -1.5 | L151: 1.5 | M151: 0.004688680176 | O151: 78 | P151: 1718.1 | Q151: 1765.8 | R151: 1814.7 | S151: =IFERROR(Q151*($B$15/(Main!$N$31+Q151)),NA()) -> 0.4952608407 | T151: 51.2 | U151: =IFERROR(($B$15/(Main!$N$31+Q151))^2*(Main!$N$31+Q151)*1000,NA()) -> 0.9255639226 | V151: -2.701325178 | W151: 2.769283045 | X151: 0.01215220826
A152: 120 | B152: 79 | C152: =IFERROR('Device Resistance Tables'!C139,NA()) -> 13593.78294 | D152: =IFERROR('Device Resistance Tables'!D139,NA()) -> 13800.79487 | E152: =IFERROR('Device Resistance Tables'!F139,NA()) -> 14007.80679 | F152: =IFERROR(D152*($B$15/(Main!$N$31+D152)),NA()) -> 1.913491684 | G152: =IFERROR($B$16*($B$15/(Main!$N$31+D152)),NA()) -> 1.386508316 | H152: 80.0249277 | I152: 0.0001386508316 | J152: =IFERROR(($B$15/(Main!$N$31+D152))^2*(Main!$N$31+D152)*1000,NA()) -> 0.4575477441 | K152: -1.5 | L152: 1.5 | M152: 0.004677555914 | O152: 79 | P152: 1669.5 | Q152: 1716.4 | R152: 1764.4 | S152: =IFERROR(Q152*($B$15/(Main!$N$31+Q152)),NA()) -> 0.4834351849 | T152: 49.4 | U152: =IFERROR(($B$15/(Main!$N$31+Q152))^2*(Main!$N$31+Q152)*1000,NA()) -> 0.929466389 | V152: -2.732463295 | W152: 2.796550921 | X152: 0.01182565587
A153: 121 | B153: 80 | C153: =IFERROR('Device Resistance Tables'!C140,NA()) -> 13672.95102 | D153: =IFERROR('Device Resistance Tables'!D140,NA()) -> 13881.16855 | E153: =IFERROR('Device Resistance Tables'!F140,NA()) -> 14089.38607 | F153: =IFERROR(D153*($B$15/(Main!$N$31+D153)),NA()) -> 1.918158071 | G153: =IFERROR($B$16*($B$15/(Main!$N$31+D153)),NA()) -> 1.381841929 | H153: 80.37367973 | I153: 0.0001381841929 | J153: =IFERROR(($B$15/(Main!$N$31+D153))^2*(Main!$N$31+D153)*1000,NA()) -> 0.4560078364 | K153: -1.5 | L153: 1.5 | M153: 0.004666387036 | O153: 80 | P153: 1622.5 | Q153: 1668.5 | R153: 1715.7 | S153: =IFERROR(Q153*($B$15/(Main!$N$31+Q153)),NA()) -> 0.4718729914 | T153: 47.9 | U153: =IFERROR(($B$15/(Main!$N$31+Q153))^2*(Main!$N$31+Q153)*1000,NA()) -> 0.9332819128 | V153: -2.756967336 | W153: 2.828888223 | X153: 0.01156219348
A154: 122 | B154: 81 | C154: =IFERROR('Device Resistance Tables'!C141,NA()) -> 13752.46344 | D154: =IFERROR('Device Resistance Tables'!D141,NA()) -> 13961.89181 | E154: =IFERROR('Device Resistance Tables'!F141,NA()) -> 14171.32019 | F154: =IFERROR(D154*($B$15/(Main!$N$31+D154)),NA()) -> 1.922813246 | G154: =IFERROR($B$16*($B$15/(Main!$N$31+D154)),NA()) -> 1.377186754 | H154: 80.72326724 | I154: 0.0001377186754 | J154: =IFERROR(($B$15/(Main!$N$31+D154))^2*(Main!$N$31+D154)*1000,NA()) -> 0.4544716287 | K154: -1.5 | L154: 1.5 | M154: 0.004655174814 | O154: 81 | P154: 1577.2 | Q154: 1622.4 | R154: 1668.7 | S154: =IFERROR(Q154*($B$15/(Main!$N$31+Q154)),NA()) -> 0.4606552863 | T154: 46.1 | U154: =IFERROR(($B$15/(Main!$N$31+Q154))^2*(Main!$N$31+Q154)*1000,NA()) -> 0.9369837555 | V154: -2.785996055 | W154: 2.853796844 | X154: 0.01121770504
A155: 123 | B155: 82 | C155: =IFERROR('Device Resistance Tables'!C142,NA()) -> 13832.32103 | D155: =IFERROR('Device Resistance Tables'!D142,NA()) -> 14042.96551 | E155: =IFERROR('Device Resistance Tables'!F142,NA()) -> 14253.60999 | F155: =IFERROR(D155*($B$15/(Main!$N$31+D155)),NA()) -> 1.927457167 | G155: =IFERROR($B$16*($B$15/(Main!$N$31+D155)),NA()) -> 1.372542833 | H155: 81.07369627 | I155: 0.0001372542833 | J155: =IFERROR(($B$15/(Main!$N$31+D155))^2*(Main!$N$31+D155)*1000,NA()) -> 0.452939135 | K155: -1.5 | L155: 1.5 | M155: 0.004643920507 | O155: 82 | P155: 1533.4 | Q155: 1577.7 | R155: 1623.2 | S155: =IFERROR(Q155*($B$15/(Main!$N$31+Q155)),NA()) -> 0.4496929442 | T155: 44.7 | U155: =IFERROR(($B$15/(Main!$N$31+Q155))^2*(Main!$N$31+Q155)*1000,NA()) -> 0.9406013284 | V155: -2.807884896 | W155: 2.883944983 | X155: 0.01096234215
A156: 124 | B156: 83 | C156: =IFERROR('Device Resistance Tables'!C143,NA()) -> 13912.52463 | D156: =IFERROR('Device Resistance Tables'!D143,NA()) -> 14124.39048 | E156: =IFERROR('Device Resistance Tables'!F143,NA()) -> 14336.25634 | F156: =IFERROR(D156*($B$15/(Main!$N$31+D156)),NA()) -> 1.932089792 | G156: =IFERROR($B$16*($B$15/(Main!$N$31+D156)),NA()) -> 1.367910208 | H156: 81.42497287 | I156: 0.0001367910208 | J156: =IFERROR(($B$15/(Main!$N$31+D156))^2*(Main!$N$31+D156)*1000,NA()) -> 0.4514103686 | K156: -1.5 | L156: 1.5 | M156: 0.004632625352 | O156: 83 | P156: 1490.9 | Q156: 1534.5 | R156: 1579.2 | S156: =IFERROR(Q156*($B$15/(Main!$N$31+Q156)),NA()) -> 0.4390177294 | T156: 43.2 | U156: =IFERROR(($B$15/(Main!$N$31+Q156))^2*(Main!$N$31+Q156)*1000,NA()) -> 0.9441241493 | V156: -2.84131639 | W156: 2.913000978 | X156: 0.01067521477
A157: 125 | B157: 84 | C157: =IFERROR('Device Resistance Tables'!C144,NA()) -> 13993.07507 | D157: =IFERROR('Device Resistance Tables'!D144,NA()) -> 14206.16759 | E157: =IFERROR('Device Resistance Tables'!F144,NA()) -> 14419.2601 | F157: =IFERROR(D157*($B$15/(Main!$N$31+D157)),NA()) -> 1.936711083 | G157: =IFERROR($B$16*($B$15/(Main!$N$31+D157)),NA()) -> 1.363288917 | H157: 81.7771031 | I157: 0.0001363288917 | J157: =IFERROR(($B$15/(Main!$N$31+D157))^2*(Main!$N$31+D157)*1000,NA()) -> 0.4498853427 | K157: -1.5 | L157: 1.5 | M157: 0.004621290574 | O157: 84 | P157: 1449.9 | Q157: 1492.7 | R157: 1536.5 | S157: =IFERROR(Q157*($B$15/(Main!$N$31+Q157)),NA()) -> 0.4286120755 | T157: 41.8 | U157: =IFERROR(($B$15/(Main!$N$31+Q157))^2*(Main!$N$31+Q157)*1000,NA()) -> 0.9475580151 | V157: -2.867287466 | W157: 2.934280163 | X157: 0.01040565393
A158: 126 | B158: 85 | C158: =IFERROR('Device Resistance Tables'!C145,NA()) -> 14073.97321 | D158: =IFERROR('Device Resistance Tables'!D145,NA()) -> 14288.29768 | E158: =IFERROR('Device Resistance Tables'!F145,NA()) -> 14502.62214 | F158: =IFERROR(D158*($B$15/(Main!$N$31+D158)),NA()) -> 1.941321 | G158: =IFERROR($B$16*($B$15/(Main!$N$31+D158)),NA()) -> 1.358679 | H158: 82.13009299 | I158: 0.0001358679 | J158: =IFERROR(($B$15/(Main!$N$31+D158))^2*(Main!$N$31+D158)*1000,NA()) -> 0.44836407 | K158: -1.5 | L158: 1.5 | M158: 0.004609917378 | O158: 85 | P158: 1410.1 | Q158: 1452.1 | R158: 1495.2 | S158: =IFERROR(Q158*($B$15/(Main!$N$31+Q158)),NA()) -> 0.4184324272 | T158: 40.6 | U158: =IFERROR(($B$15/(Main!$N$31+Q158))^2*(Main!$N$31+Q158)*1000,NA()) -> 0.950917299 | V158: -2.892362785 | W158: 2.968115144 | X158: 0.01017964825
A159: 127 | B159: 86 | C159: =IFERROR('Device Resistance Tables'!C146,NA()) -> 14155.2199 | D159: =IFERROR('Device Resistance Tables'!D146,NA()) -> 14370.78163 | E159: =IFERROR('Device Resistance Tables'!F146,NA()) -> 14586.34335 | F159: =IFERROR(D159*($B$15/(Main!$N$31+D159)),NA()) -> 1.945919507 | G159: =IFERROR($B$16*($B$15/(Main!$N$31+D159)),NA()) -> 1.354080493 | H159: 82.4839486 | I159: 0.0001354080493 | J159: =IFERROR(($B$15/(Main!$N$31+D159))^2*(Main!$N$31+D159)*1000,NA()) -> 0.4468465627 | K159: -1.5 | L159: 1.5 | M159: 0.004598506954 | O159: 86 | P159: 1371.7 | Q159: 1412.9 | R159: 1455.2 | S159: =IFERROR(Q159*($B$15/(Main!$N$31+Q159)),NA()) -> 0.4085350787 | T159: 39.2 | U159: =IFERROR(($B$15/(Main!$N$31+Q159))^2*(Main!$N$31+Q159)*1000,NA()) -> 0.954183424 | V159: -2.915988393 | W159: 2.993842452 | X159: 0.009897348514
A160: 128 | B160: 87 | C160: =IFERROR('Device Resistance Tables'!C147,NA()) -> 14236.816 | D160: =IFERROR('Device Resistance Tables'!D147,NA()) -> 14453.6203 | E160: =IFERROR('Device Resistance Tables'!F147,NA()) -> 14670.42461 | F160: =IFERROR(D160*($B$15/(Main!$N$31+D160)),NA()) -> 1.950506567 | G160: =IFERROR($B$16*($B$15/(Main!$N$31+D160)),NA()) -> 1.349493433 | H160: 82.83867597 | I160: 0.0001349493433 | J160: =IFERROR(($B$15/(Main!$N$31+D160))^2*(Main!$N$31+D160)*1000,NA()) -> 0.4453328327 | K160: -1.5 | L160: 1.5 | M160: 0.004587060476 | O160: 87 | P160: 1334.4 | Q160: 1374.9 | R160: 1416.5 | S160: =IFERROR(Q160*($B$15/(Main!$N$31+Q160)),NA()) -> 0.3988755945 | T160: 38 | U160: =IFERROR(($B$15/(Main!$N$31+Q160))^2*(Main!$N$31+Q160)*1000,NA()) -> 0.9573710538 | V160: -2.945668776 | W160: 3.025674595 | X160: 0.009659484216
A161: 129 | B161: 88 | C161: =IFERROR('Device Resistance Tables'!C148,NA()) -> 14318.76237 | D161: =IFERROR('Device Resistance Tables'!D148,NA()) -> 14536.81458 | E161: =IFERROR('Device Resistance Tables'!F148,NA()) -> 14754.8668 | F161: =IFERROR(D161*($B$15/(Main!$N$31+D161)),NA()) -> 1.955082147 | G161: =IFERROR($B$16*($B$15/(Main!$N$31+D161)),NA()) -> 1.344917853 | H161: 83.19428115 | I161: 0.0001344917853 | J161: =IFERROR(($B$15/(Main!$N$31+D161))^2*(Main!$N$31+D161)*1000,NA()) -> 0.4438228916 | K161: -1.5 | L161: =IFERROR(((E161-D161)/D161)*100,NA()) -> 1.5 | M161: 0.004575579102 | O161: 88 | P161: 1298.4 | Q161: 1338.1 | R161: 1379 | S161: =IFERROR(Q161*($B$15/(Main!$N$31+Q161)),NA()) -> 0.3894594332 | T161: 36.8 | U161: =IFERROR(($B$15/(Main!$N$31+Q161))^2*(Main!$N$31+Q161)*1000,NA()) -> 0.960478387 | V161: -2.966893356 | W161: 3.056572752 | X161: 0.009416161272
A162: 130 | B162: 89 | C162: =IFERROR('Device Resistance Tables'!C149,NA()) -> 14401.05987 | D162: =IFERROR('Device Resistance Tables'!D149,NA()) -> 14620.36535 | E162: =IFERROR('Device Resistance Tables'!F149,NA()) -> 14839.67083 | F162: =IFERROR(D162*($B$15/(Main!$N$31+D162)),NA()) -> 1.959646211 | G162: =IFERROR($B$16*($B$15/(Main!$N$31+D162)),NA()) -> 1.340353789 | H162: =IFERROR(D162-D161,NA()) -> 83.5507702 | I162: =$F162/$D162 -> 0.0001340353789 | J162: =IFERROR(($B$15/(Main!$N$31+D162))^2*(Main!$N$31+D162)*1000,NA()) -> 0.4423167505 | K162: =IFERROR(((D162-C162)/D162)*-100,NA()) -> -1.5 | L162: 1.5 | M162: 0.004564063972 | O162: 89 | P162: 1263.5 | Q162: 1302.5 | R162: 1342.6 | S162: =IFERROR(Q162*($B$15/(Main!$N$31+Q162)),NA()) -> 0.3802919708 | T162: 35.6 | U162: =IFERROR(($B$15/(Main!$N$31+Q162))^2*(Main!$N$31+Q162)*1000,NA()) -> 0.9635036496 | V162: =IFERROR(((Q162-P162)/Q162)*-100,NA()) -> -2.994241843 | W162: =IFERROR(((R162-Q162)/Q162)*100,NA()) -> 3.078694818 | X162: 0.009167462435
A163: 131 | B163: 90 | C163: =IFERROR('Device Resistance Tables'!C150,NA()) -> 14483.7094 | D163: =IFERROR('Device Resistance Tables'!D150,NA()) -> 14704.2735 | E163: =IFERROR('Device Resistance Tables'!F150,NA()) -> 14924.83761 | F163: =IFERROR(D163*($B$15/(Main!$N$31+D163)),NA()) -> 1.964198727 | G163: =IFERROR($B$16*($B$15/(Main!$N$31+D163)),NA()) -> 1.335801273 | H163: 83.90814915 | I163: 0.0001335801273 | J163: =IFERROR(($B$15/(Main!$N$31+D163))^2*(Main!$N$31+D163)*1000,NA()) -> 0.4408144202 | K163: -1.5 | L163: 1.5 | M163: =IFERROR(F163-F162,NA()) -> 0.004552516214 | O163: 90 | P163: 1229.6 | Q163: 1268 | R163: 1307.4 | S163: =IFERROR(Q163*($B$15/(Main!$N$31+Q163)),NA()) -> 0.3713525027 | T163: =IFERROR(Q162-Q163,NA()) -> 34.5 | U163: =IFERROR(($B$15/(Main!$N$31+Q163))^2*(Main!$N$31+Q163)*1000,NA()) -> 0.9664536741 | V163: -3.028391167 | W163: 3.107255521 | X163: =IFERROR(S162-S163,NA()) -> 0.008939468141
A164: 132 | B164: 91 | C164: =IFERROR('Device Resistance Tables'!C151,NA()) -> 14566.71183 | D164: =IFERROR('Device Resistance Tables'!D151,NA()) -> 14788.53993 | E164: =IFERROR('Device Resistance Tables'!F151,NA()) -> 15010.36803 | F164: =IFERROR(D164*($B$15/(Main!$N$31+D164)),NA()) -> 1.968739664 | G164: =IFERROR($B$16*($B$15/(Main!$N$31+D164)),NA()) -> 1.331260336 | H164: 84.26642405 | I164: 0.0001331260336 | J164: =IFERROR(($B$15/(Main!$N$31+D164))^2*(Main!$N$31+D164)*1000,NA()) -> 0.439315911 | K164: -1.5 | L164: 1.5 | M164: 0.004540936935 | O164: 91 | P164: 1196.6 | Q164: 1234.3 | R164: 1273 | S164: =IFERROR(Q164*($B$15/(Main!$N$31+Q164)),NA()) -> 0.3625673162 | T164: 33.7 | U164: =IFERROR(($B$15/(Main!$N$31+Q164))^2*(Main!$N$31+Q164)*1000,NA()) -> 0.9693527857 | V164: -3.054362797 | W164: 3.135380378 | X164: 0.008785186497
A165: 133 | B165: 92 | C165: =IFERROR('Device Resistance Tables'!C152,NA()) -> 14650.06805 | D165: =IFERROR('Device Resistance Tables'!D152,NA()) -> 14873.16553 | E165: =IFERROR('Device Resistance Tables'!F152,NA()) -> 15096.26301 | F165: =IFERROR(D165*($B$15/(Main!$N$31+D165)),NA()) -> 1.973268991 | G165: =IFERROR($B$16*($B$15/(Main!$N$31+D165)),NA()) -> 1.326731009 | H165: 84.62560096 | I165: 0.0001326731009 | J165: =IFERROR(($B$15/(Main!$N$31+D165))^2*(Main!$N$31+D165)*1000,NA()) -> 0.437821233 | K165: -1.5 | L165: 1.5 | M165: 0.004529327232 | O165: 92 | P165: 1164.7 | Q165: 1201.6 | R165: 1239.6 | S165: =IFERROR(Q165*($B$15/(Main!$N$31+Q165)),NA()) -> 0.3539922868 | T165: 32.7 | U165: =IFERROR(($B$15/(Main!$N$31+Q165))^2*(Main!$N$31+Q165)*1000,NA()) -> 0.9721825454 | V165: -3.070905459 | W165: 3.162450067 | X165: 0.00857502935
